Workbook

Sheet READ_ME_FIRST
B6: Version | L6: Date: | N6: =LOOKUP(2,1/(Version!C:C<>""),Version!C:C) -> 2022-03-14
B7: =LOOKUP(2,1/(Version!A:A<>""),Version!A:A) -> 3 | L7: Publication number: | N7: DOE/NETL-2022/3243
L8: Status: | N8: =LOOKUP(2,1/(Version!B:B<>""),Version!B:B) -> Final
B10: The 2022 version of the FECM/NETL CO2 Transport Cost Model (CO2_T_COM) estimates costs for transporting liquid CO2 in a pipeline from a source, such as a power plant, to either a CO2 saline storage site or a CO2 EOR site. This is a point-to-point transport model and does not account for possible cost reductions from using a larger diameter trunkline as part of a pipeline network. The model includes costs for constructing and operating the pipeline, including booster pumps if desired. To use the model, change any of the inputs, which are always orange cells, to the values appropriate for your project.
B11: The use of this model requires macros to be enabled.
B21: Suggested citation for this model:
B22: ="National Energy Technology Laboratory, FECM/NETL CO2 Transport Cost Model (" & YEAR(N6) & "), National Energy Technology Laboratory, Last Update: " & TEXT(N6, "mmm YYYY") & " (Version " & B7 & "), https://netl.doe.gov/energy-analysis/search?search=CO2TransportCostModel." -> National Energy Technology Laboratory, FECM/NETL CO2 Transport Cost Model (2022), National Energy Technology Laboratory, Last Update: Mar 2022 (Version 3), https://netl.doe.gov/energy-analysis/search?search=CO2TransportCostModel.
B24: Open source software license: BSD 1 <OWNER> = National Energy Technology Laboratory <YEAR> = 2022 Redistribution and use of this software (a spreadsheet file), with or without modification, is permitted provided that the following conditions are met: • Redistributions of this software must retain this list of conditions and the following disclaimer. • The National Energy Technology Laboratory shall have permission to distribute derivative works created by the licensee. Such derivative works shall have a different name or version number from the original software. • Neither the name of the National Energy Technology Laboratory nor the names of its contributors may be used to endorse or promote products derived from this software without specific prior written permission. THIS SOFTWARE IS PROVIDED BY THE OWNER AND CONTRIBUTORS "AS IS" AND ANY EXPRESS OR IMPLIED WARRANTIES, INCLUDING, BUT NOT LIMITED TO, THE IMPLIED WARRANTIES OF MERCHANTABILITY AND FITNESS FOR A PARTICULAR PURPOSE ARE DISCLAIMED. IN NO EVENT SHALL THE OWNER OR CONTRIBUTORS BE LIABLE FOR ANY DIRECT, INDIRECT, INCIDENTAL, SPECIAL, EXEMPLARY, OR CONSEQUENTIAL DAMAGES (INCLUDING, BUT NOT LIMITED TO, PROCUREMENT OF SUBSTITUTE GOODS OR SERVICES; LOSS OF USE, DATA, OR PROFITS; OR BUSINESS INTERRUPTION) HOWEVER CAUSED AND ON ANY THEORY OF LIABILITY, WHETHER IN CONTRACT, STRICT LIABILITY, OR TORT (INCLUDING NEGLIGENCE OR OTHERWISE) ARISING IN ANY WAY OUT OF THE USE OF THIS SOFTWARE, EVEN IF ADVISED OF THE POSSIBILITY OF SUCH DAMAGE.
B26: Disclaimer: This project was funded by the United States Department of Energy, National Energy Technology Laboratory, in part, through a site support contract. Neither the United States Government nor any agency thereof, nor any of their employees, nor the support contractor, nor any of their employees, makes any warranty, express or implied, or assumes any legal liability or responsibility for the accuracy, completeness, or usefulness of any information, apparatus, product, or process disclosed, or represents that its use would not infringe privately owned rights. Reference herein to any specific commercial product, process, or service by trade name, trademark, manufacturer, or otherwise does not necessarily constitute or imply its endorsement, recommendation, or favoring by the United States Government or any agency thereof. The views and opinions of authors expressed herein do not necessarily state or reflect those of the United States Government or any agency thereof.
B28: See below for model formatting conventions and worksheet descriptions and links.
B30: Conventions for text and cell color/style
B31: Cell Color Conventions | I31: Font Conventions
B32: Inputs specified in this cell (type in this cell) | I32: Base font | M32: Calibri 10
B33: Cells using values from other sheets | I33: Hyperlinks to places within the document | M33: Hyperlink Text
B34: Overview or instruction sections
B36: Worksheet Name | C36: Worksheet Descriptions
B37: Main | C37: Sheet is the core interface, houses the financial module, and provides key inputs for the project along with main results and findings.
B38: Go to Main Sheet
B39: Combo Results | C39: Sheet provides a way to simultaneously run multiple scenarios and shows key results.
B40: Go to Combo Results Sheet
B41: Eng Mod | C41: Sheet is the engineering module, which includes engineering equations and capital costs and operating expenses, and provides inputs for the project along with findings.
B42: Go to Eng Mod Sheet
B43: Cases | C43: Sheet provides the inputs for running the Process_Cases VBA macro and presents the results for each case.
B44: Go to Cases Sheet
B45: Cases_def | C45: Sheet provides definitions of some of the variables in the "Cases" sheet that are calculated with the Process_Cases VBA macro.
B46: Go to Cases_def Sheet
B47: PL Pressure Relation | C47: Sheet includes data for developing a factor to translate natural gas pipeline capital costs to CO2 pipeline capital costs.
B48: Go to PL Pressure Relation Sheet
B49: Cost Indices | C49: Sheet contains a variety of cost indices used to adjust costs to the base year of 2011.
B50: Go to Cost Indices Sheet
B51: Pipe Cap | C51: Sheet has tables with capital costs for different aspects of constructing a natural gas pipeline using three different cost equations.
B52: Go to Pipe Cap Sheet
B53: Pipe Cap plot | C53: Sheet includes tables and plots of capital costs for different aspects of constructing a natural gas pipeline using three different cost equations. Plots are used in the User's Manual.
B54: Go to Pipe Cap plot Sheet
B55: Parameters | C55: Sheet contains input values for drop-down menus in the "Main" and "Eng Mod" sheets and items pertaining to the CO2_T_COM ribbon. Data should not be modified so sheet is hidden.
B56: Go to Parameters Sheet
B57: Version | C57: Sheet provides information used by the developers to track edits made within the model. Information within this sheet should not be modified so sheet is hidden.
B58: Go to Version Sheet
B60: Assumptions
B61: 1 | C61: Base year is 2011$ for all costs. The user can enter one escalation rate to escalate revenues and costs to a different start year. The user can enter a different escalation rate to escalate costs for all years beyond the start year, but they can be escalated to a different start year.
B62: 2 | C62: CO2 is assumed to be transported in the liquid phase.
B63: 3 | C63: This is a point-to-point transport model and does not account for possible cost reductions from using a larger diameter trunkline as part of a pipeline network.
B64: 4 | C64: All booster pumps are evenly distributed between the transport source and destination, thereby dividing the pipeline into equal length segments.

Sheet Main
B1: This sheet is the core interface of the model, houses the financial module, provides a number of key inputs (orange cells) the user can modify, and summarizes key results
B7: Table 1 | C7: Summary | D7: A. Key Inputs and Results for Basic Analysis | J7: B. First-Year Break-Even Price of CO2 as a Function of Number of Pumps | Q7: C. First-Year Break-Even Price of CO2 as a Function of Length of Pipeline | Y7: D. First Year Break-Even Price of CO2 as a Function of the Transport Rate
E8: =E59&"$/tonne" -> 2011$/tonne | F8: =E60&"$/tonne" -> 2018$/tonne | G8: =(E60+E61)&"$/tonne" -> 2021$/tonne | J8: Enter a blank cell in column J to indicate the end of input values | Q8: Enter a blank cell in column Q to indicate the end of input values | Y8: Enter a blank cell in column Y to indicate the end of input values
B9: SUMMARY | F9: first yr of proj | G9: first yr of transp | J9: Num. of pumps | K9: First Year Price | L9: First Year Price | M9: First Year Price | N9: Minimum Inner | O9: Selected Nominal | Q9: Length of | R9: First Year Price | S9: First Year Price | T9: First Year Price | U9: Optimal | V9: Minimum Inner | W9: Selected Nominal | Y9: Annual Average | Z9: First Year Price | AA9: First Year Price | AB9: First Year Price | AC9: Optimal | AD9: Minimum Inner | AE9: Selected Nominal
D10: First-year Price to Transport CO2 by Pipeline | E10: 1.9 | F10: =ROUND(E10*E50,2) -> 2.21 | G10: =ROUND(F10*(1+E51)^E61,2) -> 2.37 | H10: . | J10: where results are | K10: base year | L10: =F9 -> first yr of proj | M10: =G9 -> first yr of transp | N10: Pipe Diameter | O10: Pipe Diameter | Q10: pipeline | R10: base year | S10: =F9 -> first yr of proj | T10: =G9 -> first yr of transp | U10: Number of | V10: Pipe Diameter | W10: Pipe Diameter | Y10: CO2 Mass Flow | Z10: base year | AA10: =F9 -> first yr of proj | AB10: =G9 -> first yr of transp | AC10: Number of | AD10: Pipe Diameter | AE10: Pipe Diameter
D11: Annual Average CO2 Mass Flow Rate (qav) | E11: 4.3 | F11: Mtonnes/yr (Mtonnes = megatonnes [million tonnes]; tonne = 1000 kg) | J11: desired | K11: =E59&"$/tonne" -> 2011$/tonne | L11: =F8 -> 2018$/tonne | M11: =G8 -> 2021$/tonne | N11: in | O11: in | Q11: miles | R11: =E59&"$/tonne" -> 2011$/tonne | S11: =F8 -> 2018$/tonne | T11: =G8 -> 2021$/tonne | U11: Pumps | V11: in | W11: in | Y11: Rate in Mtonnes/yr | Z11: =E59&"$/tonne" -> 2011$/tonne | AA11: =F8 -> 2018$/tonne | AB11: =G8 -> 2021$/tonne | AC11: Pumps | AD11: in | AE11: in
D12: Capacity Factor (fraction of time when flow is at equivalent of maximum flow rate) | E12: 0.85 | J12: 0 | Q12: 62 | Y12: 1
D13: Maximum CO2 Flow Rate on annualized basis | E13: =E11/E12 -> 5.058823529 | F13: Mtonnes/yr | J13: 1 | Q13: 100 | Y13: 2
D14: Length of pipeline | E14: 62 | F14: mi | J14: 2 | Q14: 150 | Y14: 3
D15: Number of booster pumps (Optimal Pump Number will set the optimal pump number) | E15: 1 | F15: Optimal number of pumps | J15: 3 | Q15: 200 | Y15: 4
D16: Change in Elevation (Positive if pipeline outlet is at a higher elevation than inlet) | E16: 0 | F16: ft | J16: 4 | Q16: 250 | Y16: =4.3 * 0.9/0.85 -> 4.552941176
J17: 5 | Q17: 300 | Y17: 5
D18: Key Outputs | J18: 7 | Q18: 350 | Y18: 7.5
D19: Calculated Minimum Inner Diameter for Pipe | E19: ='Eng Mod'!G47 -> 11.51441499 | F19: in | J19: 10 | Q19: 400 | Y19: 10
D20: Nominal Pipe Diameter or Pipe Size | E20: ='Eng Mod'!G48 -> 12 | F20: in | G20: Note: A pipe size of 2,000 inches indicates a nominal | J20: 15 | Q20: 450 | Y20: 12.5
D21: Net Present Value (NPV) of Cash to Owners | E21: =C221 -> 345070.6208 | F21: Present Value$ | G21: pipe diameter greater than 48 inches was needed | J21: 20 | Q21: 500 | Y21: 15
D22: Rate of Return on Weighted Debt and Equity | E22: =IF(E21<0.011,"NA",IRR(E220:CZ220)) -> 0.08345998629 | G22: 48 inches is largest pipe size allowed by model | J22: 25 | Q22: 600 | Y22: 17.5
J23: 30 | Q23: 700 | Y23: 20
D24: Summary of Costs | E24: Real* | F24: Real* | G24: Nominal | H24: Present Value | J24: 35 | Q24: 800 | Y24: 22.5
E25: =E59&"$" -> 2011$ | F25: =E60&"$" -> 2018$ | G25: Escalated$ | H25: Present Value$ | J25: 40 | Q25: 900 | Y25: 25
D26: Capital Costs | E26: =C131 -> 67159923.86 | F26: =C149 -> 78210752.72 | G26: =C167 -> 80715056.22 | H26: =C171 -> 72347327.15 | J26: 45 | Q26: 1000 | Y26: 27.5
D27: Operating Expenses | E27: =C132 -> 70806731.82 | F27: =C150 -> 82457624.66 | G27: =C168 -> 125150874.9 | H27: =C172 -> 34248309.57 | J27: 50 | Q27: 1250 | Y27: 30
D28: Total Costs | E28: =SUM(E26:E27) -> 137966655.7 | F28: =SUM(F26:F27) -> 160668377.4 | G28: =SUM(G26:G27) -> 205865931.2 | H28: =SUM(H26:H27) -> 106595636.7 | J28: 75 | Q28: 1500 | Y28: 40
D29: Total tonnes of CO2 transported | E29: =C189 -> 129000000 | F29: =C189 -> 129000000 | G29: =C189 -> 129000000 | H29: =C189 -> 129000000 | J29: 100 | Q29: 1750 | Y29: 50
D30: Costs per tonne | E30: =E28/E29 -> 1.069508959 | F30: =F28/F29 -> 1.245491298 | G30: =G28/G29 -> 1.595859931 | H30: =H28/H29 -> 0.8263227653 | J30: 200 | Q30: 2000 | Y30: 75
D31: Capital Costs per mile of pipeline | E31: =E26/$E$74 -> 1083224.578 | F31: 1261463.754 | G31: 1301855.745 | H31: 1166892.373 | Y31: 100
D32: Operating Expenses per mile of pipeline | E32: 1142044.062 | F32: 1329961.688 | G32: 2018562.499 | H32: 552392.0898 | Y32: 150
D33: Operating Expenses per mile of pipeline per year of operation | E33: =E32/$E$62 -> 38068.13539 | F33: =F32/$E$62 -> 44332.05627 | G33: =G32/$E$62 -> 67285.41663 | H33: =H32/$E$62 -> 18413.06966 | Y33: 200
D34: Total Costs per mile of pipeline | E34: =E28/$E$74 -> 2225268.64 | F34: =F28/$E$74 -> 2591425.442 | G34: =G28/$E$74 -> 3320418.244 | H34: =H28/$E$74 -> 1719284.463 | J34: Optimal No. Pumps | Y34: 300
Y35: 500
D36: Revenues | E36: Real | F36: Real | G36: Nominal | H36: Present Value
E37: =E59&"$" -> 2011$ | F37: =E60&"$" -> 2018$ | G37: Escalated$ | H37: Present Value$
D38: Revenue | E38: =C193 -> 245100000 | F38: =C197 -> 285090000 | G38: =C201 -> 433214168.4 | H38: =C204 -> 118551731.7
D39: Revenue per tonne | E39: =E38/E29 -> 1.9 | F39: =F38/F29 -> 2.21 | G39: =G38/G29 -> 3.358249368 | H39: =H38/H29 -> 0.9190056723
D40: Revenue per mile of pipeline | E40: =E38/$E$74 -> 3953225.806 | F40: =F38/$E$74 -> 4598225.806 | G40: =G38/$E$74 -> 6987325.298 | H40: =H38/$E$74 -> 1912124.705
B43: Table 2 | C43: Inputs | D43: Category | E43: Value | F43: Unit | G43: Note
D44: Financial Inputs
D45: Capitalization (fequity) | E45: 0.45 | G45: Percent equity; see Appendix A of User's Manual
D46: Cost of Equity (minimum internal rate of return on equity or IRROEmin) | E46: 0.13 | F46: /yr | G46: 10.77% default when calculating real$, 13% default when calculating nominal$; see Appendix A in User's Manual
D47: Cost of Debt (id) | E47: 0.06 | F47: /yr | G47: interest rate; 3.91% default when calculating real$, 6% default when calculating nominal$; see Appendix A in User's Manual
D48: Tax Rate (rtax) | E48: 0.2574 | F48: /yr | G48: Effective tax rate (21% federal corporate income tax, 4.74% state & local tax); see Appendix A in User's Manual
D49: Escalation rate from 2011 to starting year of project | E49: 0.022 | F49: /yr | G49: Based on The Handy-Whitman Index of Public Utility Construction Costs, 1912 to January 1, 2018 – Cost Trends of Gas Utility Construction (transmission) from 2011 to 2018; see Appendix A in User's Manual
D50: Escalation factor from 2011 to starting year of project | E50: =(1+E49)^(E60-2011) -> 1.164544988
D51: Escalation rate beyond starting year of project | E51: 0.023 | F51: /yr | G51: 0% default when calculating real$, 2.3% default when calculating nominal$; see Appendix A in User's Manual
D52: Project Contingency Factor | E52: 0.15
D53: Depreciation method - recovery period for depreciation | E53: DB150 - 15 years | G53: DB150 - 15 years is default
D54: DB150 - 150% declining balance or SL - straight line
D56: Tax affected cost of debt (idtax) | E56: =E47*(1-E48) -> 0.044556 | F56: /yr | G56: idtax = id * (1-rtax)
D57: Weighted average cost of capital (WACC) | E57: =E45*E46+(1-E45)*E56 -> 0.0830058 | F57: /yr | G57: WACC = fequity * IRROEmin + (1 - fequity) * idtax
D59: Base year for capital and O&M costs | E59: 2011 | G59: If this year is changed from 2011 all the capital costs and O&M costs in other sheets must be modified. This would require substantial effort on the user's part.
D60: Starting Calendar Year for Project | E60: 2018 | F60: year
D61: Duration of Construction in years | E61: 3 | F61: years | G61: 1 to 5 years with appropriate percentages specified in Table 3
D62: Duration of Operation in years | E62: 30 | F62: years
D63: Starting Project Year for Operations | E63: =E61+1 -> 4 | F63: year number
D64: Ending Project Year for Operations | E64: =E61+E62 -> 33 | F64: year number
D65: Last Project Year for Depreciation | E65: =E64 -> 33 | F65: year number | N65: Figure from EIA (no date, archived); see "Eng Mod" sheet for reference
D66: Last Project Year for Lending | E66: =E64 -> 33 | F66: year number
D68: Other Quantities and Inputs
D69: Annual Tonnes of CO2 Transported (on average) | E69: =E11*1000000 -> 4300000 | F69: tonne/yr | G69: These are annual CO2 mass flow rates from Table 1A converted from Mtonne/yr to the indicated units
E70: =E69*E62 -> 129000000 | F70: tonnes/project
D71: Maximum CO2 transported each day | E71: =E13 -> 5.058823529 | F71: Mtonne/yr | G71: Maximum CO2 mass flow rate on annualized basis (average flow rate divided by capacity factor)
E72: =E71*1000000/365 -> 13859.79049 | F72: tonnes/day | G72: Maximum CO2 mass flow rate on daily basis
D73: Number of pumps | E73: =E15 -> 1 | G73: See Table 1A
D74: Length of pipeline | E74: =E14 -> 62 | F74: mi | G74: See Table 1A
E75: =l_conv(E74,F74,F75) -> 99.779328 | F75: km
D76: Input Pressure | E76: 2200 | F76: psig | G76: Pressure leaving source or at exit of booster pump
E77: =P_Conv(E76,F76,"MPa") -> 15.26981833 | F77: MPa
D78: Outlet Pressure | E78: 1200 | F78: =F76 -> psig | G78: Pressure entering booster pump or exiting pipeline at storage site (CO2 critical pressure: 1,057 psig or 7.39 MPa)
E79: =P_Conv(E78,F78,"MPa") -> 8.375061328 | F79: MPa
D80: Change in Elevation | E80: =l_conv(E16,F16,F80) -> 0 | F80: m | G80: These are the unit conversion values
D82: Indicate equations to use for capital cost of natural gas pipelines | E82: PARKER | G82: PARKER=Parker (2004), MCCOY=McCoy and Rubin (2008), RUI=Rui et al. (2011); see "Eng Mod" sheet for references to sources for equations
D83: Region of US or Canada | E83: MW | G83: NE=Northeast US, SE=Southeast US, MW=Midwest US, Cen=Central US,
G84: SW=Southwest US, West=Western US, Can= Canada; see Figure to right
B86: Table 3 | C86: Engineering Cost Inputs | D86: Capital Costs | E86: Total Real Costs | F86: Percent in Year 1 | G86: Percent in Year 2 | H86: Percent in Year 3 | I86: Percent in Year 4 | J86: Percent in Year 5
E87: =E59&"$" -> 2011$ | K87: Check
D88: Materials | E88: ='Eng Mod'!G116*l_conv(L_PL,Len_PL_U,"mi") -> 10396110.34 | F88: 0.05 | G88: 0.4 | H88: =1-SUM(F88:G88) -> 0.55 | K88: =SUM(F88:J88) -> 1
D89: Labor | E89: ='Eng Mod'!G117*l_conv(L_PL,Len_PL_U,"mi") -> 30838552.3 | F89: 0.05 | G89: 0.4 | H89: 0.55 | K89: =SUM(F89:J89) -> 1
D90: ROW-Damages | E90: ='Eng Mod'!G118*l_conv(L_PL,Len_PL_U,"mi") -> 2971557.917 | F90: 0.55 | G90: 0.3 | H90: 0.15 | K90: 1
D91: Miscellaneous | E91: ='Eng Mod'!G119*l_conv(L_PL,Len_PL_U,"mi") -> 10631921.85 | F91: 0.3 | G91: 0.35 | H91: 0.35 | K91: 1
D92: CO2 Surge Tanks | E92: ='Eng Mod'!G126 -> 1244743.659 | F92: 0 | G92: 0.3 | H92: 0.7 | K92: 1
D93: Pipeline Control system | E93: ='Eng Mod'!G127 -> 111907.1913 | F93: 0 | G93: 0.3 | H93: 0.7 | K93: 1
D94: Pumps | E94: ='Eng Mod'!G136 -> 2205140.528 | F94: 0 | G94: 0.4 | H94: 0.6 | K94: 1
D95: Total capital expenses (before contingencies) | E95: =SUM(E88:E94) -> 58399933.79
D96: Operating Expenses | E96: Real Annual Costs
E97: =E59&"$/yr" -> 2011$/yr
D98: Pipeline O&M | E98: ='Eng Mod'!G153 -> 1404869.832
D99: Pipeline related equipment and pumps O&M | E99: ='Eng Mod'!G158 -> 142471.6551
D100: Electricity costs for pumps | E100: ='Eng Mod'!G163 -> 812882.9073
D101: Total annual operating expenses | E101: =SUM(E98:E100) -> 2360224.394
B103: Table 4 | C103: Escalation and Discounting Factors
C105: This column contains row sums, where applicable. | D105: Calendar Year | E105: =$E$60 -> 2018 | F105: =E105+1 -> 2019 | G105: =F105+1 -> 2020 | H105: 2021 | I105: 2022 | J105: 2023 | K105: 2024 | L105: 2025 | M105: 2026 | N105: 2027 | O105: 2028 | P105: 2029 | Q105: 2030 | R105: 2031 | S105: 2032 | T105: 2033 | U105: 2034 | V105: 2035 | W105: =V105+1 -> 2036 | X105: 2037 | Y105: 2038 | Z105: 2039 | AA105: 2040 | AB105: 2041 | AC105: 2042 | AD105: 2043 | AE105: 2044 | AF105: 2045 | AG105: 2046 | AH105: 2047 | AI105: 2048 | AJ105: 2049 | AK105: 2050 | AL105: 2051 | AM105: =AL105+1 -> 2052 | AN105: 2053 | AO105: 2054 | AP105: 2055 | AQ105: 2056 | AR105: 2057 | AS105: 2058 | AT105: 2059 | AU105: 2060 | AV105: 2061 | AW105: 2062 | AX105: 2063 | AY105: 2064 | AZ105: 2065 | BA105: 2066 | BB105: 2067 | BC105: =BB105+1 -> 2068 | BD105: 2069 | BE105: 2070 | BF105: 2071 | BG105: 2072 | BH105: 2073 | BI105: 2074 | BJ105: 2075 | BK105: 2076 | BL105: 2077 | BM105: 2078 | BN105: 2079 | BO105: 2080 | BP105: 2081 | BQ105: 2082 | BR105: 2083 | BS105: =BR105+1 -> 2084 | BT105: 2085 | BU105: 2086 | BV105: 2087 | BW105: 2088 | BX105: 2089 | BY105: 2090 | BZ105: 2091 | CA105: 2092 | CB105: 2093 | CC105: 2094 | CD105: 2095 | CE105: 2096 | CF105: 2097 | CG105: 2098 | CH105: 2099 | CI105: =CH105+1 -> 2100 | CJ105: 2101 | CK105: 2102 | CL105: 2103 | CM105: 2104 | CN105: 2105 | CO105: 2106 | CP105: 2107 | CQ105: 2108 | CR105: 2109 | CS105: 2110 | CT105: 2111 | CU105: 2112 | CV105: 2113 | CW105: 2114 | CX105: 2115 | CY105: =CX105+1 -> 2116 | CZ105: =CY105+1 -> 2117
D106: Project Year | E106: 1 | F106: =E106+1 -> 2 | G106: 3 | H106: 4 | I106: 5 | J106: 6 | K106: 7 | L106: 8 | M106: 9 | N106: 10 | O106: 11 | P106: 12 | Q106: 13 | R106: 14 | S106: 15 | T106: 16 | U106: 17 | V106: 18 | W106: 19 | X106: 20 | Y106: 21 | Z106: 22 | AA106: 23 | AB106: 24 | AC106: 25 | AD106: 26 | AE106: 27 | AF106: 28 | AG106: 29 | AH106: 30 | AI106: 31 | AJ106: 32 | AK106: 33 | AL106: 34 | AM106: 35 | AN106: 36 | AO106: 37 | AP106: 38 | AQ106: 39 | AR106: 40 | AS106: 41 | AT106: 42 | AU106: 43 | AV106: 44 | AW106: 45 | AX106: 46 | AY106: 47 | AZ106: 48 | BA106: 49 | BB106: 50 | BC106: 51 | BD106: 52 | BE106: 53 | BF106: 54 | BG106: 55 | BH106: 56 | BI106: 57 | BJ106: 58 | BK106: 59 | BL106: 60 | BM106: 61 | BN106: 62 | BO106: 63 | BP106: 64 | BQ106: 65 | BR106: 66 | BS106: 67 | BT106: 68 | BU106: 69 | BV106: 70 | BW106: 71 | BX106: 72 | BY106: 73 | BZ106: 74 | CA106: 75 | CB106: 76 | CC106: 77 | CD106: 78 | CE106: 79 | CF106: 80 | CG106: 81 | CH106: 82 | CI106: 83 | CJ106: 84 | CK106: 85 | CL106: 86 | CM106: 87 | CN106: 88 | CO106: 89 | CP106: 90 | CQ106: 91 | CR106: 92 | CS106: 93 | CT106: 94 | CU106: 95 | CV106: 96 | CW106: 97 | CX106: 98 | CY106: =CX106+1 -> 99 | CZ106: =CY106+1 -> 100
D108: ="Escalation schedule from base year of "&E59 -> Escalation schedule from base year of 2011 | E108: =$E$50*(1+$E$51)^(E105-$E$60) -> 1.164544988 | F108: =$E$50*(1+$E$51)^(F105-$E$60) -> 1.191329523 | G108: =$E$50*(1+$E$51)^(G105-$E$60) -> 1.218730102 | H108: 1.246760894 | I108: 1.275436395 | J108: 1.304771432 | K108: 1.334781175 | L108: 1.365481142 | M108: 1.396887208 | N108: 1.429015614 | O108: 1.461882973 | P108: 1.495506281 | Q108: 1.529902926 | R108: 1.565090693 | S108: 1.601087779 | T108: 1.637912798 | U108: 1.675584792 | V108: 1.714123242 | W108: 1.753548077 | X108: 1.793879683 | Y108: 1.835138915 | Z108: 1.87734711 | AA108: 1.920526094 | AB108: 1.964698194 | AC108: 2.009886253 | AD108: 2.056113636 | AE108: 2.10340425 | AF108: 2.151782548 | AG108: 2.201273546 | AH108: 2.251902838 | AI108: 2.303696603 | AJ108: 2.356681625 | AK108: =$E$50*(1+$E$51)^(AK105-$E$60) -> 2.410885303 | AL108: 2.466335664 | AM108: 2.523061385 | AN108: 2.581091797 | AO108: 2.640456908 | AP108: 2.701187417 | AQ108: 2.763314727 | AR108: 2.826870966 | AS108: 2.891888998 | AT108: 2.958402445 | AU108: 3.026445702 | AV108: 3.096053953 | AW108: 3.167263194 | AX108: 3.240110247 | AY108: 3.314632783 | AZ108: 3.390869337 | BA108: 3.468859331 | BB108: 3.548643096 | BC108: 3.630261887 | BD108: 3.713757911 | BE108: 3.799174343 | BF108: 3.886555353 | BG108: 3.975946126 | BH108: 4.067392887 | BI108: 4.160942923 | BJ108: 4.25664461 | BK108: 4.354547436 | BL108: 4.454702027 | BM108: 4.557160174 | BN108: 4.661974858 | BO108: 4.76920028 | BP108: 4.878891886 | BQ108: =$E$50*(1+$E$51)^(BQ105-$E$60) -> 4.991106399 | BR108: 5.105901847 | BS108: 5.223337589 | BT108: 5.343474354 | BU108: 5.466374264 | BV108: 5.592100872 | BW108: 5.720719192 | BX108: 5.852295733 | BY108: 5.986898535 | BZ108: 6.124597201 | CA108: 6.265462937 | CB108: 6.409568585 | CC108: 6.556988662 | CD108: 6.707799401 | CE108: 6.862078788 | CF108: 7.0199066 | CG108: 7.181364451 | CH108: 7.346535834 | CI108: 7.515506158 | CJ108: 7.6883628 | CK108: 7.865195144 | CL108: 8.046094632 | CM108: 8.231154809 | CN108: 8.42047137 | CO108: 8.614142211 | CP108: 8.812267482 | CQ108: 9.014949634 | CR108: 9.222293476 | CS108: 9.434406225 | CT108: 9.651397569 | CU108: 9.873379713 | CV108: 10.10046745 | CW108: 10.3327782 | CX108: 10.5704321 | CY108: 10.81355203 | CZ108: 11.06226373
D109: Factor for dividing escal. quantities to yield pres. value using WACC | E109: =(1+$E$57)^(E106-1) -> 1 | F109: =(1+$E$57)^(F106-1) -> 1.0830058 | G109: 1.172901563 | H109: 1.270259195 | I109: 1.375698076 | J109: 1.489888995 | K109: 1.613558423 | L109: 1.747493131 | M109: 1.892545197 | N109: 2.049637425 | O109: 2.219769219 | P109: 2.404022939 | Q109: 2.603570786 | R109: 2.819682262 | S109: 3.053732244 | T109: 3.307209732 | U109: 3.581727321 | V109: 3.879031463 | W109: 4.201013573 | X109: 4.549722065 | Y109: 4.927375385 | Z109: 5.33637612 | AA109: 5.779326289 | AB109: 6.259043892 | AC109: 6.778580837 | AD109: 7.341242362 | AE109: 7.950608057 | AF109: 8.61055464 | AG109: 9.325280616 | AH109: 10.09933299 | AI109: 10.93763621 | AJ109: 11.84552345 | AK109: =(1+$E$57)^(AK106-1) -> 12.8287706 | AL109: 13.89363297 | AM109: 15.04688509 | AN109: 16.29586382 | AO109: 17.64851504 | AP109: 19.11344415 | AQ109: 20.69997087 | AR109: 22.41818851 | AS109: 24.27902818 | AT109: 26.29432834 | AU109: 28.4769101 | AV109: 30.8406588 | AW109: 33.40061236 | AX109: 36.17305691 | AY109: 39.17563044 | AZ109: 42.42743498 | BA109: 45.94915816 | BB109: 49.7632048 | BC109: 53.89383942 | BD109: 58.36734068 | BE109: 63.21216848 | BF109: 68.4591451 | BG109: 74.1416512 | BH109: 80.29583828 | BI109: 86.96085857 | BJ109: 94.1791142 | BK109: 101.9965269 | BL109: 110.4628302 | BM109: 119.6318858 | BN109: 129.5620262 | BO109: 140.3164259 | BP109: 151.963503 | BQ109: =(1+$E$57)^(BQ106-1) -> 164.5773552 | BR109: 178.2382302 | BS109: 193.0330371 | BT109: 209.0558988 | BU109: 226.4087509 | BV109: 245.2019904 | BW109: 265.5551778 | BX109: 287.5977977 | BY109: 311.470083 | BZ109: 337.3239064 | CA109: 365.3237471 | CB109: 395.647737 | CC109: 428.4887939 | CD109: 464.0558491 | CE109: 502.5751761 | CF109: 544.2918306 | CG109: 589.4712095 | CH109: 638.4007388 | CI109: 691.3917028 | CJ109: 748.7812242 | CK109: 810.9344088 | CL109: 878.2466681 | CM109: 951.1462354 | CN109: 1030.09689 | CO109: 1115.600906 | CP109: 1208.202252 | CQ109: 1308.490046 | CR109: 1417.102309 | CS109: 1534.73002 | CT109: 1662.121513 | CU109: 1800.087239 | CV109: 1949.50492 | CW109: 2111.325136 | CX109: 2286.577368 | CY109: 2476.376552 | CZ109: 2681.930168
B111: Table 5 | C111: Operating Expenses, Capital Expenses and Depreciation and Amortization
C113: This column contains row sums, where applicable. | D113: Calendar Year | E113: =$E$60 -> 2018 | F113: =E113+1 -> 2019 | G113: 2020 | H113: 2021 | I113: 2022 | J113: 2023 | K113: 2024 | L113: 2025 | M113: 2026 | N113: 2027 | O113: 2028 | P113: 2029 | Q113: 2030 | R113: 2031 | S113: 2032 | T113: 2033 | U113: 2034 | V113: 2035 | W113: 2036 | X113: 2037 | Y113: 2038 | Z113: 2039 | AA113: 2040 | AB113: 2041 | AC113: 2042 | AD113: 2043 | AE113: 2044 | AF113: 2045 | AG113: 2046 | AH113: 2047 | AI113: 2048 | AJ113: 2049 | AK113: 2050 | AL113: =AK113+1 -> 2051 | AM113: 2052 | AN113: 2053 | AO113: 2054 | AP113: 2055 | AQ113: 2056 | AR113: 2057 | AS113: 2058 | AT113: 2059 | AU113: 2060 | AV113: 2061 | AW113: 2062 | AX113: 2063 | AY113: 2064 | AZ113: 2065 | BA113: 2066 | BB113: 2067 | BC113: 2068 | BD113: 2069 | BE113: 2070 | BF113: 2071 | BG113: 2072 | BH113: 2073 | BI113: 2074 | BJ113: 2075 | BK113: 2076 | BL113: 2077 | BM113: 2078 | BN113: 2079 | BO113: 2080 | BP113: 2081 | BQ113: 2082 | BR113: =BQ113+1 -> 2083 | BS113: 2084 | BT113: 2085 | BU113: 2086 | BV113: 2087 | BW113: 2088 | BX113: 2089 | BY113: 2090 | BZ113: 2091 | CA113: 2092 | CB113: 2093 | CC113: 2094 | CD113: 2095 | CE113: 2096 | CF113: 2097 | CG113: 2098 | CH113: 2099 | CI113: 2100 | CJ113: 2101 | CK113: 2102 | CL113: 2103 | CM113: 2104 | CN113: 2105 | CO113: 2106 | CP113: 2107 | CQ113: 2108 | CR113: 2109 | CS113: 2110 | CT113: 2111 | CU113: 2112 | CV113: 2113 | CW113: 2114 | CX113: 2115 | CY113: 2116 | CZ113: 2117
D114: Project Year | E114: 1 | F114: =E114+1 -> 2 | G114: 3 | H114: 4 | I114: 5 | J114: 6 | K114: 7 | L114: 8 | M114: 9 | N114: 10 | O114: 11 | P114: 12 | Q114: 13 | R114: 14 | S114: 15 | T114: 16 | U114: 17 | V114: 18 | W114: 19 | X114: 20 | Y114: 21 | Z114: 22 | AA114: 23 | AB114: 24 | AC114: 25 | AD114: 26 | AE114: 27 | AF114: 28 | AG114: 29 | AH114: 30 | AI114: 31 | AJ114: 32 | AK114: 33 | AL114: =AK114+1 -> 34 | AM114: 35 | AN114: 36 | AO114: 37 | AP114: 38 | AQ114: 39 | AR114: 40 | AS114: 41 | AT114: 42 | AU114: 43 | AV114: 44 | AW114: 45 | AX114: 46 | AY114: 47 | AZ114: 48 | BA114: 49 | BB114: 50 | BC114: 51 | BD114: 52 | BE114: 53 | BF114: 54 | BG114: 55 | BH114: 56 | BI114: 57 | BJ114: 58 | BK114: 59 | BL114: 60 | BM114: 61 | BN114: 62 | BO114: 63 | BP114: 64 | BQ114: 65 | BR114: =BQ114+1 -> 66 | BS114: 67 | BT114: 68 | BU114: 69 | BV114: 70 | BW114: 71 | BX114: 72 | BY114: 73 | BZ114: 74 | CA114: 75 | CB114: 76 | CC114: 77 | CD114: 78 | CE114: 79 | CF114: 80 | CG114: 81 | CH114: 82 | CI114: 83 | CJ114: 84 | CK114: 85 | CL114: 86 | CM114: 87 | CN114: 88 | CO114: 89 | CP114: 90 | CQ114: 91 | CR114: 92 | CS114: 93 | CT114: 94 | CU114: 95 | CV114: 96 | CW114: 97 | CX114: 98 | CY114: 99 | CZ114: 100
D116: ="Real Costs in "&E59&"$" -> Real Costs in 2011$
D117: ="Capital Costs in Real "&E59&"$" -> Capital Costs in Real 2011$
C118: =SUM(E118:CZ118) -> 10396110.34 | D118: Materials | E118: =IF(E$114<=$E$61,$E88*F88,0) -> 519805.5172 | F118: 4158444.138 | G118: 5717860.69 | H118: 0 | I118: 0 | J118: 0 | K118: 0 | L118: 0 | M118: 0 | N118: 0 | O118: 0 | P118: 0 | Q118: 0 | R118: 0 | S118: 0 | T118: 0 | U118: 0 | V118: 0 | W118: 0 | X118: 0 | Y118: 0 | Z118: 0 | AA118: 0 | AB118: 0 | AC118: 0 | AD118: 0 | AE118: 0 | AF118: 0 | AG118: 0 | AH118: 0 | AI118: 0 | AJ118: 0 | AK118: =IF(AK$114<=$E$61,$E88*AL88,0) -> 0 | AL118: 0 | AM118: 0 | AN118: 0 | AO118: 0 | AP118: 0 | AQ118: 0 | AR118: 0 | AS118: 0 | AT118: 0 | AU118: 0 | AV118: 0 | AW118: 0 | AX118: 0 | AY118: 0 | AZ118: 0 | BA118: 0 | BB118: 0 | BC118: 0 | BD118: 0 | BE118: 0 | BF118: 0 | BG118: 0 | BH118: 0 | BI118: 0 | BJ118: 0 | BK118: 0 | BL118: 0 | BM118: 0 | BN118: 0 | BO118: 0 | BP118: 0 | BQ118: =IF(BQ$114<=$E$61,$E88*BR88,0) -> 0 | BR118: 0 | BS118: 0 | BT118: 0 | BU118: 0 | BV118: 0 | BW118: 0 | BX118: 0 | BY118: 0 | BZ118: 0 | CA118: 0 | CB118: 0 | CC118: 0 | CD118: 0 | CE118: 0 | CF118: 0 | CG118: 0 | CH118: 0 | CI118: 0 | CJ118: 0 | CK118: 0 | CL118: 0 | CM118: 0 | CN118: 0 | CO118: 0 | CP118: 0 | CQ118: 0 | CR118: 0 | CS118: 0 | CT118: 0 | CU118: 0 | CV118: 0 | CW118: 0 | CX118: 0 | CY118: 0 | CZ118: 0
C119: 30838552.3 | D119: Labor | E119: =IF(E$114<=$E$61,$E89*F89,0) -> 1541927.615 | F119: 12335420.92 | G119: 16961203.76 | H119: 0 | I119: 0 | J119: 0 | K119: 0 | L119: 0 | M119: 0 | N119: 0 | O119: 0 | P119: 0 | Q119: 0 | R119: 0 | S119: 0 | T119: 0 | U119: 0 | V119: 0 | W119: 0 | X119: 0 | Y119: 0 | Z119: 0 | AA119: 0 | AB119: 0 | AC119: 0 | AD119: 0 | AE119: 0 | AF119: 0 | AG119: 0 | AH119: 0 | AI119: 0 | AJ119: 0 | AK119: =IF(AK$114<=$E$61,$E89*AL89,0) -> 0 | AL119: 0 | AM119: 0 | AN119: 0 | AO119: 0 | AP119: 0 | AQ119: 0 | AR119: 0 | AS119: 0 | AT119: 0 | AU119: 0 | AV119: 0 | AW119: 0 | AX119: 0 | AY119: 0 | AZ119: 0 | BA119: 0 | BB119: 0 | BC119: 0 | BD119: 0 | BE119: 0 | BF119: 0 | BG119: 0 | BH119: 0 | BI119: 0 | BJ119: 0 | BK119: 0 | BL119: 0 | BM119: 0 | BN119: 0 | BO119: 0 | BP119: 0 | BQ119: =IF(BQ$114<=$E$61,$E89*BR89,0) -> 0 | BR119: 0 | BS119: 0 | BT119: 0 | BU119: 0 | BV119: 0 | BW119: 0 | BX119: 0 | BY119: 0 | BZ119: 0 | CA119: 0 | CB119: 0 | CC119: 0 | CD119: 0 | CE119: 0 | CF119: 0 | CG119: 0 | CH119: 0 | CI119: 0 | CJ119: 0 | CK119: 0 | CL119: 0 | CM119: 0 | CN119: 0 | CO119: 0 | CP119: 0 | CQ119: 0 | CR119: 0 | CS119: 0 | CT119: 0 | CU119: 0 | CV119: 0 | CW119: 0 | CX119: 0 | CY119: 0 | CZ119: 0
C120: 2971557.917 | D120: ROW-Damages | E120: =IF(E$114<=$E$61,$E90*F90,0) -> 1634356.854 | F120: 891467.375 | G120: 445733.6875 | H120: 0 | I120: 0 | J120: 0 | K120: 0 | L120: 0 | M120: 0 | N120: 0 | O120: 0 | P120: 0 | Q120: 0 | R120: 0 | S120: 0 | T120: 0 | U120: 0 | V120: 0 | W120: 0 | X120: 0 | Y120: 0 | Z120: 0 | AA120: 0 | AB120: 0 | AC120: 0 | AD120: 0 | AE120: 0 | AF120: 0 | AG120: 0 | AH120: 0 | AI120: 0 | AJ120: 0 | AK120: =IF(AK$114<=$E$61,$E90*AL90,0) -> 0 | AL120: 0 | AM120: 0 | AN120: 0 | AO120: 0 | AP120: 0 | AQ120: 0 | AR120: 0 | AS120: 0 | AT120: 0 | AU120: 0 | AV120: 0 | AW120: 0 | AX120: 0 | AY120: 0 | AZ120: 0 | BA120: 0 | BB120: 0 | BC120: 0 | BD120: 0 | BE120: 0 | BF120: 0 | BG120: 0 | BH120: 0 | BI120: 0 | BJ120: 0 | BK120: 0 | BL120: 0 | BM120: 0 | BN120: 0 | BO120: 0 | BP120: 0 | BQ120: =IF(BQ$114<=$E$61,$E90*BR90,0) -> 0 | BR120: 0 | BS120: 0 | BT120: 0 | BU120: 0 | BV120: 0 | BW120: 0 | BX120: 0 | BY120: 0 | BZ120: 0 | CA120: 0 | CB120: 0 | CC120: 0 | CD120: 0 | CE120: 0 | CF120: 0 | CG120: 0 | CH120: 0 | CI120: 0 | CJ120: 0 | CK120: 0 | CL120: 0 | CM120: 0 | CN120: 0 | CO120: 0 | CP120: 0 | CQ120: 0 | CR120: 0 | CS120: 0 | CT120: 0 | CU120: 0 | CV120: 0 | CW120: 0 | CX120: 0 | CY120: 0 | CZ120: 0
C121: 10631921.85 | D121: Miscellaneous | E121: =IF(E$114<=$E$61,$E91*F91,0) -> 3189576.555 | F121: 3721172.648 | G121: 3721172.648 | H121: 0 | I121: 0 | J121: 0 | K121: 0 | L121: 0 | M121: 0 | N121: 0 | O121: 0 | P121: 0 | Q121: 0 | R121: 0 | S121: 0 | T121: 0 | U121: 0 | V121: 0 | W121: 0 | X121: 0 | Y121: 0 | Z121: 0 | AA121: 0 | AB121: 0 | AC121: 0 | AD121: 0 | AE121: 0 | AF121: 0 | AG121: 0 | AH121: 0 | AI121: 0 | AJ121: 0 | AK121: =IF(AK$114<=$E$61,$E91*AL91,0) -> 0 | AL121: 0 | AM121: 0 | AN121: 0 | AO121: 0 | AP121: 0 | AQ121: 0 | AR121: 0 | AS121: 0 | AT121: 0 | AU121: 0 | AV121: 0 | AW121: 0 | AX121: 0 | AY121: 0 | AZ121: 0 | BA121: 0 | BB121: 0 | BC121: 0 | BD121: 0 | BE121: 0 | BF121: 0 | BG121: 0 | BH121: 0 | BI121: 0 | BJ121: 0 | BK121: 0 | BL121: 0 | BM121: 0 | BN121: 0 | BO121: 0 | BP121: 0 | BQ121: =IF(BQ$114<=$E$61,$E91*BR91,0) -> 0 | BR121: 0 | BS121: 0 | BT121: 0 | BU121: 0 | BV121: 0 | BW121: 0 | BX121: 0 | BY121: 0 | BZ121: 0 | CA121: 0 | CB121: 0 | CC121: 0 | CD121: 0 | CE121: 0 | CF121: 0 | CG121: 0 | CH121: 0 | CI121: 0 | CJ121: 0 | CK121: 0 | CL121: 0 | CM121: 0 | CN121: 0 | CO121: 0 | CP121: 0 | CQ121: 0 | CR121: 0 | CS121: 0 | CT121: 0 | CU121: 0 | CV121: 0 | CW121: 0 | CX121: 0 | CY121: 0 | CZ121: 0
C122: 1244743.659 | D122: CO2 Surge Tanks | E122: =IF(E$114<=$E$61,$E92*F92,0) -> 0 | F122: 373423.0977 | G122: 871320.5613 | H122: 0 | I122: 0 | J122: 0 | K122: 0 | L122: 0 | M122: 0 | N122: 0 | O122: 0 | P122: 0 | Q122: 0 | R122: 0 | S122: 0 | T122: 0 | U122: 0 | V122: 0 | W122: 0 | X122: 0 | Y122: 0 | Z122: 0 | AA122: 0 | AB122: 0 | AC122: 0 | AD122: 0 | AE122: 0 | AF122: 0 | AG122: 0 | AH122: 0 | AI122: 0 | AJ122: 0 | AK122: =IF(AK$114<=$E$61,$E92*AL92,0) -> 0 | AL122: 0 | AM122: 0 | AN122: 0 | AO122: 0 | AP122: 0 | AQ122: 0 | AR122: 0 | AS122: 0 | AT122: 0 | AU122: 0 | AV122: 0 | AW122: 0 | AX122: 0 | AY122: 0 | AZ122: 0 | BA122: 0 | BB122: 0 | BC122: 0 | BD122: 0 | BE122: 0 | BF122: 0 | BG122: 0 | BH122: 0 | BI122: 0 | BJ122: 0 | BK122: 0 | BL122: 0 | BM122: 0 | BN122: 0 | BO122: 0 | BP122: 0 | BQ122: =IF(BQ$114<=$E$61,$E92*BR92,0) -> 0 | BR122: 0 | BS122: 0 | BT122: 0 | BU122: 0 | BV122: 0 | BW122: 0 | BX122: 0 | BY122: 0 | BZ122: 0 | CA122: 0 | CB122: 0 | CC122: 0 | CD122: 0 | CE122: 0 | CF122: 0 | CG122: 0 | CH122: 0 | CI122: 0 | CJ122: 0 | CK122: 0 | CL122: 0 | CM122: 0 | CN122: 0 | CO122: 0 | CP122: 0 | CQ122: 0 | CR122: 0 | CS122: 0 | CT122: 0 | CU122: 0 | CV122: 0 | CW122: 0 | CX122: 0 | CY122: 0 | CZ122: 0
C123: 111907.1913 | D123: Pipeline Control System | E123: =IF(E$114<=$E$61,$E93*F93,0) -> 0 | F123: 33572.15739 | G123: 78335.03392 | H123: 0 | I123: 0 | J123: 0 | K123: 0 | L123: 0 | M123: 0 | N123: 0 | O123: 0 | P123: 0 | Q123: 0 | R123: 0 | S123: 0 | T123: 0 | U123: 0 | V123: 0 | W123: 0 | X123: 0 | Y123: 0 | Z123: 0 | AA123: 0 | AB123: 0 | AC123: 0 | AD123: 0 | AE123: 0 | AF123: 0 | AG123: 0 | AH123: 0 | AI123: 0 | AJ123: 0 | AK123: =IF(AK$114<=$E$61,$E93*AL93,0) -> 0 | AL123: 0 | AM123: 0 | AN123: 0 | AO123: 0 | AP123: 0 | AQ123: 0 | AR123: 0 | AS123: 0 | AT123: 0 | AU123: 0 | AV123: 0 | AW123: 0 | AX123: 0 | AY123: 0 | AZ123: 0 | BA123: 0 | BB123: 0 | BC123: 0 | BD123: 0 | BE123: 0 | BF123: 0 | BG123: 0 | BH123: 0 | BI123: 0 | BJ123: 0 | BK123: 0 | BL123: 0 | BM123: 0 | BN123: 0 | BO123: 0 | BP123: 0 | BQ123: =IF(BQ$114<=$E$61,$E93*BR93,0) -> 0 | BR123: 0 | BS123: 0 | BT123: 0 | BU123: 0 | BV123: 0 | BW123: 0 | BX123: 0 | BY123: 0 | BZ123: 0 | CA123: 0 | CB123: 0 | CC123: 0 | CD123: 0 | CE123: 0 | CF123: 0 | CG123: 0 | CH123: 0 | CI123: 0 | CJ123: 0 | CK123: 0 | CL123: 0 | CM123: 0 | CN123: 0 | CO123: 0 | CP123: 0 | CQ123: 0 | CR123: 0 | CS123: 0 | CT123: 0 | CU123: 0 | CV123: 0 | CW123: 0 | CX123: 0 | CY123: 0 | CZ123: 0
C124: 2205140.528 | D124: Pumps | E124: =IF(E$114<=$E$61,IF(E$114=1,$E$94*$F$94,IF(E$114=2,$E$94*$G$94,IF(E$114=3,$E$94*$H$94,0))),0) -> 0 | F124: 882056.2112 | G124: 1323084.317 | H124: 0 | I124: 0 | J124: 0 | K124: 0 | L124: 0 | M124: 0 | N124: 0 | O124: 0 | P124: 0 | Q124: 0 | R124: 0 | S124: 0 | T124: 0 | U124: 0 | V124: 0 | W124: 0 | X124: 0 | Y124: 0 | Z124: 0 | AA124: 0 | AB124: 0 | AC124: 0 | AD124: 0 | AE124: 0 | AF124: 0 | AG124: 0 | AH124: 0 | AI124: 0 | AJ124: 0 | AK124: =IF(AK$114<=$E$61,IF(AK$114=1,$E$94*$F$94,IF(AK$114=2,$E$94*$G$94,IF(AK$114=3,$E$94*$H$94,0))),0) -> 0 | AL124: 0 | AM124: 0 | AN124: 0 | AO124: 0 | AP124: 0 | AQ124: 0 | AR124: 0 | AS124: 0 | AT124: 0 | AU124: 0 | AV124: 0 | AW124: 0 | AX124: 0 | AY124: 0 | AZ124: 0 | BA124: 0 | BB124: 0 | BC124: 0 | BD124: 0 | BE124: 0 | BF124: 0 | BG124: 0 | BH124: 0 | BI124: 0 | BJ124: 0 | BK124: 0 | BL124: 0 | BM124: 0 | BN124: 0 | BO124: 0 | BP124: 0 | BQ124: =IF(BQ$114<=$E$61,IF(BQ$114=1,$E$94*$F$94,IF(BQ$114=2,$E$94*$G$94,IF(BQ$114=3,$E$94*$H$94,0))),0) -> 0 | BR124: 0 | BS124: 0 | BT124: 0 | BU124: 0 | BV124: 0 | BW124: 0 | BX124: 0 | BY124: 0 | BZ124: 0 | CA124: 0 | CB124: 0 | CC124: 0 | CD124: 0 | CE124: 0 | CF124: 0 | CG124: 0 | CH124: 0 | CI124: 0 | CJ124: 0 | CK124: 0 | CL124: 0 | CM124: 0 | CN124: 0 | CO124: 0 | CP124: 0 | CQ124: 0 | CR124: 0 | CS124: 0 | CT124: 0 | CU124: 0 | CV124: 0 | CW124: 0 | CX124: 0 | CY124: 0 | CZ124: 0
C125: =SUM(E125:CZ125) -> 8759990.068 | D125: Contingency | E125: =SUM(E118:E124)*$E$52 -> 1032849.981 | F125: =SUM(F118:F124)*$E$52 -> 3359333.482 | G125: 4367806.605 | H125: 0 | I125: 0 | J125: 0 | K125: 0 | L125: 0 | M125: 0 | N125: 0 | O125: 0 | P125: 0 | Q125: 0 | R125: 0 | S125: 0 | T125: 0 | U125: 0 | V125: 0 | W125: 0 | X125: 0 | Y125: 0 | Z125: 0 | AA125: 0 | AB125: 0 | AC125: 0 | AD125: 0 | AE125: 0 | AF125: 0 | AG125: 0 | AH125: 0 | AI125: 0 | AJ125: 0 | AK125: 0 | AL125: 0 | AM125: 0 | AN125: 0 | AO125: 0 | AP125: 0 | AQ125: 0 | AR125: 0 | AS125: 0 | AT125: 0 | AU125: 0 | AV125: 0 | AW125: 0 | AX125: 0 | AY125: 0 | AZ125: 0 | BA125: 0 | BB125: 0 | BC125: 0 | BD125: 0 | BE125: 0 | BF125: 0 | BG125: 0 | BH125: 0 | BI125: 0 | BJ125: 0 | BK125: 0 | BL125: 0 | BM125: 0 | BN125: 0 | BO125: 0 | BP125: 0 | BQ125: 0 | BR125: =SUM(BR118:BR124)*$E$52 -> 0 | BS125: 0 | BT125: 0 | BU125: 0 | BV125: 0 | BW125: 0 | BX125: 0 | BY125: 0 | BZ125: 0 | CA125: 0 | CB125: 0 | CC125: 0 | CD125: 0 | CE125: 0 | CF125: 0 | CG125: 0 | CH125: 0 | CI125: 0 | CJ125: 0 | CK125: 0 | CL125: 0 | CM125: 0 | CN125: 0 | CO125: 0 | CP125: 0 | CQ125: 0 | CR125: 0 | CS125: 0 | CT125: 0 | CU125: 0 | CV125: 0 | CW125: 0 | CX125: 0 | CY125: 0 | CZ125: 0
D126: ="Operating Expenses in Real "&E59&"$" -> Operating Expenses in Real 2011$
C127: 42146094.95 | D127: Pipeline O&M | E127: =IF(AND(E114>=$E$63,E114<=$E$64),$E$98,0) -> 0 | F127: 0 | G127: 0 | H127: 1404869.832 | I127: 1404869.832 | J127: 1404869.832 | K127: 1404869.832 | L127: 1404869.832 | M127: 1404869.832 | N127: 1404869.832 | O127: 1404869.832 | P127: 1404869.832 | Q127: 1404869.832 | R127: 1404869.832 | S127: 1404869.832 | T127: 1404869.832 | U127: 1404869.832 | V127: 1404869.832 | W127: 1404869.832 | X127: 1404869.832 | Y127: 1404869.832 | Z127: 1404869.832 | AA127: 1404869.832 | AB127: 1404869.832 | AC127: 1404869.832 | AD127: 1404869.832 | AE127: 1404869.832 | AF127: 1404869.832 | AG127: 1404869.832 | AH127: 1404869.832 | AI127: 1404869.832 | AJ127: 1404869.832 | AK127: =IF(AND(AK114>=$E$63,AK114<=$E$64),$E$98,0) -> 1404869.832 | AL127: 0 | AM127: 0 | AN127: 0 | AO127: 0 | AP127: 0 | AQ127: 0 | AR127: 0 | AS127: 0 | AT127: 0 | AU127: 0 | AV127: 0 | AW127: 0 | AX127: 0 | AY127: 0 | AZ127: 0 | BA127: 0 | BB127: 0 | BC127: 0 | BD127: 0 | BE127: 0 | BF127: 0 | BG127: 0 | BH127: 0 | BI127: 0 | BJ127: 0 | BK127: 0 | BL127: 0 | BM127: 0 | BN127: 0 | BO127: 0 | BP127: 0 | BQ127: =IF(AND(BQ114>=$E$63,BQ114<=$E$64),$E$98,0) -> 0 | BR127: 0 | BS127: 0 | BT127: 0 | BU127: 0 | BV127: 0 | BW127: 0 | BX127: 0 | BY127: 0 | BZ127: 0 | CA127: 0 | CB127: 0 | CC127: 0 | CD127: 0 | CE127: 0 | CF127: 0 | CG127: 0 | CH127: 0 | CI127: 0 | CJ127: 0 | CK127: 0 | CL127: 0 | CM127: 0 | CN127: 0 | CO127: 0 | CP127: 0 | CQ127: 0 | CR127: 0 | CS127: 0 | CT127: 0 | CU127: 0 | CV127: 0 | CW127: 0 | CX127: 0 | CY127: 0 | CZ127: 0
C128: =SUM(E128:CZ128) -> 4274149.654 | D128: Pipeline related equipment and pumps O&M | E128: =IF(AND(E114>=$E$63,E114<=$E$64),$E$99,0) -> 0 | F128: 0 | G128: 0 | H128: 142471.6551 | I128: 142471.6551 | J128: 142471.6551 | K128: 142471.6551 | L128: 142471.6551 | M128: 142471.6551 | N128: 142471.6551 | O128: 142471.6551 | P128: 142471.6551 | Q128: 142471.6551 | R128: 142471.6551 | S128: 142471.6551 | T128: 142471.6551 | U128: 142471.6551 | V128: 142471.6551 | W128: 142471.6551 | X128: 142471.6551 | Y128: 142471.6551 | Z128: 142471.6551 | AA128: 142471.6551 | AB128: 142471.6551 | AC128: 142471.6551 | AD128: 142471.6551 | AE128: 142471.6551 | AF128: 142471.6551 | AG128: 142471.6551 | AH128: 142471.6551 | AI128: 142471.6551 | AJ128: 142471.6551 | AK128: =IF(AND(AK114>=$E$63,AK114<=$E$64),$E$99,0) -> 142471.6551 | AL128: 0 | AM128: 0 | AN128: 0 | AO128: 0 | AP128: 0 | AQ128: 0 | AR128: 0 | AS128: 0 | AT128: 0 | AU128: 0 | AV128: 0 | AW128: 0 | AX128: 0 | AY128: 0 | AZ128: 0 | BA128: 0 | BB128: 0 | BC128: 0 | BD128: 0 | BE128: 0 | BF128: 0 | BG128: 0 | BH128: 0 | BI128: 0 | BJ128: 0 | BK128: 0 | BL128: 0 | BM128: 0 | BN128: 0 | BO128: 0 | BP128: 0 | BQ128: =IF(AND(BQ114>=$E$63,BQ114<=$E$64),$E$99,0) -> 0 | BR128: 0 | BS128: 0 | BT128: 0 | BU128: 0 | BV128: 0 | BW128: 0 | BX128: 0 | BY128: 0 | BZ128: 0 | CA128: 0 | CB128: 0 | CC128: 0 | CD128: 0 | CE128: 0 | CF128: 0 | CG128: 0 | CH128: 0 | CI128: 0 | CJ128: 0 | CK128: 0 | CL128: 0 | CM128: 0 | CN128: 0 | CO128: 0 | CP128: 0 | CQ128: 0 | CR128: 0 | CS128: 0 | CT128: 0 | CU128: 0 | CV128: 0 | CW128: 0 | CX128: 0 | CY128: 0 | CZ128: 0
C129: 24386487.22 | D129: Electricity costs for pumps | E129: =IF(AND(E114>=$E$63,E114<=$E$64),$E$100,0) -> 0 | F129: 0 | G129: 0 | H129: 812882.9073 | I129: 812882.9073 | J129: 812882.9073 | K129: 812882.9073 | L129: 812882.9073 | M129: 812882.9073 | N129: 812882.9073 | O129: 812882.9073 | P129: 812882.9073 | Q129: 812882.9073 | R129: 812882.9073 | S129: 812882.9073 | T129: 812882.9073 | U129: 812882.9073 | V129: 812882.9073 | W129: 812882.9073 | X129: 812882.9073 | Y129: 812882.9073 | Z129: 812882.9073 | AA129: 812882.9073 | AB129: 812882.9073 | AC129: 812882.9073 | AD129: 812882.9073 | AE129: 812882.9073 | AF129: 812882.9073 | AG129: 812882.9073 | AH129: 812882.9073 | AI129: 812882.9073 | AJ129: 812882.9073 | AK129: =IF(AND(AK114>=$E$63,AK114<=$E$64),$E$100,0) -> 812882.9073 | AL129: 0 | AM129: 0 | AN129: 0 | AO129: 0 | AP129: 0 | AQ129: 0 | AR129: 0 | AS129: 0 | AT129: 0 | AU129: 0 | AV129: 0 | AW129: 0 | AX129: 0 | AY129: 0 | AZ129: 0 | BA129: 0 | BB129: 0 | BC129: 0 | BD129: 0 | BE129: 0 | BF129: 0 | BG129: 0 | BH129: 0 | BI129: 0 | BJ129: 0 | BK129: 0 | BL129: 0 | BM129: 0 | BN129: 0 | BO129: 0 | BP129: 0 | BQ129: =IF(AND(BQ114>=$E$63,BQ114<=$E$64),$E$100,0) -> 0 | BR129: 0 | BS129: 0 | BT129: 0 | BU129: 0 | BV129: 0 | BW129: 0 | BX129: 0 | BY129: 0 | BZ129: 0 | CA129: 0 | CB129: 0 | CC129: 0 | CD129: 0 | CE129: 0 | CF129: 0 | CG129: 0 | CH129: 0 | CI129: 0 | CJ129: 0 | CK129: 0 | CL129: 0 | CM129: 0 | CN129: 0 | CO129: 0 | CP129: 0 | CQ129: 0 | CR129: 0 | CS129: 0 | CT129: 0 | CU129: 0 | CV129: 0 | CW129: 0 | CX129: 0 | CY129: 0 | CZ129: 0
C131: 67159923.86 | D131: ="Total Investment (capital expenses or Capex) in real "&E59&"$" -> Total Investment (capital expenses or Capex) in real 2011$ | E131: =SUM(E118:E125) -> 7918516.523 | F131: =SUM(F118:F125) -> 25754890.03 | G131: 33486517.31 | H131: 0 | I131: 0 | J131: 0 | K131: 0 | L131: 0 | M131: 0 | N131: 0 | O131: 0 | P131: 0 | Q131: 0 | R131: 0 | S131: 0 | T131: 0 | U131: 0 | V131: 0 | W131: 0 | X131: 0 | Y131: 0 | Z131: 0 | AA131: 0 | AB131: 0 | AC131: 0 | AD131: 0 | AE131: 0 | AF131: 0 | AG131: 0 | AH131: 0 | AI131: 0 | AJ131: 0 | AK131: 0 | AL131: 0 | AM131: 0 | AN131: 0 | AO131: 0 | AP131: 0 | AQ131: 0 | AR131: 0 | AS131: 0 | AT131: 0 | AU131: 0 | AV131: 0 | AW131: 0 | AX131: 0 | AY131: 0 | AZ131: 0 | BA131: 0 | BB131: 0 | BC131: 0 | BD131: 0 | BE131: 0 | BF131: 0 | BG131: 0 | BH131: 0 | BI131: 0 | BJ131: 0 | BK131: 0 | BL131: 0 | BM131: 0 | BN131: 0 | BO131: 0 | BP131: 0 | BQ131: 0 | BR131: =SUM(BR118:BR125) -> 0 | BS131: 0 | BT131: 0 | BU131: 0 | BV131: 0 | BW131: 0 | BX131: 0 | BY131: 0 | BZ131: 0 | CA131: 0 | CB131: 0 | CC131: 0 | CD131: 0 | CE131: 0 | CF131: 0 | CG131: 0 | CH131: 0 | CI131: 0 | CJ131: 0 | CK131: 0 | CL131: 0 | CM131: 0 | CN131: 0 | CO131: 0 | CP131: 0 | CQ131: 0 | CR131: 0 | CS131: 0 | CT131: 0 | CU131: 0 | CV131: 0 | CW131: 0 | CX131: 0 | CY131: 0 | CZ131: 0
C132: =SUM(E132:CZ132) -> 70806731.82 | D132: ="Project Expenses (operating expenses or Opex) in real "&E59&"$" -> Project Expenses (operating expenses or Opex) in real 2011$ | E132: =SUM(E127:E129) -> 0 | F132: =SUM(F127:F129) -> 0 | G132: 0 | H132: 2360224.394 | I132: 2360224.394 | J132: 2360224.394 | K132: 2360224.394 | L132: 2360224.394 | M132: 2360224.394 | N132: 2360224.394 | O132: 2360224.394 | P132: 2360224.394 | Q132: 2360224.394 | R132: 2360224.394 | S132: 2360224.394 | T132: 2360224.394 | U132: 2360224.394 | V132: 2360224.394 | W132: 2360224.394 | X132: 2360224.394 | Y132: 2360224.394 | Z132: 2360224.394 | AA132: 2360224.394 | AB132: 2360224.394 | AC132: 2360224.394 | AD132: 2360224.394 | AE132: 2360224.394 | AF132: 2360224.394 | AG132: 2360224.394 | AH132: 2360224.394 | AI132: 2360224.394 | AJ132: 2360224.394 | AK132: 2360224.394 | AL132: 0 | AM132: 0 | AN132: 0 | AO132: 0 | AP132: 0 | AQ132: 0 | AR132: 0 | AS132: 0 | AT132: 0 | AU132: 0 | AV132: 0 | AW132: 0 | AX132: 0 | AY132: 0 | AZ132: 0 | BA132: 0 | BB132: 0 | BC132: 0 | BD132: 0 | BE132: 0 | BF132: 0 | BG132: 0 | BH132: 0 | BI132: 0 | BJ132: 0 | BK132: 0 | BL132: 0 | BM132: 0 | BN132: 0 | BO132: 0 | BP132: 0 | BQ132: 0 | BR132: =SUM(BR127:BR129) -> 0 | BS132: 0 | BT132: 0 | BU132: 0 | BV132: 0 | BW132: 0 | BX132: 0 | BY132: 0 | BZ132: 0 | CA132: 0 | CB132: 0 | CC132: 0 | CD132: 0 | CE132: 0 | CF132: 0 | CG132: 0 | CH132: 0 | CI132: 0 | CJ132: 0 | CK132: 0 | CL132: 0 | CM132: 0 | CN132: 0 | CO132: 0 | CP132: 0 | CQ132: 0 | CR132: 0 | CS132: 0 | CT132: 0 | CU132: 0 | CV132: 0 | CW132: 0 | CX132: 0 | CY132: 0 | CZ132: 0
D134: ="Real Costs in "&E60&"$" -> Real Costs in 2018$
D135: ="Capital Costs in Real "&E60&"$" -> Capital Costs in Real 2018$
C136: =SUM(E136:CZ136) -> 12106738.2 | D136: Materials | E136: =$E$50*E118 -> 605336.9098 | F136: =$E$50*F118 -> 4842695.279 | G136: 6658706.008 | H136: 0 | I136: 0 | J136: 0 | K136: 0 | L136: 0 | M136: 0 | N136: 0 | O136: 0 | P136: 0 | Q136: 0 | R136: 0 | S136: 0 | T136: 0 | U136: 0 | V136: 0 | W136: 0 | X136: 0 | Y136: 0 | Z136: 0 | AA136: 0 | AB136: 0 | AC136: 0 | AD136: 0 | AE136: 0 | AF136: 0 | AG136: 0 | AH136: 0 | AI136: 0 | AJ136: 0 | AK136: 0 | AL136: 0 | AM136: 0 | AN136: 0 | AO136: 0 | AP136: 0 | AQ136: 0 | AR136: 0 | AS136: 0 | AT136: 0 | AU136: 0 | AV136: 0 | AW136: 0 | AX136: 0 | AY136: 0 | AZ136: 0 | BA136: 0 | BB136: 0 | BC136: 0 | BD136: 0 | BE136: 0 | BF136: 0 | BG136: 0 | BH136: 0 | BI136: 0 | BJ136: 0 | BK136: 0 | BL136: 0 | BM136: 0 | BN136: 0 | BO136: 0 | BP136: 0 | BQ136: 0 | BR136: =$E$50*BR118 -> 0 | BS136: 0 | BT136: 0 | BU136: 0 | BV136: 0 | BW136: 0 | BX136: 0 | BY136: 0 | BZ136: 0 | CA136: 0 | CB136: 0 | CC136: 0 | CD136: 0 | CE136: 0 | CF136: 0 | CG136: 0 | CH136: 0 | CI136: 0 | CJ136: 0 | CK136: 0 | CL136: 0 | CM136: 0 | CN136: 0 | CO136: 0 | CP136: 0 | CQ136: 0 | CR136: 0 | CS136: 0 | CT136: 0 | CU136: 0 | CV136: 0 | CW136: 0 | CX136: 0 | CY136: 0 | CZ136: 0
C137: 35912881.52 | D137: Labor | E137: =$E$50*E119 -> 1795644.076 | F137: =$E$50*F119 -> 14365152.61 | G137: 19752084.83 | H137: 0 | I137: 0 | J137: 0 | K137: 0 | L137: 0 | M137: 0 | N137: 0 | O137: 0 | P137: 0 | Q137: 0 | R137: 0 | S137: 0 | T137: 0 | U137: 0 | V137: 0 | W137: 0 | X137: 0 | Y137: 0 | Z137: 0 | AA137: 0 | AB137: 0 | AC137: 0 | AD137: 0 | AE137: 0 | AF137: 0 | AG137: 0 | AH137: 0 | AI137: 0 | AJ137: 0 | AK137: 0 | AL137: 0 | AM137: 0 | AN137: 0 | AO137: 0 | AP137: 0 | AQ137: 0 | AR137: 0 | AS137: 0 | AT137: 0 | AU137: 0 | AV137: 0 | AW137: 0 | AX137: 0 | AY137: 0 | AZ137: 0 | BA137: 0 | BB137: 0 | BC137: 0 | BD137: 0 | BE137: 0 | BF137: 0 | BG137: 0 | BH137: 0 | BI137: 0 | BJ137: 0 | BK137: 0 | BL137: 0 | BM137: 0 | BN137: 0 | BO137: 0 | BP137: 0 | BQ137: 0 | BR137: =$E$50*BR119 -> 0 | BS137: 0 | BT137: 0 | BU137: 0 | BV137: 0 | BW137: 0 | BX137: 0 | BY137: 0 | BZ137: 0 | CA137: 0 | CB137: 0 | CC137: 0 | CD137: 0 | CE137: 0 | CF137: 0 | CG137: 0 | CH137: 0 | CI137: 0 | CJ137: 0 | CK137: 0 | CL137: 0 | CM137: 0 | CN137: 0 | CO137: 0 | CP137: 0 | CQ137: 0 | CR137: 0 | CS137: 0 | CT137: 0 | CU137: 0 | CV137: 0 | CW137: 0 | CX137: 0 | CY137: 0 | CZ137: 0
C138: 3460512.878 | D138: ROW-Damages | E138: 1903282.083 | F138: =$E$50*F120 -> 1038153.863 | G138: 519076.9317 | H138: 0 | I138: 0 | J138: 0 | K138: 0 | L138: 0 | M138: 0 | N138: 0 | O138: 0 | P138: 0 | Q138: 0 | R138: 0 | S138: 0 | T138: 0 | U138: 0 | V138: 0 | W138: 0 | X138: 0 | Y138: 0 | Z138: 0 | AA138: 0 | AB138: 0 | AC138: 0 | AD138: 0 | AE138: 0 | AF138: 0 | AG138: 0 | AH138: 0 | AI138: 0 | AJ138: 0 | AK138: 0 | AL138: 0 | AM138: 0 | AN138: 0 | AO138: 0 | AP138: 0 | AQ138: 0 | AR138: 0 | AS138: 0 | AT138: 0 | AU138: 0 | AV138: 0 | AW138: 0 | AX138: 0 | AY138: 0 | AZ138: 0 | BA138: 0 | BB138: 0 | BC138: 0 | BD138: 0 | BE138: 0 | BF138: 0 | BG138: 0 | BH138: 0 | BI138: 0 | BJ138: 0 | BK138: 0 | BL138: 0 | BM138: 0 | BN138: 0 | BO138: 0 | BP138: 0 | BQ138: 0 | BR138: =$E$50*BR120 -> 0 | BS138: 0 | BT138: 0 | BU138: 0 | BV138: 0 | BW138: 0 | BX138: 0 | BY138: 0 | BZ138: 0 | CA138: 0 | CB138: 0 | CC138: 0 | CD138: 0 | CE138: 0 | CF138: 0 | CG138: 0 | CH138: 0 | CI138: 0 | CJ138: 0 | CK138: 0 | CL138: 0 | CM138: 0 | CN138: 0 | CO138: 0 | CP138: 0 | CQ138: 0 | CR138: 0 | CS138: 0 | CT138: 0 | CU138: 0 | CV138: 0 | CW138: 0 | CX138: 0 | CY138: 0 | CZ138: 0
C139: 12381351.3 | D139: Miscellaneous | E139: 3714405.391 | F139: =$E$50*F121 -> 4333472.957 | G139: 4333472.957 | H139: 0 | I139: 0 | J139: 0 | K139: 0 | L139: 0 | M139: 0 | N139: 0 | O139: 0 | P139: 0 | Q139: 0 | R139: 0 | S139: 0 | T139: 0 | U139: 0 | V139: 0 | W139: 0 | X139: 0 | Y139: 0 | Z139: 0 | AA139: 0 | AB139: 0 | AC139: 0 | AD139: 0 | AE139: 0 | AF139: 0 | AG139: 0 | AH139: 0 | AI139: 0 | AJ139: 0 | AK139: 0 | AL139: 0 | AM139: 0 | AN139: 0 | AO139: 0 | AP139: 0 | AQ139: 0 | AR139: 0 | AS139: 0 | AT139: 0 | AU139: 0 | AV139: 0 | AW139: 0 | AX139: 0 | AY139: 0 | AZ139: 0 | BA139: 0 | BB139: 0 | BC139: 0 | BD139: 0 | BE139: 0 | BF139: 0 | BG139: 0 | BH139: 0 | BI139: 0 | BJ139: 0 | BK139: 0 | BL139: 0 | BM139: 0 | BN139: 0 | BO139: 0 | BP139: 0 | BQ139: 0 | BR139: =$E$50*BR121 -> 0 | BS139: 0 | BT139: 0 | BU139: 0 | BV139: 0 | BW139: 0 | BX139: 0 | BY139: 0 | BZ139: 0 | CA139: 0 | CB139: 0 | CC139: 0 | CD139: 0 | CE139: 0 | CF139: 0 | CG139: 0 | CH139: 0 | CI139: 0 | CJ139: 0 | CK139: 0 | CL139: 0 | CM139: 0 | CN139: 0 | CO139: 0 | CP139: 0 | CQ139: 0 | CR139: 0 | CS139: 0 | CT139: 0 | CU139: 0 | CV139: 0 | CW139: 0 | CX139: 0 | CY139: 0 | CZ139: 0
C140: 1449559.989 | D140: CO2 Surge Tanks | E140: 0 | F140: =$E$50*F122 -> 434867.9968 | G140: 1014691.993 | H140: 0 | I140: 0 | J140: 0 | K140: 0 | L140: 0 | M140: 0 | N140: 0 | O140: 0 | P140: 0 | Q140: 0 | R140: 0 | S140: 0 | T140: 0 | U140: 0 | V140: 0 | W140: 0 | X140: 0 | Y140: 0 | Z140: 0 | AA140: 0 | AB140: 0 | AC140: 0 | AD140: 0 | AE140: 0 | AF140: 0 | AG140: 0 | AH140: 0 | AI140: 0 | AJ140: 0 | AK140: 0 | AL140: 0 | AM140: 0 | AN140: 0 | AO140: 0 | AP140: 0 | AQ140: 0 | AR140: 0 | AS140: 0 | AT140: 0 | AU140: 0 | AV140: 0 | AW140: 0 | AX140: 0 | AY140: 0 | AZ140: 0 | BA140: 0 | BB140: 0 | BC140: 0 | BD140: 0 | BE140: 0 | BF140: 0 | BG140: 0 | BH140: 0 | BI140: 0 | BJ140: 0 | BK140: 0 | BL140: 0 | BM140: 0 | BN140: 0 | BO140: 0 | BP140: 0 | BQ140: 0 | BR140: =$E$50*BR122 -> 0 | BS140: 0 | BT140: 0 | BU140: 0 | BV140: 0 | BW140: 0 | BX140: 0 | BY140: 0 | BZ140: 0 | CA140: 0 | CB140: 0 | CC140: 0 | CD140: 0 | CE140: 0 | CF140: 0 | CG140: 0 | CH140: 0 | CI140: 0 | CJ140: 0 | CK140: 0 | CL140: 0 | CM140: 0 | CN140: 0 | CO140: 0 | CP140: 0 | CQ140: 0 | CR140: 0 | CS140: 0 | CT140: 0 | CU140: 0 | CV140: 0 | CW140: 0 | CX140: 0 | CY140: 0 | CZ140: 0
C141: 130320.9588 | D141: Pipeline Control System | E141: 0 | F141: =$E$50*F123 -> 39096.28763 | G141: 91224.67114 | H141: 0 | I141: 0 | J141: 0 | K141: 0 | L141: 0 | M141: 0 | N141: 0 | O141: 0 | P141: 0 | Q141: 0 | R141: 0 | S141: 0 | T141: 0 | U141: 0 | V141: 0 | W141: 0 | X141: 0 | Y141: 0 | Z141: 0 | AA141: 0 | AB141: 0 | AC141: 0 | AD141: 0 | AE141: 0 | AF141: 0 | AG141: 0 | AH141: 0 | AI141: 0 | AJ141: 0 | AK141: 0 | AL141: 0 | AM141: 0 | AN141: 0 | AO141: 0 | AP141: 0 | AQ141: 0 | AR141: 0 | AS141: 0 | AT141: 0 | AU141: 0 | AV141: 0 | AW141: 0 | AX141: 0 | AY141: 0 | AZ141: 0 | BA141: 0 | BB141: 0 | BC141: 0 | BD141: 0 | BE141: 0 | BF141: 0 | BG141: 0 | BH141: 0 | BI141: 0 | BJ141: 0 | BK141: 0 | BL141: 0 | BM141: 0 | BN141: 0 | BO141: 0 | BP141: 0 | BQ141: 0 | BR141: =$E$50*BR123 -> 0 | BS141: 0 | BT141: 0 | BU141: 0 | BV141: 0 | BW141: 0 | BX141: 0 | BY141: 0 | BZ141: 0 | CA141: 0 | CB141: 0 | CC141: 0 | CD141: 0 | CE141: 0 | CF141: 0 | CG141: 0 | CH141: 0 | CI141: 0 | CJ141: 0 | CK141: 0 | CL141: 0 | CM141: 0 | CN141: 0 | CO141: 0 | CP141: 0 | CQ141: 0 | CR141: 0 | CS141: 0 | CT141: 0 | CU141: 0 | CV141: 0 | CW141: 0 | CX141: 0 | CY141: 0 | CZ141: 0
C142: 2567985.35 | D142: Pumps | E142: 0 | F142: =$E$50*F124 -> 1027194.14 | G142: 1540791.21 | H142: 0 | I142: 0 | J142: 0 | K142: 0 | L142: 0 | M142: 0 | N142: 0 | O142: 0 | P142: 0 | Q142: 0 | R142: 0 | S142: 0 | T142: 0 | U142: 0 | V142: 0 | W142: 0 | X142: 0 | Y142: 0 | Z142: 0 | AA142: 0 | AB142: 0 | AC142: 0 | AD142: 0 | AE142: 0 | AF142: 0 | AG142: 0 | AH142: 0 | AI142: 0 | AJ142: 0 | AK142: 0 | AL142: 0 | AM142: 0 | AN142: 0 | AO142: 0 | AP142: 0 | AQ142: 0 | AR142: 0 | AS142: 0 | AT142: 0 | AU142: 0 | AV142: 0 | AW142: 0 | AX142: 0 | AY142: 0 | AZ142: 0 | BA142: 0 | BB142: 0 | BC142: 0 | BD142: 0 | BE142: 0 | BF142: 0 | BG142: 0 | BH142: 0 | BI142: 0 | BJ142: 0 | BK142: 0 | BL142: 0 | BM142: 0 | BN142: 0 | BO142: 0 | BP142: 0 | BQ142: 0 | BR142: =$E$50*BR124 -> 0 | BS142: 0 | BT142: 0 | BU142: 0 | BV142: 0 | BW142: 0 | BX142: 0 | BY142: 0 | BZ142: 0 | CA142: 0 | CB142: 0 | CC142: 0 | CD142: 0 | CE142: 0 | CF142: 0 | CG142: 0 | CH142: 0 | CI142: 0 | CJ142: 0 | CK142: 0 | CL142: 0 | CM142: 0 | CN142: 0 | CO142: 0 | CP142: 0 | CQ142: 0 | CR142: 0 | CS142: 0 | CT142: 0 | CU142: 0 | CV142: 0 | CW142: 0 | CX142: 0 | CY142: 0 | CZ142: 0
C143: =SUM(E143:CZ143) -> 10201402.53 | D143: Contingency | E143: 1202800.269 | F143: =$E$50*F125 -> 3912094.969 | G143: 5086507.291 | H143: 0 | I143: 0 | J143: 0 | K143: 0 | L143: 0 | M143: 0 | N143: 0 | O143: 0 | P143: 0 | Q143: 0 | R143: 0 | S143: 0 | T143: 0 | U143: 0 | V143: 0 | W143: 0 | X143: 0 | Y143: 0 | Z143: 0 | AA143: 0 | AB143: 0 | AC143: 0 | AD143: 0 | AE143: 0 | AF143: 0 | AG143: 0 | AH143: 0 | AI143: 0 | AJ143: 0 | AK143: 0 | AL143: 0 | AM143: 0 | AN143: 0 | AO143: 0 | AP143: 0 | AQ143: 0 | AR143: 0 | AS143: 0 | AT143: 0 | AU143: 0 | AV143: 0 | AW143: 0 | AX143: 0 | AY143: 0 | AZ143: 0 | BA143: 0 | BB143: 0 | BC143: 0 | BD143: 0 | BE143: 0 | BF143: 0 | BG143: 0 | BH143: 0 | BI143: 0 | BJ143: 0 | BK143: 0 | BL143: 0 | BM143: 0 | BN143: 0 | BO143: 0 | BP143: 0 | BQ143: 0 | BR143: =$E$50*BR125 -> 0 | BS143: 0 | BT143: 0 | BU143: 0 | BV143: 0 | BW143: 0 | BX143: 0 | BY143: 0 | BZ143: 0 | CA143: 0 | CB143: 0 | CC143: 0 | CD143: 0 | CE143: 0 | CF143: 0 | CG143: 0 | CH143: 0 | CI143: 0 | CJ143: 0 | CK143: 0 | CL143: 0 | CM143: 0 | CN143: 0 | CO143: 0 | CP143: 0 | CQ143: 0 | CR143: 0 | CS143: 0 | CT143: 0 | CU143: 0 | CV143: 0 | CW143: 0 | CX143: 0 | CY143: 0 | CZ143: 0
D144: ="Operating Expenses in Real "&E60&"$" -> Operating Expenses in Real 2018$
C145: =SUM(E145:CZ145) -> 49081023.63 | D145: Pipeline O&M | E145: =$E$50*E127 -> 0 | F145: =$E$50*F127 -> 0 | G145: 0 | H145: 1636034.121 | I145: 1636034.121 | J145: 1636034.121 | K145: 1636034.121 | L145: 1636034.121 | M145: 1636034.121 | N145: 1636034.121 | O145: 1636034.121 | P145: 1636034.121 | Q145: 1636034.121 | R145: 1636034.121 | S145: 1636034.121 | T145: 1636034.121 | U145: 1636034.121 | V145: 1636034.121 | W145: 1636034.121 | X145: 1636034.121 | Y145: 1636034.121 | Z145: 1636034.121 | AA145: 1636034.121 | AB145: 1636034.121 | AC145: 1636034.121 | AD145: 1636034.121 | AE145: 1636034.121 | AF145: 1636034.121 | AG145: 1636034.121 | AH145: 1636034.121 | AI145: 1636034.121 | AJ145: 1636034.121 | AK145: 1636034.121 | AL145: 0 | AM145: 0 | AN145: 0 | AO145: 0 | AP145: 0 | AQ145: 0 | AR145: 0 | AS145: 0 | AT145: 0 | AU145: 0 | AV145: 0 | AW145: 0 | AX145: 0 | AY145: 0 | AZ145: 0 | BA145: 0 | BB145: 0 | BC145: 0 | BD145: 0 | BE145: 0 | BF145: 0 | BG145: 0 | BH145: 0 | BI145: 0 | BJ145: 0 | BK145: 0 | BL145: 0 | BM145: 0 | BN145: 0 | BO145: 0 | BP145: 0 | BQ145: 0 | BR145: =$E$50*BR127 -> 0 | BS145: 0 | BT145: 0 | BU145: 0 | BV145: 0 | BW145: 0 | BX145: 0 | BY145: 0 | BZ145: 0 | CA145: 0 | CB145: 0 | CC145: 0 | CD145: 0 | CE145: 0 | CF145: 0 | CG145: 0 | CH145: 0 | CI145: 0 | CJ145: 0 | CK145: 0 | CL145: 0 | CM145: 0 | CN145: 0 | CO145: 0 | CP145: 0 | CQ145: 0 | CR145: 0 | CS145: 0 | CT145: 0 | CU145: 0 | CV145: 0 | CW145: 0 | CX145: 0 | CY145: 0 | CZ145: 0
C146: =SUM(E146:CZ146) -> 4977439.557 | D146: Pipeline related equipment and pumps O&M | E146: =$E$50*E128 -> 0 | F146: =$E$50*F128 -> 0 | G146: 0 | H146: 165914.6519 | I146: 165914.6519 | J146: 165914.6519 | K146: 165914.6519 | L146: 165914.6519 | M146: 165914.6519 | N146: 165914.6519 | O146: 165914.6519 | P146: 165914.6519 | Q146: 165914.6519 | R146: 165914.6519 | S146: 165914.6519 | T146: 165914.6519 | U146: 165914.6519 | V146: 165914.6519 | W146: 165914.6519 | X146: 165914.6519 | Y146: 165914.6519 | Z146: 165914.6519 | AA146: 165914.6519 | AB146: 165914.6519 | AC146: 165914.6519 | AD146: 165914.6519 | AE146: 165914.6519 | AF146: 165914.6519 | AG146: 165914.6519 | AH146: 165914.6519 | AI146: 165914.6519 | AJ146: 165914.6519 | AK146: 165914.6519 | AL146: 0 | AM146: 0 | AN146: 0 | AO146: 0 | AP146: 0 | AQ146: 0 | AR146: 0 | AS146: 0 | AT146: 0 | AU146: 0 | AV146: 0 | AW146: 0 | AX146: 0 | AY146: 0 | AZ146: 0 | BA146: 0 | BB146: 0 | BC146: 0 | BD146: 0 | BE146: 0 | BF146: 0 | BG146: 0 | BH146: 0 | BI146: 0 | BJ146: 0 | BK146: 0 | BL146: 0 | BM146: 0 | BN146: 0 | BO146: 0 | BP146: 0 | BQ146: 0 | BR146: =$E$50*BR128 -> 0 | BS146: 0 | BT146: 0 | BU146: 0 | BV146: 0 | BW146: 0 | BX146: 0 | BY146: 0 | BZ146: 0 | CA146: 0 | CB146: 0 | CC146: 0 | CD146: 0 | CE146: 0 | CF146: 0 | CG146: 0 | CH146: 0 | CI146: 0 | CJ146: 0 | CK146: 0 | CL146: 0 | CM146: 0 | CN146: 0 | CO146: 0 | CP146: 0 | CQ146: 0 | CR146: 0 | CS146: 0 | CT146: 0 | CU146: 0 | CV146: 0 | CW146: 0 | CX146: 0 | CY146: 0 | CZ146: 0
C147: =SUM(E147:CZ147) -> 28399161.47 | D147: Electricity costs for pumps | E147: =$E$50*E129 -> 0 | F147: =$E$50*F129 -> 0 | G147: 0 | H147: 946638.7155 | I147: 946638.7155 | J147: 946638.7155 | K147: 946638.7155 | L147: 946638.7155 | M147: 946638.7155 | N147: 946638.7155 | O147: 946638.7155 | P147: 946638.7155 | Q147: 946638.7155 | R147: 946638.7155 | S147: 946638.7155 | T147: 946638.7155 | U147: 946638.7155 | V147: 946638.7155 | W147: 946638.7155 | X147: 946638.7155 | Y147: 946638.7155 | Z147: 946638.7155 | AA147: 946638.7155 | AB147: 946638.7155 | AC147: 946638.7155 | AD147: 946638.7155 | AE147: 946638.7155 | AF147: 946638.7155 | AG147: 946638.7155 | AH147: 946638.7155 | AI147: 946638.7155 | AJ147: 946638.7155 | AK147: 946638.7155 | AL147: 0 | AM147: 0 | AN147: 0 | AO147: 0 | AP147: 0 | AQ147: 0 | AR147: 0 | AS147: 0 | AT147: 0 | AU147: 0 | AV147: 0 | AW147: 0 | AX147: 0 | AY147: 0 | AZ147: 0 | BA147: 0 | BB147: 0 | BC147: 0 | BD147: 0 | BE147: 0 | BF147: 0 | BG147: 0 | BH147: 0 | BI147: 0 | BJ147: 0 | BK147: 0 | BL147: 0 | BM147: 0 | BN147: 0 | BO147: 0 | BP147: 0 | BQ147: 0 | BR147: =$E$50*BR129 -> 0 | BS147: 0 | BT147: 0 | BU147: 0 | BV147: 0 | BW147: 0 | BX147: 0 | BY147: 0 | BZ147: 0 | CA147: 0 | CB147: 0 | CC147: 0 | CD147: 0 | CE147: 0 | CF147: 0 | CG147: 0 | CH147: 0 | CI147: 0 | CJ147: 0 | CK147: 0 | CL147: 0 | CM147: 0 | CN147: 0 | CO147: 0 | CP147: 0 | CQ147: 0 | CR147: 0 | CS147: 0 | CT147: 0 | CU147: 0 | CV147: 0 | CW147: 0 | CX147: 0 | CY147: 0 | CZ147: 0
C149: =SUM(E149:CZ149) -> 78210752.72 | D149: ="Total Investment (capital expenses or Capex) in real "&E60&"$" -> Total Investment (capital expenses or Capex) in real 2018$ | E149: =SUM(E136:E143) -> 9221468.729 | F149: =SUM(F136:F143) -> 29992728.1 | G149: 38996555.89 | H149: 0 | I149: 0 | J149: 0 | K149: 0 | L149: 0 | M149: 0 | N149: 0 | O149: 0 | P149: 0 | Q149: 0 | R149: 0 | S149: 0 | T149: 0 | U149: 0 | V149: 0 | W149: 0 | X149: 0 | Y149: 0 | Z149: 0 | AA149: 0 | AB149: 0 | AC149: 0 | AD149: 0 | AE149: 0 | AF149: 0 | AG149: 0 | AH149: 0 | AI149: 0 | AJ149: 0 | AK149: 0 | AL149: 0 | AM149: 0 | AN149: 0 | AO149: 0 | AP149: 0 | AQ149: 0 | AR149: 0 | AS149: 0 | AT149: 0 | AU149: 0 | AV149: 0 | AW149: 0 | AX149: 0 | AY149: 0 | AZ149: 0 | BA149: 0 | BB149: 0 | BC149: 0 | BD149: 0 | BE149: 0 | BF149: 0 | BG149: 0 | BH149: 0 | BI149: 0 | BJ149: 0 | BK149: 0 | BL149: 0 | BM149: 0 | BN149: 0 | BO149: 0 | BP149: 0 | BQ149: 0 | BR149: =SUM(BR136:BR143) -> 0 | BS149: 0 | BT149: 0 | BU149: 0 | BV149: 0 | BW149: 0 | BX149: 0 | BY149: 0 | BZ149: 0 | CA149: 0 | CB149: 0 | CC149: 0 | CD149: 0 | CE149: 0 | CF149: 0 | CG149: 0 | CH149: 0 | CI149: 0 | CJ149: 0 | CK149: 0 | CL149: 0 | CM149: 0 | CN149: 0 | CO149: 0 | CP149: 0 | CQ149: 0 | CR149: 0 | CS149: 0 | CT149: 0 | CU149: 0 | CV149: 0 | CW149: 0 | CX149: 0 | CY149: 0 | CZ149: 0
C150: =SUM(E150:CZ150) -> 82457624.66 | D150: ="Project Expenses (operating expenses or Opex) in real "&E60&"$" -> Project Expenses (operating expenses or Opex) in real 2018$ | E150: =SUM(E145:E147) -> 0 | F150: 0 | G150: 0 | H150: 2748587.489 | I150: 2748587.489 | J150: 2748587.489 | K150: 2748587.489 | L150: 2748587.489 | M150: 2748587.489 | N150: 2748587.489 | O150: 2748587.489 | P150: 2748587.489 | Q150: 2748587.489 | R150: 2748587.489 | S150: 2748587.489 | T150: 2748587.489 | U150: 2748587.489 | V150: 2748587.489 | W150: 2748587.489 | X150: 2748587.489 | Y150: 2748587.489 | Z150: 2748587.489 | AA150: 2748587.489 | AB150: 2748587.489 | AC150: 2748587.489 | AD150: 2748587.489 | AE150: 2748587.489 | AF150: 2748587.489 | AG150: 2748587.489 | AH150: 2748587.489 | AI150: 2748587.489 | AJ150: 2748587.489 | AK150: =SUM(AK145:AK147) -> 2748587.489 | AL150: 0 | AM150: 0 | AN150: 0 | AO150: 0 | AP150: 0 | AQ150: 0 | AR150: 0 | AS150: 0 | AT150: 0 | AU150: 0 | AV150: 0 | AW150: 0 | AX150: 0 | AY150: 0 | AZ150: 0 | BA150: 0 | BB150: 0 | BC150: 0 | BD150: 0 | BE150: 0 | BF150: 0 | BG150: 0 | BH150: 0 | BI150: 0 | BJ150: 0 | BK150: 0 | BL150: 0 | BM150: 0 | BN150: 0 | BO150: 0 | BP150: 0 | BQ150: =SUM(BQ145:BQ147) -> 0 | BR150: 0 | BS150: 0 | BT150: 0 | BU150: 0 | BV150: 0 | BW150: 0 | BX150: 0 | BY150: 0 | BZ150: 0 | CA150: 0 | CB150: 0 | CC150: 0 | CD150: 0 | CE150: 0 | CF150: 0 | CG150: 0 | CH150: 0 | CI150: 0 | CJ150: 0 | CK150: 0 | CL150: 0 | CM150: 0 | CN150: 0 | CO150: 0 | CP150: 0 | CQ150: 0 | CR150: 0 | CS150: 0 | CT150: 0 | CU150: 0 | CV150: 0 | CW150: 0 | CX150: 0 | CY150: 0 | CZ150: 0
D152: Escalated Costs
D153: ="Capital Costs in escalated $" -> Capital Costs in escalated $
C154: =SUM(E154:CZ154) -> 12527943.12 | D154: Materials | E154: =E118*E$108 -> 605336.9098 | F154: =F118*F$108 -> 4954077.27 | G154: 6968528.94 | H154: 0 | I154: 0 | J154: 0 | K154: 0 | L154: 0 | M154: 0 | N154: 0 | O154: 0 | P154: 0 | Q154: 0 | R154: 0 | S154: 0 | T154: 0 | U154: 0 | V154: 0 | W154: 0 | X154: 0 | Y154: 0 | Z154: 0 | AA154: 0 | AB154: 0 | AC154: 0 | AD154: 0 | AE154: 0 | AF154: 0 | AG154: 0 | AH154: 0 | AI154: 0 | AJ154: 0 | AK154: 0 | AL154: 0 | AM154: 0 | AN154: 0 | AO154: 0 | AP154: 0 | AQ154: 0 | AR154: 0 | AS154: 0 | AT154: 0 | AU154: 0 | AV154: 0 | AW154: 0 | AX154: 0 | AY154: 0 | AZ154: 0 | BA154: 0 | BB154: 0 | BC154: 0 | BD154: 0 | BE154: 0 | BF154: 0 | BG154: 0 | BH154: 0 | BI154: 0 | BJ154: 0 | BK154: 0 | BL154: 0 | BM154: 0 | BN154: 0 | BO154: 0 | BP154: 0 | BQ154: 0 | BR154: =BR118*BR$108 -> 0 | BS154: 0 | BT154: 0 | BU154: 0 | BV154: 0 | BW154: 0 | BX154: 0 | BY154: 0 | BZ154: 0 | CA154: 0 | CB154: 0 | CC154: 0 | CD154: 0 | CE154: 0 | CF154: 0 | CG154: 0 | CH154: 0 | CI154: 0 | CJ154: 0 | CK154: 0 | CL154: 0 | CM154: 0 | CN154: 0 | CO154: 0 | CP154: 0 | CQ154: 0 | CR154: 0 | CS154: 0 | CT154: 0 | CU154: 0 | CV154: 0 | CW154: 0 | CX154: 0 | CY154: 0 | CZ154: 0
C155: 37162324.78 | D155: Labor | E155: 1795644.076 | F155: =F119*F$108 -> 14695551.12 | G155: 20671129.59 | H155: 0 | I155: 0 | J155: 0 | K155: 0 | L155: 0 | M155: 0 | N155: 0 | O155: 0 | P155: 0 | Q155: 0 | R155: 0 | S155: 0 | T155: 0 | U155: 0 | V155: 0 | W155: 0 | X155: 0 | Y155: 0 | Z155: 0 | AA155: 0 | AB155: 0 | AC155: 0 | AD155: 0 | AE155: 0 | AF155: 0 | AG155: 0 | AH155: 0 | AI155: 0 | AJ155: 0 | AK155: 0 | AL155: 0 | AM155: 0 | AN155: 0 | AO155: 0 | AP155: 0 | AQ155: 0 | AR155: 0 | AS155: 0 | AT155: 0 | AU155: 0 | AV155: 0 | AW155: 0 | AX155: 0 | AY155: 0 | AZ155: 0 | BA155: 0 | BB155: 0 | BC155: 0 | BD155: 0 | BE155: 0 | BF155: 0 | BG155: 0 | BH155: 0 | BI155: 0 | BJ155: 0 | BK155: 0 | BL155: 0 | BM155: 0 | BN155: 0 | BO155: 0 | BP155: 0 | BQ155: 0 | BR155: =BR119*BR$108 -> 0 | BS155: 0 | BT155: 0 | BU155: 0 | BV155: 0 | BW155: 0 | BX155: 0 | BY155: 0 | BZ155: 0 | CA155: 0 | CB155: 0 | CC155: 0 | CD155: 0 | CE155: 0 | CF155: 0 | CG155: 0 | CH155: 0 | CI155: 0 | CJ155: 0 | CK155: 0 | CL155: 0 | CM155: 0 | CN155: 0 | CO155: 0 | CP155: 0 | CQ155: 0 | CR155: 0 | CS155: 0 | CT155: 0 | CU155: 0 | CV155: 0 | CW155: 0 | CX155: 0 | CY155: 0 | CZ155: 0
C156: 3508542.548 | D156: ROW-Damages | E156: 1903282.083 | F156: =F120*F$108 -> 1062031.402 | G156: 543229.0623 | H156: 0 | I156: 0 | J156: 0 | K156: 0 | L156: 0 | M156: 0 | N156: 0 | O156: 0 | P156: 0 | Q156: 0 | R156: 0 | S156: 0 | T156: 0 | U156: 0 | V156: 0 | W156: 0 | X156: 0 | Y156: 0 | Z156: 0 | AA156: 0 | AB156: 0 | AC156: 0 | AD156: 0 | AE156: 0 | AF156: 0 | AG156: 0 | AH156: 0 | AI156: 0 | AJ156: 0 | AK156: 0 | AL156: 0 | AM156: 0 | AN156: 0 | AO156: 0 | AP156: 0 | AQ156: 0 | AR156: 0 | AS156: 0 | AT156: 0 | AU156: 0 | AV156: 0 | AW156: 0 | AX156: 0 | AY156: 0 | AZ156: 0 | BA156: 0 | BB156: 0 | BC156: 0 | BD156: 0 | BE156: 0 | BF156: 0 | BG156: 0 | BH156: 0 | BI156: 0 | BJ156: 0 | BK156: 0 | BL156: 0 | BM156: 0 | BN156: 0 | BO156: 0 | BP156: 0 | BQ156: 0 | BR156: =BR120*BR$108 -> 0 | BS156: 0 | BT156: 0 | BU156: 0 | BV156: 0 | BW156: 0 | BX156: 0 | BY156: 0 | BZ156: 0 | CA156: 0 | CB156: 0 | CC156: 0 | CD156: 0 | CE156: 0 | CF156: 0 | CG156: 0 | CH156: 0 | CI156: 0 | CJ156: 0 | CK156: 0 | CL156: 0 | CM156: 0 | CN156: 0 | CO156: 0 | CP156: 0 | CQ156: 0 | CR156: 0 | CS156: 0 | CT156: 0 | CU156: 0 | CV156: 0 | CW156: 0 | CX156: 0 | CY156: 0 | CZ156: 0
C157: 12682653.35 | D157: Miscellaneous | E157: 3714405.391 | F157: =F121*F$108 -> 4433142.835 | G157: 4535105.12 | H157: 0 | I157: 0 | J157: 0 | K157: 0 | L157: 0 | M157: 0 | N157: 0 | O157: 0 | P157: 0 | Q157: 0 | R157: 0 | S157: 0 | T157: 0 | U157: 0 | V157: 0 | W157: 0 | X157: 0 | Y157: 0 | Z157: 0 | AA157: 0 | AB157: 0 | AC157: 0 | AD157: 0 | AE157: 0 | AF157: 0 | AG157: 0 | AH157: 0 | AI157: 0 | AJ157: 0 | AK157: 0 | AL157: 0 | AM157: 0 | AN157: 0 | AO157: 0 | AP157: 0 | AQ157: 0 | AR157: 0 | AS157: 0 | AT157: 0 | AU157: 0 | AV157: 0 | AW157: 0 | AX157: 0 | AY157: 0 | AZ157: 0 | BA157: 0 | BB157: 0 | BC157: 0 | BD157: 0 | BE157: 0 | BF157: 0 | BG157: 0 | BH157: 0 | BI157: 0 | BJ157: 0 | BK157: 0 | BL157: 0 | BM157: 0 | BN157: 0 | BO157: 0 | BP157: 0 | BQ157: 0 | BR157: =BR121*BR$108 -> 0 | BS157: 0 | BT157: 0 | BU157: 0 | BV157: 0 | BW157: 0 | BX157: 0 | BY157: 0 | BZ157: 0 | CA157: 0 | CB157: 0 | CC157: 0 | CD157: 0 | CE157: 0 | CF157: 0 | CG157: 0 | CH157: 0 | CI157: 0 | CJ157: 0 | CK157: 0 | CL157: 0 | CM157: 0 | CN157: 0 | CO157: 0 | CP157: 0 | CQ157: 0 | CR157: 0 | CS157: 0 | CT157: 0 | CU157: 0 | CV157: 0 | CW157: 0 | CX157: 0 | CY157: 0 | CZ157: 0
C158: 1506774.557 | D158: CO2 Surge Tanks | E158: 0 | F158: =F122*F$108 -> 444869.9607 | G158: 1061904.596 | H158: 0 | I158: 0 | J158: 0 | K158: 0 | L158: 0 | M158: 0 | N158: 0 | O158: 0 | P158: 0 | Q158: 0 | R158: 0 | S158: 0 | T158: 0 | U158: 0 | V158: 0 | W158: 0 | X158: 0 | Y158: 0 | Z158: 0 | AA158: 0 | AB158: 0 | AC158: 0 | AD158: 0 | AE158: 0 | AF158: 0 | AG158: 0 | AH158: 0 | AI158: 0 | AJ158: 0 | AK158: 0 | AL158: 0 | AM158: 0 | AN158: 0 | AO158: 0 | AP158: 0 | AQ158: 0 | AR158: 0 | AS158: 0 | AT158: 0 | AU158: 0 | AV158: 0 | AW158: 0 | AX158: 0 | AY158: 0 | AZ158: 0 | BA158: 0 | BB158: 0 | BC158: 0 | BD158: 0 | BE158: 0 | BF158: 0 | BG158: 0 | BH158: 0 | BI158: 0 | BJ158: 0 | BK158: 0 | BL158: 0 | BM158: 0 | BN158: 0 | BO158: 0 | BP158: 0 | BQ158: 0 | BR158: =BR122*BR$108 -> 0 | BS158: 0 | BT158: 0 | BU158: 0 | BV158: 0 | BW158: 0 | BX158: 0 | BY158: 0 | BZ158: 0 | CA158: 0 | CB158: 0 | CC158: 0 | CD158: 0 | CE158: 0 | CF158: 0 | CG158: 0 | CH158: 0 | CI158: 0 | CJ158: 0 | CK158: 0 | CL158: 0 | CM158: 0 | CN158: 0 | CO158: 0 | CP158: 0 | CQ158: 0 | CR158: 0 | CS158: 0 | CT158: 0 | CU158: 0 | CV158: 0 | CW158: 0 | CX158: 0 | CY158: 0 | CZ158: 0
C159: 135464.7661 | D159: Pipeline Control System | E159: 0 | F159: =F123*F$108 -> 39995.50225 | G159: 95469.26386 | H159: 0 | I159: 0 | J159: 0 | K159: 0 | L159: 0 | M159: 0 | N159: 0 | O159: 0 | P159: 0 | Q159: 0 | R159: 0 | S159: 0 | T159: 0 | U159: 0 | V159: 0 | W159: 0 | X159: 0 | Y159: 0 | Z159: 0 | AA159: 0 | AB159: 0 | AC159: 0 | AD159: 0 | AE159: 0 | AF159: 0 | AG159: 0 | AH159: 0 | AI159: 0 | AJ159: 0 | AK159: 0 | AL159: 0 | AM159: 0 | AN159: 0 | AO159: 0 | AP159: 0 | AQ159: 0 | AR159: 0 | AS159: 0 | AT159: 0 | AU159: 0 | AV159: 0 | AW159: 0 | AX159: 0 | AY159: 0 | AZ159: 0 | BA159: 0 | BB159: 0 | BC159: 0 | BD159: 0 | BE159: 0 | BF159: 0 | BG159: 0 | BH159: 0 | BI159: 0 | BJ159: 0 | BK159: 0 | BL159: 0 | BM159: 0 | BN159: 0 | BO159: 0 | BP159: 0 | BQ159: 0 | BR159: =BR123*BR$108 -> 0 | BS159: 0 | BT159: 0 | BU159: 0 | BV159: 0 | BW159: 0 | BX159: 0 | BY159: 0 | BZ159: 0 | CA159: 0 | CB159: 0 | CC159: 0 | CD159: 0 | CE159: 0 | CF159: 0 | CG159: 0 | CH159: 0 | CI159: 0 | CJ159: 0 | CK159: 0 | CL159: 0 | CM159: 0 | CN159: 0 | CO159: 0 | CP159: 0 | CQ159: 0 | CR159: 0 | CS159: 0 | CT159: 0 | CU159: 0 | CV159: 0 | CW159: 0 | CX159: 0 | CY159: 0 | CZ159: 0
C160: 2663302.289 | D160: Pumps | E160: 0 | F160: =F124*F$108 -> 1050819.605 | G160: 1612482.684 | H160: 0 | I160: 0 | J160: 0 | K160: 0 | L160: 0 | M160: 0 | N160: 0 | O160: 0 | P160: 0 | Q160: 0 | R160: 0 | S160: 0 | T160: 0 | U160: 0 | V160: 0 | W160: 0 | X160: 0 | Y160: 0 | Z160: 0 | AA160: 0 | AB160: 0 | AC160: 0 | AD160: 0 | AE160: 0 | AF160: 0 | AG160: 0 | AH160: 0 | AI160: 0 | AJ160: 0 | AK160: 0 | AL160: 0 | AM160: 0 | AN160: 0 | AO160: 0 | AP160: 0 | AQ160: 0 | AR160: 0 | AS160: 0 | AT160: 0 | AU160: 0 | AV160: 0 | AW160: 0 | AX160: 0 | AY160: 0 | AZ160: 0 | BA160: 0 | BB160: 0 | BC160: 0 | BD160: 0 | BE160: 0 | BF160: 0 | BG160: 0 | BH160: 0 | BI160: 0 | BJ160: 0 | BK160: 0 | BL160: 0 | BM160: 0 | BN160: 0 | BO160: 0 | BP160: 0 | BQ160: 0 | BR160: =BR124*BR$108 -> 0 | BS160: 0 | BT160: 0 | BU160: 0 | BV160: 0 | BW160: 0 | BX160: 0 | BY160: 0 | BZ160: 0 | CA160: 0 | CB160: 0 | CC160: 0 | CD160: 0 | CE160: 0 | CF160: 0 | CG160: 0 | CH160: 0 | CI160: 0 | CJ160: 0 | CK160: 0 | CL160: 0 | CM160: 0 | CN160: 0 | CO160: 0 | CP160: 0 | CQ160: 0 | CR160: 0 | CS160: 0 | CT160: 0 | CU160: 0 | CV160: 0 | CW160: 0 | CX160: 0 | CY160: 0 | CZ160: 0
C161: =SUM(E161:CZ161) -> 10528050.81 | D161: Contingency | E161: 1202800.269 | F161: =F125*F$108 -> 4002073.154 | G161: 5323177.388 | H161: 0 | I161: 0 | J161: 0 | K161: 0 | L161: 0 | M161: 0 | N161: 0 | O161: 0 | P161: 0 | Q161: 0 | R161: 0 | S161: 0 | T161: 0 | U161: 0 | V161: 0 | W161: 0 | X161: 0 | Y161: 0 | Z161: 0 | AA161: 0 | AB161: 0 | AC161: 0 | AD161: 0 | AE161: 0 | AF161: 0 | AG161: 0 | AH161: 0 | AI161: 0 | AJ161: 0 | AK161: 0 | AL161: 0 | AM161: 0 | AN161: 0 | AO161: 0 | AP161: 0 | AQ161: 0 | AR161: 0 | AS161: 0 | AT161: 0 | AU161: 0 | AV161: 0 | AW161: 0 | AX161: 0 | AY161: 0 | AZ161: 0 | BA161: 0 | BB161: 0 | BC161: 0 | BD161: 0 | BE161: 0 | BF161: 0 | BG161: 0 | BH161: 0 | BI161: 0 | BJ161: 0 | BK161: 0 | BL161: 0 | BM161: 0 | BN161: 0 | BO161: 0 | BP161: 0 | BQ161: 0 | BR161: =BR125*BR$108 -> 0 | BS161: 0 | BT161: 0 | BU161: 0 | BV161: 0 | BW161: 0 | BX161: 0 | BY161: 0 | BZ161: 0 | CA161: 0 | CB161: 0 | CC161: 0 | CD161: 0 | CE161: 0 | CF161: 0 | CG161: 0 | CH161: 0 | CI161: 0 | CJ161: 0 | CK161: 0 | CL161: 0 | CM161: 0 | CN161: 0 | CO161: 0 | CP161: 0 | CQ161: 0 | CR161: 0 | CS161: 0 | CT161: 0 | CU161: 0 | CV161: 0 | CW161: 0 | CX161: 0 | CY161: 0 | CZ161: 0
D162: ="Operating Expenses in escalated $" -> Operating Expenses in escalated $
C163: =SUM(E163:CZ163) -> 74493208.79 | D163: Pipeline O&M | E163: =E127*E$108 -> 0 | F163: =F127*F$108 -> 0 | G163: 0 | H163: 1751536.767 | I163: 1791822.113 | J163: 1833034.021 | K163: 1875193.804 | L163: 1918323.261 | M163: 1962444.696 | N163: 2007580.924 | O163: 2053755.286 | P163: 2100991.657 | Q163: 2149314.465 | R163: 2198748.698 | S163: 2249319.918 | T163: 2301054.276 | U163: 2353978.525 | V163: 2408120.031 | W163: 2463506.791 | X163: 2520167.448 | Y163: 2578131.299 | Z163: 2637428.319 | AA163: 2698089.17 | AB163: 2760145.221 | AC163: 2823628.561 | AD163: 2888572.018 | AE163: 2955009.174 | AF163: 3022974.385 | AG163: 3092502.796 | AH163: 3163630.361 | AI163: 3236393.859 | AJ163: 3310830.918 | AK163: 3386980.029 | AL163: 0 | AM163: 0 | AN163: 0 | AO163: 0 | AP163: 0 | AQ163: 0 | AR163: 0 | AS163: 0 | AT163: 0 | AU163: 0 | AV163: 0 | AW163: 0 | AX163: 0 | AY163: 0 | AZ163: 0 | BA163: 0 | BB163: 0 | BC163: 0 | BD163: 0 | BE163: 0 | BF163: 0 | BG163: 0 | BH163: 0 | BI163: 0 | BJ163: 0 | BK163: 0 | BL163: 0 | BM163: 0 | BN163: 0 | BO163: 0 | BP163: 0 | BQ163: 0 | BR163: =BR127*BR$108 -> 0 | BS163: 0 | BT163: 0 | BU163: 0 | BV163: 0 | BW163: 0 | BX163: 0 | BY163: 0 | BZ163: 0 | CA163: 0 | CB163: 0 | CC163: 0 | CD163: 0 | CE163: 0 | CF163: 0 | CG163: 0 | CH163: 0 | CI163: 0 | CJ163: 0 | CK163: 0 | CL163: 0 | CM163: 0 | CN163: 0 | CO163: 0 | CP163: 0 | CQ163: 0 | CR163: 0 | CS163: 0 | CT163: 0 | CU163: 0 | CV163: 0 | CW163: 0 | CX163: 0 | CY163: 0 | CZ163: 0
C164: =SUM(E164:CZ164) -> 7554558.091 | D164: Pipeline related equipment and pumps O&M | E164: =E128*E$108 -> 0 | F164: =F128*F$108 -> 0 | G164: 0 | H164: 177628.0881 | I164: 181713.5342 | J164: 185892.9454 | K164: 190168.4832 | L164: 194542.3583 | M164: 199016.8325 | N164: 203594.2197 | O164: 208276.8867 | P164: 213067.2551 | Q164: 217967.802 | R164: 222981.0615 | S164: 228109.6259 | T164: 233356.1473 | U164: 238723.3387 | V164: 244213.9754 | W164: 249830.8969 | X164: 255577.0075 | Y164: 261455.2787 | Z164: 267468.7501 | AA164: 273620.5313 | AB164: 279913.8036 | AC164: 286351.821 | AD164: 292937.9129 | AE164: 299675.4849 | AF164: 306568.0211 | AG164: 313619.0856 | AH164: 320832.3245 | AI164: 328211.468 | AJ164: 335760.3318 | AK164: 343482.8194 | AL164: 0 | AM164: 0 | AN164: 0 | AO164: 0 | AP164: 0 | AQ164: 0 | AR164: 0 | AS164: 0 | AT164: 0 | AU164: 0 | AV164: 0 | AW164: 0 | AX164: 0 | AY164: 0 | AZ164: 0 | BA164: 0 | BB164: 0 | BC164: 0 | BD164: 0 | BE164: 0 | BF164: 0 | BG164: 0 | BH164: 0 | BI164: 0 | BJ164: 0 | BK164: 0 | BL164: 0 | BM164: 0 | BN164: 0 | BO164: 0 | BP164: 0 | BQ164: 0 | BR164: =BR128*BR$108 -> 0 | BS164: 0 | BT164: 0 | BU164: 0 | BV164: 0 | BW164: 0 | BX164: 0 | BY164: 0 | BZ164: 0 | CA164: 0 | CB164: 0 | CC164: 0 | CD164: 0 | CE164: 0 | CF164: 0 | CG164: 0 | CH164: 0 | CI164: 0 | CJ164: 0 | CK164: 0 | CL164: 0 | CM164: 0 | CN164: 0 | CO164: 0 | CP164: 0 | CQ164: 0 | CR164: 0 | CS164: 0 | CT164: 0 | CU164: 0 | CV164: 0 | CW164: 0 | CX164: 0 | CY164: 0 | CZ164: 0
C165: =SUM(E165:CZ165) -> 43103108.05 | D165: Electricity costs for pumps | E165: =E129*E$108 -> 0 | F165: =F129*F$108 -> 0 | G165: 0 | H165: 1013470.62 | I165: 1036780.445 | J165: 1060626.395 | K165: 1085020.802 | L165: 1109976.28 | M165: 1135505.735 | N165: 1161622.367 | O165: 1188339.681 | P165: 1215671.494 | Q165: 1243631.938 | R165: 1272235.473 | S165: 1301496.889 | T165: 1331431.317 | U165: 1362054.237 | V165: 1393381.485 | W165: 1425429.259 | X165: 1458214.132 | Y165: 1491753.057 | Z165: 1526063.377 | AA165: 1561162.835 | AB165: 1597069.58 | AC165: 1633802.18 | AD165: 1671379.631 | AE165: 1709821.362 | AF165: 1749147.253 | AG165: 1789377.64 | AH165: 1830533.326 | AI165: 1872635.592 | AJ165: 1915706.211 | AK165: 1959767.454 | AL165: 0 | AM165: 0 | AN165: 0 | AO165: 0 | AP165: 0 | AQ165: 0 | AR165: 0 | AS165: 0 | AT165: 0 | AU165: 0 | AV165: 0 | AW165: 0 | AX165: 0 | AY165: 0 | AZ165: 0 | BA165: 0 | BB165: 0 | BC165: 0 | BD165: 0 | BE165: 0 | BF165: 0 | BG165: 0 | BH165: 0 | BI165: 0 | BJ165: 0 | BK165: 0 | BL165: 0 | BM165: 0 | BN165: 0 | BO165: 0 | BP165: 0 | BQ165: 0 | BR165: =BR129*BR$108 -> 0 | BS165: 0 | BT165: 0 | BU165: 0 | BV165: 0 | BW165: 0 | BX165: 0 | BY165: 0 | BZ165: 0 | CA165: 0 | CB165: 0 | CC165: 0 | CD165: 0 | CE165: 0 | CF165: 0 | CG165: 0 | CH165: 0 | CI165: 0 | CJ165: 0 | CK165: 0 | CL165: 0 | CM165: 0 | CN165: 0 | CO165: 0 | CP165: 0 | CQ165: 0 | CR165: 0 | CS165: 0 | CT165: 0 | CU165: 0 | CV165: 0 | CW165: 0 | CX165: 0 | CY165: 0 | CZ165: 0
C167: =SUM(E167:CZ167) -> 80715056.22 | D167: Total Investment (capital expenses or Capex) in escalated $ | E167: =SUM(E154:E161) -> 9221468.729 | F167: =SUM(F154:F161) -> 30682560.85 | G167: 40811026.64 | H167: 0 | I167: 0 | J167: 0 | K167: 0 | L167: 0 | M167: 0 | N167: 0 | O167: 0 | P167: 0 | Q167: 0 | R167: 0 | S167: 0 | T167: 0 | U167: 0 | V167: 0 | W167: 0 | X167: 0 | Y167: 0 | Z167: 0 | AA167: 0 | AB167: 0 | AC167: 0 | AD167: 0 | AE167: 0 | AF167: 0 | AG167: 0 | AH167: 0 | AI167: 0 | AJ167: 0 | AK167: 0 | AL167: 0 | AM167: 0 | AN167: 0 | AO167: 0 | AP167: 0 | AQ167: 0 | AR167: 0 | AS167: 0 | AT167: 0 | AU167: 0 | AV167: 0 | AW167: 0 | AX167: 0 | AY167: 0 | AZ167: 0 | BA167: 0 | BB167: 0 | BC167: 0 | BD167: 0 | BE167: 0 | BF167: 0 | BG167: 0 | BH167: 0 | BI167: 0 | BJ167: 0 | BK167: 0 | BL167: 0 | BM167: 0 | BN167: 0 | BO167: 0 | BP167: 0 | BQ167: 0 | BR167: =SUM(BR154:BR161) -> 0 | BS167: 0 | BT167: 0 | BU167: 0 | BV167: 0 | BW167: 0 | BX167: 0 | BY167: 0 | BZ167: 0 | CA167: 0 | CB167: 0 | CC167: 0 | CD167: 0 | CE167: 0 | CF167: 0 | CG167: 0 | CH167: 0 | CI167: 0 | CJ167: 0 | CK167: 0 | CL167: 0 | CM167: 0 | CN167: 0 | CO167: 0 | CP167: 0 | CQ167: 0 | CR167: 0 | CS167: 0 | CT167: 0 | CU167: 0 | CV167: 0 | CW167: 0 | CX167: 0 | CY167: 0 | CZ167: 0
C168: =SUM(E168:CZ168) -> 125150874.9 | D168: Project Expenses (operating expenses or Opex) in escalated $ | E168: =SUM(E163:E165) -> 0 | F168: =SUM(F163:F165) -> 0 | G168: 0 | H168: 2942635.476 | I168: 3010316.092 | J168: 3079553.362 | K168: 3150383.089 | L168: 3222841.9 | M168: 3296967.264 | N168: 3372797.511 | O168: 3450371.854 | P168: 3529730.406 | Q168: 3610914.206 | R168: 3693965.232 | S168: 3778926.433 | T168: 3865841.741 | U168: 3954756.101 | V168: 4045715.491 | W168: 4138766.947 | X168: 4233958.587 | Y168: 4331339.635 | Z168: 4430960.446 | AA168: 4532872.536 | AB168: 4637128.605 | AC168: 4743782.563 | AD168: 4852889.562 | AE168: 4964506.021 | AF168: 5078689.66 | AG168: 5195499.522 | AH168: 5314996.011 | AI168: 5437240.919 | AJ168: 5562297.461 | AK168: 5690230.302 | AL168: 0 | AM168: 0 | AN168: 0 | AO168: 0 | AP168: 0 | AQ168: 0 | AR168: 0 | AS168: 0 | AT168: 0 | AU168: 0 | AV168: 0 | AW168: 0 | AX168: 0 | AY168: 0 | AZ168: 0 | BA168: 0 | BB168: 0 | BC168: 0 | BD168: 0 | BE168: 0 | BF168: 0 | BG168: 0 | BH168: 0 | BI168: 0 | BJ168: 0 | BK168: 0 | BL168: 0 | BM168: 0 | BN168: 0 | BO168: 0 | BP168: 0 | BQ168: 0 | BR168: =SUM(BR163:BR165) -> 0 | BS168: 0 | BT168: 0 | BU168: 0 | BV168: 0 | BW168: 0 | BX168: 0 | BY168: 0 | BZ168: 0 | CA168: 0 | CB168: 0 | CC168: 0 | CD168: 0 | CE168: 0 | CF168: 0 | CG168: 0 | CH168: 0 | CI168: 0 | CJ168: 0 | CK168: 0 | CL168: 0 | CM168: 0 | CN168: 0 | CO168: 0 | CP168: 0 | CQ168: 0 | CR168: 0 | CS168: 0 | CT168: 0 | CU168: 0 | CV168: 0 | CW168: 0 | CX168: 0 | CY168: 0 | CZ168: 0
D170: Escalated and Discounted Costs (only used for reporting purposes)
C171: =SUM(E171:CZ171) -> 72347327.15 | D171: Total Investment (capital expenses or Capex) in present value $ | E171: =E167/E109 -> 9221468.729 | F171: =F167/F109 -> 28330929.39 | G171: 34794929.03 | H171: 0 | I171: 0 | J171: 0 | K171: 0 | L171: 0 | M171: 0 | N171: 0 | O171: 0 | P171: 0 | Q171: 0 | R171: 0 | S171: 0 | T171: 0 | U171: 0 | V171: 0 | W171: 0 | X171: 0 | Y171: 0 | Z171: 0 | AA171: 0 | AB171: 0 | AC171: 0 | AD171: 0 | AE171: 0 | AF171: 0 | AG171: 0 | AH171: 0 | AI171: 0 | AJ171: 0 | AK171: 0 | AL171: 0 | AM171: 0 | AN171: 0 | AO171: 0 | AP171: 0 | AQ171: 0 | AR171: 0 | AS171: 0 | AT171: 0 | AU171: 0 | AV171: 0 | AW171: 0 | AX171: 0 | AY171: 0 | AZ171: 0 | BA171: 0 | BB171: 0 | BC171: 0 | BD171: 0 | BE171: 0 | BF171: 0 | BG171: 0 | BH171: 0 | BI171: 0 | BJ171: 0 | BK171: 0 | BL171: 0 | BM171: 0 | BN171: 0 | BO171: 0 | BP171: 0 | BQ171: 0 | BR171: =BR167/BR109 -> 0 | BS171: 0 | BT171: 0 | BU171: 0 | BV171: 0 | BW171: 0 | BX171: 0 | BY171: 0 | BZ171: 0 | CA171: 0 | CB171: 0 | CC171: 0 | CD171: 0 | CE171: 0 | CF171: 0 | CG171: 0 | CH171: 0 | CI171: 0 | CJ171: 0 | CK171: 0 | CL171: 0 | CM171: 0 | CN171: 0 | CO171: 0 | CP171: 0 | CQ171: 0 | CR171: 0 | CS171: 0 | CT171: 0 | CU171: 0 | CV171: 0 | CW171: 0 | CX171: 0 | CY171: 0 | CZ171: 0
C172: =SUM(E172:CZ172) -> 34248309.57 | D172: Project Expenses (operating expenses or Opex) in present value $ | E172: =E168/E109 -> 0 | F172: =F168/F109 -> 0 | G172: 0 | H172: 2316563.018 | I172: 2188209.858 | J172: 2066968.325 | K172: 1952444.388 | L172: 1844265.847 | M172: 1742081.124 | N172: 1645558.122 | O172: 1554383.142 | P172: 1468259.87 | Q172: 1386908.405 | R172: 1310064.358 | S172: 1237477.988 | T172: 1168913.391 | U172: 1104147.733 | V172: 1042970.528 | W172: 985182.9507 | X172: 930597.194 | Y172: 879035.8551 | Z172: 830331.3609 | AA172: 784325.423 | AB172: 740868.5232 | AC172: 699819.4278 | AD172: 661044.7281 | AE172: 624418.4074 | AF172: 589821.4311 | AG172: 557141.3597 | AH172: 526271.9839 | AI172: 497112.9791 | AJ172: 469569.579 | AK172: 443552.2684 | AL172: 0 | AM172: 0 | AN172: 0 | AO172: 0 | AP172: 0 | AQ172: 0 | AR172: 0 | AS172: 0 | AT172: 0 | AU172: 0 | AV172: 0 | AW172: 0 | AX172: 0 | AY172: 0 | AZ172: 0 | BA172: 0 | BB172: 0 | BC172: 0 | BD172: 0 | BE172: 0 | BF172: 0 | BG172: 0 | BH172: 0 | BI172: 0 | BJ172: 0 | BK172: 0 | BL172: 0 | BM172: 0 | BN172: 0 | BO172: 0 | BP172: 0 | BQ172: 0 | BR172: =BR168/BR109 -> 0 | BS172: 0 | BT172: 0 | BU172: 0 | BV172: 0 | BW172: 0 | BX172: 0 | BY172: 0 | BZ172: 0 | CA172: 0 | CB172: 0 | CC172: 0 | CD172: 0 | CE172: 0 | CF172: 0 | CG172: 0 | CH172: 0 | CI172: 0 | CJ172: 0 | CK172: 0 | CL172: 0 | CM172: 0 | CN172: 0 | CO172: 0 | CP172: 0 | CQ172: 0 | CR172: 0 | CS172: 0 | CT172: 0 | CU172: 0 | CV172: 0 | CW172: 0 | CX172: 0 | CY172: 0 | CZ172: 0
D174: Depreciation
C175: =SUM(E175:CZ175) -> 80715056.22 | D175: Total Capital Costs in escalated dollars | E175: =E167 -> 9221468.729 | F175: 30682560.85 | G175: 40811026.64 | H175: 0 | I175: 0 | J175: 0 | K175: 0 | L175: 0 | M175: 0 | N175: 0 | O175: 0 | P175: 0 | Q175: 0 | R175: 0 | S175: 0 | T175: 0 | U175: 0 | V175: 0 | W175: 0 | X175: 0 | Y175: 0 | Z175: 0 | AA175: 0 | AB175: 0 | AC175: 0 | AD175: 0 | AE175: 0 | AF175: 0 | AG175: 0 | AH175: 0 | AI175: 0 | AJ175: 0 | AK175: =AK167 -> 0 | AL175: 0 | AM175: 0 | AN175: 0 | AO175: 0 | AP175: 0 | AQ175: 0 | AR175: 0 | AS175: 0 | AT175: 0 | AU175: 0 | AV175: 0 | AW175: 0 | AX175: 0 | AY175: 0 | AZ175: 0 | BA175: 0 | BB175: 0 | BC175: 0 | BD175: 0 | BE175: 0 | BF175: 0 | BG175: 0 | BH175: 0 | BI175: 0 | BJ175: 0 | BK175: 0 | BL175: 0 | BM175: 0 | BN175: 0 | BO175: 0 | BP175: 0 | BQ175: =BQ167 -> 0 | BR175: 0 | BS175: 0 | BT175: 0 | BU175: 0 | BV175: 0 | BW175: 0 | BX175: 0 | BY175: 0 | BZ175: 0 | CA175: 0 | CB175: 0 | CC175: 0 | CD175: 0 | CE175: 0 | CF175: 0 | CG175: 0 | CH175: 0 | CI175: 0 | CJ175: 0 | CK175: 0 | CL175: 0 | CM175: 0 | CN175: 0 | CO175: 0 | CP175: 0 | CQ175: 0 | CR175: 0 | CS175: 0 | CT175: 0 | CU175: 0 | CV175: 0 | CW175: 0 | CX175: 0 | CY175: 0 | CZ175: 0
C176: 80715056.22 | D176: Total Capital Costs in escalated $ before pipeline operations begin | E176: =IF(E114<$E$63,E175,0) -> 9221468.729 | F176: =IF(F114<$E$63,F175,0) -> 30682560.85 | G176: 40811026.64 | H176: 0 | I176: 0 | J176: 0 | K176: 0 | L176: 0 | M176: 0 | N176: 0 | O176: 0 | P176: 0 | Q176: 0 | R176: 0 | S176: 0 | T176: 0 | U176: 0 | V176: 0 | W176: 0 | X176: 0 | Y176: 0 | Z176: 0 | AA176: 0 | AB176: 0 | AC176: 0 | AD176: 0 | AE176: 0 | AF176: 0 | AG176: 0 | AH176: 0 | AI176: 0 | AJ176: 0 | AK176: =IF(AK114<$E$63,AK175,0) -> 0 | AL176: 0 | AM176: 0 | AN176: 0 | AO176: 0 | AP176: 0 | AQ176: 0 | AR176: 0 | AS176: 0 | AT176: 0 | AU176: 0 | AV176: 0 | AW176: 0 | AX176: 0 | AY176: 0 | AZ176: 0 | BA176: 0 | BB176: 0 | BC176: 0 | BD176: 0 | BE176: 0 | BF176: 0 | BG176: 0 | BH176: 0 | BI176: 0 | BJ176: 0 | BK176: 0 | BL176: 0 | BM176: 0 | BN176: 0 | BO176: 0 | BP176: 0 | BQ176: =IF(BQ114<$E$63,BQ175,0) -> 0 | BR176: 0 | BS176: 0 | BT176: 0 | BU176: 0 | BV176: 0 | BW176: 0 | BX176: 0 | BY176: 0 | BZ176: 0 | CA176: 0 | CB176: 0 | CC176: 0 | CD176: 0 | CE176: 0 | CF176: 0 | CG176: 0 | CH176: 0 | CI176: 0 | CJ176: 0 | CK176: 0 | CL176: 0 | CM176: 0 | CN176: 0 | CO176: 0 | CP176: 0 | CQ176: 0 | CR176: 0 | CS176: 0 | CT176: 0 | CU176: 0 | CV176: 0 | CW176: =IF(CW114<$E$63,CW175,0) -> 0 | CX176: =IF(CX114<$E$63,CX175,0) -> 0 | CY176: =IF(CY114<$E$63,CY175,0) -> 0 | CZ176: =IF(CZ114<$E$63,CZ175,0) -> 0
C177: 1 | D177: Depreciation factors (MACRS GDS 150% Declining Balance 15 years) | E177: =MACRS_GDS_150_15($E$63,E114) -> 0 | F177: 0 | G177: 0 | H177: 0.05 | I177: 0.095 | J177: 0.0855 | K177: 0.077 | L177: 0.0693 | M177: 0.0623 | N177: 0.059 | O177: 0.059 | P177: 0.0591 | Q177: 0.059 | R177: 0.0591 | S177: 0.059 | T177: 0.0591 | U177: 0.059 | V177: 0.0591 | W177: 0.0295 | X177: 0 | Y177: 0 | Z177: 0 | AA177: 0 | AB177: 0 | AC177: 0 | AD177: 0 | AE177: 0 | AF177: 0 | AG177: 0 | AH177: 0 | AI177: 0 | AJ177: 0 | AK177: =MACRS_GDS_150_15($E$63,AK114) -> 0 | AL177: 0 | AM177: 0 | AN177: 0 | AO177: 0 | AP177: 0 | AQ177: 0 | AR177: 0 | AS177: 0 | AT177: 0 | AU177: 0 | AV177: 0 | AW177: 0 | AX177: 0 | AY177: 0 | AZ177: 0 | BA177: 0 | BB177: 0 | BC177: 0 | BD177: 0 | BE177: 0 | BF177: 0 | BG177: 0 | BH177: 0 | BI177: 0 | BJ177: 0 | BK177: 0 | BL177: 0 | BM177: 0 | BN177: 0 | BO177: 0 | BP177: 0 | BQ177: =MACRS_GDS_150_15($E$63,BQ114) -> 0 | BR177: 0 | BS177: 0 | BT177: 0 | BU177: 0 | BV177: 0 | BW177: 0 | BX177: 0 | BY177: 0 | BZ177: 0 | CA177: 0 | CB177: 0 | CC177: 0 | CD177: 0 | CE177: 0 | CF177: 0 | CG177: 0 | CH177: 0 | CI177: 0 | CJ177: 0 | CK177: 0 | CL177: 0 | CM177: 0 | CN177: 0 | CO177: 0 | CP177: 0 | CQ177: 0 | CR177: 0 | CS177: 0 | CT177: 0 | CU177: 0 | CV177: 0 | CW177: 0 | CX177: 0 | CY177: 0 | CZ177: 0
C178: 1 | D178: Depreciation factors (MACRS GDS Straight Line 15 years) | E178: =MACRS_GDS_SL_15($E$63,E114) -> 0 | F178: 0 | G178: 0 | H178: 0.0333 | I178: 0.0667 | J178: 0.0667 | K178: 0.0667 | L178: 0.0667 | M178: 0.0667 | N178: 0.0667 | O178: 0.0666 | P178: 0.0667 | Q178: 0.0666 | R178: 0.0667 | S178: 0.0666 | T178: 0.0667 | U178: 0.0666 | V178: 0.0667 | W178: 0.0333 | X178: 0 | Y178: 0 | Z178: 0 | AA178: 0 | AB178: 0 | AC178: 0 | AD178: 0 | AE178: 0 | AF178: 0 | AG178: 0 | AH178: 0 | AI178: 0 | AJ178: 0 | AK178: =MACRS_GDS_SL_15($E$63,AK114) -> 0 | AL178: 0 | AM178: 0 | AN178: 0 | AO178: 0 | AP178: 0 | AQ178: 0 | AR178: 0 | AS178: 0 | AT178: 0 | AU178: 0 | AV178: 0 | AW178: 0 | AX178: 0 | AY178: 0 | AZ178: 0 | BA178: 0 | BB178: 0 | BC178: 0 | BD178: 0 | BE178: 0 | BF178: 0 | BG178: 0 | BH178: 0 | BI178: 0 | BJ178: 0 | BK178: 0 | BL178: 0 | BM178: 0 | BN178: 0 | BO178: 0 | BP178: 0 | BQ178: =MACRS_GDS_SL_15($E$63,BQ114) -> 0 | BR178: 0 | BS178: 0 | BT178: 0 | BU178: 0 | BV178: 0 | BW178: 0 | BX178: 0 | BY178: 0 | BZ178: 0 | CA178: 0 | CB178: 0 | CC178: 0 | CD178: 0 | CE178: 0 | CF178: 0 | CG178: 0 | CH178: 0 | CI178: 0 | CJ178: 0 | CK178: 0 | CL178: 0 | CM178: 0 | CN178: 0 | CO178: 0 | CP178: 0 | CQ178: 0 | CR178: 0 | CS178: 0 | CT178: 0 | CU178: 0 | CV178: 0 | CW178: 0 | CX178: 0 | CY178: 0 | CZ178: 0
C179: =SUM(E179:CZ179) -> 1 | D179: Depreciation factors (MACRS ADS Straight Line 22 years) | E179: =MACRS_ADS_SL_22($E$63,E114) -> 0 | F179: 0 | G179: 0 | H179: 0.02273 | I179: 0.04545 | J179: 0.04545 | K179: 0.04545 | L179: 0.04546 | M179: 0.04545 | N179: 0.04546 | O179: 0.04545 | P179: 0.04546 | Q179: 0.04545 | R179: 0.04546 | S179: 0.04545 | T179: 0.04546 | U179: 0.04545 | V179: 0.04546 | W179: 0.04545 | X179: 0.04546 | Y179: 0.04545 | Z179: 0.04546 | AA179: 0.04545 | AB179: 0.04546 | AC179: 0.04545 | AD179: 0.02273 | AE179: 0 | AF179: 0 | AG179: 0 | AH179: 0 | AI179: 0 | AJ179: 0 | AK179: =MACRS_ADS_SL_22($E$63,AK114) -> 0 | AL179: 0 | AM179: 0 | AN179: 0 | AO179: 0 | AP179: 0 | AQ179: 0 | AR179: 0 | AS179: 0 | AT179: 0 | AU179: 0 | AV179: 0 | AW179: 0 | AX179: 0 | AY179: 0 | AZ179: 0 | BA179: 0 | BB179: 0 | BC179: 0 | BD179: 0 | BE179: 0 | BF179: 0 | BG179: 0 | BH179: 0 | BI179: 0 | BJ179: 0 | BK179: 0 | BL179: 0 | BM179: 0 | BN179: 0 | BO179: 0 | BP179: 0 | BQ179: =MACRS_ADS_SL_22($E$63,BQ114) -> 0 | BR179: 0 | BS179: 0 | BT179: 0 | BU179: 0 | BV179: 0 | BW179: 0 | BX179: 0 | BY179: 0 | BZ179: 0 | CA179: 0 | CB179: 0 | CC179: 0 | CD179: 0 | CE179: 0 | CF179: 0 | CG179: 0 | CH179: 0 | CI179: 0 | CJ179: 0 | CK179: 0 | CL179: 0 | CM179: 0 | CN179: 0 | CO179: 0 | CP179: 0 | CQ179: 0 | CR179: 0 | CS179: 0 | CT179: 0 | CU179: 0 | CV179: 0 | CW179: 0 | CX179: 0 | CY179: 0 | CZ179: 0
C180: 80715056.22 | D180: ="Depreciation Schedule "&IF(OR($E$53="SL - 15 years", $E$53="SL - 22 years"),"(straight line, ","(150% declining balance, ")&IF($E$53="SL - 22 years","22 year recov. per.)","15 year recov. per.)") -> Depreciation Schedule (150% declining balance, 15 year recov. per.) | E180: =IF(E114<=$E$65,IF($E$53="SL - 22 years", $C$176*E179, IF($E$53="SL - 15 years", $C$176*E178, $C$176*E177)),0) -> 0 | F180: 0 | G180: 0 | H180: 4035752.811 | I180: 7667930.341 | J180: 6901137.307 | K180: 6215059.329 | L180: 5593553.396 | M180: 5028548.002 | N180: 4762188.317 | O180: 4762188.317 | P180: 4770259.822 | Q180: 4762188.317 | R180: 4770259.822 | S180: 4762188.317 | T180: 4770259.822 | U180: 4762188.317 | V180: 4770259.822 | W180: 2381094.158 | X180: 0 | Y180: 0 | Z180: 0 | AA180: 0 | AB180: 0 | AC180: 0 | AD180: 0 | AE180: 0 | AF180: 0 | AG180: 0 | AH180: 0 | AI180: 0 | AJ180: 0 | AK180: =IF(AK114<=$E$65,IF($E$53="SL - 22 years", $C$176*AK179, IF($E$53="SL - 15 years", $C$176*AK178, $C$176*AK177)),0) -> 0 | AL180: 0 | AM180: 0 | AN180: 0 | AO180: 0 | AP180: 0 | AQ180: 0 | AR180: 0 | AS180: 0 | AT180: 0 | AU180: 0 | AV180: 0 | AW180: 0 | AX180: 0 | AY180: 0 | AZ180: 0 | BA180: 0 | BB180: 0 | BC180: 0 | BD180: 0 | BE180: 0 | BF180: 0 | BG180: 0 | BH180: 0 | BI180: 0 | BJ180: 0 | BK180: 0 | BL180: 0 | BM180: 0 | BN180: 0 | BO180: 0 | BP180: 0 | BQ180: =IF(BQ114<=$E$65,IF($E$53="SL - 22 years", $C$176*BQ179, IF($E$53="SL - 15 years", $C$176*BQ178, $C$176*BQ177)),0) -> 0 | BR180: 0 | BS180: 0 | BT180: 0 | BU180: 0 | BV180: 0 | BW180: 0 | BX180: 0 | BY180: 0 | BZ180: 0 | CA180: 0 | CB180: 0 | CC180: 0 | CD180: 0 | CE180: 0 | CF180: 0 | CG180: 0 | CH180: 0 | CI180: 0 | CJ180: 0 | CK180: 0 | CL180: 0 | CM180: 0 | CN180: 0 | CO180: 0 | CP180: 0 | CQ180: 0 | CR180: 0 | CS180: 0 | CT180: 0 | CU180: 0 | CV180: 0 | CW180: =IF(CW114<=$E$65,IF($E$53="SL - 22 years", $C$176*CW179, IF($E$53="SL - 15 years", $C$176*CW178, $C$176*CW177)),0) -> 0 | CX180: 0 | CY180: 0 | CZ180: 0
B182: Table 6 | C182: Revenues
C184: This column contains row sums, where applicable. | D184: Calendar Year | E184: =$E$60 -> 2018 | F184: =E184+1 -> 2019 | G184: 2020 | H184: 2021 | I184: 2022 | J184: 2023 | K184: 2024 | L184: 2025 | M184: 2026 | N184: 2027 | O184: 2028 | P184: 2029 | Q184: 2030 | R184: 2031 | S184: 2032 | T184: 2033 | U184: 2034 | V184: 2035 | W184: 2036 | X184: 2037 | Y184: 2038 | Z184: 2039 | AA184: 2040 | AB184: 2041 | AC184: 2042 | AD184: 2043 | AE184: 2044 | AF184: 2045 | AG184: 2046 | AH184: 2047 | AI184: 2048 | AJ184: 2049 | AK184: 2050 | AL184: =AK184+1 -> 2051 | AM184: 2052 | AN184: 2053 | AO184: 2054 | AP184: 2055 | AQ184: 2056 | AR184: 2057 | AS184: 2058 | AT184: 2059 | AU184: 2060 | AV184: 2061 | AW184: 2062 | AX184: 2063 | AY184: 2064 | AZ184: 2065 | BA184: 2066 | BB184: 2067 | BC184: 2068 | BD184: 2069 | BE184: 2070 | BF184: 2071 | BG184: 2072 | BH184: 2073 | BI184: 2074 | BJ184: 2075 | BK184: 2076 | BL184: 2077 | BM184: 2078 | BN184: 2079 | BO184: 2080 | BP184: 2081 | BQ184: 2082 | BR184: =BQ184+1 -> 2083 | BS184: 2084 | BT184: 2085 | BU184: 2086 | BV184: 2087 | BW184: 2088 | BX184: 2089 | BY184: 2090 | BZ184: 2091 | CA184: 2092 | CB184: 2093 | CC184: 2094 | CD184: 2095 | CE184: 2096 | CF184: 2097 | CG184: 2098 | CH184: 2099 | CI184: 2100 | CJ184: 2101 | CK184: 2102 | CL184: 2103 | CM184: 2104 | CN184: 2105 | CO184: 2106 | CP184: 2107 | CQ184: 2108 | CR184: 2109 | CS184: 2110 | CT184: 2111 | CU184: 2112 | CV184: 2113 | CW184: 2114 | CX184: 2115 | CY184: 2116 | CZ184: 2117
D185: Project Year | E185: 1 | F185: =E185+1 -> 2 | G185: 3 | H185: 4 | I185: 5 | J185: 6 | K185: 7 | L185: 8 | M185: 9 | N185: 10 | O185: 11 | P185: 12 | Q185: 13 | R185: 14 | S185: 15 | T185: 16 | U185: 17 | V185: 18 | W185: 19 | X185: 20 | Y185: 21 | Z185: 22 | AA185: 23 | AB185: 24 | AC185: 25 | AD185: 26 | AE185: 27 | AF185: 28 | AG185: 29 | AH185: 30 | AI185: 31 | AJ185: 32 | AK185: 33 | AL185: =AK185+1 -> 34 | AM185: 35 | AN185: 36 | AO185: 37 | AP185: 38 | AQ185: 39 | AR185: 40 | AS185: 41 | AT185: 42 | AU185: 43 | AV185: 44 | AW185: 45 | AX185: 46 | AY185: 47 | AZ185: 48 | BA185: 49 | BB185: 50 | BC185: 51 | BD185: 52 | BE185: 53 | BF185: 54 | BG185: 55 | BH185: 56 | BI185: 57 | BJ185: 58 | BK185: 59 | BL185: 60 | BM185: 61 | BN185: 62 | BO185: 63 | BP185: 64 | BQ185: 65 | BR185: =BQ185+1 -> 66 | BS185: 67 | BT185: 68 | BU185: 69 | BV185: 70 | BW185: 71 | BX185: 72 | BY185: 73 | BZ185: 74 | CA185: 75 | CB185: 76 | CC185: 77 | CD185: 78 | CE185: 79 | CF185: 80 | CG185: 81 | CH185: 82 | CI185: 83 | CJ185: 84 | CK185: 85 | CL185: 86 | CM185: 87 | CN185: 88 | CO185: 89 | CP185: 90 | CQ185: 91 | CR185: 92 | CS185: 93 | CT185: 94 | CU185: 95 | CV185: 96 | CW185: 97 | CX185: 98 | CY185: 99 | CZ185: 100
D187: Operating Period | E187: =IF(AND(E114>=$E$63,E114<=$E$64),"Yes","no") -> no | F187: =IF(AND(F114>=$E$63,F114<=$E$64),"Yes","no") -> no | G187: no | H187: Yes | I187: Yes | J187: Yes | K187: Yes | L187: Yes | M187: Yes | N187: Yes | O187: Yes | P187: Yes | Q187: Yes | R187: Yes | S187: Yes | T187: Yes | U187: Yes | V187: Yes | W187: Yes | X187: Yes | Y187: Yes | Z187: Yes | AA187: Yes | AB187: Yes | AC187: Yes | AD187: Yes | AE187: Yes | AF187: Yes | AG187: Yes | AH187: Yes | AI187: Yes | AJ187: Yes | AK187: Yes | AL187: no | AM187: no | AN187: no | AO187: no | AP187: no | AQ187: no | AR187: no | AS187: no | AT187: no | AU187: no | AV187: no | AW187: no | AX187: no | AY187: no | AZ187: no | BA187: no | BB187: no | BC187: no | BD187: no | BE187: no | BF187: no | BG187: no | BH187: no | BI187: no | BJ187: no | BK187: no | BL187: no | BM187: no | BN187: no | BO187: no | BP187: no | BQ187: no | BR187: =IF(AND(BR114>=$E$63,BR114<=$E$64),"Yes","no") -> no | BS187: no | BT187: no | BU187: no | BV187: no | BW187: no | BX187: no | BY187: no | BZ187: no | CA187: no | CB187: no | CC187: no | CD187: no | CE187: no | CF187: no | CG187: no | CH187: no | CI187: no | CJ187: no | CK187: no | CL187: no | CM187: no | CN187: no | CO187: no | CP187: no | CQ187: no | CR187: no | CS187: no | CT187: no | CU187: no | CV187: no | CW187: no | CX187: no | CY187: no | CZ187: no
C189: =SUM(E189:CZ189) -> 129000000 | D189: CO2 Transported each year (tonnes) | E189: =IF(E187="Yes",$E$69,0) -> 0 | F189: =IF(F187="Yes",$E$69,0) -> 0 | G189: 0 | H189: 4300000 | I189: 4300000 | J189: 4300000 | K189: 4300000 | L189: 4300000 | M189: 4300000 | N189: 4300000 | O189: 4300000 | P189: 4300000 | Q189: 4300000 | R189: 4300000 | S189: 4300000 | T189: 4300000 | U189: 4300000 | V189: 4300000 | W189: 4300000 | X189: 4300000 | Y189: 4300000 | Z189: 4300000 | AA189: 4300000 | AB189: 4300000 | AC189: 4300000 | AD189: 4300000 | AE189: 4300000 | AF189: 4300000 | AG189: 4300000 | AH189: 4300000 | AI189: 4300000 | AJ189: 4300000 | AK189: 4300000 | AL189: 0 | AM189: 0 | AN189: 0 | AO189: 0 | AP189: 0 | AQ189: 0 | AR189: 0 | AS189: 0 | AT189: 0 | AU189: 0 | AV189: 0 | AW189: 0 | AX189: 0 | AY189: 0 | AZ189: 0 | BA189: 0 | BB189: 0 | BC189: 0 | BD189: 0 | BE189: 0 | BF189: 0 | BG189: 0 | BH189: 0 | BI189: 0 | BJ189: 0 | BK189: 0 | BL189: 0 | BM189: 0 | BN189: 0 | BO189: 0 | BP189: 0 | BQ189: 0 | BR189: =IF(BR187="Yes",$E$69,0) -> 0 | BS189: 0 | BT189: 0 | BU189: 0 | BV189: 0 | BW189: 0 | BX189: 0 | BY189: 0 | BZ189: 0 | CA189: 0 | CB189: 0 | CC189: 0 | CD189: 0 | CE189: 0 | CF189: 0 | CG189: 0 | CH189: 0 | CI189: 0 | CJ189: 0 | CK189: 0 | CL189: 0 | CM189: 0 | CN189: 0 | CO189: 0 | CP189: 0 | CQ189: 0 | CR189: 0 | CS189: 0 | CT189: 0 | CU189: 0 | CV189: 0 | CW189: 0 | CX189: 0 | CY189: 0 | CZ189: 0
D191: ="CO2 Price and Revenues from Transporting CO2 in Real "&E59&"$" -> CO2 Price and Revenues from Transporting CO2 in Real 2011$
D192: ="CO2 Price in "&E59&"$/tonne" -> CO2 Price in 2011$/tonne | E192: =IF(E189>0,$E$10,0) -> 0 | F192: =IF(F189>0,$E$10,0) -> 0 | G192: 0 | H192: 1.9 | I192: 1.9 | J192: 1.9 | K192: 1.9 | L192: 1.9 | M192: 1.9 | N192: 1.9 | O192: 1.9 | P192: 1.9 | Q192: 1.9 | R192: 1.9 | S192: 1.9 | T192: 1.9 | U192: 1.9 | V192: 1.9 | W192: 1.9 | X192: 1.9 | Y192: 1.9 | Z192: 1.9 | AA192: 1.9 | AB192: 1.9 | AC192: 1.9 | AD192: 1.9 | AE192: 1.9 | AF192: 1.9 | AG192: 1.9 | AH192: 1.9 | AI192: 1.9 | AJ192: 1.9 | AK192: 1.9 | AL192: 0 | AM192: 0 | AN192: 0 | AO192: 0 | AP192: 0 | AQ192: 0 | AR192: 0 | AS192: 0 | AT192: 0 | AU192: 0 | AV192: 0 | AW192: 0 | AX192: 0 | AY192: 0 | AZ192: 0 | BA192: 0 | BB192: 0 | BC192: 0 | BD192: 0 | BE192: 0 | BF192: 0 | BG192: 0 | BH192: 0 | BI192: 0 | BJ192: 0 | BK192: 0 | BL192: 0 | BM192: 0 | BN192: 0 | BO192: 0 | BP192: 0 | BQ192: 0 | BR192: =IF(BR189>0,$E$10,0) -> 0 | BS192: 0 | BT192: 0 | BU192: 0 | BV192: 0 | BW192: 0 | BX192: 0 | BY192: 0 | BZ192: 0 | CA192: 0 | CB192: 0 | CC192: 0 | CD192: 0 | CE192: 0 | CF192: 0 | CG192: 0 | CH192: 0 | CI192: 0 | CJ192: 0 | CK192: 0 | CL192: 0 | CM192: 0 | CN192: 0 | CO192: 0 | CP192: 0 | CQ192: 0 | CR192: 0 | CS192: 0 | CT192: 0 | CU192: 0 | CV192: 0 | CW192: 0 | CX192: 0 | CY192: 0 | CZ192: 0
C193: =SUM(E193:CZ193) -> 245100000 | D193: ="Revenue from Transporting CO2 in Real "&E59&"$" -> Revenue from Transporting CO2 in Real 2011$ | E193: =E189*E192 -> 0 | F193: =F189*F192 -> 0 | G193: 0 | H193: 8170000 | I193: 8170000 | J193: 8170000 | K193: 8170000 | L193: 8170000 | M193: 8170000 | N193: 8170000 | O193: 8170000 | P193: 8170000 | Q193: 8170000 | R193: 8170000 | S193: 8170000 | T193: 8170000 | U193: 8170000 | V193: 8170000 | W193: 8170000 | X193: 8170000 | Y193: 8170000 | Z193: 8170000 | AA193: 8170000 | AB193: 8170000 | AC193: 8170000 | AD193: 8170000 | AE193: 8170000 | AF193: 8170000 | AG193: 8170000 | AH193: 8170000 | AI193: 8170000 | AJ193: 8170000 | AK193: 8170000 | AL193: 0 | AM193: 0 | AN193: 0 | AO193: 0 | AP193: 0 | AQ193: 0 | AR193: 0 | AS193: 0 | AT193: 0 | AU193: 0 | AV193: 0 | AW193: 0 | AX193: 0 | AY193: 0 | AZ193: 0 | BA193: 0 | BB193: 0 | BC193: 0 | BD193: 0 | BE193: 0 | BF193: 0 | BG193: 0 | BH193: 0 | BI193: 0 | BJ193: 0 | BK193: 0 | BL193: 0 | BM193: 0 | BN193: 0 | BO193: 0 | BP193: 0 | BQ193: 0 | BR193: =BR189*BR192 -> 0 | BS193: 0 | BT193: 0 | BU193: 0 | BV193: 0 | BW193: 0 | BX193: 0 | BY193: 0 | BZ193: 0 | CA193: 0 | CB193: 0 | CC193: 0 | CD193: 0 | CE193: 0 | CF193: 0 | CG193: 0 | CH193: 0 | CI193: 0 | CJ193: 0 | CK193: 0 | CL193: 0 | CM193: 0 | CN193: 0 | CO193: 0 | CP193: 0 | CQ193: 0 | CR193: 0 | CS193: 0 | CT193: 0 | CU193: 0 | CV193: 0 | CW193: 0 | CX193: 0 | CY193: 0 | CZ193: 0
D195: ="CO2 Price and Revenues from Transporting CO2 in Real "&E60&"$" -> CO2 Price and Revenues from Transporting CO2 in Real 2018$
D196: ="CO2 Price in "&E60&"$/tonne" -> CO2 Price in 2018$/tonne | E196: =IF(E189>0,$F$10,0) -> 0 | F196: =IF(F189>0,$F$10,0) -> 0 | G196: 0 | H196: 2.21 | I196: 2.21 | J196: 2.21 | K196: 2.21 | L196: 2.21 | M196: 2.21 | N196: 2.21 | O196: 2.21 | P196: 2.21 | Q196: 2.21 | R196: 2.21 | S196: 2.21 | T196: 2.21 | U196: 2.21 | V196: 2.21 | W196: 2.21 | X196: 2.21 | Y196: 2.21 | Z196: 2.21 | AA196: 2.21 | AB196: 2.21 | AC196: 2.21 | AD196: 2.21 | AE196: 2.21 | AF196: 2.21 | AG196: 2.21 | AH196: 2.21 | AI196: 2.21 | AJ196: 2.21 | AK196: 2.21 | AL196: 0 | AM196: 0 | AN196: 0 | AO196: 0 | AP196: 0 | AQ196: 0 | AR196: 0 | AS196: 0 | AT196: 0 | AU196: 0 | AV196: 0 | AW196: 0 | AX196: 0 | AY196: 0 | AZ196: 0 | BA196: 0 | BB196: 0 | BC196: 0 | BD196: 0 | BE196: 0 | BF196: 0 | BG196: 0 | BH196: 0 | BI196: 0 | BJ196: 0 | BK196: 0 | BL196: 0 | BM196: 0 | BN196: 0 | BO196: 0 | BP196: 0 | BQ196: 0 | BR196: =IF(BR189>0,$F$10,0) -> 0 | BS196: 0 | BT196: 0 | BU196: 0 | BV196: 0 | BW196: 0 | BX196: 0 | BY196: 0 | BZ196: 0 | CA196: 0 | CB196: 0 | CC196: 0 | CD196: 0 | CE196: 0 | CF196: 0 | CG196: 0 | CH196: 0 | CI196: 0 | CJ196: 0 | CK196: 0 | CL196: 0 | CM196: 0 | CN196: 0 | CO196: 0 | CP196: 0 | CQ196: 0 | CR196: 0 | CS196: 0 | CT196: 0 | CU196: 0 | CV196: 0 | CW196: 0 | CX196: 0 | CY196: 0 | CZ196: 0
C197: =SUM(E197:CZ197) -> 285090000 | D197: ="Revenue from Transporting CO2 in Real "&E60&"$" -> Revenue from Transporting CO2 in Real 2018$ | E197: =E189*E196 -> 0 | F197: =F189*F196 -> 0 | G197: 0 | H197: 9503000 | I197: 9503000 | J197: 9503000 | K197: 9503000 | L197: 9503000 | M197: 9503000 | N197: 9503000 | O197: 9503000 | P197: 9503000 | Q197: 9503000 | R197: 9503000 | S197: 9503000 | T197: 9503000 | U197: 9503000 | V197: 9503000 | W197: 9503000 | X197: 9503000 | Y197: 9503000 | Z197: 9503000 | AA197: 9503000 | AB197: 9503000 | AC197: 9503000 | AD197: 9503000 | AE197: 9503000 | AF197: 9503000 | AG197: 9503000 | AH197: 9503000 | AI197: 9503000 | AJ197: 9503000 | AK197: 9503000 | AL197: 0 | AM197: 0 | AN197: 0 | AO197: 0 | AP197: 0 | AQ197: 0 | AR197: 0 | AS197: 0 | AT197: 0 | AU197: 0 | AV197: 0 | AW197: 0 | AX197: 0 | AY197: 0 | AZ197: 0 | BA197: 0 | BB197: 0 | BC197: 0 | BD197: 0 | BE197: 0 | BF197: 0 | BG197: 0 | BH197: 0 | BI197: 0 | BJ197: 0 | BK197: 0 | BL197: 0 | BM197: 0 | BN197: 0 | BO197: 0 | BP197: 0 | BQ197: 0 | BR197: =BR189*BR196 -> 0 | BS197: 0 | BT197: 0 | BU197: 0 | BV197: 0 | BW197: 0 | BX197: 0 | BY197: 0 | BZ197: 0 | CA197: 0 | CB197: 0 | CC197: 0 | CD197: 0 | CE197: 0 | CF197: 0 | CG197: 0 | CH197: 0 | CI197: 0 | CJ197: 0 | CK197: 0 | CL197: 0 | CM197: 0 | CN197: 0 | CO197: 0 | CP197: 0 | CQ197: 0 | CR197: 0 | CS197: 0 | CT197: 0 | CU197: 0 | CV197: 0 | CW197: 0 | CX197: 0 | CY197: 0 | CZ197: 0
D199: ="CO2 Price and Revenues from Transporting CO2 in escalated $" -> CO2 Price and Revenues from Transporting CO2 in escalated $
D200: CO2 Price in $/tonne | E200: =IF(E189>0,$E$10*E108,0) -> 0 | F200: =IF(F189>0,$E$10*F108,0) -> 0 | G200: 0 | H200: 2.368845699 | I200: 2.42332915 | J200: 2.47906572 | K200: 2.536084232 | L200: 2.594414169 | M200: 2.654085695 | N200: 2.715129666 | O200: 2.777577648 | P200: 2.841461934 | Q200: 2.906815559 | R200: 2.973672317 | S200: 3.04206678 | T200: 3.112034316 | U200: 3.183611105 | V200: 3.25683416 | W200: 3.331741346 | X200: 3.408371397 | Y200: 3.486763939 | Z200: 3.56695951 | AA200: 3.648999579 | AB200: 3.732926569 | AC200: 3.81878388 | AD200: 3.906615909 | AE200: 3.996468075 | AF200: 4.088386841 | AG200: 4.182419738 | AH200: 4.278615392 | AI200: 4.377023546 | AJ200: 4.477695088 | AK200: 4.580682075 | AL200: 0 | AM200: 0 | AN200: 0 | AO200: 0 | AP200: 0 | AQ200: 0 | AR200: 0 | AS200: 0 | AT200: 0 | AU200: 0 | AV200: 0 | AW200: 0 | AX200: 0 | AY200: 0 | AZ200: 0 | BA200: 0 | BB200: 0 | BC200: 0 | BD200: 0 | BE200: 0 | BF200: 0 | BG200: 0 | BH200: 0 | BI200: 0 | BJ200: 0 | BK200: 0 | BL200: 0 | BM200: 0 | BN200: 0 | BO200: 0 | BP200: 0 | BQ200: 0 | BR200: =IF(BR189>0,$E$10*BR108,0) -> 0 | BS200: 0 | BT200: 0 | BU200: 0 | BV200: 0 | BW200: 0 | BX200: 0 | BY200: 0 | BZ200: 0 | CA200: 0 | CB200: 0 | CC200: 0 | CD200: 0 | CE200: 0 | CF200: 0 | CG200: 0 | CH200: 0 | CI200: 0 | CJ200: 0 | CK200: 0 | CL200: 0 | CM200: 0 | CN200: 0 | CO200: 0 | CP200: 0 | CQ200: 0 | CR200: 0 | CS200: 0 | CT200: 0 | CU200: 0 | CV200: 0 | CW200: 0 | CX200: 0 | CY200: 0 | CZ200: 0
C201: =SUM(E201:CZ201) -> 433214168.4 | D201: Revenues from Transporting CO2 in escalated $ | E201: =E200*E189 -> 0 | F201: 0 | G201: 0 | H201: 10186036.5 | I201: 10420315.34 | J201: 10659982.6 | K201: 10905162.2 | L201: 11155980.93 | M201: 11412568.49 | N201: 11675057.56 | O201: 11943583.89 | P201: 12218286.32 | Q201: 12499306.9 | R201: 12786790.96 | S201: 13080887.15 | T201: 13381747.56 | U201: 13689527.75 | V201: 14004386.89 | W201: 14326487.79 | X201: 14655997.01 | Y201: 14993084.94 | Z201: 15337925.89 | AA201: 15690698.19 | AB201: 16051584.25 | AC201: 16420770.68 | AD201: 16798448.41 | AE201: 17184812.72 | AF201: 17580063.42 | AG201: 17984404.87 | AH201: 18398046.19 | AI201: 18821201.25 | AJ201: 19254088.88 | AK201: =AK200*AK189 -> 19696932.92 | AL201: 0 | AM201: 0 | AN201: 0 | AO201: 0 | AP201: 0 | AQ201: 0 | AR201: 0 | AS201: 0 | AT201: 0 | AU201: 0 | AV201: 0 | AW201: 0 | AX201: 0 | AY201: 0 | AZ201: 0 | BA201: 0 | BB201: 0 | BC201: 0 | BD201: 0 | BE201: 0 | BF201: 0 | BG201: 0 | BH201: 0 | BI201: 0 | BJ201: 0 | BK201: 0 | BL201: 0 | BM201: 0 | BN201: 0 | BO201: 0 | BP201: 0 | BQ201: =BQ200*BQ189 -> 0 | BR201: 0 | BS201: 0 | BT201: 0 | BU201: 0 | BV201: 0 | BW201: 0 | BX201: 0 | BY201: 0 | BZ201: 0 | CA201: 0 | CB201: 0 | CC201: 0 | CD201: 0 | CE201: 0 | CF201: 0 | CG201: 0 | CH201: 0 | CI201: 0 | CJ201: 0 | CK201: 0 | CL201: 0 | CM201: 0 | CN201: 0 | CO201: 0 | CP201: 0 | CQ201: 0 | CR201: 0 | CS201: 0 | CT201: 0 | CU201: 0 | CV201: 0 | CW201: =CW200*CW189 -> 0 | CX201: 0 | CY201: 0 | CZ201: 0
D203: ="Revenues from Transporting CO2 in present value $" -> Revenues from Transporting CO2 in present value $
C204: =SUM(E204:CZ204) -> 118551731.7 | D204: Revenues from Transporting CO2 in present value $ | E204: =E201/E109 -> 0 | F204: =F201/F109 -> 0 | G204: 0 | H204: 8018864.608 | I204: 7574565.615 | J204: 7154883.773 | K204: 6758455.125 | L204: 6383991.289 | M204: 6030275.266 | N204: 5696157.488 | O204: 5380552.08 | P204: 5082433.333 | Q204: 4800832.369 | R204: 4534833.99 | S204: 4283573.709 | T204: 4046234.936 | U204: 3822046.327 | V204: 3610279.273 | W204: 3410245.537 | X204: 3221295.015 | Y204: 3042813.621 | Z204: 2874221.297 | AA204: 2714970.12 | AB204: 2564542.528 | AC204: 2422449.636 | AD204: 2288229.646 | AE204: 2161446.345 | AF204: 2041687.69 | AG204: 1928564.471 | AH204: 1821709.037 | AI204: 1720774.113 | AJ204: 1625431.662 | AK204: 1535371.824 | AL204: 0 | AM204: 0 | AN204: 0 | AO204: 0 | AP204: 0 | AQ204: 0 | AR204: 0 | AS204: 0 | AT204: 0 | AU204: 0 | AV204: 0 | AW204: 0 | AX204: 0 | AY204: 0 | AZ204: 0 | BA204: 0 | BB204: 0 | BC204: 0 | BD204: 0 | BE204: 0 | BF204: 0 | BG204: 0 | BH204: 0 | BI204: 0 | BJ204: 0 | BK204: 0 | BL204: 0 | BM204: 0 | BN204: 0 | BO204: 0 | BP204: 0 | BQ204: 0 | BR204: =BR201/BR109 -> 0 | BS204: 0 | BT204: 0 | BU204: 0 | BV204: 0 | BW204: 0 | BX204: 0 | BY204: 0 | BZ204: 0 | CA204: 0 | CB204: 0 | CC204: 0 | CD204: 0 | CE204: 0 | CF204: 0 | CG204: 0 | CH204: 0 | CI204: 0 | CJ204: 0 | CK204: 0 | CL204: 0 | CM204: 0 | CN204: 0 | CO204: 0 | CP204: 0 | CQ204: 0 | CR204: 0 | CS204: 0 | CT204: 0 | CU204: 0 | CV204: 0 | CW204: 0 | CX204: 0 | CY204: 0 | CZ204: 0
B206: Table 7 | C206: Discounted Cash Flow for Levelized Capital Structure
C208: This column contains row sums, where applicable. | D208: Calendar Year | E208: =$E$60 -> 2018 | F208: =E208+1 -> 2019 | G208: 2020 | H208: 2021 | I208: 2022 | J208: 2023 | K208: 2024 | L208: 2025 | M208: 2026 | N208: 2027 | O208: 2028 | P208: 2029 | Q208: 2030 | R208: 2031 | S208: 2032 | T208: 2033 | U208: 2034 | V208: 2035 | W208: 2036 | X208: 2037 | Y208: 2038 | Z208: 2039 | AA208: 2040 | AB208: 2041 | AC208: 2042 | AD208: 2043 | AE208: 2044 | AF208: 2045 | AG208: 2046 | AH208: 2047 | AI208: 2048 | AJ208: 2049 | AK208: 2050 | AL208: =AK208+1 -> 2051 | AM208: 2052 | AN208: 2053 | AO208: 2054 | AP208: 2055 | AQ208: 2056 | AR208: 2057 | AS208: 2058 | AT208: 2059 | AU208: 2060 | AV208: 2061 | AW208: 2062 | AX208: 2063 | AY208: 2064 | AZ208: 2065 | BA208: 2066 | BB208: 2067 | BC208: 2068 | BD208: 2069 | BE208: 2070 | BF208: 2071 | BG208: 2072 | BH208: 2073 | BI208: 2074 | BJ208: 2075 | BK208: 2076 | BL208: 2077 | BM208: 2078 | BN208: 2079 | BO208: 2080 | BP208: 2081 | BQ208: 2082 | BR208: =BQ208+1 -> 2083 | BS208: 2084 | BT208: 2085 | BU208: 2086 | BV208: 2087 | BW208: 2088 | BX208: 2089 | BY208: 2090 | BZ208: 2091 | CA208: 2092 | CB208: 2093 | CC208: 2094 | CD208: 2095 | CE208: 2096 | CF208: 2097 | CG208: 2098 | CH208: 2099 | CI208: 2100 | CJ208: 2101 | CK208: 2102 | CL208: 2103 | CM208: 2104 | CN208: 2105 | CO208: 2106 | CP208: 2107 | CQ208: 2108 | CR208: 2109 | CS208: 2110 | CT208: 2111 | CU208: 2112 | CV208: 2113 | CW208: 2114 | CX208: 2115 | CY208: 2116 | CZ208: 2117
D209: Project Year | E209: 1 | F209: =E209+1 -> 2 | G209: 3 | H209: 4 | I209: 5 | J209: 6 | K209: 7 | L209: 8 | M209: 9 | N209: 10 | O209: 11 | P209: 12 | Q209: 13 | R209: 14 | S209: 15 | T209: 16 | U209: 17 | V209: 18 | W209: 19 | X209: 20 | Y209: 21 | Z209: 22 | AA209: 23 | AB209: 24 | AC209: 25 | AD209: 26 | AE209: 27 | AF209: 28 | AG209: 29 | AH209: 30 | AI209: 31 | AJ209: 32 | AK209: 33 | AL209: =AK209+1 -> 34 | AM209: 35 | AN209: 36 | AO209: 37 | AP209: 38 | AQ209: 39 | AR209: 40 | AS209: 41 | AT209: 42 | AU209: 43 | AV209: 44 | AW209: 45 | AX209: 46 | AY209: 47 | AZ209: 48 | BA209: 49 | BB209: 50 | BC209: 51 | BD209: 52 | BE209: 53 | BF209: 54 | BG209: 55 | BH209: 56 | BI209: 57 | BJ209: 58 | BK209: 59 | BL209: 60 | BM209: 61 | BN209: 62 | BO209: 63 | BP209: 64 | BQ209: 65 | BR209: =BQ209+1 -> 66 | BS209: 67 | BT209: 68 | BU209: 69 | BV209: 70 | BW209: 71 | BX209: 72 | BY209: 73 | BZ209: 74 | CA209: 75 | CB209: 76 | CC209: 77 | CD209: 78 | CE209: 79 | CF209: 80 | CG209: 81 | CH209: 82 | CI209: 83 | CJ209: 84 | CK209: 85 | CL209: 86 | CM209: 87 | CN209: 88 | CO209: 89 | CP209: 90 | CQ209: 91 | CR209: 92 | CS209: 93 | CT209: 94 | CU209: 95 | CV209: 96 | CW209: 97 | CX209: 98 | CY209: 99 | CZ209: 100
C211: =SUM(E211:CZ211) -> 433214168.4 | D211: Revenues from Transporting CO2 in escalated $ | E211: =E201 -> 0 | F211: 0 | G211: 0 | H211: 10186036.5 | I211: 10420315.34 | J211: 10659982.6 | K211: 10905162.2 | L211: 11155980.93 | M211: 11412568.49 | N211: 11675057.56 | O211: 11943583.89 | P211: 12218286.32 | Q211: 12499306.9 | R211: 12786790.96 | S211: 13080887.15 | T211: 13381747.56 | U211: 13689527.75 | V211: 14004386.89 | W211: 14326487.79 | X211: 14655997.01 | Y211: 14993084.94 | Z211: 15337925.89 | AA211: 15690698.19 | AB211: 16051584.25 | AC211: 16420770.68 | AD211: 16798448.41 | AE211: 17184812.72 | AF211: 17580063.42 | AG211: 17984404.87 | AH211: 18398046.19 | AI211: 18821201.25 | AJ211: 19254088.88 | AK211: =AK201 -> 19696932.92 | AL211: 0 | AM211: 0 | AN211: 0 | AO211: 0 | AP211: 0 | AQ211: 0 | AR211: 0 | AS211: 0 | AT211: 0 | AU211: 0 | AV211: 0 | AW211: 0 | AX211: 0 | AY211: 0 | AZ211: 0 | BA211: 0 | BB211: 0 | BC211: 0 | BD211: 0 | BE211: 0 | BF211: 0 | BG211: 0 | BH211: 0 | BI211: 0 | BJ211: 0 | BK211: 0 | BL211: 0 | BM211: 0 | BN211: 0 | BO211: 0 | BP211: 0 | BQ211: =BQ201 -> 0 | BR211: 0 | BS211: 0 | BT211: 0 | BU211: 0 | BV211: 0 | BW211: 0 | BX211: 0 | BY211: 0 | BZ211: 0 | CA211: 0 | CB211: 0 | CC211: 0 | CD211: 0 | CE211: 0 | CF211: 0 | CG211: 0 | CH211: 0 | CI211: 0 | CJ211: 0 | CK211: 0 | CL211: 0 | CM211: 0 | CN211: 0 | CO211: 0 | CP211: 0 | CQ211: 0 | CR211: 0 | CS211: 0 | CT211: 0 | CU211: 0 | CV211: 0 | CW211: 0 | CX211: 0 | CY211: 0 | CZ211: 0
C212: =SUM(E212:CZ212) -> 0 | D212: Cost of Goods Sold in escalated $ (always zero) | E212: 0 | F212: 0 | G212: 0 | H212: 0 | I212: 0 | J212: 0 | K212: 0 | L212: 0 | M212: 0 | N212: 0 | O212: 0 | P212: 0 | Q212: 0 | R212: 0 | S212: 0 | T212: 0 | U212: 0 | V212: 0 | W212: 0 | X212: 0 | Y212: 0 | Z212: 0 | AA212: 0 | AB212: 0 | AC212: 0 | AD212: 0 | AE212: 0 | AF212: 0 | AG212: 0 | AH212: 0 | AI212: 0 | AJ212: 0 | AK212: 0 | AL212: 0 | AM212: 0 | AN212: 0 | AO212: 0 | AP212: 0 | AQ212: 0 | AR212: 0 | AS212: 0 | AT212: 0 | AU212: 0 | AV212: 0 | AW212: 0 | AX212: 0 | AY212: 0 | AZ212: 0 | BA212: 0 | BB212: 0 | BC212: 0 | BD212: 0 | BE212: 0 | BF212: 0 | BG212: 0 | BH212: 0 | BI212: 0 | BJ212: 0 | BK212: 0 | BL212: 0 | BM212: 0 | BN212: 0 | BO212: 0 | BP212: 0 | BQ212: 0 | BR212: 0 | BS212: 0 | BT212: 0 | BU212: 0 | BV212: 0 | BW212: 0 | BX212: 0 | BY212: 0 | BZ212: 0 | CA212: 0 | CB212: 0 | CC212: 0 | CD212: 0 | CE212: 0 | CF212: 0 | CG212: 0 | CH212: 0 | CI212: 0 | CJ212: 0 | CK212: 0 | CL212: 0 | CM212: 0 | CN212: 0 | CO212: 0 | CP212: 0 | CQ212: 0 | CR212: 0 | CS212: 0 | CT212: 0 | CU212: 0 | CV212: 0 | CW212: 0 | CX212: 0 | CY212: 0 | CZ212: 0
C213: 125150874.9 | D213: Project Expenses (operating expenses or Opex) in escalated $ | E213: =E168 -> 0 | F213: 0 | G213: 0 | H213: 2942635.476 | I213: 3010316.092 | J213: 3079553.362 | K213: 3150383.089 | L213: 3222841.9 | M213: 3296967.264 | N213: 3372797.511 | O213: 3450371.854 | P213: 3529730.406 | Q213: 3610914.206 | R213: 3693965.232 | S213: 3778926.433 | T213: 3865841.741 | U213: 3954756.101 | V213: 4045715.491 | W213: 4138766.947 | X213: 4233958.587 | Y213: 4331339.635 | Z213: 4430960.446 | AA213: 4532872.536 | AB213: 4637128.605 | AC213: 4743782.563 | AD213: 4852889.562 | AE213: 4964506.021 | AF213: 5078689.66 | AG213: 5195499.522 | AH213: 5314996.011 | AI213: 5437240.919 | AJ213: 5562297.461 | AK213: =AK168 -> 5690230.302 | AL213: 0 | AM213: 0 | AN213: 0 | AO213: 0 | AP213: 0 | AQ213: 0 | AR213: 0 | AS213: 0 | AT213: 0 | AU213: 0 | AV213: 0 | AW213: 0 | AX213: 0 | AY213: 0 | AZ213: 0 | BA213: 0 | BB213: 0 | BC213: 0 | BD213: 0 | BE213: 0 | BF213: 0 | BG213: 0 | BH213: 0 | BI213: 0 | BJ213: 0 | BK213: 0 | BL213: 0 | BM213: 0 | BN213: 0 | BO213: 0 | BP213: 0 | BQ213: =BQ168 -> 0 | BR213: 0 | BS213: 0 | BT213: 0 | BU213: 0 | BV213: 0 | BW213: 0 | BX213: 0 | BY213: 0 | BZ213: 0 | CA213: 0 | CB213: 0 | CC213: 0 | CD213: 0 | CE213: 0 | CF213: 0 | CG213: 0 | CH213: 0 | CI213: 0 | CJ213: 0 | CK213: 0 | CL213: 0 | CM213: 0 | CN213: 0 | CO213: 0 | CP213: 0 | CQ213: 0 | CR213: 0 | CS213: 0 | CT213: 0 | CU213: 0 | CV213: 0 | CW213: 0 | CX213: 0 | CY213: 0 | CZ213: 0
C214: 80715056.22 | D214: Depreciation in escalated $ | E214: =E180 -> 0 | F214: 0 | G214: 0 | H214: 4035752.811 | I214: 7667930.341 | J214: 6901137.307 | K214: 6215059.329 | L214: 5593553.396 | M214: 5028548.002 | N214: 4762188.317 | O214: 4762188.317 | P214: 4770259.822 | Q214: 4762188.317 | R214: 4770259.822 | S214: 4762188.317 | T214: 4770259.822 | U214: 4762188.317 | V214: 4770259.822 | W214: 2381094.158 | X214: 0 | Y214: 0 | Z214: 0 | AA214: 0 | AB214: 0 | AC214: 0 | AD214: 0 | AE214: 0 | AF214: 0 | AG214: 0 | AH214: 0 | AI214: 0 | AJ214: 0 | AK214: =AK180 -> 0 | AL214: 0 | AM214: 0 | AN214: 0 | AO214: 0 | AP214: 0 | AQ214: 0 | AR214: 0 | AS214: 0 | AT214: 0 | AU214: 0 | AV214: 0 | AW214: 0 | AX214: 0 | AY214: 0 | AZ214: 0 | BA214: 0 | BB214: 0 | BC214: 0 | BD214: 0 | BE214: 0 | BF214: 0 | BG214: 0 | BH214: 0 | BI214: 0 | BJ214: 0 | BK214: 0 | BL214: 0 | BM214: 0 | BN214: 0 | BO214: 0 | BP214: 0 | BQ214: =BQ180 -> 0 | BR214: 0 | BS214: 0 | BT214: 0 | BU214: 0 | BV214: 0 | BW214: 0 | BX214: 0 | BY214: 0 | BZ214: 0 | CA214: 0 | CB214: 0 | CC214: 0 | CD214: 0 | CE214: 0 | CF214: 0 | CG214: 0 | CH214: 0 | CI214: 0 | CJ214: 0 | CK214: 0 | CL214: 0 | CM214: 0 | CN214: 0 | CO214: 0 | CP214: 0 | CQ214: 0 | CR214: 0 | CS214: 0 | CT214: 0 | CU214: 0 | CV214: 0 | CW214: 0 | CX214: 0 | CY214: 0 | CZ214: 0
C215: 227348237.3 | D215: Tax Basis Earnings Before Interest and Taxes (EBIT) in escalated $ | E215: =E211-SUM(E212:E214) -> 0 | F215: =F211-SUM(F212:F214) -> 0 | G215: 0 | H215: 3207648.218 | I215: -257931.0882 | J215: 679291.9287 | K215: 1539719.779 | L215: 2339585.631 | M215: 3087053.222 | N215: 3540071.736 | O215: 3731023.717 | P215: 3918296.089 | Q215: 4126204.38 | R215: 4322565.907 | S215: 4539772.404 | T215: 4745645.995 | U215: 4972583.334 | V215: 5188411.577 | W215: 7806626.683 | X215: 10422038.42 | Y215: 10661745.3 | Z215: 10906965.45 | AA215: 11157825.65 | AB215: 11414455.64 | AC215: 11676988.12 | AD215: 11945558.85 | AE215: 12220306.7 | AF215: 12501373.76 | AG215: 12788905.35 | AH215: 13083050.18 | AI215: 13383960.33 | AJ215: 13691791.42 | AK215: 14006702.62 | AL215: 0 | AM215: 0 | AN215: 0 | AO215: 0 | AP215: 0 | AQ215: 0 | AR215: 0 | AS215: 0 | AT215: 0 | AU215: 0 | AV215: 0 | AW215: 0 | AX215: 0 | AY215: 0 | AZ215: 0 | BA215: 0 | BB215: 0 | BC215: 0 | BD215: 0 | BE215: 0 | BF215: 0 | BG215: 0 | BH215: 0 | BI215: 0 | BJ215: 0 | BK215: 0 | BL215: 0 | BM215: 0 | BN215: 0 | BO215: 0 | BP215: 0 | BQ215: 0 | BR215: =BR211-SUM(BR212:BR214) -> 0 | BS215: 0 | BT215: 0 | BU215: 0 | BV215: 0 | BW215: 0 | BX215: 0 | BY215: 0 | BZ215: 0 | CA215: 0 | CB215: 0 | CC215: 0 | CD215: 0 | CE215: 0 | CF215: 0 | CG215: 0 | CH215: 0 | CI215: 0 | CJ215: 0 | CK215: 0 | CL215: 0 | CM215: 0 | CN215: 0 | CO215: 0 | CP215: 0 | CQ215: 0 | CR215: 0 | CS215: 0 | CT215: 0 | CU215: 0 | CV215: 0 | CW215: 0 | CX215: 0 | CY215: 0 | CZ215: 0
C216: 58519436.28 | D216: Taxes paid in escalated $ | E216: =E215*$E$48 -> 0 | F216: =F215*$E$48 -> 0 | G216: 0 | H216: 825648.6513 | I216: -66391.46209 | J216: 174849.7425 | K216: 396323.8711 | L216: 602209.3415 | M216: 794607.4995 | N216: 911214.4649 | O216: 960365.5049 | P216: 1008569.413 | Q216: 1062085.007 | R216: 1112628.464 | S216: 1168537.417 | T216: 1221529.279 | U216: 1279942.95 | V216: 1335497.14 | W216: 2009425.708 | X216: 2682632.689 | Y216: 2744333.241 | Z216: 2807452.906 | AA216: 2872024.323 | AB216: 2938080.882 | AC216: 3005656.742 | AD216: 3074786.848 | AE216: 3145506.945 | AF216: 3217853.605 | AG216: 3291864.238 | AH216: 3367577.115 | AI216: 3445031.389 | AJ216: 3524267.111 | AK216: 3605325.254 | AL216: 0 | AM216: 0 | AN216: 0 | AO216: 0 | AP216: 0 | AQ216: 0 | AR216: 0 | AS216: 0 | AT216: 0 | AU216: 0 | AV216: 0 | AW216: 0 | AX216: 0 | AY216: 0 | AZ216: 0 | BA216: 0 | BB216: 0 | BC216: 0 | BD216: 0 | BE216: 0 | BF216: 0 | BG216: 0 | BH216: 0 | BI216: 0 | BJ216: 0 | BK216: 0 | BL216: 0 | BM216: 0 | BN216: 0 | BO216: 0 | BP216: 0 | BQ216: 0 | BR216: =BR215*$E$48 -> 0 | BS216: 0 | BT216: 0 | BU216: 0 | BV216: 0 | BW216: 0 | BX216: 0 | BY216: 0 | BZ216: 0 | CA216: 0 | CB216: 0 | CC216: 0 | CD216: 0 | CE216: 0 | CF216: 0 | CG216: 0 | CH216: 0 | CI216: 0 | CJ216: 0 | CK216: 0 | CL216: 0 | CM216: 0 | CN216: 0 | CO216: 0 | CP216: 0 | CQ216: 0 | CR216: 0 | CS216: 0 | CT216: 0 | CU216: 0 | CV216: 0 | CW216: 0 | CX216: 0 | CY216: 0 | CZ216: 0
C217: =SUM(E217:CZ217) -> 80715056.22 | D217: Capex in escalated $ | E217: =E167 -> 9221468.729 | F217: 30682560.85 | G217: 40811026.64 | H217: 0 | I217: 0 | J217: 0 | K217: 0 | L217: 0 | M217: 0 | N217: 0 | O217: 0 | P217: 0 | Q217: 0 | R217: 0 | S217: 0 | T217: 0 | U217: 0 | V217: 0 | W217: 0 | X217: 0 | Y217: 0 | Z217: 0 | AA217: 0 | AB217: 0 | AC217: 0 | AD217: 0 | AE217: 0 | AF217: 0 | AG217: 0 | AH217: 0 | AI217: 0 | AJ217: 0 | AK217: =AK167 -> 0 | AL217: 0 | AM217: 0 | AN217: 0 | AO217: 0 | AP217: 0 | AQ217: 0 | AR217: 0 | AS217: 0 | AT217: 0 | AU217: 0 | AV217: 0 | AW217: 0 | AX217: 0 | AY217: 0 | AZ217: 0 | BA217: 0 | BB217: 0 | BC217: 0 | BD217: 0 | BE217: 0 | BF217: 0 | BG217: 0 | BH217: 0 | BI217: 0 | BJ217: 0 | BK217: 0 | BL217: 0 | BM217: 0 | BN217: 0 | BO217: 0 | BP217: 0 | BQ217: =BQ167 -> 0 | BR217: 0 | BS217: 0 | BT217: 0 | BU217: 0 | BV217: 0 | BW217: 0 | BX217: 0 | BY217: 0 | BZ217: 0 | CA217: 0 | CB217: 0 | CC217: 0 | CD217: 0 | CE217: 0 | CF217: 0 | CG217: 0 | CH217: 0 | CI217: 0 | CJ217: 0 | CK217: 0 | CL217: 0 | CM217: 0 | CN217: 0 | CO217: 0 | CP217: 0 | CQ217: 0 | CR217: 0 | CS217: 0 | CT217: 0 | CU217: 0 | CV217: 0 | CW217: 0 | CX217: 0 | CY217: 0 | CZ217: 0
C218: 168828801 | D218: Earnings Before Interest and After Taxes in escalated $ | E218: =E211-(E212+E213+E216+E217) -> -9221468.729 | F218: =F211-(F212+F213+F216+F217) -> -30682560.85 | G218: -40811026.64 | H218: 6417752.378 | I218: 7476390.715 | J218: 7405579.493 | K218: 7358455.237 | L218: 7330929.686 | M218: 7320993.725 | N218: 7391045.588 | O218: 7532846.529 | P218: 7679986.498 | Q218: 7826307.69 | R218: 7980197.265 | S218: 8133423.304 | T218: 8294376.538 | U218: 8454828.701 | V218: 8623174.259 | W218: 8178295.133 | X218: 7739405.731 | Y218: 7917412.063 | Z218: 8099512.54 | AA218: 8285801.329 | AB218: 8476374.759 | AC218: 8671331.379 | AD218: 8870772.001 | AE218: 9074799.757 | AF218: 9283520.151 | AG218: 9497041.115 | AH218: 9715473.06 | AI218: 9938928.941 | AJ218: 10167524.31 | AK218: 10401377.37 | AL218: 0 | AM218: 0 | AN218: 0 | AO218: 0 | AP218: 0 | AQ218: 0 | AR218: 0 | AS218: 0 | AT218: 0 | AU218: 0 | AV218: 0 | AW218: 0 | AX218: 0 | AY218: 0 | AZ218: 0 | BA218: 0 | BB218: 0 | BC218: 0 | BD218: 0 | BE218: 0 | BF218: 0 | BG218: 0 | BH218: 0 | BI218: 0 | BJ218: 0 | BK218: 0 | BL218: 0 | BM218: 0 | BN218: 0 | BO218: 0 | BP218: 0 | BQ218: 0 | BR218: =BR211-(BR212+BR213+BR216+BR217) -> 0 | BS218: 0 | BT218: 0 | BU218: 0 | BV218: 0 | BW218: 0 | BX218: 0 | BY218: 0 | BZ218: 0 | CA218: 0 | CB218: 0 | CC218: 0 | CD218: 0 | CE218: 0 | CF218: 0 | CG218: 0 | CH218: 0 | CI218: 0 | CJ218: 0 | CK218: 0 | CL218: 0 | CM218: 0 | CN218: 0 | CO218: 0 | CP218: 0 | CQ218: 0 | CR218: 0 | CS218: 0 | CT218: 0 | CU218: 0 | CV218: 0 | CW218: 0 | CX218: 0 | CY218: 0 | CZ218: 0
C219: 0 | D219: Change in Net Working Capital in escalated $ (always zero) | E219: 0 | F219: 0 | G219: 0 | H219: 0 | I219: 0 | J219: 0 | K219: 0 | L219: 0 | M219: 0 | N219: 0 | O219: 0 | P219: 0 | Q219: 0 | R219: 0 | S219: 0 | T219: 0 | U219: 0 | V219: 0 | W219: 0 | X219: 0 | Y219: 0 | Z219: 0 | AA219: 0 | AB219: 0 | AC219: 0 | AD219: 0 | AE219: 0 | AF219: 0 | AG219: 0 | AH219: 0 | AI219: 0 | AJ219: 0 | AK219: 0 | AL219: 0 | AM219: 0 | AN219: 0 | AO219: 0 | AP219: 0 | AQ219: 0 | AR219: 0 | AS219: 0 | AT219: 0 | AU219: 0 | AV219: 0 | AW219: 0 | AX219: 0 | AY219: 0 | AZ219: 0 | BA219: 0 | BB219: 0 | BC219: 0 | BD219: 0 | BE219: 0 | BF219: 0 | BG219: 0 | BH219: 0 | BI219: 0 | BJ219: 0 | BK219: 0 | BL219: 0 | BM219: 0 | BN219: 0 | BO219: 0 | BP219: 0 | BQ219: 0 | BR219: 0 | BS219: 0 | BT219: 0 | BU219: 0 | BV219: 0 | BW219: 0 | BX219: 0 | BY219: 0 | BZ219: 0 | CA219: 0 | CB219: 0 | CC219: 0 | CD219: 0 | CE219: 0 | CF219: 0 | CG219: 0 | CH219: 0 | CI219: 0 | CJ219: 0 | CK219: 0 | CL219: 0 | CM219: 0 | CN219: 0 | CO219: 0 | CP219: 0 | CQ219: 0 | CR219: 0 | CS219: 0 | CT219: 0 | CU219: 0 | CV219: 0 | CW219: 0 | CX219: 0 | CY219: 0 | CZ219: 0
C220: 168828801 | D220: Free Cash Flow in escalated $ | E220: =E218-E219 -> -9221468.729 | F220: =F218-F219 -> -30682560.85 | G220: -40811026.64 | H220: 6417752.378 | I220: 7476390.715 | J220: 7405579.493 | K220: 7358455.237 | L220: 7330929.686 | M220: 7320993.725 | N220: 7391045.588 | O220: 7532846.529 | P220: 7679986.498 | Q220: 7826307.69 | R220: 7980197.265 | S220: 8133423.304 | T220: 8294376.538 | U220: 8454828.701 | V220: 8623174.259 | W220: 8178295.133 | X220: 7739405.731 | Y220: 7917412.063 | Z220: 8099512.54 | AA220: 8285801.329 | AB220: 8476374.759 | AC220: 8671331.379 | AD220: 8870772.001 | AE220: 9074799.757 | AF220: 9283520.151 | AG220: 9497041.115 | AH220: 9715473.06 | AI220: 9938928.941 | AJ220: 10167524.31 | AK220: 10401377.37 | AL220: 0 | AM220: 0 | AN220: 0 | AO220: 0 | AP220: 0 | AQ220: 0 | AR220: 0 | AS220: 0 | AT220: 0 | AU220: 0 | AV220: 0 | AW220: 0 | AX220: 0 | AY220: 0 | AZ220: 0 | BA220: 0 | BB220: 0 | BC220: 0 | BD220: 0 | BE220: 0 | BF220: 0 | BG220: 0 | BH220: 0 | BI220: 0 | BJ220: 0 | BK220: 0 | BL220: 0 | BM220: 0 | BN220: 0 | BO220: 0 | BP220: 0 | BQ220: 0 | BR220: =BR218-BR219 -> 0 | BS220: 0 | BT220: 0 | BU220: 0 | BV220: 0 | BW220: 0 | BX220: 0 | BY220: 0 | BZ220: 0 | CA220: 0 | CB220: 0 | CC220: 0 | CD220: 0 | CE220: 0 | CF220: 0 | CG220: 0 | CH220: 0 | CI220: 0 | CJ220: 0 | CK220: 0 | CL220: 0 | CM220: 0 | CN220: 0 | CO220: 0 | CP220: 0 | CQ220: 0 | CR220: 0 | CS220: 0 | CT220: 0 | CU220: 0 | CV220: 0 | CW220: 0 | CX220: 0 | CY220: 0 | CZ220: 0
B221: NPV for project ===> | C221: 345070.6208 | D221: Free Cash Flow in present value $ (discounted using WACC) | E221: =E220/E109 -> -9221468.729 | F221: -28330929.39 | G221: -34794929.03 | H221: 5052317.197 | I221: 5434615.956 | J221: 4970557.884 | K221: 4560389.714 | L221: 4195112.161 | M221: 3868332.306 | N221: 3606025.875 | O221: 3393526.888 | P221: 3194639.441 | Q221: 3005989.978 | R221: 2830176.071 | S221: 2663436.954 | T221: 2507968.11 | U221: 2360545.051 | V221: 2223022.51 | W221: 1946743.326 | X221: 1701072.202 | Y221: 1606821.369 | Z221: 1517792.666 | AA221: 1433696.752 | AB221: 1354260.316 | AC221: 1279225.193 | AD221: 1208347.52 | AE221: 1141396.946 | AF221: 1078155.884 | AG221: 1018418.802 | AH221: 961991.5559 | AI221: 908690.7583 | AJ221: 858343.1832 | AK221: =AK220/AK109 -> 810785.2021 | AL221: 0 | AM221: 0 | AN221: 0 | AO221: 0 | AP221: 0 | AQ221: 0 | AR221: 0 | AS221: 0 | AT221: 0 | AU221: 0 | AV221: 0 | AW221: 0 | AX221: 0 | AY221: 0 | AZ221: 0 | BA221: 0 | BB221: 0 | BC221: 0 | BD221: 0 | BE221: 0 | BF221: 0 | BG221: 0 | BH221: 0 | BI221: 0 | BJ221: 0 | BK221: 0 | BL221: 0 | BM221: 0 | BN221: 0 | BO221: 0 | BP221: 0 | BQ221: =BQ220/BQ109 -> 0 | BR221: 0 | BS221: 0 | BT221: 0 | BU221: 0 | BV221: 0 | BW221: 0 | BX221: 0 | BY221: 0 | BZ221: 0 | CA221: 0 | CB221: 0 | CC221: 0 | CD221: 0 | CE221: 0 | CF221: 0 | CG221: 0 | CH221: 0 | CI221: 0 | CJ221: 0 | CK221: 0 | CL221: 0 | CM221: 0 | CN221: 0 | CO221: 0 | CP221: 0 | CQ221: 0 | CR221: 0 | CS221: 0 | CT221: 0 | CU221: 0 | CV221: 0 | CW221: =CW220/CW109 -> 0 | CX221: 0 | CY221: 0 | CZ221: 0
B223: *Real$ refers to a real or constant dollar analysis where the assumption is that after inflation has been factored out of costs and revenues, unit costs and revenues do not change from year to year (i.e., they are constant).

Sheet Combo Results
A1: E. First Year Break-Even Price of CO2 Based on Three Input Variables | F1: Enter a blank cell in column A to indicate the end of inputs
A2: Annual Average CO2 Mass Flow Rate | B2: Pipeline Length | C2: Elevation Change | D2: First Year Price | E2: First Year Price | F2: First Year Price | G2: Optimal | H2: Minimum Inner | I2: Selected Nominal | J2: Note
D3: base year | E3: =Main!F9 -> first yr of proj | F3: =Main!G9 -> first yr of transp | G3: Number of Pumps | H3: Pipe Diameter | I3: Pipe Diameter
A4: Mtonnes/yr | B4: mi | C4: ft | D4: =Main!E8 -> 2011$/tonne | E4: =Main!F8 -> 2018$/tonne | F4: =Main!G8 -> 2021$/tonne | G4: Pumps | H4: in | I4: in
A5: 4.3 | B5: 50 | C5: 0
A6: 4.3 | B6: 100 | C6: 0
A7: 4.3 | B7: 200 | C7: 0
A8: 4.3 | B8: 300 | C8: 0
A9: 4.3 | B9: 500 | C9: 0
V21: 12 | W21: SCPC_WY-MI2
V22: 12 | W22: SCPC_WY-LA1
V23: 12 | W23: SCPC_WY-RR1
V24: 12 | W24: SCPC_WY-MA01
V25: 12 | W25: SCPC_ND-MI2
V26: 12 | W26: SCPC_ND-LA1
V27: 12 | W27: SCPC_ND-RR1
V28: 12 | W28: SCPC_ND-MA01
V29: 8 | W29: CE_SD-MI2
V30: 8 | W30: CE_SD-LA1
V31: 8 | W31: CE_SD-RR1
V32: 8 | W32: CE_SD-MA01
V33: 8 | W33: CE_KS-AR4
V34: 8 | W34: CE_KS-WO1
V35: 8 | W35: CE_KS-FR3A
V36: 8 | W36: CE_KS-MS3
V37: 12 | W37: SCPC_MO-AR4
V38: 12 | W38: SCPC_MO-WO1
V39: 12 | W39: SCPC_MO-FR3A
V40: 12 | W40: SCPC_MO-MS3

Sheet Eng Mod
B1: This sheet contains the engineering module, which includes engineering equations and capital and operating expenses, provides a number of inputs (orange cells) the user can modify, and summarizes results
D3: Variable Value in Primary Units | F3: Factor | G3: Values in Alternate Units | I3: Typical Range of Inputs
B4: Variable | C4: Variable Symbol | D4: Value | E4: units | G4: Value | H4: units | I4: Min | J4: Max | K4: units | M4: Equations | N4: Comments
B5: 1. Engineering Calculations
B6: 1.1. General Characteristics
B7: Temperature of ground | C7: TPipeline | D7: 53 | E7: °F | G7: =T_Conv(D7, E7, "K") -> 284.8166667 | H7: K | I7: 40 | J7: 60 | K7: °F
B9: 1.2. Pipeline Characteristics
B10: Length | C10: LPL | D10: =Main!E74 -> 62 | E10: =Main!F74 -> mi | G10: =l_conv(D10,E10,"m") -> 99779.328 | H10: m | N10: See sheet "Main"
B11: Input Pressure | C11: Pin | D11: =Main!E76 -> 2200 | E11: =Main!F76 -> psig | G11: =P_Conv(D11,E11,"MPa") -> 15.26981833 | H11: MPa | I11: 2000 | J11: 2250 | K11: =Pr_units -> psig | N11: See sheet "Main"
B12: Outlet Pressure | C12: Pout | D12: =Main!E78 -> 1200 | E12: =Main!F78 -> psig | G12: =P_Conv(D12,E12,"MPa") -> 8.375061328 | H12: MPa | I12: 1180 | J12: 1800 | K12: =Pr_units -> psig | N12: See sheet "Main"
B13: Change in Elevation | C13: Δh | D13: =Main!E16 -> 0 | E13: =Main!F16 -> ft | G13: =l_conv(D13,E13,"m") -> 0 | H13: m | N13: See sheet "Main"
B15: 1.3. Pump Characteristics
B16: Number of Pumps | C16: Npump | D16: =Main!E73 -> 1 | N16: See sheet "Main"
B17: Pump Efficiency | C17: ηpump | D17: 0.75 | I17: 0.7 | J17: 0.9 | N17: Pump efficiency from McCollum and Ogden (2006)
B19: 1.4. CO2 Mass Flowrate
B20: Annual average CO2 mass flow rate | C20: qav | D20: =Main!E11 -> 4.3 | E20: Mtonnes/yr | G20: =D20*1000000/(365*24) -> 490.8675799 | H20: t/hr | N20: See sheet "Main"
B21: Capacity factor | C21: CF | D21: =Main!E12 -> 0.85 | N21: See sheet "Main"
B22: Maximum CO2 flow mass rate, annualized | C22: qm-max | D22: =Main!E13 -> 5.058823529 | E22: Mtonnes/yr | G22: =D22*1000000/(365*24) -> 577.4912705 | H22: t/hr | M22: qm-max = qav / CF | N22: See sheet "Main"
B24: 1.5. Additional Calculations
B25: Incompressible fluid (liquid) | N25: Average pressure and the resulting density for a liquid are used in the analysis since CO2 is transported as a liquid
B26: Average pressure | C26: Pave | D26: =AVERAGE(G11:G12) -> 11.82243983 | E26: MPa | G26: =P_Conv(D26,E26,"MPa") -> 11.82243983 | H26: MPa | M26: Pave = 0.5 * (Pin+Pout) | N26: Used to calculate CO2 density
B27: Density of CO2 | C27: ρCO2 | D27: =denDuanCO2(0,D26,G7) -> 921.2553838 | E27: kg/m3 | M27: ρCO2 = denDuanCO2(vCO2-init, Pave, TPipeline) | N27: vCO2-init is initial guess at molar volume of CO2 (m3/mol)
B28: Compressible fluid (gas) | N28: Average pressure and density for a gas is shown for comparison to values for a liquid. The values for liquid and gas are similar.
B29: Average pressure | C29: Pave | D29: =(2/3)*(G12+G11-G12*G11/(G12+G11)) -> 12.15752065 | E29: MPa | G29: =P_Conv(D29,E29,"MPa") -> 12.15752065 | H29: MPa | M29: Pave = 0.6667 * (Pin+Pout - Pin * Pout / (Pin+Pout)) | N29: Used to calculate CO2 density
B30: Density of CO2 | C30: ρCO2 | D30: =denDuanCO2(0,D29,G7) -> 923.7801308 | E30: kg/m3 | M30: ρCO2 = denDuanCO2(vCO2-init, Pave, TPipeline) | N30: vCO2-init is initial guess at molar volume of CO2 (m3/mol)
B31: Acceleration of gravity | C31: g | D31: 9.81 | E31: m/s2
B32: =IF(n_pumps=0, "Elevation change","Elevation change along pipe segment") -> Elevation change along pipe segment | C32: Δhseg | D32: =D13/(n_pumps+1) -> 0 | E32: ft | G32: =l_conv(D32,E32,"m") -> 0 | H32: m
B33: Pressure change from elevation change | C33: ΔPElev | D33: =P_Conv(D27*D31*G32,"Pa",E33) -> 0 | E33: Pa | G33: =P_Conv(D33,E33,"MPa") -> 0 | H33: MPa | M33: ΔPElev = ρCO2*g*Δhseg
B34: Pressure change | C34: dP | D34: =P_Conv(G11-G12,H12,E34) -> 6894757 | E34: Pa | G34: =P_Conv(D34,E34,"MPa") -> 6.894757 | H34: MPa | M34: dP = Pin-Pout
B35: =IF(n_pumps=0, "Total pipeline distance", "Distance along pipe segment") -> Distance along pipe segment | C35: dL | D35: =l_conv(L_PL/(n_pumps+1),Len_PL_U,E35) -> 31 | E35: mi | G35: =l_conv(D35,E35,"m") -> 49889.664 | H35: m | M35: dL = LPL / (Npump+1)
B36: =IF(n_pumps=0, "Pressure drop", "Pressure drop along pipe segment") -> Pressure drop along pipe segment | C36: dPpump | D36: =D34 -> 6894757 | E36: =E34 -> Pa | G36: =P_Conv(D36,E36,"MPa") -> 6.894757 | H36: MPa | M36: dPpump = dP | N36: Assumes pump boosts pressure from Pout to Pin
D38: Variable Value in Primary Units | F38: Factor | G38: Values in Alternate Units | I38: Typical Range of Inputs
B39: Variable | C39: Variable Symbol | D39: Value | E39: units | G39: Value | H39: units | I39: Min | J39: Max | K39: units | M39: Equations | N39: Comments
B40: 1.6. Minimum Inner Diameter of Pipe and Nominal Pipe Size
B41: Method for calculating inside diameter or maximum pipeline segment length | C41: DMeth | D41: 1 | N41: 1 = Methodology for incompressible fluid (i.e., liquid) using equations presented in Appendix B of the User's Manual 2 = Methodology for compressible fluid (i.e., gas) using equations presented in Appendix B of the User's Manual based on McCoy (2008)
B42: Method for calculating Fanning friction factor | C42: ffr_meth | D42: 3 | N42: Enter: 1 for equation developed by Haaland 2 for equation developed by Zigrang and Sylvester 3 for Colebrook-White equation See Appendix B of User's Manual for these equations
B43: Pipe inside surface roughness | C43: eta | D43: 0.00015 | E43: ft | G43: =l_conv(D43,E43,"in") -> 0.0018 | H43: in
G44: =l_conv(D43,E43,"m") -> 4.572e-05 | H44: m
B45: Minimum Inside Diameter (liquid) | C45: Dmin-liquid | D45: =dia_in_min(L_PL, Len_PL_U, D22, E22, P_in, P_out, E12, D13, E13, D43, E43, D42, T_Pipeline, E7, n_pumps,1) -> 0.2924661408 | E45: m | G45: =l_conv(D45,E45,"in") -> 11.51441499 | H45: in | M45: Dmin-liquid = Dia_in_min(…..) | N45: Pipeline diameter using equations for incompressible fluid (liquid)
B46: Minimum Inside Diameter (gas) | C46: Dmin-gas | D46: =dia_in_min(L_PL, Len_PL_U, D22, E22, P_in, P_out, E12, D13, E13, D43, E43, D42, T_Pipeline, E7, n_pumps,2) -> 0.2939585281 | E46: m | G46: =l_conv(D46,E46,"in") -> 11.5731704 | H46: in | M46: D-gas = Dia_in_min(…..) | N46: Pipeline diameter using equations for compressible fluid (gas)
B47: Selected Inside Diameter | C47: Dmin | D47: =IF(D41=2,D46,D45) -> 0.2924661408 | E47: m | G47: =l_conv(D47,E47,"in") -> 11.51441499 | H47: in | M47: Dmin depends on DMeth
B48: Pipe Nominal Diameter | C48: Dnom | D48: =l_conv(Pipe_Size(D47,E47),"in",E48) -> 0.3048 | E48: m | G48: =l_conv(D48,E48,"in") -> 12 | H48: in | M48: Dnom = Pipe_Size(Dmin) | N48: Standard size pipe diameter using selected minimum pipe diameter
B50: Nominal, outer and inner diameters and pipe wall thickness
B51: Pipe nominal diameter | C51: Dnom | D51: =l_conv(G51,H51,E51) -> 0.3048 | E51: m | G51: =PL_d -> 12 | H51: in | N51: Value from row above
B52: Pipe outer diameter | C52: Dout | D52: =l_conv(G52,H52,E52) -> 0.32385 | E52: m | G52: =dia_out_nom(G51,H51) -> 12.75 | H52: in | M52: Dout = Dia_out_nom(Dnom, "in") | N52: Dia_out_nom is VBA user-defined function
B53: Pipe inner diameter | C53: Din | D53: =l_conv(G53,H53,E53) -> 0.3048 | E53: m | G53: =Dia_in_nom(G51,H51) -> 12 | H53: in | M53: Din = Dia_in_nom(Dnom, "in") | N53: Dia_in_nom is VBA user-defined function
B54: Pipe wall thickness | C54: twall | D54: =l_conv(G54,H54,E54) -> 0.009525 | E54: m | G54: =pthick_nom(G51,H51) -> 0.375 | H54: in | M54: twall = Pthick_nom(Dnom, "in") | N54: Pthick_nom is VBA user-defined function
D56: Variable Value in Primary Units | F56: Factor | G56: Values in Alternate Units | I56: Typical Range of Inputs
B57: Variable | C57: Variable Symbol | D57: Value | E57: units | G57: Value | H57: units | I57: Min | J57: Max | K57: units | M57: Equations | N57: Comments
B58: 1.7 Maximum Pipe Segment Length - Used by VBA macro CalcOptNumPumps (and maybe other macros). Do not edit Sub-part 1.7 or change range names within this sub-part.
B59: Pipe inner diameter | C59: Din_inp | D59: 15.162 | E59: in | N59: The cell in this row and column D and the cell in the column D in the row below are used in VBA macros. None of the results in Sub-part 1.7 are used elsewhere in the spreadsheet.
B60: Maximum pipe segment length | C60: Lseg_max | D60: =L_seg_max(L_PL,Len_PL_U,D59,E59,D22,E22,P_in,P_out,E12,D13,E13,D43,E43,D42,T_Pipeline,T_Pipeline_U,D41) -> 206482.4468 | E60: m | G60: =l_conv(D60,E60,H60) -> 128.3022441 | H60: mi
B61: Number of segments | C61: Nseg_calc | G61: =ROUNDUP(L_PL/G60,0) -> 1
B62: Number of pumps | C62: Npump_calc | G62: =G61-1 -> 0
B63: minimum inner diameter | C63: Din_calc | D63: =dia_in_min(L_PL, Len_PL_U, D22, E22, P_in, P_out, E12, D13, E13, D43, E43, D42, T_Pipeline, E7, G62,1) -> 0.3344520154 | E63: m | G63: =l_conv(D63,E63,"in") -> 13.16740218 | H63: in | N63: This is a check that the input inner diameter (Din_inp) yields a maximum segment length (Lseg_max) that gives back an actual segment length and number of pumps (Npump_calc) that results in a calculated inner diameter (Din_calc) less than the input inner diameter (Din_inp).
B64: nominal pipe diameter | C64: Dnom_calc | G64: =Pipe_Size(G63,H63) -> 16 | H64: in | N64: This is part of the inner diameter check.
B66: 1.8 Pump Power
B67: Pump Power | C67: Wpump | D67: =(1000000000*1000000*0.001/(365*24*3600))*D22*G36/(D17*D27) -> 1600.739217 | E67: kW | M67: Wpump = ((1e9 kg/Mtonnes * 1e6 Pa/Mpa * 1e-3 kW/W) / (365 d/yr*24 hr/d*3600 s/hr)) * qm-max*dPpump/(ηpump*ρCO2) | N67: Based on pump power equation from McCollum and Ogden (2006)
D69: Variable Value in Primary Units | F69: Factor | G69: Values in Alternate Units | I69: Typical Range of Inputs
B70: Variable | C70: Variable Symbol | D70: Value | E70: units | G70: Value | H70: units | I70: Min | J70: Max | K70: units | M70: Equations | N70: Comments
B71: 2. CAPEX (Capital Costs or Expenses)
B72: 2.1. Pipeline Cost
B73: Eqtns. to use for CO2 pipeln. CAPEX | D73: =UPPER(Main!E82) -> PARKER | N73: PARKER=Parker (2004), RUI=Rui et al. (2011), MCCOY=McCoy and Rubin (2008) See sheet "Main"
B74: Region | D74: =Main!E83 -> MW | N74: Cen=Central US, NE=Northeast US, SE=Southeast US, MW=Midwest US, SW=Southwest US, West=Western US, Can= Canada See sheet "Main"
B75: Pipe nominal diameter | C75: Dnom | D75: =G48 -> 12 | E75: in | N75: See above calculations
B76: Pipe length | C76: LPL | D76: =Main!E74 -> 62 | E76: mi | N76: See sheet "Main"
B77: Factor for CO2 pipelines | C77: fp_CO2 | D77: =Pres_Fact(PL_d) -> 1 | M77: Uses VBA user defined function Pres_Fact | N77: Factor used to adjust capex costs for materials and labor to account for increased pipe thicknesses required for CO2 pipelines versus natural gas pipelines (see sheet "PL Pressure Relation")
B78: Natural Gas Pipeline Capital Costs Using Parker's (2004) Equations
B79: Materials | C79: Cmat_NG_park_mi | D79: =CpParker($D$75,$D$76,"Mat",0)/$D$76 -> 83360.51613 | E79: 2000$/mi | F79: =525/261 -> 2.011494253 | G79: =D79*F79 -> 167679.1991 | H79: 2011$/mi | M79: Uses VBA user defined function CpParker | N79: Handy-Whitman gas transmission pipeline index
B80: Labor | C80: Clab_NG_park_mi | D80: =CpParker($D$75,$D$76,"Lab",0)/$D$76 -> 247276.871 | E80: 2000$/mi | F80: =525/261 -> 2.011494253 | G80: =D80*F80 -> 497396.0048 | H80: 2011$/mi | M80: Uses VBA user defined function CpParker | N80: Handy-Whitman gas transmission pipeline index
B81: ROW-Damages | C81: CROW_NG_park_mi | D81: =CpParker($D$75,$D$76,"ROW",0)/$D$76 -> 37357.16129 | E81: 2000$/mi | F81: =113.8/88.7 -> 1.282976325 | G81: =D81*F81 -> 47928.35349 | H81: 2011$/mi | M81: Uses VBA user defined function CpParker | N81: Gross domestic product chain type price index
B82: Miscellaneous | C82: Cmisc_NG_park_mi | D82: =CpParker($D$75,$D$76,"Misc",0)/$D$76 -> 109860.2581 | E82: 2000$/mi | F82: =190.9/122.3 -> 1.560915781 | G82: =D82*F82 -> 171482.6105 | H82: 2011$/mi | M82: Uses VBA user defined function CpParker | N82: Producer price Index
B83: Total | C83: Ctot_NG_park_mi | D83: =SUM(D79:D82) -> 477854.8065 | E83: 2000$/mi | G83: =SUM(G79:G82) -> 884486.1679 | H83: 2011$/mi | M83: Ctot_NG_park_mi = Cmat_NG_park_mi + Clab_NG_park_mi + CROW_NG_park_mi + Cmisc_NG_park_mi
B84: Natural Gas Pipeline Capital Costs Using Rui et al.'s (2011) Equations
B85: Materials | C85: Cmat_NG_rui_mi | D85: =CpRui($D$75,$D$76,$D$74,"Mat",0)/$D$76 -> 98481.44661 | E85: 2008$/mi | F85: =525/604 -> 0.869205298 | G85: =D85*F85 -> 85600.59515 | H85: 2011$/mi | M85: Uses VBA user defined function CpRui | N85: Handy-Whitman gas transmission pipeline index
B86: Labor | C86: Clab_NG_rui_mi | D86: =CpRui($D$75,$D$76,$D$74,"Lab",0)/$D$76 -> 211214.7477 | E86: 2008$/mi | F86: =525/604 -> 0.869205298 | G86: =D86*F86 -> 183588.9777 | H86: 2011$/mi | M86: Uses VBA user defined function CpRui | N86: Handy-Whitman gas transmission pipeline index
B87: ROW-Damages | C87: CROW_NG_rui_mi | D87: =CpRui($D$75,$D$76,$D$74,"ROW",0)/$D$76 -> 72504.9843 | E87: 2008$/mi | F87: =113.8/108.5 -> 1.048847926 | G87: =D87*F87 -> 76046.70243 | H87: 2011$/mi | M87: Uses VBA user defined function CpRui | N87: Gross domestic product chain type price index
B88: Miscellaneous | C88: Cmisc_NG_rui_mi | D88: =CpRui($D$75,$D$76,$D$74,"Misc",0)/$D$76 -> 109515.6941 | E88: 2008$/mi | F88: =190.9/196.3 -> 0.9724910851 | G88: =D88*F88 -> 106503.0362 | H88: 2011$/mi | M88: Uses VBA user defined function CpRui | N88: Producer price Index
B89: Total | C89: Ctot_NG_rui_mi | D89: =SUM(D85:D88) -> 491716.8727 | E89: 2008$/mi | G89: =SUM(G85:G88) -> 451739.3114 | H89: 2011$/mi | M89: Ctot_NG_rui_mi = Cmat_NG_rui_mi + Clab_NG_rui_mi + CROW_NG_rui_mi + Cmisc_NG_rui_mi
B90: Natural Gas Pipeline Capital Costs Using McCoy and Rubin's (2008) Equations
B91: Materials | C91: Cmat_NG_mcy_mi | D91: =Cpmccoy($D$75,$D$76,$D$74,"Mat",0)/$D$76 -> 68650.08463 | E91: 2004$/mi | F91: =525/400 -> 1.3125 | G91: =D91*F91 -> 90103.23608 | H91: 2011$/mi | M91: Uses VBA user defined function Cpmccoy | N91: Handy-Whitman gas transmission pipeline index
B92: Labor | C92: Clab_NG_mcy_mi | D92: =Cpmccoy($D$75,$D$76,$D$74,"Lab",0)/$D$76 -> 222972.3792 | E92: 2004$/mi | F92: =525/400 -> 1.3125 | G92: =D92*F92 -> 292651.2477 | H92: 2011$/mi | M92: Uses VBA user defined function Cpmccoy | N92: Handy-Whitman gas transmission pipeline index
B93: ROW-Damages | C93: CROW_NG_mcy_mi | D93: =Cpmccoy($D$75,$D$76,$D$74,"ROW",0)/$D$76 -> 48922.74121 | E93: 2004$/mi | F93: =113.8/96.8 -> 1.175619835 | G93: =D93*F93 -> 57514.54494 | H93: 2011$/mi | M93: Uses VBA user defined function Cpmccoy | N93: Gross domestic product chain type price index
B94: Miscellaneous | C94: Cmisc_NG_mcy_mi | D94: =Cpmccoy($D$75,$D$76,$D$74,"Misc",0)/$D$76 -> 103869.6339 | E94: 2004$/mi | F94: =190.9/139.6 -> 1.36747851 | G94: =D94*F94 -> 142039.4922 | H94: 2011$/mi | M94: Uses VBA user defined function Cpmccoy | N94: Producer price Index
B95: Total | C95: Ctot_NG_mcy_mi | D95: =SUM(D91:D94) -> 444414.8389 | E95: 2004$/mi | G95: =SUM(G91:G94) -> 582308.5209 | H95: 2011$/mi | M95: Ctot_NG_mcy_mi = Cmat_NG_mcy_mi + Clab_NG_mcy_mi + CROW_NG_mcy_mi + Cmisc_NG_mcy_mi
B96: CO2 Pipeline Capital Costs Using Parker's (2004) Equations
B97: Materials | C97: Cmat_CO2_park_mi | G97: =$D$77*G79 -> 167679.1991 | H97: 2011$/mi | M97: Cmat_CO2_park_mi = fp_CO2 * Cmat_NG_park_mi
B98: Labor | C98: Clab_CO2_park_mi | G98: =$D$77*G80 -> 497396.0048 | H98: 2011$/mi | M98: Clab_CO2_park_mi = fp_CO2 * Clab_NG_park_mi
B99: ROW-Damages | C99: CROW_CO2_park_mi | G99: =G81 -> 47928.35349 | H99: 2011$/mi | M99: CROW_CO2_park_mi = CROW_NG_park_mi
B100: Miscellaneous | C100: Cmisc_CO2_park_mi | G100: =G82 -> 171482.6105 | H100: 2011$/mi | M100: Cmisc_CO2_park_mi = Cmisc_NG_park_mi
B101: Total | C101: Ctot_CO2_park_mi | G101: =SUM(G97:G100) -> 884486.1679 | H101: 2011$/mi | M101: Ctot_CO2_park_mi = Cmat_CO2_park_mi + Clab_CO2_park_mi + CROW_CO2_park_mi + Cmisc_CO2_park_mi
B102: CO2 Pipeline Capital Costs Using Rui et al.'s (2011) Equations
B103: Materials | C103: Cmat_CO2_rui_mi | G103: =$D$77*G85 -> 85600.59515 | H103: 2011$/mi | M103: Cmat_CO2_rui_mi = fp_CO2 * Cmat_NG_rui_mi
B104: Labor | C104: Clab_CO2_rui_mi | G104: =$D$77*G86 -> 183588.9777 | H104: 2011$/mi | M104: Clab_CO2_rui_mi = fp_CO2 * Clab_NG_rui_mi
B105: ROW-Damages | C105: CROW_CO2_rui_mi | G105: =G87 -> 76046.70243 | H105: 2011$/mi | M105: CROW_CO2_rui_mi = CROW_NG_rui_mi
B106: Miscellaneous | C106: Cmisc_CO2_rui_mi | G106: =G88 -> 106503.0362 | H106: 2011$/mi | M106: Cmisc_CO2_rui_mi = Cmisc_NG_rui_mi
B107: Total | C107: Ctot_CO2_rui_mi | G107: =SUM(G103:G106) -> 451739.3114 | H107: 2011$/mi | M107: Ctot_CO2_rui_mi = Cmat_CO2_rui_mi + Clab_CO2_rui_mi + CROW_CO2_rui_mi + Cmisc_CO2_rui_mi
B108: CO2 Pipeline Capital Costs Using McCoy and Rubin's (2008) Equations; also presented in McCoy (2008)
B109: Materials | C109: Cmat_CO2_mcy_mi | G109: =$D$77*G91 -> 90103.23608 | H109: 2011$/mi | M109: Cmat_CO2_mcy_mi = fp_CO2 * Cmat_NG_mcy_mi
B110: Labor | C110: Clab_CO2_mcy_mi | G110: =$D$77*G92 -> 292651.2477 | H110: 2011$/mi | M110: Clab_CO2_mcy_mi = fp_CO2 * Clab_NG_mcy_mi
B111: ROW-Damages | C111: CROW_CO2_mcy_mi | G111: =G93 -> 57514.54494 | H111: 2011$/mi | M111: CROW_CO2_mcy_mi = CROW_NG_mcy_mi
B112: Miscellaneous | C112: Cmisc_CO2_mcy_mi | G112: =G94 -> 142039.4922 | H112: 2011$/mi | M112: Cmisc_CO2_mcy_mi = Cmisc_NG_mcy_mi
B113: Total | C113: Ctot_CO2_mcy_mi | G113: =SUM(G109:G112) -> 582308.5209 | H113: 2011$/mi | M113: Ctot_CO2_mcy_mi = Cmat_CO2_mcy_mi + Clab_CO2_mcy_mi + CROW_CO2_mcy_mi + Cmisc_CO2_mcy_mi
B115: CO2 Pipeline Costs
B116: Materials | C116: Cmat_mi | G116: =IF($D$73="PARKER",G97,IF($D$73="RUI",G103,IF($D$73="MCCOY",G109,"Error"))) -> 167679.1991 | H116: 2011$/mi
B117: Labor | C117: Clab_mi | G117: =IF($D$73="PARKER",G98,IF($D$73="RUI",G104,IF($D$73="MCCOY",G110,"Error"))) -> 497396.0048 | H117: 2011$/mi
B118: ROW-Damages | C118: CROW_mi | G118: =IF($D$73="PARKER",G99,IF($D$73="RUI",G105,IF($D$73="MCCOY",G111,"Error"))) -> 47928.35349 | H118: 2011$/mi
B119: Miscellaneous | C119: Cmisc_mi | G119: =IF($D$73="PARKER",G100,IF($D$73="RUI",G106,IF($D$73="MCCOY",G112,"Error"))) -> 171482.6105 | H119: 2011$/mi
B120: Pipeline Cost per mile | C120: Cpipe_mi | G120: =SUM(G116:G119) -> 884486.1679 | H120: 2011$/mi | M120: Cpipe_mi = Cmat_mi + Clab_mi + CROW_mi + Cmisc_mi | N120: Not used in financial calculations in sheet "Main"
B121: Pipeline Cost | C121: Cpipe | G121: =G120*D10 -> 54838142.41 | H121: 2011$ | M121: Cpipe = Cpipe_mi * LPL | N121: Not used in financial calculations in sheet "Main"
D123: Variable Value in Primary Units | F123: Factor | G123: Values in Alternate Units | I123: Typical Range of Inputs
B124: Variable | C124: Variable Symbol | D124: Value | E124: units | G124: Value | H124: units | I124: Min | J124: Max | K124: units | M124: Equations | N124: Comments
B125: 2.2 Additional Pipeline Related Costs
B126: CO2 Surge Tank | C126: Cs_tank | D126: 701600 | E126: 2000$ | F126: =657.5/370.6 -> 1.774150027 | G126: =D126*F126 -> 1244743.659 | H126: 2011$ | N126: Cost from NETL (2010), CE index for heat exchangers and tanks
B127: Pipeline Control System | C127: Cpcon | D127: 94000 | E127: 2000$ | F127: =438.7/368.5 -> 1.190502035 | G127: =D127*F127 -> 111907.1913 | H127: 2011$ | N127: Cost from NETL (2010), CE index for process instruments
B128: Total Additional Pipeline Related Costs | G128: =SUM(G126:G127) -> 1356650.85 | H128: 2011$
B130: Total Pipeline Cost | C130: Cpipe_tot | G130: =G128+G121 -> 56194793.26 | H130: 2011$ | M130: Cpipe_tot = Cpipe + Cs_tank + Cpcon
B132: 2.3. Pump Cost
B133: Fixed costs | C133: Cpump_fix | D133: =0.07*10^6 -> 70000 | E133: 2005$ | N133: Cost variable from McCollum and Ogden (2006)
B134: Variable costs | C134: Cpump_var | D134: =1.11*10^3 -> 1110 | E134: 2005$/kW | N134: Cost variable from McCollum and Ogden (2006)
B135: Cost per pump | C135: Cpump | D135: =D134*pump_power+D133 -> 1846820.531 | E135: 2005$ | F135: =898.5/752.5 -> 1.194019934 | G135: =D135*F135 -> 2205140.528 | H135: 2011$ | M135: Cpump = Cpump_var * Wpump + Cpump_fix | N135: CE index for pumps & compression
B136: ="Cost for "&D16&" pumps" -> Cost for 1 pumps | C136: Cpump_tot | D136: =IF(D135="NA",0,D16*D135) -> 1846820.531 | E136: 2005$ | G136: =IF(D135="NA",0,D16*G135) -> 2205140.528 | H136: 2011$ | M136: Cpump_tot = Npump * Cpump
B138: 2.4. Total CAPEX | C138: CCAPEX | G138: =G130+G136 -> 58399933.79 | H138: 2011$ | M138: CCAPEX = Cpipe_tot + Cpump_tot
D140: Variable Value in Primary Units | F140: Factor | G140: Values in Alternate Units | I140: Typical Range of Inputs
B141: Variable | C141: Variable Symbol | D141: Value | E141: units | G141: Value | H141: units | I141: Min | J141: Max | K141: units | M141: Equations | N141: Comments
B142: 3. OPEX (Operating Costs or Expenses)
B143: 3.1. Pipeline O&M
B144: Method for calculating annual pipeline O&M costs | C144: CApipe_O&M_meth | D144: 2 | N144: 1 = use fixed O&M costs per mile of pipeline independent of diameter 2 = use fraction of capital costs which depend on pipeline length and diameter
B145: 3.1.1 Using fixed O&M cost per mile
B146: Annual pipeline O&M per mile of pipe | C146: CApipe_O&M_mi | D146: 5000 | E146: 1999$/mi-yr | F146: =190.9/112.6 -> 1.695381883 | G146: =D146*F146 -> 8476.909414 | H146: 2011$/mi-yr | N146: Cost from NETL (2010), Producer price index
B147: Annual pipeline O&M | C147: CApipe_O&M_fix | D147: =D146*l_conv(D10,E10,"mi") -> 310000 | E147: 1999$/yr | G147: =G146*l_conv(D10,E10,"mi") -> 525568.3837 | H147: 2011$/yr | M147: CApipe_O&M_fix = CApipe_O&M_mi * LPL
B148: 3.1.2 Using fraction of capital costs
B149: Pipeline capital costs | C149: Cpipe_tot | G149: =G130 -> 56194793.26 | H149: 2011$
B150: Percent of CAPEX | C150: fO&M_pipe | G150: 0.025 | N150: From McCollum and Ogden (2006)
B151: Annual pipeline O&M | C151: CApipe_O&M_frac_cap | G151: =G149*G150 -> 1404869.832 | H151: 2011$/yr | M151: CApipe_O&M_frac_cap = Cpipe_tot * fO&M_pipe
B152: 3.1.3 Selected annual pipeline O&M costs
B153: Annual pipeline O&M | C153: CApipe_O&M | G153: =IF(D144=2,G151,G147) -> 1404869.832 | H153: 2011$/yr | M153: CApipe_O&M depends on CApipe_O&M_meth
B155: 3.2. Pipeline Related Equipment and Pump O&M
B156: Pipeln. rel. equip. & pump CAPEX | C156: Ceq_CAPEX | G156: =G126+G127+G136 -> 3561791.378 | H156: 2011$ | M156: Ceq_CAPEX = Cs_tank + Cpcon + Cpump_tot
B157: Percent of CAPEX | C157: fO&M_pump_oth | G157: 0.04 | N157: Best professional judgment
B158: Annual O&M Costs | C158: CAeq_O&M | G158: =G156*G157 -> 142471.6551 | H158: 2011$/yr | M158: CAeq_O&M = Ceq_CAPEX * fO&M_pump-oth
B160: 3.3. Electricity for Pumping
B161: Electric energy needed for pumping | C161: Epump_elec | D161: =D21*8760*n_pumps*pump_power/ 1000 -> 11919.10421 | E161: MWhr/yr | M161: Epump_elec = CF * 8760 hr/yr * Npump * Wpump /(1000 kW/MW)
B162: Electricity Cost | C162: CElec | D162: 68.2 | E162: 2011$/MWhr | I162: 40 | J162: 110 | K162: 2011$/MWhr | N162: From EIA (2022), electricity price for industrial sector
B163: Annual Electricity Cost | C163: CAElec | D163: =D161*D162 -> 812882.9073 | E163: 2011$/yr | F163: 1 | G163: =D163*F163 -> 812882.9073 | H163: 2011$/yr | M163: CAElec = Epump_elec*CElec
B165: 3.4. Total OPEX | C165: CAOPEX | G165: =G153+G158+G163 -> 2360224.394 | H165: 2011$/yr | M165: CAOPEX = CApipe_O&M + CAeq_O&M + CAElec
B168: 4. References
B169: Z. Duan, N. Moller, and J. Weare, "An Equation of State for the CH4-CO2-H20 System: I. Pure Systems from 0 to 1000C and 0 to 8000 bar," Geochimica et Cosmochimica Acta, vol. 56, no. 7, pp. 2605-2617, 1992.
B170: ICF International. "Developing a Pipeline Infrastructure for CO2 Capture and Storage: Issues and Challenges," prepared for The INGAA Foundation, Inc., report number F-2009-01, February 2009, http://www.ingaa.org/Foundation/Foundation-Reports/Studies/7626/8230.aspx.
B171: D. McCollum and J. Ogden, "Techno-Economic Models for Carbon Dioxide Compression, Transport, and Storage & Correlations for Estimating Carbon Dioxide Density and Viscosity," Institute of Transportation Studies, University of California at Davis, UCD-ITS-RR-06-14, Davis, CA, 2006.
B172: S. McCoy, "The Economics of CO2 Transport by Pipeline and Storage in Saline Reservoirs and Oil Reservoirs," April 2008. [Online]. Available: https://www.cmu.edu/ceic/assets/docs/publications/phd-dissertations/2008/sean-mccoy-phd-thesis-2008.pdf. [Accessed 1 October 2021]
B173: S. McCoy and E. Rubin, "An engineering-economic model of pipeline transport of CO2 with application to carbon capture and storage," International Journal of Greenhouse Gas Control, vol. 2, no. 2, pp. 219-229, 2008.
B174: NETL, "Quality Guidelines for Energy System Studies: Estimating Carbon Dioxide Transport and Storage Costs," U.S. Department of Energy, DOE/NETL-2010/1447, Pittsburgh, PA, March 2010.
B175: N. Parker, "Using Natural Gas Transmission Pipeline Costs to Estimate Hydrogen Pipeline Costs," Institute of Transportation Studies, University of California at Davis, UCD-ITS-RR-04-35, Davis, CA, 2004.
B176: Z. Rui, P. Metz, D. Reynolds, G. Chen and X. Zhou, "Regression models estimate pipeline construction costs," Oil & Gas Journal, vol. 109, no. 27, pp. 120-127, 2011.
B177: U.S. Energy Information Administration (EIA), "About U.S. Natural Gas Pipelines - Transporting Natural Gas - based on data through 2007/2008 with selected updates," no date archived. [Online]. Available: https://www.eia.gov/naturalgas/archive/analysis_publications/ngpipeline/regional_def.html. [Accessed 21 September 2021].
B178: U.S. EIA "Electric Power Monthly with Data for December 2021 - Table 5.3 Average Price of Electricity to Ultimate Customers: Total by End-Use Sector, 2011 - December 2021 (Cents per Kilowatthour)," February 2022. [Online]. Available: https://www.eia.gov/electricity/monthly/. [Accessed 8 March 2022].
B180: Definition of pipeline capital cost categories from Oil & Gas Journal
B181: Source: C. Smith, "Natural Gas Pipeline Operators' 2010 Profits Reach Record Levels," Oil & Gas Journal, September 5, 2011.
B182: Materials costs can include line pipe, pipe coating, and cathodic protection.
B183: Labor costs include labor costs.
B184: ROW costs include obtaining rights-of-way and allowing for damages.
B185: Miscellaneous costs generally cover surveying, engineering, supervision, contingencies, telecommunications equipment, freight, taxes, allowances for funds used during construction (AFUDC), administration and overheads, and regulatory filing fees.

Sheet Cases
A1: This sheet provides the inputs for running the "Process_Cases" macro and presents results or outputs for each case
A2: Overview of the Process_Cases macro
A3: This macro allows the user to process different cases, where a case specifies: - Pipeline length, - Maximum CO2 mass flow rate, - Capacity factor, and - Elevation difference from the inlet to the outlet of the pipeline.
A4: The user can specify the variables to save for each case in the row labeled "Formulas" in Column A. A formula that calculates the variable or provides a reference to the variable needs to be provided in one of the light purple cells in the "Formulas" row starting with Column I. A label for the variable and its units should be specified starting in the fourth row below the cell in the "Formulas" row.
A5: The user can specify variables in the "Formulas" row from Column I to Column DD.
A6: The user specifies the cases starting in the row labeled "Start" in Column A. A case is specified by providing the following information: - Case number in Column B. Typically the case number begins with 1 and increments by 1 for each new case (each row). However, any non-blank number or text can be input as the case number. The cell in this column after the last case needs to be blank to indicate to the macro that no more cases are to be evaluated. See the Note below. - Pipeline length in Column C in miles
A7: - Maximum CO2 mass flow rate in Column D in Mtonnes/year. This is the instantaneous maximum CO2 mass flow rate the pipeline needs to be able to sustain expressed on an annualized basis. - Capacity factor in Column E. The capacity factor multiplied by the maximum CO2 mass flow rate gives the average annual CO2 mass flow rate which is calculated and presented in Column F. Alternatively, the user can specify the average annual CO2 mass flow rate and calculate the maximum CO2 mass flow rate. - Elevation difference from the inlet to the outlet of the pipeline in Column G. If the elevation increases from the inlet to the outlet then the elevation difference is positive; if the elevation decreases from the inlet to the outlet, the elevation difference is negative.
A8: Note: The case number in Column B is provided to help the user uniquely identify a case. The case number can be any alpha-numeric value. The macro reads the contents of the cell in Column B, and if the cell is blank, the macro stops processing cases and completes its execution. If the contents of this cell are not blank (i.e., if it contains anything else, such as a number or a letter or any combination of numbers, letters, or special characters), the macro assumes this row is a case the user wishes to process. However, the macro does not use the case number in any calculations.
A9: The macro works by evaluating cases starting with the first case in the row labeled "Start". For each case, the following procedure is used. - In the case row, the macro copies the contents in Columns C through G and then pastes the contents as values in the same columns in the "Formulas" row. - The macro copies the values in Columns C through G in the "Formulas" row into VBA variables and pastes the values of the variables in appropriate cells in the "Main" sheet. - Based on the new inputs, the macro does a variety of calculations with VBA (i.e., calls VBA subroutines or functions) to provide new results in various places in the spreadsheet including the formulas in the "Formulas" row.
A10: - The macro copies the contents of Columns I through DD in the "Formulas" row and pastes the contents in Columns I through DD in the case row first as values and then with the cell formats. Columns I through DD provide the user with up to 100 output variables. The macro begins this procedure at the "Start" row, and then processes all subsequent rows until the cell in Column B of a row is blank. The macro then stops and displays a message indicating the macro has finished.
A11: When running, the macro indicates the case it is on in the Status Bar in the lower left. The macro displays the number of the case it has just processed, with the number being the case number calculated internally by the macro starting with 1. These numbers may not align with the case numbers assigned in Column B by the user. The macro displays the number of every 10 cases that are processed.
A12: This sheet and the "Process_Cases" macro were originally developed for generating data needed for the NREL ReEDS model.
A13: Running the "Process_Cases" macro
A14: To run the "Process_Cases" macro do the following: - Fill in the data needed for each case starting in the row with the label "Start" in Column A. The data needed is a case number, pipeline length, maximum CO2 mass flow rate on an annualized basis, capacity factor, average annual CO2 mass flow rate (which is calculated from the maximum CO2 mass flow rate and capacity factor), and the elevation difference from the inlet to the outlet of the pipeline as discussed above. - In the row after the last case to run, make sure the cell in Column B is blank.
A15: - Run the macro by clicking the "Process Cases Macro" button below. - As the macro runs, the progress of the macro will be indicated in the Status Bar at the lower left. - When the macro finishes, a message will be displayed indicating the macro has finished. - The results for each case are provided in Columns I to DD in the case row.
A17: Number of cases completed | C17: 96
A21: Key inputs or factors used in evaluating the cases
A22: Capital cost factors
A23: Pipeline | B23: Costs depend on pipeline length and nominal pipeline diameter and use VBA user-defined functions
A24: Pump costs | B24: Costs depend on power requirement based on maximum CO2 mass flow rate
A25: Control system and surge tank | B25: Fixed costs independent of pipeline length, pipeline diameter, and maximum CO2 mass flow rate
A26: O&M cost factors
A27: Pipeline
A28: Method 1 | B28: ='Eng Mod'!G146 -> 8476.909414 | C28: 2011$/mi-yr | D28: =B28*B43 -> 9871.742371 | E28: =Main!E60&"$/mi-yr" -> 2018$/mi-yr
A29: Method 2 | B29: ='Eng Mod'!G150 -> 0.025 | C29: of capital costs/yr
A30: Method used | B30: ='Eng Mod'!D144 -> 2
A31: Pump (excluding electricity) | B31: ='Eng Mod'!G157 -> 0.04 | C31: of capital costs/yr
A32: Control system and surge tank | B32: ='Eng Mod'!G157 -> 0.04 | C32: of capital costs/yr
A33: Electric energy needed | B33: Electricity used is the pump power requirement multiplied by the time the pump runs each year
A34: Electricity price | B34: ='Eng Mod'!D162 -> 68.2 | C34: 2011$/MWhr | D34: =B34*B43 -> 79.42196818 | E34: =Main!E60&"$/MWhr" -> 2018$/MWhr
A35: Financial factors
A36: Project contingency factor | B36: =Main!E52 -> 0.15 | C36: assessed on all capital costs
A37: Fraction equity | B37: =Main!E45 -> 0.45
A38: Interest on debt | B38: =Main!E47 -> 0.06 | C38: /yr
A39: Minimum desired return on equity | B39: =Main!E46 -> 0.13 | C39: /yr
A40: Income tax rate | B40: =Main!E48 -> 0.2574 | C40: /yr; 21%/yr federal taxes; 4.74%/yr state & local taxes
A41: WACC | B41: =Main!E57 -> 0.0830058 | C41: /yr
A42: ="Escalation rate from 2011 to start year (i.e., " &Main!E60&")" -> Escalation rate from 2011 to start year (i.e., 2018) | B42: =Main!E49 -> 0.022 | C42: /yr
A43: Escalation factor | B43: =Main!E50 -> 1.164544988 | C43: ="from 2011$ to start year dollars (i.e., "&Main!E60&"$)" -> from 2011$ to start year dollars (i.e., 2018$)
A44: ="Escalation rate from start year (i.e., "&Main!E60 &") to years beyond the start year" -> Escalation rate from start year (i.e., 2018) to years beyond the start year | B44: =Main!E51 -> 0.023 | C44: /yr
A46: Formula row | I46: Formulas can be entered in cells starting with column I to column DD (i.e., 100 columns). If columns are inserted or deleted, the Process_Cases macro will process values in the first 100 columns starting with column I.
A47: Column label | B47: A | C47: B | D47: C | E47: D | F47: E | G47: F | I47: 1 | J47: =I47+1 -> 2 | K47: =J47+1 -> 3 | L47: 4 | M47: 5 | N47: 6 | O47: 7 | P47: 8 | Q47: 9 | R47: 10 | S47: 11 | T47: 12 | U47: 13 | V47: 14 | W47: 15 | X47: 16 | Y47: 17 | Z47: 18 | AA47: 19 | AB47: 20 | AC47: 21 | AD47: 22 | AE47: 23 | AF47: 24 | AG47: 25 | AH47: 26 | AI47: 27 | AJ47: 28 | AK47: 29 | AL47: 30 | AM47: 31 | AN47: 32 | AO47: 33 | AP47: 34 | AQ47: 35 | AR47: 36 | AS47: 37 | AT47: 38 | AU47: 39 | AV47: 40 | AW47: 41 | AX47: 42 | AY47: 43 | AZ47: 44 | BA47: 45 | BB47: 46 | BC47: 47 | BD47: 48 | BE47: 49 | BF47: 50 | BG47: 51 | BH47: 52 | BI47: 53 | BJ47: 54 | BK47: 55 | BL47: 56 | BM47: 57 | BN47: 58 | BO47: 59 | BP47: 60 | BQ47: 61 | BR47: 62 | BS47: 63 | BT47: 64 | BU47: 65 | BV47: 66 | BW47: =BV47+1 -> 67 | BX47: 68 | BY47: 69 | BZ47: 70 | CA47: 71 | CB47: 72 | CC47: 73 | CD47: 74 | CE47: 75 | CF47: 76 | CG47: 77 | CH47: 78 | CI47: 79 | CJ47: 80 | CK47: 81 | CL47: 82 | CM47: 83 | CN47: 84 | CO47: 85 | CP47: 86 | CQ47: 87 | CR47: 88 | CS47: 89 | CT47: 90 | CU47: 91 | CV47: 92 | CW47: 93 | CX47: 94 | CY47: 95 | CZ47: 96 | DA47: 97 | DB47: 98 | DC47: 99 | DD47: 100
A48: Formulas | C48: 2000 | D48: 100 | E48: 0.9 | F48: 90 | G48: 0 | I48: =F48*K48 -> 2700 | J48: =Main!E61 -> 3 | K48: =Main!E62 -> 30 | L48: =Main!E19 -> 11.51441499 | M48: =Main!E20 -> 12 | N48: ='Eng Mod'!G52 -> 12.75 | O48: ='Eng Mod'!G54 -> 0.375 | P48: ='Eng Mod'!G53 -> 12 | Q48: =Main!E15 -> 1 | R48: =pump_power -> 1600.739217 | S48: =Main!E10 -> 1.9 | T48: =Main!F10 -> 2.21 | U48: =Main!G10 -> 2.37 | V48: =Main!E21*0.000001 -> 0.3450706208 | W48: =Main!E22 -> 0.08345998629 | X48: =SUM(Main!C136:C139)*0.000001 -> 63.8614839 | Y48: =Main!C142*0.000001 -> 2.56798535 | Z48: =SUM(Main!C140:C141)*0.000001 -> 1.579880948 | AA48: =Main!C143*0.000001 -> 10.20140253 | AB48: =Main!C149*0.000001 -> 78.21075272 | AC48: =Main!C145*0.000001 -> 49.08102363 | AD48: =Y48*'Eng Mod'!G157*K48 -> 3.08158242 | AE48: =Z48*'Eng Mod'!G157*K48 -> 1.895857138 | AF48: =SUM(Main!C145:C146)*0.000001 -> 54.05846319 | AG48: =Main!C147*0.000001 -> 28.39916147 | AH48: =Main!C150*0.000001 -> 82.45762466 | AI48: =AC48/K48 -> 1.636034121 | AJ48: =Y48*'Eng Mod'!G157 -> 0.102719414 | AK48: =Z48*'Eng Mod'!G157 -> 0.06319523792 | AL48: =AF48/K48 -> 1.801948773 | AM48: =AG48/K48 -> 0.9466387155 | AN48: =AM48*1000000/D34 -> 11919.10421 | AO48: =SUM(AL48:AM48) -> 2.748587489 | AP48: =Main!C197*0.000001 -> 285.09
A50: Cases rows. Case inputs and results (or outputs) begin in the row labeled "Start" in Column A. The two rows above the row with the "Start" label are where variable names and units are provided for both input variables and result or output variables.
A51: The input variables cannot be changed, but the user can specify any result or output variable they desire as long as that output variable can be referenced via a formula to some place in the spreadsheet where the variable is calculated.
B52: Case number | C52: Pipeline length | D52: Maximum CO2 mass flow rate | E52: Capacity factor | F52: Average annual CO2 mass flow rate | G52: Elevation difference (positive for increase along pipeline) | I52: Total mass of CO2 transported | J52: Construction period | K52: Duration of operations | L52: Minimum inside pipe diameter | M52: Nominal pipe diameter | N52: Actual outer pipe diameter | O52: Actual pipe wall thickness | P52: Actual inner pipe diameter | Q52: Number of pumps | R52: Maximum required power of each pump | S52: First year break-even CO2 price in base year | T52: First year break-even CO2 price in first year of project | U52: First year break-even CO2 price in first year of transport | V52: Net present value of free cash flow | W52: Rate of return | X52: Capital cost of pipeline | Y52: Capital cost of pumps | Z52: Other capital costs | AA52: Contingency | AB52: Total capital costs | AC52: Fixed O&M pipe costs | AD52: Fixed O&M pump costs | AE52: Other fixed O&M costs | AF52: Total fixed O&M costs | AG52: Variable O&M costs | AH52: Total O&M costs | AI52: Annual fixed O&M pipe costs | AJ52: Annual fixed O&M pump costs | AK52: Annual other fixed O&M costs | AL52: Annual fixed O&M costs | AM52: Annual variable O&M costs | AN52: Annual pump energy usage | AO52: Annual total O&M costs | AP52: Revenue
C53: mi | D53: Mtonnes/yr | E53: % | F53: Mtonnes/year | G53: ft | I53: Mtonnes | J53: years | K53: years | L53: in | M53: in | N53: in | O53: in | P53: in | R53: kW | S53: =Main!E8 -> 2011$/tonne | T53: =Main!F8 -> 2018$/tonne | U53: =Main!G8 -> 2021$/tonne | V53: mill$ | W53: % | X53: mill 2018$ | Y53: mill 2018$ | Z53: mill 2018$ | AA53: mill 2018$ | AB53: mill 2018$ | AC53: mill 2018$ | AD53: mill 2018$ | AE53: mill 2018$ | AF53: mill 2018$ | AG53: mill 2018$ | AH53: mill 2018$ | AI53: mill 2018$/yr | AJ53: mill 2018$/yr | AK53: mill 2018$/yr | AL53: mill 2018$/yr | AM53: mill 2018$/yr | AN53: MWhr/yr | AO53: mill 2018$/yr | AP53: mill 2018$
A54: Start | B54: 1 | C54: 50 | D54: 0.1 | E54: 0.9 | F54: =D54*E54 -> 0.09 | G54: 0 | I54: 2.7 | J54: 3 | K54: 30 | L54: 2.815392237 | M54: 4 | N54: 4.474 | O54: 0.237 | P54: 4 | Q54: 0 | R54: 31.64251941 | S54: 40.88 | T54: 47.61 | U54: 50.97 | V54: 0.009492915012 | W54: 0.08303081513 | X54: 32.49703697 | Y54: 0 | Z54: 1.579880948 | AA54: 5.111537688 | AB54: 39.18845561 | AC54: 25.55768844 | AD54: 0 | AE54: 1.895857138 | AF54: 27.45354558 | AG54: 0 | AH54: 27.45354558 | AI54: 0.851922948 | AJ54: 0 | AK54: 0.06319523792 | AL54: 0.9151181859 | AM54: 0 | AN54: 0 | AO54: 0.9151181859 | AP54: 128.547
B55: 2 | C55: =C54 -> 50 | D55: 1 | E55: =E54 -> 0.9 | F55: 0.9 | G55: =G$54 -> 0 | I55: 27 | J55: 3 | K55: 30 | L55: 5.931546804 | M55: 6 | N55: 6.56 | O55: 0.28 | P55: 6 | Q55: 1 | R55: 316.4251941 | S55: 4.81 | T55: 5.6 | U55: 6 | V55: 0.009096303808 | W55: 0.08302699464 | X55: 36.33766615 | Y55: 0.5857188059 | Z55: 1.579880948 | AA55: 5.775489886 | AB55: 44.27875579 | AC55: 28.43816033 | AD55: 0.702862567 | AE55: 1.895857138 | AF55: 31.03688003 | AG55: 5.944010539 | AH55: 36.98089057 | AI55: 0.9479386775 | AJ55: 0.02342875223 | AK55: 0.06319523792 | AL55: 1.034562668 | AM55: 0.1981336846 | AN55: 2494.696231 | AO55: 1.232696352 | AP55: 151.2
B56: =B55+1 -> 3 | C56: =C55 -> 50 | D56: 2.5 | E56: =E55 -> 0.9 | F56: 2.25 | G56: =G$54 -> 0 | I56: 67.5 | J56: 3 | K56: 30 | L56: 9.635961836 | M56: 10 | N56: 10.73 | O56: 0.365 | P56: 10 | Q56: 0 | R56: 791.0629854 | S56: 2.28 | T56: 2.66 | U56: 2.85 | V56: 0.2130929012 | W56: 0.08340713295 | X56: 45.91211326 | Y56: 0 | Z56: 1.579880948 | AA56: 7.123799131 | AB56: 54.61579333 | AC56: 35.61899565 | AD56: 0 | AE56: 1.895857138 | AF56: 37.51485279 | AG56: 0 | AH56: 37.51485279 | AI56: 1.187299855 | AJ56: 0 | AK56: 0.06319523792 | AL56: 1.250495093 | AM56: 0 | AN56: 0 | AO56: 1.250495093 | AP56: 179.55
B57: =B56+1 -> 4 | C57: 50 | D57: 5 | E57: =E56 -> 0.9 | F57: 4.5 | G57: 0 | I57: 135 | J57: 3 | K57: 30 | L57: 10.99595166 | M57: 12 | N57: 12.75 | O57: 0.375 | P57: 12 | Q57: 1 | R57: 1582.125971 | S57: 1.53 | T57: 1.78 | U57: 1.91 | V57: 0.1488965301 | W57: 0.08324508951 | X57: 51.64593118 | Y57: 2.539256849 | Z57: 1.579880948 | AA57: 8.364760346 | AB57: 64.12982932 | AC57: 39.91935909 | AD57: 3.047108219 | AE57: 1.895857138 | AF57: 44.86232445 | AG57: 29.7200527 | AH57: 74.58237715 | AI57: 1.330645303 | AJ57: 0.101570274 | AK57: 0.06319523792 | AL57: 1.495410815 | AM57: 0.9906684232 | AN57: 12473.48115 | AO57: 2.486079238 | AP57: 240.3
B58: 5 | C58: 50 | D58: 7.5 | E58: 0.9 | F58: 6.75 | G58: 0 | I58: 202.5 | J58: 3 | K58: 30 | L58: 14.69350132 | M58: 16 | N58: 16 | O58: 0.419 | P58: 15.162 | Q58: 0 | R58: 2373.188956 | S58: 1.16 | T58: 1.35 | U58: 1.45 | V58: 0.7181156713 | W58: 0.08389256192 | X58: 70.88119252 | Y58: 0 | Z58: 1.579880948 | AA58: 10.86916102 | AB58: 83.33023449 | AC58: 54.3458051 | AD58: 0 | AE58: 1.895857138 | AF58: 56.24166224 | AG58: 0 | AH58: 56.24166224 | AI58: 1.811526837 | AJ58: 0 | AK58: 0.06319523792 | AL58: 1.874722075 | AM58: 0 | AN58: 0 | AO58: 1.874722075 | AP58: 273.375
B59: 6 | C59: 50 | D59: 10 | E59: 0.9 | F59: 9 | G59: 0 | I59: 270 | J59: 3 | K59: 30 | L59: 16.41218336 | M59: 20 | N59: 20 | O59: 0.524 | P59: 18.952 | Q59: 0 | R59: 3164.251941 | S59: 1.12 | T59: 1.3 | U59: 1.39 | V59: 0.8312459189 | W59: 0.08380214687 | X59: 91.98096367 | Y59: 0 | Z59: 1.579880948 | AA59: 14.03412669 | AB59: 107.5949713 | AC59: 70.17063347 | AD59: 0 | AE59: 1.895857138 | AF59: 72.0664906 | AG59: 0 | AH59: 72.0664906 | AI59: 2.339021116 | AJ59: 0 | AK59: 0.06319523792 | AL59: 2.402216353 | AM59: 0 | AN59: 0 | AO59: 2.402216353 | AP59: 351
B60: 7 | C60: 50 | D60: 15 | E60: 0.9 | F60: 13.5 | G60: 0 | I60: 405 | J60: 3 | K60: 30 | L60: 19.18300142 | M60: 24 | N60: 24 | O60: 0.629 | P60: 22.742 | Q60: 0 | R60: 4746.377912 | S60: 0.95 | T60: 1.11 | U60: 1.19 | V60: 0.1094823394 | W60: 0.08308782855 | X60: 118.4969564 | Y60: 0 | Z60: 1.579880948 | AA60: 18.01152561 | AB60: 138.088363 | AC60: 90.05762804 | AD60: 0 | AE60: 1.895857138 | AF60: 91.95348517 | AG60: 0 | AH60: 91.95348517 | AI60: 3.001920935 | AJ60: 0 | AK60: 0.06319523792 | AL60: 3.065116172 | AM60: 0 | AN60: 0 | AO60: 3.065116172 | AP60: 449.55
B61: 8 | C61: 50 | D61: 20 | E61: 0.9 | F61: 18 | G61: 0 | I61: 540 | J61: 3 | K61: 30 | L61: 21.42957807 | M61: 24 | N61: 24 | O61: 0.629 | P61: 22.742 | Q61: 0 | R61: 6328.503883 | S61: 0.72 | T61: 0.84 | U61: 0.9 | V61: 1.564186092 | W61: 0.08417403466 | X61: 118.4969564 | Y61: 0 | Z61: 1.579880948 | AA61: 18.01152561 | AB61: 138.088363 | AC61: 90.05762804 | AD61: 0 | AE61: 1.895857138 | AF61: 91.95348517 | AG61: 0 | AH61: 91.95348517 | AI61: 3.001920935 | AJ61: 0 | AK61: 0.06319523792 | AL61: 3.065116172 | AM61: 0 | AN61: 0 | AO61: 3.065116172 | AP61: 453.6
B62: 9 | C62: 50 | D62: 30 | E62: 0.9 | F62: 27 | G62: 0 | I62: 810 | J62: 3 | K62: 30 | L62: 25.05186825 | M62: 30 | N62: 30 | O62: 0.786 | P62: 28.428 | Q62: 0 | R62: 9492.755824 | S62: 0.63 | T62: 0.73 | U62: 0.78 | V62: 0.383396663 | W62: 0.08322254234 | X62: 157.7185002 | Y62: 0 | Z62: 1.579880948 | AA62: 23.89475718 | AB62: 183.1931384 | AC62: 119.4737859 | AD62: 0 | AE62: 1.895857138 | AF62: 121.369643 | AG62: 0 | AH62: 121.369643 | AI62: 3.98245953 | AJ62: 0 | AK62: 0.06319523792 | AL62: 4.045654768 | AM62: 0 | AN62: 0 | AO62: 4.045654768 | AP62: 591.3
B63: 10 | C63: 50 | D63: 40 | E63: 0.9 | F63: 36 | G63: 0 | I63: 1080 | J63: 3 | K63: 30 | L63: 27.98914052 | M63: 30 | N63: 30 | O63: 0.786 | P63: 28.428 | Q63: 0 | R63: 12657.00777 | S63: 0.48 | T63: 0.56 | U63: 0.6 | V63: 3.292804168 | W63: 0.08485845431 | X63: 157.7185002 | Y63: 0 | Z63: 1.579880948 | AA63: 23.89475718 | AB63: 183.1931384 | AC63: 119.4737859 | AD63: 0 | AE63: 1.895857138 | AF63: 121.369643 | AG63: 0 | AH63: 121.369643 | AI63: 3.98245953 | AJ63: 0 | AK63: 0.06319523792 | AL63: 4.045654768 | AM63: 0 | AN63: 0 | AO63: 4.045654768 | AP63: 604.8
B64: 11 | C64: 50 | D64: 50 | E64: 0.9 | F64: 45 | G64: 0 | I64: 1350 | J64: 3 | K64: 30 | L64: 30.50362763 | M64: 36 | N64: 36 | O64: 0.943 | P64: 34.114 | Q64: 0 | R64: 15821.25971 | S64: 0.49 | T64: 0.57 | U64: 0.61 | V64: 1.784504712 | W64: 0.08378706266 | X64: 204.0395018 | Y64: 0 | Z64: 1.579880948 | AA64: 30.84290741 | AB64: 236.4622902 | AC64: 154.2145371 | AD64: 0 | AE64: 1.895857138 | AF64: 156.1103942 | AG64: 0 | AH64: 156.1103942 | AI64: 5.140484569 | AJ64: 0 | AK64: 0.06319523792 | AL64: 5.203679807 | AM64: 0 | AN64: 0 | AO64: 5.203679807 | AP64: 769.5
B65: 12 | C65: 50 | D65: 100 | E65: 0.9 | F65: 90 | G65: 0 | I65: 2700 | J65: 3 | K65: 30 | L65: 39.85521373 | M65: 48 | N65: 48 | O65: 1.25 | P65: 45.5 | Q65: 0 | R65: 31642.51941 | S65: 0.38 | T65: 0.44 | U65: 0.47 | V65: 2.634388226 | W65: 0.08374954404 | X65: 317.9798783 | Y65: 0 | Z65: 1.579880948 | AA65: 47.93396389 | AB65: 367.4937231 | AC65: 239.6698194 | AD65: 0 | AE65: 1.895857138 | AF65: 241.5656766 | AG65: 0 | AH65: 241.5656766 | AI65: 7.988993981 | AJ65: 0 | AK65: 0.06319523792 | AL65: 8.052189219 | AM65: 0 | AN65: 0 | AO65: 8.052189219 | AP65: 1188
B66: 13 | C66: 100 | D66: 0.1 | E66: 0.9 | F66: 0.09 | G66: 0 | I66: 2.7 | J66: 3 | K66: 30 | L66: 3.221077017 | M66: 4 | N66: 4.474 | O66: 0.237 | P66: 4 | Q66: 0 | R66: 31.64251941 | S66: 78.42 | T66: 91.32 | U66: 97.77 | V66: 0.003953042548 | W66: 0.08301118744 | X66: 64.2462791 | Y66: 0 | Z66: 1.579880948 | AA66: 9.873924007 | AB66: 75.70008405 | AC66: 49.36962003 | AD66: 0 | AE66: 1.895857138 | AF66: 51.26547717 | AG66: 0 | AH66: 51.26547717 | AI66: 1.645654001 | AJ66: 0 | AK66: 0.06319523792 | AL66: 1.708849239 | AM66: 0 | AN66: 0 | AO66: 1.708849239 | AP66: 246.564
B67: 14 | C67: =C66 -> 100 | D67: 1 | E67: 0.9 | F67: 0.9 | G67: 0 | I67: 27 | J67: 3 | K67: 30 | L67: 5.931546804 | M67: 6 | N67: 6.56 | O67: 0.28 | P67: 6 | Q67: 3 | R67: 316.4251941 | S67: 9.56 | T67: 11.13 | U67: 11.92 | V67: 0.08250411142 | W67: 0.08310405643 | X67: 71.92753746 | Y67: 1.757156418 | Z67: 1.579880948 | AA67: 11.28968622 | AB67: 86.55426105 | AC67: 55.13056381 | AD67: 2.108587701 | AE67: 1.895857138 | AF67: 59.13500864 | AG67: 17.83203162 | AH67: 76.96704026 | AI67: 1.83768546 | AJ67: 0.0702862567 | AK67: 0.06319523792 | AL67: 1.971166955 | AM67: 0.5944010539 | AN67: 7484.088692 | AO67: 2.565568009 | AP67: 300.51
B68: 15 | C68: 100 | D68: 2.5 | E68: 0.9 | F68: 2.25 | G68: 0 | I68: 67.5 | J68: 3 | K68: 30 | L68: 9.635961836 | M68: 10 | N68: 10.73 | O68: 0.365 | P68: 10 | Q68: 1 | R68: 791.0629854 | S68: 4.67 | T68: 5.44 | U68: 5.82 | V68: 0.05806326072 | W68: 0.08306110543 | X68: 91.07643166 | Y68: 1.318295572 | Z68: 1.579880948 | AA68: 14.09619123 | AB68: 108.0707994 | AC68: 69.49223446 | AD68: 1.581954687 | AE68: 1.895857138 | AF68: 72.97004628 | AG68: 14.86002635 | AH68: 87.83007263 | AI68: 2.316407815 | AJ68: 0.05273182288 | AK68: 0.06319523792 | AL68: 2.432334876 | AM68: 0.4953342116 | AN68: 6236.740577 | AO68: 2.927669088 | AP68: 367.2
B69: 16 | C69: 100 | D69: 5 | E69: 0.9 | F69: 4.5 | G69: 0 | I69: 135 | J69: 3 | K69: 30 | L69: 11.62478777 | M69: 12 | N69: 12.75 | O69: 0.375 | P69: 12 | Q69: 2 | R69: 1582.125971 | S69: 2.99 | T69: 3.48 | U69: 3.73 | V69: 0.1275918725 | W69: 0.08311048574 | X69: 102.5440675 | Y69: 5.078513698 | Z69: 1.579880948 | AA69: 16.38036932 | AB69: 125.5828315 | AC69: 78.09296134 | AD69: 6.094216438 | AE69: 1.895857138 | AF69: 86.08303492 | AG69: 59.44010539 | AH69: 145.5231403 | AI69: 2.603098711 | AJ69: 0.2031405479 | AK69: 0.06319523792 | AL69: 2.869434497 | AM69: 1.981336846 | AN69: 24946.96231 | AO69: 4.850771344 | AP69: 469.8
B70: 17 | C70: 100 | D70: 7.5 | E70: 0.9 | F70: 6.75 | G70: 0 | I70: 202.5 | J70: 3 | K70: 30 | L70: 14.69350132 | M70: 16 | N70: 16 | O70: 0.419 | P70: 15.162 | Q70: 1 | R70: 2373.188956 | S70: 2.51 | T70: 2.92 | U70: 3.13 | V70: 0.02036371681 | W70: 0.08301829202 | X70: 140.9527488 | Y70: 3.760218126 | Z70: 1.579880948 | AA70: 21.94392719 | AB70: 168.2367751 | AC70: 106.8994723 | AD70: 4.512261751 | AE70: 1.895857138 | AF70: 113.3075912 | AG70: 44.58007905 | AH70: 157.8876703 | AI70: 3.563315745 | AJ70: 0.150408725 | AK70: 0.06319523792 | AL70: 3.776919708 | AM70: 1.486002635 | AN70: 18710.22173 | AO70: 5.262922342 | AP70: 591.3
B71: 18 | C71: 100 | D71: 10 | E71: 0.9 | F71: 9 | G71: 0 | I71: 270 | J71: 3 | K71: 30 | L71: 18.77187084 | M71: 20 | N71: 20 | O71: 0.524 | P71: 18.952 | Q71: 0 | R71: 3164.251941 | S71: 2.19 | T71: 2.55 | U71: 2.73 | V71: 0.1432382479 | W71: 0.08307543455 | X71: 183.1213705 | Y71: 0 | Z71: 1.579880948 | AA71: 27.70518771 | AB71: 212.4064391 | AC71: 138.5259386 | AD71: 0 | AE71: 1.895857138 | AF71: 140.4217957 | AG71: 0 | AH71: 140.4217957 | AI71: 4.617531285 | AJ71: 0 | AK71: 0.06319523792 | AL71: 4.680726523 | AM71: 0 | AN71: 0 | AO71: 4.680726523 | AP71: 688.5
B72: 19 | C72: 100 | D72: 15 | E72: 0.9 | F72: 13.5 | G72: 0 | I72: 405 | J72: 3 | K72: 30 | L72: 21.94120483 | M72: 24 | N72: 24 | O72: 0.629 | P72: 22.742 | Q72: 0 | R72: 4746.377912 | S72: 1.88 | T72: 2.19 | U72: 2.34 | V72: 0.6804027282 | W72: 0.08326312519 | X72: 236.1172819 | Y72: 0 | Z72: 1.579880948 | AA72: 35.65457442 | AB72: 273.3517372 | AC72: 178.2728721 | AD72: 0 | AE72: 1.895857138 | AF72: 180.1687292 | AG72: 0 | AH72: 180.1687292 | AI72: 5.94242907 | AJ72: 0 | AK72: 0.06319523792 | AL72: 6.005624308 | AM72: 0 | AN72: 0 | AO72: 6.005624308 | AP72: 886.95
B73: 20 | C73: 100 | D73: 20 | E73: 0.9 | F73: 18 | G73: 0 | I73: 540 | J73: 3 | K73: 30 | L73: 21.42957807 | M73: 24 | N73: 24 | O73: 0.629 | P73: 22.742 | Q73: 1 | R73: 6328.503883 | S73: 1.67 | T73: 1.94 | U73: 2.08 | V73: 1.902767521 | W73: 0.08369671055 | X73: 236.1172819 | Y73: 9.865024512 | Z73: 1.579880948 | AA73: 37.1343281 | AB73: 284.6965154 | AC73: 178.2728721 | AD73: 11.83802941 | AE73: 1.895857138 | AF73: 192.0067587 | AG73: 118.8802108 | AH73: 310.8869694 | AI73: 5.94242907 | AJ73: 0.3946009805 | AK73: 0.06319523792 | AL73: 6.400225289 | AM73: 3.962673693 | AN73: 49893.92461 | AO73: 10.36289898 | AP73: 1047.6
B74: 21 | C74: 100 | D74: 30 | E74: 0.9 | F74: 27 | G74: 0 | I74: 810 | J74: 3 | K74: 30 | L74: 25.05186825 | M74: 30 | N74: 30 | O74: 0.786 | P74: 28.428 | Q74: 1 | R74: 9492.755824 | S74: 1.5 | T74: 1.75 | U74: 1.87 | V74: 0.2142375331 | W74: 0.08306419875 | X74: 314.5603695 | Y74: 14.74886962 | Z74: 1.579880948 | AA74: 49.63336801 | AB74: 380.522488 | AC74: 237.1051878 | AD74: 17.69864354 | AE74: 1.895857138 | AF74: 256.6996885 | AG74: 178.3203162 | AH74: 435.0200047 | AI74: 7.90350626 | AJ74: 0.5899547848 | AK74: 0.06319523792 | AL74: 8.556656283 | AM74: 5.944010539 | AN74: 74840.88692 | AO74: 14.50066682 | AP74: 1417.5
B75: 22 | C75: 100 | D75: 40 | E75: 0.9 | F75: 36 | G75: 0 | I75: 1080 | J75: 3 | K75: 30 | L75: 27.98914052 | M75: 30 | N75: 30 | O75: 0.786 | P75: 28.428 | Q75: 1 | R75: 12657.00777 | S75: 1.19 | T75: 1.39 | U75: 1.49 | V75: 0.8872864026 | W75: 0.08324411804 | X75: 314.5603695 | Y75: 19.63271473 | Z75: 1.579880948 | AA75: 50.36594477 | AB75: 386.1389099 | AC75: 237.1051878 | AD75: 23.55925767 | AE75: 1.895857138 | AF75: 262.5603026 | AG75: 237.7604216 | AH75: 500.3207242 | AI75: 7.90350626 | AJ75: 0.7853085891 | AK75: 0.06319523792 | AL75: 8.752010088 | AM75: 7.925347386 | AN75: 99787.84922 | AO75: 16.67735747 | AP75: 1501.2
B76: 23 | C76: 100 | D76: 50 | E76: 0.9 | F76: 45 | G76: 0 | I76: 1350 | J76: 3 | K76: 30 | L76: 34.89083535 | M76: 42 | N76: 42 | O76: 1.1 | P76: 39.8 | Q76: 0 | R76: 15821.25971 | S76: 1.22 | T76: 1.42 | U76: 1.52 | V76: 1.328631008 | W76: 0.08323836682 | X76: 514.0432913 | Y76: 0 | Z76: 1.579880948 | AA76: 77.34347584 | AB76: 592.9666481 | AC76: 386.7173792 | AD76: 0 | AE76: 1.895857138 | AF76: 388.6132364 | AG76: 0 | AH76: 388.6132364 | AI76: 12.89057931 | AJ76: 0 | AK76: 0.06319523792 | AL76: 12.95377455 | AM76: 0 | AN76: 0 | AO76: 12.95377455 | AP76: 1917
B77: 24 | C77: 100 | D77: 100 | E77: 0.9 | F77: 90 | G77: 0 | I77: 2700 | J77: 3 | K77: 30 | L77: 39.85521373 | M77: 48 | N77: 48 | O77: 1.25 | P77: 45.5 | Q77: 1 | R77: 31642.51941 | S77: 1.01 | T77: 1.18 | U77: 1.26 | V77: 5.54835274 | W77: 0.08373723135 | X77: 635.0831256 | Y77: 48.93578538 | Z77: 1.579880948 | AA77: 102.8398188 | AB77: 788.4386107 | AC77: 477.4972549 | AD77: 58.72294245 | AE77: 1.895857138 | AF77: 538.1160545 | AG77: 594.4010539 | AH77: 1132.517108 | AI77: 15.91657516 | AJ77: 1.957431415 | AK77: 0.06319523792 | AL77: 17.93720182 | AM77: 19.81336846 | AN77: 249469.6231 | AO77: 37.75057028 | AP77: 3186
B78: 25 | C78: 300 | D78: 0.1 | E78: 0.9 | F78: 0.09 | G78: 0 | I78: 2.7 | J78: 3 | K78: 30 | L78: 3.9919809 | M78: 4 | N78: 4.474 | O78: 0.237 | P78: 4 | Q78: 0 | R78: 31.64251941 | S78: 228.6 | T78: 266.21 | U78: 285 | V78: 0.001189602723 | W78: 0.08300635308 | X78: 191.2432476 | Y78: 0 | Z78: 1.579880948 | AA78: 28.92346928 | AB78: 221.7465978 | AC78: 144.6173464 | AD78: 0 | AE78: 1.895857138 | AF78: 146.5132035 | AG78: 0 | AH78: 146.5132035 | AI78: 4.820578214 | AJ78: 0 | AK78: 0.06319523792 | AL78: 4.883773451 | AM78: 0 | AN78: 0 | AO78: 4.883773451 | AP78: 718.767
B79: 26 | C79: =C78 -> 300 | D79: 1 | E79: 0.9 | F79: 0.9 | G79: 0 | I79: 27 | J79: 3 | K79: 30 | L79: 5.931546804 | M79: 6 | N79: 6.56 | O79: 0.28 | P79: 6 | Q79: 11 | R79: 316.4251941 | S79: 28.53 | T79: 33.22 | U79: 35.57 | V79: 0.0851945914 | W79: 0.08304014115 | X79: 214.2870227 | Y79: 6.442906865 | Z79: 1.579880948 | AA79: 33.34647157 | AB79: 255.6562821 | AC79: 161.9001777 | AD79: 7.731488237 | AE79: 1.895857138 | AF79: 171.5275231 | AG79: 65.38411593 | AH79: 236.911639 | AI79: 5.396672591 | AJ79: 0.2577162746 | AK79: 0.06319523792 | AL79: 5.717584103 | AM79: 2.179470531 | AN79: 27441.65854 | AO79: 7.897054634 | AP79: 896.94
B80: 27 | C80: 300 | D80: 2.5 | E80: 0.9 | F80: 2.25 | G80: 0 | I80: 67.5 | J80: 3 | K80: 30 | L80: 9.982244957 | M80: 10 | N80: 10.73 | O80: 0.365 | P80: 10 | Q80: 4 | R80: 791.0629854 | S80: 14 | T80: 16.3 | U80: 17.45 | V80: 0.1207673036 | W80: 0.08304459094 | X80: 271.7337053 | Y80: 5.273182288 | Z80: 1.579880948 | AA80: 41.78801528 | AB80: 320.3747838 | AC80: 204.9851897 | AD80: 6.327818746 | AE80: 1.895857138 | AF80: 213.2088656 | AG80: 59.44010539 | AH80: 272.648971 | AI80: 6.832839656 | AJ80: 0.2109272915 | AK80: 0.06319523792 | AL80: 7.106962185 | AM80: 1.981336846 | AN80: 24946.96231 | AO80: 9.088299032 | AP80: 1100.25
B81: 28 | C81: 300 | D81: 5 | E81: 0.9 | F81: 4.5 | G81: 0 | I81: 135 | J81: 3 | K81: 30 | L81: 11.89264979 | M81: 12 | N81: 12.75 | O81: 0.375 | P81: 12 | Q81: 7 | R81: 1582.125971 | S81: 9.09 | T81: 10.59 | U81: 11.34 | V81: 0.2551647309 | W81: 0.08307603424 | X81: 306.1366128 | Y81: 17.77479794 | Z81: 1.579880948 | AA81: 48.82369376 | AB81: 374.3149855 | AC81: 230.7873703 | AD81: 21.32975753 | AE81: 1.895857138 | AF81: 254.012985 | AG81: 208.0403689 | AH81: 462.0533539 | AI81: 7.692912344 | AJ81: 0.7109919178 | AK81: 0.06319523792 | AL81: 8.4670995 | AM81: 6.934678963 | AN81: 87314.36807 | AO81: 15.40177846 | AP81: 1429.65
B82: 29 | C82: 300 | D82: 7.5 | E82: 0.9 | F82: 6.75 | G82: 0 | I82: 202.5 | J82: 3 | K82: 30 | L82: 14.69350132 | M82: 16 | N82: 16 | O82: 0.419 | P82: 15.162 | Q82: 5 | R82: 2373.188956 | S82: 7.95 | T82: 9.26 | U82: 9.91 | V82: 0.1387634035 | W82: 0.08303400413 | X82: 421.2389741 | Y82: 18.80109063 | Z82: 1.579880948 | AA82: 66.24299185 | AB82: 507.8629375 | AC82: 317.1141413 | AD82: 22.56130876 | AE82: 1.895857138 | AF82: 341.5713072 | AG82: 222.9003952 | AH82: 564.4717024 | AI82: 10.57047138 | AJ82: 0.7520436252 | AK82: 0.06319523792 | AL82: 11.38571024 | AM82: 7.430013174 | AN82: 93551.10865 | AO82: 18.81572341 | AP82: 1875.15
B83: 30 | C83: 300 | D83: 10 | E83: 0.9 | F83: 9 | G83: 0 | I83: 270 | J83: 3 | K83: 30 | L83: 18.77187084 | M83: 20 | N83: 20 | O83: 0.524 | P83: 18.952 | Q83: 2 | R83: 3164.251941 | S83: 7.01 | T83: 8.16 | U83: 8.74 | V83: 0.4294444141 | W83: 0.08307477643 | X83: 547.6829976 | Y83: 9.962358807 | Z83: 1.579880948 | AA83: 83.88378561 | AB83: 643.109023 | AC83: 411.9471589 | AD83: 11.95483057 | AE83: 1.895857138 | AF83: 425.7978466 | AG83: 118.8802108 | AH83: 544.6780574 | AI83: 13.73157196 | AJ83: 0.3984943523 | AK83: 0.06319523792 | AL83: 14.19326155 | AM83: 3.962673693 | AN83: 49893.92461 | AO83: 18.15593525 | AP83: 2203.2
B84: 31 | C84: 300 | D84: 15 | E84: 0.9 | F84: 13.5 | G84: 0 | I84: 405 | J84: 3 | K84: 30 | L84: 18.61894331 | M84: 20 | N84: 20 | O84: 0.524 | P84: 18.952 | Q84: 6 | R84: 4746.377912 | S84: 5.86 | T84: 6.82 | U84: 7.3 | V84: 0.7666447105 | W84: 0.08312196676 | X84: 547.6829976 | Y84: 44.53861174 | Z84: 1.579880948 | AA84: 89.07022355 | AB84: 682.8717139 | AC84: 411.9471589 | AD84: 53.44633409 | AE84: 1.895857138 | AF84: 467.2893502 | AG84: 534.9609485 | AH84: 1002.250299 | AI84: 13.73157196 | AJ84: 1.78154447 | AK84: 0.06319523792 | AL84: 15.57631167 | AM84: 17.83203162 | AN84: 224522.6608 | AO84: 33.40834329 | AP84: 2762.1
B85: 32 | C85: 300 | D85: 20 | E85: 0.9 | F85: 18 | G85: 0 | I85: 540 | J85: 3 | K85: 30 | L85: 22.19991098 | M85: 24 | N85: 24 | O85: 0.629 | P85: 22.742 | Q85: 4 | R85: 6328.503883 | S85: 5.2 | T85: 6.06 | U85: 6.49 | V85: 0.09512344307 | W85: 0.08301726242 | X85: 706.5985836 | Y85: 39.46009805 | Z85: 1.579880948 | AA85: 112.1457844 | AB85: 859.784347 | AC85: 531.1338484 | AD85: 47.35211766 | AE85: 1.895857138 | AF85: 580.3818232 | AG85: 475.5208432 | AH85: 1055.902666 | AI85: 17.70446161 | AJ85: 1.578403922 | AK85: 0.06319523792 | AL85: 19.34606077 | AM85: 15.85069477 | AN85: 199575.6984 | AO85: 35.19675554 | AP85: 3272.4
B86: 33 | C86: 300 | D86: 30 | E86: 0.9 | F86: 27 | G86: 0 | I86: 810 | J86: 3 | K86: 30 | L86: 27.09956411 | M86: 30 | N86: 30 | O86: 0.786 | P86: 28.428 | Q86: 3 | R86: 9492.755824 | S86: 4.48 | T86: 5.22 | U86: 5.59 | V86: 1.565588698 | W86: 0.08314870949 | X86: 941.9278464 | Y86: 44.24660886 | Z86: 1.579880948 | AA86: 148.1631504 | AB86: 1135.917487 | AC86: 707.6307955 | AD86: 53.09593063 | AE86: 1.895857138 | AF86: 762.6225833 | AG86: 534.9609485 | AH86: 1297.583532 | AI86: 23.58769318 | AJ86: 1.769864354 | AK86: 0.06319523792 | AL86: 25.42075278 | AM86: 17.83203162 | AN86: 224522.6608 | AO86: 43.25278439 | AP86: 4228.2
B87: 34 | C87: 300 | D87: 40 | E87: 0.9 | F87: 36 | G87: 0 | I87: 1080 | J87: 3 | K87: 30 | L87: 27.98914052 | M87: 30 | N87: 30 | O87: 0.786 | P87: 28.428 | Q87: 5 | R87: 12657.00777 | S87: 4.06 | T87: 4.73 | U87: 5.06 | V87: 2.902845361 | W87: 0.083257347 | X87: 941.9278464 | Y87: 98.16357364 | Z87: 1.579880948 | AA87: 156.2506951 | AB87: 1197.921996 | AC87: 707.6307955 | AD87: 117.7962884 | AE87: 1.895857138 | AF87: 827.322941 | AG87: 1188.802108 | AH87: 2016.125049 | AI87: 23.58769318 | AJ87: 3.926542946 | AK87: 0.06319523792 | AL87: 27.57743137 | AM87: 39.62673693 | AN87: 498939.2461 | AO87: 67.2041683 | AP87: 5108.4
B88: 35 | C88: 300 | D88: 50 | E88: 0.9 | F88: 45 | G88: 0 | I88: 1350 | J88: 3 | K88: 30 | L88: 32.99736922 | M88: 36 | N88: 36 | O88: 0.943 | P88: 34.114 | Q88: 3 | R88: 15821.25971 | S88: 3.65 | T88: 4.25 | U88: 4.55 | V88: 3.34270269 | W88: 0.08323885606 | X88: 1219.853856 | Y88: 73.54967951 | Z88: 1.579880948 | AA88: 194.2475125 | AB88: 1489.230929 | AC88: 916.0753026 | AD88: 88.25961541 | AE88: 1.895857138 | AF88: 1006.230775 | AG88: 891.6015809 | AH88: 1897.832356 | AI88: 30.53584342 | AJ88: 2.94198718 | AK88: 0.06319523792 | AL88: 33.54102584 | AM88: 29.7200527 | AN88: 374204.4346 | AO88: 63.26107854 | AP88: 5737.5
B89: 36 | C89: 300 | D89: 100 | E89: 0.9 | F89: 90 | G89: 0 | I89: 2700 | J89: 3 | K89: 30 | L89: 43.11436788 | M89: 48 | N89: 48 | O89: 1.25 | P89: 45.5 | Q89: 3 | R89: 31642.51941 | S89: 3.01 | T89: 3.51 | U89: 3.76 | V89: 3.990699296 | W89: 0.08318185737 | X89: 1903.496115 | Y89: 146.8073561 | Z89: 1.579880948 | AA89: 307.7825028 | AB89: 2359.665855 | AC89: 1428.806997 | AD89: 176.1688274 | AE89: 1.895857138 | AF89: 1606.871681 | AG89: 1783.203162 | AH89: 3390.074843 | AI89: 47.62689989 | AJ89: 5.872294245 | AK89: 0.06319523792 | AL89: 53.56238938 | AM89: 59.44010539 | AN89: 748408.8692 | AO89: 113.0024948 | AP89: 9477
B90: 37 | C90: 500 | D90: 0.1 | E90: 0.9 | F90: 0.09 | G90: 0 | I90: 2.7 | J90: 3 | K90: 30 | L90: 3.85189418 | M90: 4 | N90: 4.474 | O90: 0.237 | P90: 4 | Q90: 1 | R90: 31.64251941 | S90: 379.17 | T90: 441.56 | U90: 472.73 | V90: 0.00749803091 | W90: 0.08300790054 | X90: 318.2402161 | Y90: 0.1461727461 | Z90: 1.579880948 | AA90: 47.99494047 | AB90: 367.9612103 | AC90: 239.8650728 | AD90: 0.1754072953 | AE90: 1.895857138 | AF90: 241.9363372 | AG90: 0.5944010539 | AH90: 242.5307383 | AI90: 7.995502426 | AJ90: 0.005846909845 | AK90: 0.06319523792 | AL90: 8.064544574 | AM90: 0.01981336846 | AN90: 249.4696231 | AO90: 8.084357942 | AP90: 1192.212
B91: 38 | C91: =C90 -> 500 | D91: 1 | E91: 0.9 | F91: 0.9 | G91: 0 | I91: 27 | J91: 3 | K91: 30 | L91: 5.990606051 | M91: 6 | N91: 6.56 | O91: 0.28 | P91: 6 | Q91: 18 | R91: 316.4251941 | S91: 47.23 | T91: 55 | U91: 58.88 | V91: 0.04733288015 | W91: 0.08301730099 | X91: 356.6465079 | Y91: 10.54293851 | Z91: 1.579880948 | AA91: 55.3153991 | AB91: 424.0847265 | AC91: 268.6697916 | AD91: 12.65152621 | AE91: 1.895857138 | AF91: 283.217175 | AG91: 106.9921897 | AH91: 390.2093647 | AI91: 8.955659721 | AJ91: 0.4217175402 | AK91: 0.06319523792 | AL91: 9.440572499 | AM91: 3.566406324 | AN91: 44904.53215 | AO91: 13.00697882 | AP91: 1485
B92: 39 | C92: =C91 -> 500 | D92: 2.5 | E92: 0.9 | F92: 2.25 | G92: 0 | I92: 67.5 | J92: 3 | K92: 30 | L92: 9.834555063 | M92: 10 | N92: 10.73 | O92: 0.365 | P92: 10 | Q92: 8 | R92: 791.0629854 | S92: 23.59 | T92: 27.47 | U92: 29.41 | V92: 0.2280006179 | W92: 0.08304972192 | X92: 452.3909789 | Y92: 10.54636458 | Z92: 1.579880948 | AA92: 69.67758367 | AB92: 534.1948081 | AC92: 340.4781449 | AD92: 12.65563749 | AE92: 1.895857138 | AF92: 355.0296395 | AG92: 118.8802108 | AH92: 473.9098503 | AI92: 11.3492715 | AJ92: 0.4218545831 | AK92: 0.06319523792 | AL92: 11.83432132 | AM92: 3.962673693 | AN92: 49893.92461 | AO92: 15.79699501 | AP92: 1854.225
B93: 40 | C93: 500 | D93: 5 | E93: 0.9 | F93: 4.5 | G93: 0 | I93: 135 | J93: 3 | K93: 30 | L93: 11.95103983 | M93: 12 | N93: 12.75 | O93: 0.375 | P93: 12 | Q93: 12 | R93: 1582.125971 | S93: 15.19 | T93: 17.69 | U93: 18.94 | V93: 0.3827375894 | W93: 0.08306909068 | X93: 509.7291581 | Y93: 30.47108219 | Z93: 1.579880948 | AA93: 81.26701819 | AB93: 623.0471395 | AC93: 383.4817793 | AD93: 36.56529863 | AE93: 1.895857138 | AF93: 421.9429351 | AG93: 356.6406324 | AH93: 778.5835674 | AI93: 12.78272598 | AJ93: 1.218843288 | AK93: 0.06319523792 | AL93: 14.0647645 | AM93: 11.88802108 | AN93: 149681.7738 | AO93: 25.95278558 | AP93: 2388.15
B94: 41 | C94: 500 | D94: 7.5 | E94: 0.9 | F94: 6.75 | G94: 0 | I94: 202.5 | J94: 3 | K94: 30 | L94: 14.99635602 | M94: 16 | N94: 16 | O94: 0.419 | P94: 15.162 | Q94: 8 | R94: 2373.188956 | S94: 13.14 | T94: 15.3 | U94: 16.38 | V94: 0.6034612602 | W94: 0.08307966035 | X94: 701.5251994 | Y94: 30.08174501 | Z94: 1.579880948 | AA94: 109.9780238 | AB94: 843.1648491 | AC94: 527.3288102 | AD94: 36.09809401 | AE94: 1.895857138 | AF94: 565.3227614 | AG94: 356.6406324 | AH94: 921.9633938 | AI94: 17.57762701 | AJ94: 1.2032698 | AK94: 0.06319523792 | AL94: 18.84409205 | AM94: 11.88802108 | AN94: 149681.7738 | AO94: 30.73211313 | AP94: 3098.25
B95: 42 | C95: 500 | D95: 10 | E95: 0.9 | F95: 9 | G95: 0 | I95: 270 | J95: 3 | K95: 30 | L95: 18.77187084 | M95: 20 | N95: 20 | O95: 0.524 | P95: 18.952 | Q95: 4 | R95: 3164.251941 | S95: 11.83 | T95: 13.78 | U95: 14.75 | V95: 0.7156505803 | W95: 0.0830746462 | X95: 912.2446248 | Y95: 19.92471761 | Z95: 1.579880948 | AA95: 140.0623835 | AB95: 1073.811607 | AC95: 685.3683793 | AD95: 23.90966114 | AE95: 1.895857138 | AF95: 711.1738976 | AG95: 237.7604216 | AH95: 948.9343192 | AI95: 22.84561264 | AJ95: 0.7969887045 | AK95: 0.06319523792 | AL95: 23.70579659 | AM95: 7.925347386 | AN95: 99787.84922 | AO95: 31.63114397 | AP95: 3720.6
B96: 43 | C96: 500 | D96: 15 | E96: 0.9 | F96: 13.5 | G96: 0 | I96: 405 | J96: 3 | K96: 30 | L96: 18.83224025 | M96: 20 | N96: 20 | O96: 0.524 | P96: 18.952 | Q96: 10 | R96: 4746.377912 | S96: 9.75 | T96: 11.35 | U96: 12.15 | V96: 1.073074209 | W96: 0.08310351979 | X96: 912.2446248 | Y96: 74.23101957 | Z96: 1.579880948 | AA96: 148.2083288 | AB96: 1136.263854 | AC96: 685.3683793 | AD96: 89.07722349 | AE96: 1.895857138 | AF96: 776.3414599 | AG96: 891.6015809 | AH96: 1667.943041 | AI96: 22.84561264 | AJ96: 2.969240783 | AK96: 0.06319523792 | AL96: 25.87804866 | AM96: 29.7200527 | AN96: 374204.4346 | AO96: 55.59810136 | AP96: 4596.75
B97: 44 | C97: 500 | D97: 20 | E97: 0.9 | F97: 18 | G97: 0 | I97: 540 | J97: 3 | K97: 30 | L97: 22.37619531 | M97: 24 | N97: 24 | O97: 0.629 | P97: 22.742 | Q97: 7 | R97: 6328.503883 | S97: 8.74 | T97: 10.18 | U97: 10.9 | V97: 0.227084368 | W97: 0.08302219704 | X97: 1177.079885 | Y97: 69.05517158 | Z97: 1.579880948 | AA97: 187.1572407 | AB97: 1434.872178 | AC97: 883.9948247 | AD97: 82.8662059 | AE97: 1.895857138 | AF97: 968.7568877 | AG97: 832.1614755 | AH97: 1800.918363 | AI97: 29.46649416 | AJ97: 2.762206863 | AK97: 0.06319523792 | AL97: 32.29189626 | AM97: 27.73871585 | AN97: 349257.4723 | AO97: 60.03061211 | AP97: 5497.2
B98: 45 | C98: 500 | D98: 30 | E98: 0.9 | F98: 27 | G98: 0 | I98: 810 | J98: 3 | K98: 30 | L98: 27.65885435 | M98: 30 | N98: 30 | O98: 0.786 | P98: 28.428 | Q98: 5 | R98: 9492.755824 | S98: 7.45 | T98: 8.68 | U98: 9.29 | V98: 0.007532358552 | W98: 0.08300621311 | X98: 1569.295323 | Y98: 73.7443481 | Z98: 1.579880948 | AA98: 246.6929329 | AB98: 1891.312485 | AC98: 1178.156403 | AD98: 88.49321772 | AE98: 1.895857138 | AF98: 1268.545478 | AG98: 891.6015809 | AH98: 2160.147059 | AI98: 39.27188011 | AJ98: 2.949773924 | AK98: 0.06319523792 | AL98: 42.28484927 | AM98: 29.7200527 | AN98: 374204.4346 | AO98: 72.00490197 | AP98: 7030.8
B99: 46 | C99: 500 | D99: 40 | E99: 0.9 | F99: 36 | G99: 0 | I99: 1080 | J99: 3 | K99: 30 | L99: 33.43120906 | M99: 36 | N99: 36 | O99: 0.943 | P99: 34.114 | Q99: 3 | R99: 12657.00777 | S99: 6.77 | T99: 7.88 | U99: 8.44 | V99: 3.518709616 | W99: 0.08315750166 | X99: 2032.505339 | Y99: 58.89814418 | Z99: 1.579880948 | AA99: 313.9475046 | AB99: 2406.930869 | AC99: 1525.563915 | AD99: 70.67777302 | AE99: 1.895857138 | AF99: 1598.137545 | AG99: 713.2812647 | AH99: 2311.41881 | AI99: 50.8521305 | AJ99: 2.355925767 | AK99: 0.06319523792 | AL99: 53.27125151 | AM99: 23.77604216 | AN99: 299363.5477 | AO99: 77.04729366 | AP99: 8510.4
B100: 47 | C100: 500 | D100: 50 | E100: 0.9 | F100: 45 | G100: 0 | I100: 1350 | J100: 3 | K100: 30 | L100: 33.67846177 | M100: 36 | N100: 36 | O100: 0.943 | P100: 34.114 | Q100: 5 | R100: 15821.25971 | S100: 6.07 | T100: 7.07 | U100: 7.57 | V100: 1.353051509 | W100: 0.0830624727 | X100: 2032.505339 | Y100: 122.5827992 | Z100: 1.579880948 | AA100: 323.5002029 | AB100: 2480.168222 | AC100: 1525.563915 | AD100: 147.099359 | AE100: 1.895857138 | AF100: 1674.559131 | AG100: 1486.002635 | AH100: 3160.561766 | AI100: 50.8521305 | AJ100: 4.903311967 | AK100: 0.06319523792 | AL100: 55.81863771 | AM100: 49.53342116 | AN100: 623674.0577 | AO100: 105.3520589 | AP100: 9544.5
B101: 48 | C101: 500 | D101: 100 | E101: 0.9 | F101: 90 | G101: 0 | I101: 2700 | J101: 3 | K101: 30 | L101: 44.00447041 | M101: 48 | N101: 48 | O101: 1.25 | P101: 45.5 | Q101: 5 | R101: 31642.51941 | S101: 5.01 | T101: 5.83 | U101: 6.24 | V101: 2.433045852 | W101: 0.08307025423 | X101: 3171.909104 | Y101: 244.6789269 | Z101: 1.579880948 | AA101: 512.7251868 | AB101: 3930.893099 | AC101: 2380.116739 | AD101: 293.6147123 | AE101: 1.895857138 | AF101: 2675.627308 | AG101: 2972.00527 | AH101: 5647.632578 | AI101: 79.33722462 | AJ101: 9.787157076 | AK101: 0.06319523792 | AL101: 89.18757694 | AM101: 99.06684232 | AN101: 1247348.115 | AO101: 188.2544193 | AP101: 15741
B102: 49 | C102: 750 | D102: 0.1 | E102: 0.9 | F102: 0.09 | G102: 0 | I102: 2.7 | J102: 3 | K102: 30 | L102: 3.85189418 | M102: 4 | N102: 4.474 | O102: 0.237 | P102: 4 | Q102: 2 | R102: 31.64251941 | S102: 567.28 | T102: 660.62 | U102: 707.26 | V102: 0.008266586633 | W102: 0.08300734731 | X102: 476.9864267 | Y102: 0.2923454922 | Z102: 1.579880948 | AA102: 71.82879797 | AB102: 550.6874511 | AC102: 358.9247307 | AD102: 0.3508145907 | AE102: 1.895857138 | AF102: 361.1714025 | AG102: 1.188802108 | AH102: 362.3602046 | AI102: 11.96415769 | AJ102: 0.01169381969 | AK102: 0.06319523792 | AL102: 12.03904675 | AM102: 0.03962673693 | AN102: 498.9392461 | AO102: 12.07867349 | AP102: 1783.674
B103: 50 | C103: =C102 -> 750 | D103: 1 | E103: 0.9 | F103: 0.9 | G103: 0 | I103: 27 | J103: 3 | K103: 30 | L103: 5.970514455 | M103: 6 | N103: 6.56 | O103: 0.28 | P103: 6 | Q103: 28 | R103: 316.4251941 | S103: 70.94 | T103: 82.61 | U103: 88.44 | V103: 0.02645091758 | W103: 0.08301008917 | X103: 534.5958644 | Y103: 16.40012656 | Z103: 1.579880948 | AA103: 82.88638079 | AB103: 635.4622527 | AC103: 402.131809 | AD103: 19.68015188 | AE103: 1.895857138 | AF103: 423.707818 | AG103: 166.4322951 | AH103: 590.1401131 | AI103: 13.40439363 | AJ103: 0.6560050626 | AK103: 0.06319523792 | AL103: 14.12359393 | AM103: 5.54774317 | AN103: 69851.49446 | AO103: 19.6713371 | AP103: 2230.47
B104: 51 | C104: =C103 -> 750 | D104: 2.5 | E104: 0.9 | F104: 2.25 | G104: 0 | I104: 67.5 | J104: 3 | K104: 30 | L104: 9.906699779 | M104: 10 | N104: 10.73 | O104: 0.365 | P104: 10 | Q104: 12 | R104: 791.0629854 | S104: 35.31 | T104: 41.12 | U104: 44.02 | V104: 0.1356750203 | W104: 0.08302325383 | X104: 678.212571 | Y104: 15.81954687 | Z104: 1.579880948 | AA104: 104.3417998 | AB104: 799.9537986 | AC104: 509.8443389 | AD104: 18.98345624 | AE104: 1.895857138 | AF104: 530.7236523 | AG104: 178.3203162 | AH104: 709.0439685 | AI104: 16.9948113 | AJ104: 0.6327818746 | AK104: 0.06319523792 | AL104: 17.69078841 | AM104: 5.944010539 | AN104: 74840.88692 | AO104: 23.63479895 | AP104: 2775.6
B105: 52 | C105: 750 | D105: 5 | E105: 0.9 | F105: 4.5 | G105: 0 | I105: 135 | J105: 3 | K105: 30 | L105: 11.89264979 | M105: 12 | N105: 12.75 | O105: 0.375 | P105: 12 | Q105: 19 | R105: 1582.125971 | S105: 23 | T105: 26.78 | U105: 28.67 | V105: 0.2168960282 | W105: 0.08302967497 | X105: 764.2198398 | Y105: 48.24588013 | Z105: 1.579880948 | AA105: 122.1068401 | AB105: 936.152441 | AC105: 574.3497905 | AD105: 57.89505616 | AE105: 1.895857138 | AF105: 634.1407038 | AG105: 564.6810012 | AH105: 1198.821705 | AI105: 19.14499302 | AJ105: 1.929835205 | AK105: 0.06319523792 | AL105: 21.13802346 | AM105: 18.82270004 | AN105: 236996.1419 | AO105: 39.9607235 | AP105: 3615.3
B106: 53 | C106: 750 | D106: 7.5 | E106: 0.9 | F106: 6.75 | G106: 0 | I106: 202.5 | J106: 3 | K106: 30 | L106: 15.10637257 | M106: 16 | N106: 16 | O106: 0.419 | P106: 15.162 | Q106: 12 | R106: 2373.188956 | S106: 19.68 | T106: 22.92 | U106: 24.54 | V106: 0.3704071624 | W106: 0.08303605968 | X106: 1051.882981 | Y106: 45.12261751 | Z106: 1.579880948 | AA106: 164.7878219 | AB106: 1263.373301 | AC106: 790.0971464 | AD106: 54.14714102 | AE106: 1.895857138 | AF106: 846.1401446 | AG106: 534.9609485 | AH106: 1381.101093 | AI106: 26.33657155 | AJ106: 1.804904701 | AK106: 0.06319523792 | AL106: 28.20467149 | AM106: 17.83203162 | AN106: 224522.6608 | AO106: 46.0367031 | AP106: 4641.3
B107: 54 | C107: 750 | D107: 10 | E107: 0.9 | F107: 9 | G107: 0 | I107: 270 | J107: 3 | K107: 30 | L107: 18.53832946 | M107: 20 | N107: 20 | O107: 0.524 | P107: 18.952 | Q107: 7 | R107: 3164.251941 | S107: 17.98 | T107: 20.94 | U107: 22.42 | V107: 0.8631649991 | W107: 0.08306101664 | X107: 1367.946659 | Y107: 34.86825582 | Z107: 1.579880948 | AA107: 210.6592193 | AB107: 1615.054015 | AC107: 1027.144905 | AD107: 41.84190699 | AE107: 1.895857138 | AF107: 1070.882669 | AG107: 416.0807378 | AH107: 1486.963407 | AI107: 34.23816349 | AJ107: 1.394730233 | AK107: 0.06319523792 | AL107: 35.69608896 | AM107: 13.86935793 | AN107: 174628.7361 | AO107: 49.56544689 | AP107: 5653.8
B108: 55 | C108: 750 | D108: 15 | E108: 0.9 | F108: 13.5 | G108: 0 | I108: 405 | J108: 3 | K108: 30 | L108: 18.94477072 | M108: 20 | N108: 20 | O108: 0.524 | P108: 18.952 | Q108: 15 | R108: 4746.377912 | S108: 14.61 | T108: 17.01 | U108: 18.21 | V108: 1.092435144 | W108: 0.08307218083 | X108: 1367.946659 | Y108: 111.3465294 | Z108: 1.579880948 | AA108: 222.1309604 | AB108: 1703.004029 | AC108: 1027.144905 | AD108: 133.6158352 | AE108: 1.895857138 | AF108: 1162.656597 | AG108: 1337.402371 | AH108: 2500.058969 | AI108: 34.23816349 | AJ108: 4.453861174 | AK108: 0.06319523792 | AL108: 38.75521991 | AM108: 44.58007905 | AN108: 561306.6519 | AO108: 83.33529895 | AP108: 6889.05
B109: 56 | C109: 750 | D109: 20 | E109: 0.9 | F109: 18 | G109: 0 | I109: 540 | J109: 3 | K109: 30 | L109: 22.37619531 | M109: 24 | N109: 24 | O109: 0.629 | P109: 22.742 | Q109: 11 | R109: 6328.503883 | S109: 13.23 | T109: 15.41 | U109: 16.5 | V109: 0.6976267225 | W109: 0.08303931628 | X109: 1765.181512 | Y109: 108.5152696 | Z109: 1.579880948 | AA109: 281.2914995 | AB109: 2156.568162 | AC109: 1325.071045 | AD109: 130.2183236 | AE109: 1.895857138 | AF109: 1457.185226 | AG109: 1307.682319 | AH109: 2764.867544 | AI109: 44.16903483 | AJ109: 4.340610785 | AK109: 0.06319523792 | AL109: 48.57284086 | AM109: 43.58941062 | AN109: 548833.1707 | AO109: 92.16225148 | AP109: 8321.4
B110: 57 | C110: 750 | D110: 30 | E110: 0.9 | F110: 27 | G110: 0 | I110: 810 | J110: 3 | K110: 30 | L110: 28.29793689 | M110: 30 | N110: 30 | O110: 0.786 | P110: 28.428 | Q110: 7 | R110: 9492.755824 | S110: 11.05 | T110: 12.87 | U110: 13.78 | V110: 2.203718236 | W110: 0.08308663058 | X110: 2353.50467 | Y110: 103.2420873 | Z110: 1.579880948 | AA110: 368.7489957 | AB110: 2827.075633 | AC110: 1766.313413 | AD110: 123.8905048 | AE110: 1.895857138 | AF110: 1892.099775 | AG110: 1248.242213 | AH110: 3140.341988 | AI110: 58.87711376 | AJ110: 4.129683494 | AK110: 0.06319523792 | AL110: 63.06999249 | AM110: 41.60807378 | AN110: 523886.2084 | AO110: 104.6780663 | AP110: 10424.7
B111: 58 | C111: 750 | D111: 40 | E111: 0.9 | F111: 36 | G111: 0 | I111: 1080 | J111: 3 | K111: 30 | L111: 28.36574261 | M111: 30 | N111: 30 | O111: 0.786 | P111: 28.428 | Q111: 13 | R111: 12657.00777 | S111: 10.25 | T111: 11.94 | U111: 12.78 | V111: 1.959982981 | W111: 0.08307361858 | X111: 2353.50467 | Y111: 255.2252915 | Z111: 1.579880948 | AA111: 391.5464763 | AB111: 3001.856318 | AC111: 1766.313413 | AD111: 306.2703498 | AE111: 1.895857138 | AF111: 2074.47962 | AG111: 3090.88548 | AH111: 5165.3651 | AI111: 58.87711376 | AJ111: 10.20901166 | AK111: 0.06319523792 | AL111: 69.14932066 | AM111: 103.029516 | AN111: 1297242.04 | AO111: 172.1788367 | AP111: 12895.2
B112: 59 | C112: 750 | D112: 50 | E112: 0.9 | F112: 45 | G112: 0 | I112: 1350 | J112: 3 | K112: 30 | L112: 33.67846177 | M112: 36 | N112: 36 | O112: 0.943 | P112: 34.114 | Q112: 8 | R112: 15821.25971 | S112: 9.23 | T112: 10.75 | U112: 11.51 | V112: 2.911249488 | W112: 0.08308681743 | X112: 3048.319693 | Y112: 196.1324787 | Z112: 1.579880948 | AA112: 486.9048079 | AB112: 3732.936861 | AC112: 2287.424681 | AD112: 235.3589744 | AE112: 1.895857138 | AF112: 2524.679512 | AG112: 2377.604216 | AH112: 4902.283728 | AI112: 76.24748935 | AJ112: 7.845299148 | AK112: 0.06319523792 | AL112: 84.15598374 | AM112: 79.25347386 | AN112: 997878.4922 | AO112: 163.4094576 | AP112: 14512.5
B113: 60 | C113: 750 | D113: 100 | E113: 0.9 | F113: 90 | G113: 0 | I113: 2700 | J113: 3 | K113: 30 | L113: 45.02151899 | M113: 48 | N113: 48 | O113: 1.25 | P113: 45.5 | Q113: 7 | R113: 31642.51941 | S113: 7.39 | T113: 8.61 | U113: 9.22 | V113: 6.880626189 | W113: 0.08312789416 | X113: 4757.42534 | Y113: 342.5504976 | Z113: 1.579880948 | AA113: 765.2333579 | AB113: 5866.789077 | AC113: 3569.253916 | AD113: 411.0605972 | AE113: 1.895857138 | AF113: 3982.21037 | AG113: 4160.807378 | AH113: 8143.017748 | AI113: 118.9751305 | AJ113: 13.70201991 | AK113: 0.06319523792 | AL113: 132.7403457 | AM113: 138.6935793 | AN113: 1746287.361 | AO113: 271.4339249 | AP113: 23247
B114: 61 | C114: 1000 | D114: 0.1 | E114: 0.9 | F114: 0.09 | G114: 0 | I114: 2.7 | J114: 3 | K114: 30 | L114: 3.85189418 | M114: 4 | N114: 4.474 | O114: 0.237 | P114: 4 | Q114: 3 | R114: 31.64251941 | S114: 755.39 | T114: 879.69 | U114: 941.8 | V114: 0.009035142357 | W114: 0.08300706978 | X114: 635.7326373 | Y114: 0.4385182384 | Z114: 1.579880948 | AA114: 95.66265548 | AB114: 733.413692 | AC114: 477.9843887 | AD114: 0.526221886 | AE114: 1.895857138 | AF114: 480.4064677 | AG114: 1.783203162 | AH114: 482.1896709 | AI114: 15.93281296 | AJ114: 0.01754072953 | AK114: 0.06319523792 | AL114: 16.01354892 | AM114: 0.05944010539 | AN114: 748.4088692 | AO114: 16.07298903 | AP114: 2375.163
B115: 62 | C115: =C114 -> 1000 | D115: 1 | E115: 0.9 | F115: 0.9 | G115: 0 | I115: 27 | J115: 3 | K115: 30 | L115: 5.990606051 | M115: 6 | N115: 6.56 | O115: 0.28 | P115: 6 | Q115: 37 | R115: 316.4251941 | S115: 94.39 | T115: 109.92 | U115: 117.68 | V115: 0.06199701395 | W115: 0.08301334944 | X115: 712.545221 | Y115: 21.67159582 | Z115: 1.579880948 | AA115: 110.3695047 | AB115: 846.1662024 | AC115: 535.5938264 | AD115: 26.00591498 | AE115: 1.895857138 | AF115: 563.4955985 | AG115: 219.92839 | AH115: 783.4239885 | AI115: 17.85312755 | AJ115: 0.8668638327 | AK115: 0.06319523792 | AL115: 18.78318662 | AM115: 7.330946332 | AN115: 92303.76053 | AO115: 26.11413295 | AP115: 2967.84
B116: 63 | C116: =C115 -> 1000 | D116: 2.5 | E116: 0.9 | F116: 2.25 | G116: 0 | I116: 67.5 | J116: 3 | K116: 30 | L116: 9.944029059 | M116: 10 | N116: 10.73 | O116: 0.365 | P116: 10 | Q116: 16 | R116: 791.0629854 | S116: 47.03 | T116: 54.77 | U116: 58.64 | V116: 0.04334942266 | W116: 0.08300998605 | X116: 904.034163 | Y116: 21.09272915 | Z116: 1.579880948 | AA116: 139.006016 | AB116: 1065.712789 | AC116: 679.210533 | AD116: 25.31127498 | AE116: 1.895857138 | AF116: 706.4176651 | AG116: 237.7604216 | AH116: 944.1780867 | AI116: 22.6403511 | AJ116: 0.8437091661 | AK116: 0.06319523792 | AL116: 23.5472555 | AM116: 7.925347386 | AN116: 99787.84922 | AO116: 31.47260289 | AP116: 3696.975
B117: 64 | C117: 1000 | D117: 5 | E117: 0.9 | F117: 4.5 | G117: 0 | I117: 135 | J117: 3 | K117: 30 | L117: 11.95103983 | M117: 12 | N117: 12.75 | O117: 0.375 | P117: 12 | Q117: 25 | R117: 1582.125971 | S117: 30.56 | T117: 35.59 | U117: 38.1 | V117: 0.323164229 | W117: 0.08303251779 | X117: 1018.710521 | Y117: 63.48142123 | Z117: 1.579880948 | AA117: 162.5657735 | AB117: 1246.337597 | AC117: 765.2178018 | AD117: 76.17770548 | AE117: 1.895857138 | AF117: 843.2913644 | AG117: 743.0013174 | AH117: 1586.292682 | AI117: 25.50726006 | AJ117: 2.539256849 | AK117: 0.06319523792 | AL117: 28.10971215 | AM117: 24.76671058 | AN117: 311837.0288 | AO117: 52.87642273 | AP117: 4804.65
B118: 65 | C118: 1000 | D118: 7.5 | E118: 0.9 | F118: =D118*E118 -> 6.75 | G118: 0 | I118: 202.5 | J118: 3 | K118: 30 | L118: 14.99635602 | M118: 16 | N118: 16 | O118: 0.419 | P118: 15.162 | Q118: 17 | R118: 2373.188956 | S118: 26.48 | T118: 30.84 | U118: 33.02 | V118: 0.5184067708 | W118: 0.08303750056 | X118: 1402.240763 | Y118: 63.92370815 | Z118: 1.579880948 | AA118: 220.1616527 | AB118: 1687.906004 | AC118: 1052.865483 | AD118: 76.70844978 | AE118: 1.895857138 | AF118: 1131.46979 | AG118: 757.8613438 | AH118: 1889.331133 | AI118: 35.09551609 | AJ118: 2.556948326 | AK118: 0.06319523792 | AL118: 37.71565965 | AM118: 25.26204479 | AN118: 318073.7694 | AO118: 62.97770444 | AP118: 6245.1
B119: =B118+1 -> 66 | C119: 1000 | D119: 10 | E119: 0.9 | F119: 9 | G119: 0 | I119: 270 | J119: 3 | K119: 30 | L119: 18.77187084 | M119: 20 | N119: 20 | O119: 0.524 | P119: 18.952 | Q119: 9 | R119: 3164.251941 | S119: 23.87 | T119: 27.8 | U119: 29.76 | V119: 0.4613634942 | W119: 0.08302796553 | X119: 1823.648693 | Y119: 44.83061463 | Z119: 1.579880948 | AA119: 280.5088782 | AB119: 2150.568067 | AC119: 1368.92143 | AD119: 53.79673756 | AE119: 1.895857138 | AF119: 1424.614025 | AG119: 534.9609485 | AH119: 1959.574974 | AI119: 45.63071434 | AJ119: 1.793224585 | AK119: 0.06319523792 | AL119: 47.48713417 | AM119: 17.83203162 | AN119: 224522.6608 | AO119: 65.31916578 | AP119: 7506
B120: 67 | C120: 1000 | D120: 15 | E120: 0.9 | F120: 13.5 | G120: =G$54 -> 0 | I120: 405 | J120: 3 | K120: 30 | L120: 18.83224025 | M120: 20 | N120: 20 | O120: 0.524 | P120: 18.952 | Q120: 21 | R120: 4746.377912 | S120: 19.72 | T120: 22.96 | U120: 24.58 | V120: 0.5429326845 | W120: 0.08303046602 | X120: 1823.648693 | Y120: 155.8851411 | Z120: 1.579880948 | AA120: 297.1670572 | AB120: 2278.280772 | AC120: 1368.92143 | AD120: 187.0621693 | AE120: 1.895857138 | AF120: 1557.879457 | AG120: 1872.36332 | AH120: 3430.242777 | AI120: 45.63071434 | AJ120: 6.235405644 | AK120: 0.06319523792 | AL120: 51.92931522 | AM120: 62.41211066 | AN120: 785829.3126 | AO120: 114.3414259 | AP120: 9298.8
B121: 68 | C121: 1000 | D121: 20 | E121: =E120 -> 0.9 | F121: 18 | G121: 0 | I121: 540 | J121: 3 | K121: 30 | L121: 22.65779263 | M121: 24 | N121: 24 | O121: 0.629 | P121: 22.742 | Q121: 14 | R121: 6328.503883 | S121: 17.47 | T121: 20.34 | U121: 21.78 | V121: 1.885409287 | W121: 0.08307392479 | X121: 2353.28314 | Y121: 138.1103432 | Z121: 1.579880948 | AA121: 373.9460046 | AB121: 2866.919368 | AC121: 1766.147265 | AD121: 165.7324118 | AE121: 1.895857138 | AF121: 1933.775534 | AG121: 1664.322951 | AH121: 3598.098485 | AI121: 58.87157551 | AJ121: 5.524413726 | AK121: 0.06319523792 | AL121: 64.45918448 | AM121: 55.4774317 | AN121: 698514.9446 | AO121: 119.9366162 | AP121: 10983.6
B122: 69 | C122: 1000 | D122: 30 | E122: 0.9 | F122: 27 | G122: 0 | I122: 810 | J122: 3 | K122: 30 | L122: 28.12954283 | M122: 30 | N122: 30 | O122: 0.786 | P122: 28.428 | Q122: 10 | R122: 9492.755824 | S122: 14.89 | T122: 17.34 | U122: 18.56 | V122: 0.4765027665 | W122: 0.08301887596 | X122: 3137.714016 | Y122: 147.4886962 | Z122: 1.579880948 | AA122: 493.0173889 | AB122: 3779.799982 | AC122: 2354.470422 | AD122: 176.9864354 | AE122: 1.895857138 | AF122: 2533.352715 | AG122: 1783.203162 | AH122: 4316.555877 | AI122: 78.48234742 | AJ122: 5.899547848 | AK122: 0.06319523792 | AL122: 84.4450905 | AM122: 59.44010539 | AN122: 748408.8692 | AO122: 143.8851959 | AP122: 14045.4
B123: 70 | C123: 1000 | D123: 40 | E123: 0.9 | F123: 36 | G123: 0 | I123: 1080 | J123: 3 | K123: 30 | L123: 33.43120906 | M123: 36 | N123: 36 | O123: 0.943 | P123: 34.114 | Q123: 7 | R123: 12657.00777 | S123: 13.77 | T123: 16.04 | U123: 17.17 | V123: 1.339097298 | W123: 0.0830345618 | X123: 4064.134047 | Y123: 137.4290031 | Z123: 1.579880948 | AA123: 630.4714397 | AB123: 4833.614371 | AC123: 3049.285446 | AD123: 164.9148037 | AE123: 1.895857138 | AF123: 3216.096107 | AG123: 1664.322951 | AH123: 4880.419058 | AI123: 101.6428482 | AJ123: 5.497160124 | AK123: 0.06319523792 | AL123: 107.2032036 | AM123: 55.4774317 | AN123: 698514.9446 | AO123: 162.6806353 | AP123: 17323.2
B124: 71 | C124: 1000 | D124: 50 | E124: 0.9 | F124: 45 | G124: 0 | I124: 1350 | J124: 3 | K124: 30 | L124: 33.67846177 | M124: 36 | N124: 36 | O124: 0.943 | P124: 34.114 | Q124: 11 | R124: 15821.25971 | S124: 12.39 | T124: 14.43 | U124: 15.45 | V124: 4.469447467 | W124: 0.08309892823 | X124: 4064.134047 | Y124: 269.6821582 | Z124: 1.579880948 | AA124: 650.309413 | AB124: 4985.705499 | AC124: 3049.285446 | AD124: 323.6185898 | AE124: 1.895857138 | AF124: 3374.799893 | AG124: 3269.205797 | AH124: 6644.00569 | AI124: 101.6428482 | AJ124: 10.78728633 | AK124: 0.06319523792 | AL124: 112.4933298 | AM124: 108.9735266 | AN124: 1372082.927 | AO124: 221.4668563 | AP124: 19480.5
B125: 72 | C125: 1000 | D125: 100 | E125: 0.9 | F125: 90 | G125: 0 | I125: 2700 | J125: 3 | K125: 30 | L125: 44.75353782 | M125: 48 | N125: 48 | O125: 1.25 | P125: 45.5 | Q125: 10 | R125: 31642.51941 | S125: 10.02 | T125: 11.67 | U125: 12.49 | V125: 8.236937258 | W125: 0.08311492734 | X125: 6342.941577 | Y125: 489.3578538 | Z125: 1.579880948 | AA125: 1025.081897 | AB125: 7858.961208 | AC125: 4758.391093 | AD125: 587.2294245 | AE125: 1.895857138 | AF125: 5347.516375 | AG125: 5944.010539 | AH125: 11291.52691 | AI125: 158.6130364 | AJ125: 19.57431415 | AK125: 0.06319523792 | AL125: 178.2505458 | AM125: 198.1336846 | AN125: 2494696.231 | AO125: 376.3842305 | AP125: 31509
B126: 73 | C126: 1250 | D126: 0.1 | E126: 0.9 | F126: 0.09 | G126: 0 | I126: 2.7 | J126: 3 | K126: 30 | L126: 3.85189418 | M126: 4 | N126: 4.474 | O126: 0.237 | P126: 4 | Q126: 4 | R126: 31.64251941 | S126: 943.49 | T126: 1098.74 | U126: 1176.31 | V126: 0.0001056730637 | W126: 0.08300581189 | X126: 794.478848 | Y126: 0.5846909845 | Z126: 1.579880948 | AA126: 119.496513 | AB126: 916.1399329 | AC126: 597.0440467 | AD126: 0.7016291814 | AE126: 1.895857138 | AF126: 599.641533 | AG126: 2.377604216 | AH126: 602.0191372 | AI126: 19.90146822 | AJ126: 0.02338763938 | AK126: 0.06319523792 | AL126: 19.9880511 | AM126: 0.07925347386 | AN126: 997.8784922 | AO126: 20.06730457 | AP126: 2966.598
B127: 74 | C127: =C126 -> 1250 | D127: 1 | E127: 0.9 | F127: 0.9 | G127: 0 | I127: 27 | J127: 3 | K127: 30 | L127: 5.978500991 | M127: 6 | N127: 6.56 | O127: 0.28 | P127: 6 | Q127: 47 | R127: 316.4251941 | S127: 118.1 | T127: 137.53 | U127: 147.24 | V127: 0.04111505137 | W127: 0.08300980595 | X127: 890.4945775 | Y127: 27.52878388 | Z127: 1.579880948 | AA127: 137.9404863 | AB127: 1057.543729 | AC127: 669.0558438 | AD127: 33.03454065 | AE127: 1.895857138 | AF127: 703.9862416 | AG127: 279.3684954 | AH127: 983.354737 | AI127: 22.30186146 | AJ127: 1.101151355 | AK127: 0.06319523792 | AL127: 23.46620805 | AM127: 9.312283178 | AN127: 117250.7228 | AO127: 32.77849123 | AP127: 3713.31
B128: 75 | C128: =C127 -> 1250 | D128: 2.5 | E128: 0.9 | F128: 2.25 | G128: 0 | I128: 67.5 | J128: 3 | K128: 30 | L128: 9.966849734 | M128: 10 | N128: 10.73 | O128: 0.365 | P128: 10 | Q128: 20 | R128: 791.0629854 | S128: 58.76 | T128: 68.43 | U128: 73.26 | V128: 0.1934744504 | W128: 0.08302075313 | X128: 1129.855755 | Y128: 26.36591144 | Z128: 1.579880948 | AA128: 173.6702321 | AB128: 1331.47178 | AC128: 848.576727 | AD128: 31.63909373 | AE128: 1.895857138 | AF128: 882.1116778 | AG128: 297.200527 | AH128: 1179.312205 | AI128: 28.2858909 | AJ128: 1.054636458 | AK128: 0.06319523792 | AL128: 29.40372259 | AM128: 9.906684232 | AN128: 124734.8115 | AO128: 39.31040683 | AP128: 4619.025
B129: 76 | C129: 1250 | D129: 5 | E129: 0.9 | F129: 4.5 | G129: 0 | I129: 135 | J129: 3 | K129: 30 | L129: 11.9869403 | M129: 12 | N129: 12.75 | O129: 0.375 | P129: 12 | Q129: 31 | R129: 1582.125971 | S129: 38.12 | T129: 44.39 | U129: 47.52 | V129: 0.4294324299 | W129: 0.08303422741 | X129: 1273.201203 | Y129: 78.71696232 | Z129: 1.579880948 | AA129: 203.0247069 | AB129: 1556.522753 | AC129: 956.085813 | AD129: 94.46035479 | AE129: 1.895857138 | AF129: 1052.442025 | AG129: 921.3216336 | AH129: 1973.763659 | AI129: 31.8695271 | AJ129: 3.148678493 | AK129: 0.06319523792 | AL129: 35.08140083 | AM129: 30.71072112 | AN129: 386677.9157 | AO129: 65.79212195 | AP129: 5992.65
B130: 77 | C130: 1250 | D130: 7.5 | E130: 0.9 | F130: 6.75 | G130: 0 | I130: 202.5 | J130: 3 | K130: 30 | L130: 15.06176821 | M130: 16 | N130: 16 | O130: 0.419 | P130: 15.162 | Q130: 21 | R130: 2373.188956 | S130: 33.02 | T130: 38.45 | U130: 41.16 | V130: 0.285352673 | W130: 0.08301977152 | X130: 1752.598544 | Y130: 78.96458065 | Z130: 1.579880948 | AA130: 274.9714509 | AB130: 2108.114457 | AC130: 1315.633819 | AD130: 94.75749678 | AE130: 1.895857138 | AF130: 1412.287173 | AG130: 936.18166 | AH130: 2348.468833 | AI130: 43.85446063 | AJ130: 3.158583226 | AK130: 0.06319523792 | AL130: 47.07623909 | AM130: 31.20605533 | AN130: 392914.6563 | AO130: 78.28229442 | AP130: 7786.125
B131: 78 | C131: 1250 | D131: 10 | E131: 0.9 | F131: 9 | G131: 0 | I131: 270 | J131: 3 | K131: 30 | L131: 18.92113114 | M131: 20 | N131: 20 | O131: 0.524 | P131: 18.952 | Q131: 11 | R131: 3164.251941 | S131: 29.76 | T131: 34.66 | U131: 37.11 | V131: 0.0595619894 | W131: 0.08300809115 | X131: 2279.350727 | Y131: 54.79297344 | Z131: 1.579880948 | AA131: 350.3585372 | AB131: 2686.082118 | AC131: 1710.697956 | AD131: 65.75156812 | AE131: 1.895857138 | AF131: 1778.345381 | AG131: 653.8411593 | AH131: 2432.18654 | AI131: 57.02326519 | AJ131: 2.191718937 | AK131: 0.06319523792 | AL131: 59.27817937 | AM131: 21.79470531 | AN131: 274416.5854 | AO131: 81.07288468 | AP131: 9358.2
B132: 79 | C132: 1250 | D132: 15 | E132: 0.9 | F132: 13.5 | G132: 0 | I132: 405 | J132: 3 | K132: 30 | L132: 18.89926047 | M132: 20 | N132: 20 | O132: 0.524 | P132: 18.952 | Q132: 26 | R132: 4746.377912 | S132: 24.58 | T132: 28.62 | U132: 30.64 | V132: 0.5622936194 | W132: 0.08302625648 | X132: 2279.350727 | Y132: 193.0006509 | Z132: 1.579880948 | AA132: 371.0896888 | AB132: 2845.020947 | AC132: 1710.697956 | AD132: 231.6007811 | AE132: 1.895857138 | AF132: 1944.194594 | AG132: 2318.16411 | AH132: 4262.358704 | AI132: 57.02326519 | AJ132: 7.720026036 | AK132: 0.06319523792 | AL132: 64.80648647 | AM132: 77.27213701 | AN132: 972931.5299 | AO132: 142.0786235 | AP132: 11591.1
B133: 80 | C133: 1250 | D133: 20 | E133: 0.9 | F133: 18 | G133: 0 | I133: 540 | J133: 3 | K133: 30 | L133: 22.5997093 | M133: 24 | N133: 24 | O133: 0.629 | P133: 22.742 | Q133: 18 | R133: 6328.503883 | S133: 21.95 | T133: 25.56 | U133: 27.36 | V133: 0.4163466384 | W133: 0.08301782078 | X133: 2941.384767 | Y133: 177.5704412 | Z133: 1.579880948 | AA133: 468.0802633 | AB133: 3588.615352 | AC133: 2207.223486 | AD133: 213.0845295 | AE133: 1.895857138 | AF133: 2422.203872 | AG133: 2139.843794 | AH133: 4562.047667 | AI133: 73.57411619 | AJ133: 7.102817648 | AK133: 0.06319523792 | AL133: 80.74012908 | AM133: 71.32812647 | AN133: 898090.643 | AO133: 152.0682556 | AP133: 13802.4
B134: 81 | C134: 1250 | D134: 30 | E134: 0.9 | F134: 27 | G134: 0 | I134: 810 | J134: 3 | K134: 30 | L134: 28.03141024 | M134: 30 | N134: 30 | O134: 0.786 | P134: 28.428 | Q134: 13 | R134: 9492.755824 | S134: 18.74 | T134: 21.82 | U134: 23.36 | V134: 1.658694802 | W134: 0.0830421531 | X134: 3921.923362 | Y134: 191.7353051 | Z134: 1.579880948 | AA134: 617.2857822 | AB134: 4732.52433 | AC134: 2942.627432 | AD134: 230.0823661 | AE134: 1.895857138 | AF134: 3174.605655 | AG134: 2318.16411 | AH134: 5492.769766 | AI134: 98.08758107 | AJ134: 7.669412202 | AK134: 0.06319523792 | AL134: 105.8201885 | AM134: 77.27213701 | AN134: 972931.5299 | AO134: 183.0923255 | AP134: 17674.2
B135: 82 | C135: 1250 | D135: 40 | E135: 0.9 | F135: 36 | G135: 0 | I135: 1080 | J135: 3 | K135: 30 | L135: 33.43120906 | M135: 36 | N135: 36 | O135: 0.943 | P135: 34.114 | Q135: 9 | R135: 12657.00777 | S135: 17.27 | T135: 20.11 | U135: 21.53 | V135: 0.2492911395 | W135: 0.08301008042 | X135: 5079.948401 | Y135: 176.6944326 | Z135: 1.579880948 | AA135: 788.7334072 | AB135: 6046.956122 | AC135: 3811.146212 | AD135: 212.0333191 | AE135: 1.895857138 | AF135: 4025.075388 | AG135: 2139.843794 | AH135: 6164.919182 | AI135: 127.0382071 | AJ135: 7.067777302 | AK135: 0.06319523792 | AL135: 134.1691796 | AM135: 71.32812647 | AN135: 898090.643 | AO135: 205.4973061 | AP135: 21718.8
B136: 83 | C136: 1250 | D136: 50 | E136: 0.9 | F136: 45 | G136: 0 | I136: 1350 | J136: 3 | K136: 30 | L136: 33.67846177 | M136: 36 | N136: 36 | O136: 0.943 | P136: 34.114 | Q136: 14 | R136: 15821.25971 | S136: 15.54 | T136: 18.1 | U136: 19.38 | V136: 1.178632937 | W136: 0.08302543176 | X136: 5079.948401 | Y136: 343.2318377 | Z136: 1.579880948 | AA136: 813.714018 | AB136: 6238.474138 | AC136: 3811.146212 | AD136: 411.8782053 | AE136: 1.895857138 | AF136: 4224.920274 | AG136: 4160.807378 | AH136: 8385.727652 | AI136: 127.0382071 | AJ136: 13.72927351 | AK136: 0.06319523792 | AL136: 140.8306758 | AM136: 138.6935793 | AN136: 1746287.361 | AO136: 279.5242551 | AP136: 24435
B137: 84 | C137: 1250 | D137: 100 | E137: 0.9 | F137: 90 | G137: 0 | I137: 2700 | J137: 3 | K137: 30 | L137: 45.24321969 | M137: 48 | N137: 48 | O137: 1.25 | P137: 45.5 | Q137: 12 | R137: 31642.51941 | S137: 12.39 | T137: 14.43 | U137: 15.45 | V137: 2.986492579 | W137: 0.08303755142 | X137: 7928.457813 | Y137: 587.2294245 | Z137: 1.579880948 | AA137: 1277.590068 | AB137: 9794.857187 | AC137: 5947.528271 | AD137: 704.6753094 | AE137: 1.895857138 | AF137: 6654.099437 | AG137: 7132.812647 | AH137: 13786.91208 | AI137: 198.2509424 | AJ137: 23.48917698 | AK137: 0.06319523792 | AL137: 221.8033146 | AM137: 237.7604216 | AN137: 2993635.477 | AO137: 459.5637362 | AP137: 38961
B138: 85 | C138: 2000 | D138: 0.1 | E138: 0.9 | F138: 0.09 | G138: 0 | I138: 2.7 | J138: 3 | K138: 30 | L138: 3.953982835 | M138: 4 | N138: 4.474 | O138: 0.237 | P138: 4 | Q138: 6 | R138: 31.64251941 | S138: 1507.44 | T138: 1755.48 | U138: 1879.42 | V138: 0.003037497237 | W138: 0.08300601382 | X138: 1270.71748 | Y138: 0.8770364767 | Z138: 1.579880948 | AA138: 190.9761596 | AB138: 1464.150557 | AC138: 954.2230206 | AD138: 1.052443772 | AE138: 1.895857138 | AF138: 957.1713215 | AG138: 3.566406324 | AH138: 960.7377278 | AI138: 31.80743402 | AJ138: 0.03508145907 | AK138: 0.06319523792 | AL138: 31.90571072 | AM138: 0.1188802108 | AN138: 1496.817738 | AO138: 32.02459093 | AP138: 4739.796
B139: 86 | C139: =C138 -> 2000 | D139: 1 | E139: 0.9 | F139: 0.9 | G139: 0 | I139: 27 | J139: 3 | K139: 30 | L139: 5.990606051 | M139: 6 | N139: 6.56 | O139: 0.28 | P139: 6 | Q139: 75 | R139: 316.4251941 | S139: 188.71 | T139: 219.76 | U139: 235.27 | V139: 0.09132528154 | W139: 0.08301136681 | X139: 1424.342647 | Y139: 43.92891044 | Z139: 1.579880948 | AA139: 220.4777158 | AB139: 1690.329154 | AC139: 1069.441896 | AD139: 52.71469253 | AE139: 1.895857138 | AF139: 1124.052446 | AG139: 445.8007905 | AH139: 1569.853236 | AI139: 35.6480632 | AJ139: 1.757156418 | AK139: 0.06319523792 | AL139: 37.46841486 | AM139: 14.86002635 | AN139: 187102.2173 | AO139: 52.3284412 | AP139: 5933.52
B140: 87 | C140: =C139 -> 2000 | D140: 2.5 | E140: 0.9 | F140: 2.25 | G140: 0 | I140: 67.5 | J140: 3 | K140: 30 | L140: 9.944029059 | M140: 10 | N140: 10.73 | O140: 0.365 | P140: 10 | Q140: 33 | R140: 791.0629854 | S140: 94.19 | T140: 109.69 | U140: 117.43 | V140: 0.2034775545 | W140: 0.08301562948 | X140: 1807.320531 | Y140: 43.50375388 | Z140: 1.579880948 | AA140: 277.8606249 | AB140: 2130.264791 | AC140: 1356.675309 | AD140: 52.20450466 | AE140: 1.895857138 | AF140: 1410.775671 | AG140: 490.3808695 | AH140: 1901.15654 | AI140: 45.2225103 | AJ140: 1.740150155 | AK140: 0.06319523792 | AL140: 47.0258557 | AM140: 16.34602898 | AN140: 205812.439 | AO140: 63.37188468 | AP140: 7404.075
B141: 88 | C141: 2000 | D141: 5 | E141: 0.9 | F141: 4.5 | G141: 0 | I141: 135 | J141: 3 | K141: 30 | L141: 11.99602034 | M141: 12 | N141: 12.75 | O141: 0.375 | P141: 12 | Q141: 50 | R141: 1582.125971 | S141: 61.05 | T141: 71.1 | U141: 76.12 | V141: 0.4761272704 | W141: 0.08302550296 | X141: 2036.673248 | Y141: 126.9628425 | Z141: 1.579880948 | AA141: 324.7823957 | AB141: 2489.998367 | AC141: 1528.689847 | AD141: 152.355411 | AE141: 1.895857138 | AF141: 1682.941115 | AG141: 1486.002635 | AH141: 3168.94375 | AI141: 50.95632822 | AJ141: 5.078513698 | AK141: 0.06319523792 | AL141: 56.09803716 | AM141: 49.53342116 | AN141: 623674.0577 | AO141: 105.6314583 | AP141: 9598.5
B142: 89 | C142: 2000 | D142: 7.5 | E142: 0.9 | F142: 6.75 | G142: 0 | I142: 202.5 | J142: 3 | K142: 30 | L142: 15.0783995 | M142: 16 | N142: 16 | O142: 0.419 | P142: 15.162 | Q142: 34 | R142: 2373.188956 | S142: 52.91 | T142: 61.62 | U142: 65.97 | V142: 0.694595962 | W142: 0.08302705472 | X142: 2803.671889 | Y142: 127.8474163 | Z142: 1.579880948 | AA142: 439.9648779 | AB142: 3373.064064 | AC142: 2103.938827 | AD142: 153.4168996 | AE142: 1.895857138 | AF142: 2259.251584 | AG142: 1515.722688 | AH142: 3774.974272 | AI142: 70.13129425 | AJ142: 5.113896652 | AK142: 0.06319523792 | AL142: 75.30838613 | AM142: 50.52408959 | AN142: 636147.5388 | AO142: 125.8324757 | AP142: 12478.05
B143: 90 | C143: 2000 | D143: 10 | E143: 0.9 | F143: 9 | G143: 0 | I143: 270 | J143: 3 | K143: 30 | L143: 18.77187084 | M143: 20 | N143: 20 | O143: 0.524 | P143: 18.952 | Q143: 19 | R143: 3164.251941 | S143: 47.96 | T143: 55.85 | U143: 59.79 | V143: 0.9225918237 | W143: 0.08302794766 | X143: 3646.456829 | Y143: 94.64240866 | Z143: 1.579880948 | AA143: 561.4018677 | AB143: 4304.080986 | AC143: 2736.027532 | AD143: 113.5708904 | AE143: 1.895857138 | AF143: 2851.49428 | AG143: 1129.362002 | AH143: 3980.856282 | AI143: 91.20091774 | AJ143: 3.785696347 | AK143: 0.06319523792 | AL143: 95.04980932 | AM143: 37.64540008 | AN143: 473992.2838 | AO143: 132.6952094 | AP143: 15079.5
B144: 91 | C144: 2000 | D144: 15 | E144: 0.9 | F144: 13.5 | G144: 0 | I144: 405 | J144: 3 | K144: 30 | L144: 18.91624767 | M144: 20 | N144: 20 | O144: 0.524 | P144: 18.952 | Q144: 42 | R144: 4746.377912 | S144: 39.41 | T144: 45.89 | U144: 49.13 | V144: 0.05151302989 | W144: 0.08300697092 | X144: 3646.456829 | Y144: 311.7702822 | Z144: 1.579880948 | AA144: 593.9710488 | AB144: 4553.778041 | AC144: 2736.027532 | AD144: 374.1243387 | AE144: 1.895857138 | AF144: 3112.047728 | AG144: 3744.72664 | AH144: 6856.774368 | AI144: 91.20091774 | AJ144: 12.47081129 | AK144: 0.06319523792 | AL144: 103.7349243 | AM144: 124.8242213 | AN144: 1571658.625 | AO144: 228.5591456 | AP144: 18585.45
B145: 92 | C145: 2000 | D145: 20 | E145: 0.9 | F145: 18 | G145: 0 | I145: 540 | J145: 3 | K145: 30 | L145: 22.65779263 | M145: 24 | N145: 24 | O145: 0.629 | P145: 22.742 | Q145: 29 | R145: 6328.503883 | S145: 35.16 | T145: 40.95 | U145: 43.84 | V145: 0.6056089087 | W145: 0.08301672722 | X145: 4705.689648 | Y145: 286.0857108 | Z145: 1.579880948 | AA145: 749.003286 | AB145: 5742.358526 | AC145: 3530.452147 | AD145: 343.302853 | AE145: 1.895857138 | AF145: 3875.650857 | AG145: 3447.526113 | AH145: 7323.17697 | AI145: 117.6817382 | AJ145: 11.44342843 | AK145: 0.06319523792 | AL145: 129.1883619 | AM145: 114.9175371 | AN145: 1446923.814 | AO145: 244.105899 | AP145: 22113
B146: 93 | C146: 2000 | D146: 30 | E146: 0.9 | F146: 27 | G146: 0 | I146: 810 | J146: 3 | K146: 30 | L146: 28.38451238 | M146: 30 | N146: 30 | O146: 0.786 | P146: 28.428 | Q146: 20 | R146: 9492.755824 | S146: 29.77 | T146: 34.67 | U146: 37.12 | V146: 1.414443583 | W146: 0.08302521397 | X146: 6274.5514 | Y146: 294.9773924 | Z146: 1.579880948 | AA146: 985.6663011 | AB146: 7556.774975 | AC146: 4707.098461 | AD146: 353.9728709 | AE146: 1.895857138 | AF146: 5062.967189 | AG146: 3566.406324 | AH146: 8629.373513 | AI146: 156.903282 | AJ146: 11.7990957 | AK146: 0.06319523792 | AL146: 168.765573 | AM146: 118.8802108 | AN146: 1496817.738 | AO146: 287.6457838 | AP146: 28082.7
B147: 94 | C147: 2000 | D147: 40 | E147: 0.9 | F147: 36 | G147: 0 | I147: 1080 | J147: 3 | K147: 30 | L147: 33.85269896 | M147: 36 | N147: 36 | O147: 0.943 | P147: 34.114 | Q147: 14 | R147: 12657.00777 | S147: 27.53 | T147: 32.06 | U147: 34.32 | V147: 2.169830144 | W147: 0.08302910937 | X147: 8127.391464 | Y147: 274.8580062 | Z147: 1.579880948 | AA147: 1260.574403 | AB147: 9664.403753 | AC147: 6096.728508 | AD147: 329.8296074 | AE147: 1.895857138 | AF147: 6428.453973 | AG147: 3328.645902 | AH147: 9757.099875 | AI147: 203.2242836 | AJ147: 10.99432025 | AK147: 0.06319523792 | AL147: 214.2817991 | AM147: 110.9548634 | AN147: 1397029.889 | AO147: 325.2366625 | AP147: 34624.8
B148: 95 | C148: 2000 | D148: 50 | E148: 0.9 | F148: 45 | G148: 0 | I148: 1350 | J148: 3 | K148: 30 | L148: 33.95759991 | M148: 36 | N148: 36 | O148: 0.943 | P148: 34.114 | Q148: 22 | R148: 15821.25971 | S148: 24.76 | T148: 28.83 | U148: 30.87 | V148: 2.611715472 | W148: 0.08303302245 | X148: 8127.391464 | Y148: 539.3643164 | Z148: 1.579880948 | AA148: 1300.250349 | AB148: 9968.58601 | AC148: 6096.728508 | AD148: 647.2371797 | AE148: 1.895857138 | AF148: 6745.861545 | AG148: 6538.411593 | AH148: 13284.27314 | AI148: 203.2242836 | AJ148: 21.57457266 | AK148: 0.06319523792 | AL148: 224.8620515 | AM148: 217.9470531 | AN148: 2744165.854 | AO148: 442.8091046 | AP148: 38920.5
B149: 96 | C149: 2000 | D149: 100 | E149: 0.9 | F149: 90 | G149: 0 | I149: 2700 | J149: 3 | K149: 30 | L149: 45.15929339 | M149: 48 | N149: 48 | O149: 1.25 | P149: 45.5 | Q149: 20 | R149: 31642.51941 | S149: 20.02 | T149: 23.31 | U149: 24.96 | V149: 0.4486700382 | W149: 0.08300877355 | X149: 12685.00652 | Y149: 978.7157076 | Z149: 1.579880948 | AA149: 2049.795317 | AB149: 15715.09743 | AC149: 9514.939803 | AD149: 1174.458849 | AE149: 1.895857138 | AF149: 10691.29451 | AG149: 11888.02108 | AH149: 22579.31559 | AI149: 317.1646601 | AJ149: 39.1486283 | AK149: 0.06319523792 | AL149: 356.3764836 | AM149: 396.2673693 | AN149: 4989392.461 | AO149: 752.6438529 | AP149: 62937

Sheet Cases_def
A1: This sheets provides definitions of some of the variables in the "Cases" sheet that are either user inputs or outputs calculated with the "Process_Cases" macro
A2: This sheet is for the user to use or ignore as they see fit
A3: If the user adds or deletes output variables in the "Cases" sheet, the user needs to add or delete rows in this sheet defining these variables if the user wants to keep this sheet up to date
A4: However, if this sheet is not consistent with the output variables in the "Cases" sheet, it will not affect the performance of the "Process_Cases" macro
A5: The user can provide formulas for up to 100 output variables in the "Cases" sheet
A7: Column Label | B7: Variable | C7: Units | D7: Description | E7: Additional Comments
B8: Inputs
A9: A | B9: Case number | D9: Number of the case which is a specific pipe length, maximum CO2 mass flow rate, and capacity factor (used to generate annual maximum CO2 mass flow rate)
A10: B | B10: Pipeline length | C10: mi | D10: Length of pipeline including tortuosity
A11: C | B11: Maximum CO2 mass flow rate | C11: Mtonnes/year | D11: Annualized maximum CO2 mass flow rate (this is the instantaneous maximum CO2 mass flow rate)
A12: D | B12: Capacity factor | C12: % | D12: Capacity factor (fraction of time that pipeline is operating, assumed to be at maximum CO2 mass flow rate)
A13: E | B13: Average annual CO2 mass flow rate | C13: Mtonnes/year | D13: Annual average CO2 mass flow rate (maximum CO2 mass flow rate * capacity factor)
A14: F | B14: Elevation difference | C14: ft | D14: Elevation difference from the inlet to the outlet of the pipeline. If the elevation increases from the inlet to the outlet, the elevation difference is positive; if the elevation decreases from the inlet to the outlet, the elevation difference is negative.
B15: Outputs
A16: 1 | B16: Total mass of CO2 transported | C16: Mtonnes | D16: Total mass of CO2 transported (annual average CO2 mass flow rate * duration of operations)
A17: =A16+1 -> 2 | B17: Construction period | C17: years | D17: Years it takes to design, permit, and construct the pipeline
A18: =A17+1 -> 3 | B18: Duration of operations | C18: years | D18: Number of years the pipeline operates (i.e., transports CO2)
A19: 4 | B19: Minimum inside pipe diameter | C19: in | D19: Minimum pipe diameter
A20: 5 | B20: Nominal pipe diameter | C20: in | D20: Nominal pipe diameter (based on standard pipe diameters which are inner diameters for small pipes and outer diameters for large pipes)
A21: 6 | B21: Actual outer pipe diameter | C21: in | D21: Outer pipe diameter for nominal pipe size
A22: 7 | B22: Actual pipe wall thickness | C22: in | D22: Pipe wall thickness for nominal pipe size
A23: 8 | B23: Actual inner pipe diameter | C23: in | D23: Inner pipe diameter for nominal pipe size
A24: 9 | B24: Number of pumps | D24: Number of pumps
A25: 10 | B25: Maximum required power of each pump | C25: kW | D25: Maximum required power of each booster pump
A26: 11 | B26: First year break-even CO2 price in base year | C26: 2011$/tonne | D26: First-year break-even CO2 price in base year | E26: Lowest CO2 price that brings in enough revenue to cover all costs including the interest and principal on debt and the minimum desired return on equity
A27: 12 | B27: First year break-even CO2 price in first year of project | C27: 2018$/tonne | D27: First-year break-even CO2 price in first year of project
A28: 13 | B28: First year break-even CO2 price in first year of transport | C28: 2021$/tonne | D28: First-year break-even CO2 price in first year of transport
A29: 14 | B29: Net present value of free cash flow | C29: mill$ | D29: Net present value of earnings after taxes (free cash flow)
A30: 15 | B30: Rate of return | C30: % | D30: Calculated rate of return
B31: Note: The cost and revenue variables discussed below have results in real or constant 2018 dollars
A32: =A30+1 -> 16 | B32: Capital cost of pipeline | C32: mill 2018$ | D32: Capital cost of pipeline which depends on the pipeline length and pipeline nominal diameter. The lowest pipeline inner diameter is determined based on the maximum CO2 mass flow rate, and this minimum inner diameter determines the appropriate nominal diameter for a standard pipe size.
A33: 17 | B33: Capital cost of pumps | C33: mill 2018$ | D33: Capital cost of pumps which depend on the number of pumps and the maximum power requirement for the pump. The maximum power requirement is based on the maximum CO2 mass flow rate.
A34: 18 | B34: Other capital costs | C34: mill 2018$ | D34: Other capital costs which are the cost of a small surge tank and the cost of a control system. Both are fixed costs independent of the maximum CO2 mass flow rate, length of the pipeline, diameter of the pipeline, and number of pumps.
A35: 19 | B35: Contingency | C35: mill 2018$ | D35: Contingency costs which are a multiple (e.g., 15%) of total capital costs
A36: 20 | B36: Total capital costs | C36: mill 2018$ | D36: Total capital costs which are the sum of the capital costs including the contingency costs
A37: 21 | B37: Fixed O&M pipe costs | C37: mill 2018$ | D37: Fixed O&M costs for the pipeline for all years
A38: 22 | B38: Fixed O&M pump costs | C38: mill 2018$ | D38: Fixed O&M costs for the pumps for all years
A39: 23 | B39: Other fixed O&M costs | C39: mill 2018$ | D39: Fixed O&M costs for the control system and surge tank for all years
A40: 24 | B40: Total fixed O&M costs | C40: mill 2018$ | D40: Total fixed O&M costs for all years. This is the sum of all fixed O&M costs over all the years of operation.
A41: 25 | B41: Variable O&M costs | C41: mill 2018$ | D41: Total variable O&M costs for all years. The only variable O&M costs are for the electricity to run the pumps.
A42: 26 | B42: Total O&M costs | C42: mill 2018$ | D42: Total O&M costs for all years. This is the sum of total fixed O&M costs and total variable O&M costs over all the years of operation.
A43: 27 | B43: Annual fixed O&M pipe costs | C43: mill 2018$/yr | D43: Annual fixed O&M costs for the pipeline. These costs are calculated based on one of two methods. In the first method, the annual pipeline fixed O&M costs are assumed to depend on the length of the pipeline but not the diameter. In the second method, the annual pipeline fixed O&M costs are assumed to be a fraction of the total pipeline capital costs.
A44: 28 | B44: Annual fixed O&M pump costs | C44: mill 2018$/yr | D44: Annual pump fixed O&M costs for the pumps. The annual pump fixed O&M costs are assumed to be a fraction of the capital costs for all the pumps.
A45: 29 | B45: Annual other fixed O&M costs | C45: mill 2018$/yr | D45: Annual other fixed O&M costs are the annual O&M costs for the control system and surge tank, and these costs are assumed to be a fraction of the total capital costs for the control system and surge tank.
A46: 30 | B46: Annual fixed O&M costs | C46: mill 2018$/yr | D46: Annual total fixed O&M costs is the sum of the annual fixed O&M costs for the pipeline, pumps, control system, and surge tank
A47: 31 | B47: Annual variable O&M costs | C47: mill 2018$/yr | D47: Annual variable O&M costs. The only variable O&M cost is for the electricity used each year to run the pumps.
A48: 32 | B48: Annual pump energy usage | C48: MWhr/yr | D48: Annual pump electrical energy usage. The electricity used, in MWhr, is the power requirement of the pumps multiplied by the hours the pumps run each year which is assumed to be the number of hours in a year multiplied by the capacity factor. | E48: Pump electrical usage depends on capacity factor or, equivalently, the average annual CO2 mass flow rate
A49: 33 | B49: Annual total O&M costs | C49: mill 2018$/yr | D49: Annual total O&M costs (fixed and variable O&M costs)
A50: 34 | B50: Revenue | C50: mill 2018$ | D50: Total revenue for the project. This is the sum of revenue collected in each year. In each year, the revenue is the annual average CO2 mass flow rate multiplied by the first year break-even CO2 price in 2018$/tonne.

Sheet PL Pressure Relation
B1: This sheet includes data for developing a factor to translate natural gas pipeline capital costs to CO2 pipeline capital costs
B3: See ICF International (2009) listed in "Eng Mod" sheet for more information
B4: With regards to pressure differences between natural gas (NG) and CO2 pipelines, this report identifies that the material and labor costs for the CO2 pipelines will be greater due to the higher pressures. To contain the pressure, the wall thickness is increased which increases the materials costs. The labor costs will increase due to the moving of heavier pipe and welding of thicker pipe. This report summarizes the cost increase based on wall thickness and pipe size and the additional costs. Note, these costs are limited to steel only. Further, for pipe sizes less than 12 inches, there is no increase in the material costs; for pipe sizes greater than 24 inches, the material cost increase from NG to CO2 is 25%. This corresponds to a roughly 25% increase in the wall thickness. From discussions with the cost estimators at WorleyParsons, pipe is not costed on a per pound basis. However, based on limited experience with projects considering pipelines and different wall thickness, the correlations appear to be correct. Based on these findings, the pipeline material and labor costs are adjusted using the following rule sizes: <12", no adjustment; 16", 1.12 factor applied; > 24", 1.25 applied. 20" pipe is not covered in this table, an average between the 16" and 24" size is assumed, 1.18. Adjustment is determined using function Pres_Fact(PL_d). Function returns the factor, as described above, for pipe inner diameter PL_d.
B6: Table A: Data from ICF International (2009)
B7: Derivation of factors:
B8: From Table 2-10 CO2 and Natural Gas Designs and Steel Requirements
E9: Natural Gas | L9: CO2 | T9: Results from function Pres_Fact( inner_dia )
B10: Pipe OD (in) | C10: Maximum Stress | D10: Class Coeff. | E10: Maximum Pressure | F10: Wall Thickness (in) | G10: Inside Diameter (in) | H10: Tons/mile | I10: Steel Costs $/mile cost | L10: Maximum Pressure | M10: Wall Thickness (in) | N10: Inside Diameter (in) | O10: Tons/mile | P10: Steel Costs $/mile cost | R10: Cost Ratios (CO2/NG)
I11: @$500/ton | J11: @$900/ton | P11: @$500/ton | Q11: @$900/ton | R11: @$500/ton | S11: @$900/ton
B12: 12.75 | C12: 70000 | D12: 0.6 | E12: 1000 | F12: 0.375 | G12: 12 | H12: 130 | I12: =$H12*500 -> 65000 | J12: =$H12*900 -> 117000 | L12: 2200 | M12: 0.375 | N12: 12 | O12: 130 | P12: =$O12*500 -> 65000 | Q12: =$O12*900 -> 117000 | R12: =P12/I12 -> 1 | S12: 1 | T12: =Pres_Fact(N12) -> 1
B13: 16 | C13: 70000 | D13: 0.6 | E13: 1000 | F13: 0.375 | G13: 15.25 | H13: 165 | I13: 82500 | J13: 148500 | L13: 2200 | M13: 0.419 | N13: 15.162 | O13: 184 | P13: 92000 | Q13: 165600 | R13: 1.115151515 | S13: 1.115151515 | T13: =Pres_Fact(N13) -> 1.12
B14: 24 | C14: 70000 | D14: 0.6 | E14: 1000 | F14: 0.5 | G14: 23 | H14: 330 | I14: 165000 | J14: 297000 | L14: 2200 | M14: 0.629 | N14: 22.742 | O14: 413 | P14: 206500 | Q14: 371700 | R14: 1.251515152 | S14: 1.251515152 | T14: =Pres_Fact(N14) -> 1.25
B15: 30 | C15: 70000 | D15: 0.6 | E15: 1000 | F15: 0.625 | G15: 28.75 | H15: 516 | I15: 258000 | J15: 464400 | L15: 2200 | M15: 0.786 | N15: 28.428 | O15: 645 | P15: 322500 | Q15: 580500 | R15: 1.25 | S15: 1.25 | T15: 1.25
B16: 36 | C16: 70000 | D16: 0.6 | E16: 1000 | F16: 0.75 | G16: 34.5 | H16: 743 | I16: 371500 | J16: 668700 | L16: 2200 | M16: 0.943 | N16: 34.114 | O16: 926 | P16: 463000 | Q16: 833400 | R16: 1.246298789 | S16: 1.246298789 | T16: 1.25
B17: 42 | C17: 70000 | D17: 0.6 | E17: 1000 | F17: 0.875 | G17: 40.25 | H17: 1012 | I17: 506000 | J17: 910800 | L17: 2200 | M17: 1.1 | N17: 39.8 | O17: 1265 | P17: 632500 | Q17: 1138500 | R17: 1.25 | S17: 1.25 | T17: 1.25
B20: Table B: Calculations from McCoy (2008)
B21: How McCoy (2008) calculated inner and outer diameters for assorted pipe sizes in his PhD thesis
B22: Pmop | C22: 15.3 | D22: MPa | E22: Maximum operating pressure
C23: =C22*1000000 -> 15300000 | D23: Pa
B24: S | C24: 483 | D24: MPa | E24: Specified minimum yield stress
C25: =C24*1000000 -> 483000000 | D25: Pa
B26: E | C26: 1 | E26: Longitudinal joint factor
B27: F | C27: 0.72 | E27: Design factor
B29: Pipe Outside Diameter | C29: Pipe Outside Diameter | D29: Wall Thickness | E29: Wall Thickness | F29: Pipe Inside Diameter
B30: in | C30: m | D30: m | E30: in | F30: in
B31: 8.75 | C31: =l_conv(B31,$B$30,$C$30) -> 0.22225 | D31: =C31*$C$23/(2*$C$25*$C$26*$C$27) -> 0.004889039855 | E31: =l_conv(D31,$D$30,$E$30) -> 0.1924818841 | F31: =B31-2*E31 -> 8.365036232
B32: 12.75 | C32: =l_conv(B32,$B$30,$C$30) -> 0.32385 | D32: =C32*$C$23/(2*$C$25*$C$26*$C$27) -> 0.007124029503 | E32: =l_conv(D32,$D$30,$E$30) -> 0.2804736025 | F32: =B32-2*E32 -> 12.1890528
B33: 16 | C33: 0.4064 | D33: 0.008939958592 | E33: =l_conv(D33,$D$30,$E$30) -> 0.3519668737 | F33: 15.29606625
B34: 20 | C34: =l_conv(B34,$B$30,$C$30) -> 0.508 | D34: =C34*$C$23/(2*$C$25*$C$26*$C$27) -> 0.01117494824 | E34: =l_conv(D34,$D$30,$E$30) -> 0.4399585921 | F34: =B34-2*E34 -> 19.12008282
B35: 24 | C35: 0.6096 | D35: 0.01340993789 | E35: 0.5279503106 | F35: 22.94409938
B36: 30 | C36: 0.762 | D36: 0.01676242236 | E36: 0.6599378882 | F36: 28.68012422
B37: 36 | C37: 0.9144 | D37: 0.02011490683 | E37: 0.7919254658 | F37: 34.41614907
B38: 42 | C38: 1.0668 | D38: 0.0234673913 | E38: 0.9239130435 | F38: 40.15217391
B39: 48 | C39: 1.2192 | D39: 0.02681987578 | E39: 1.055900621 | F39: 45.88819876
B41: Table C: Outer pipe diameters, pipe wall thicknesses, and inner pipe diameters used in model
B42: Calculation of minimum pipe wall thickness from McCoy (2008) | I42: Pipe schedule with a wall thickness exceeding the minimum wall thickness at left | O42: Outer diameters, pipe wall thicknesses, and inner diameters from VBA user functions
B43: Nominal Pipe Size or Diameter | C43: Pipe Outside Diameter | D43: Pipe Outside Diameter | E43: Minimum Pipe Wall Thickness | F43: Minimum Pipe Wall Thickness | G43: Pipe Inside Diameter | I43: Nominal Pipe Size or Diameter | J43: Actual Schedule | K43: Thickness of Schedule | L43: Outer Diameter of Pipe Schedule | M43: Inner Diameter of Pipe Schedule | O43: Nominal Pipe Size or Diameter | P43: Inner Diameter Implemented in User Function | Q43: Thickness of Pipe Wall | R43: Thickness of Pipe from Table 2-10 as Reported in Table A Above | S43: Thickness of STD Schedule Pipe from Table at Left | T43: Pipe Wall Thickness from User Function Pthick_nom | U43: Minimum Pipe Wall Thickness Calculated at the Left Using an Equation in McCoy (2008) | V43: Is Pipe Wall Thickness from Pthick_nom Greater than Minimum Pipe Wall Thickness from McCoy (2008)? | W43: Outer Diameter of Pipe from User Function Dia_out_nom | X43: Inner Diameter of Pipe from User Function Dia_in_nom | Y43: Check: Outer Diameter of Pipe Calculated from Inner Diameter and Wall Thickness
B44: in | C44: in | D44: m | E44: m | F44: in | G44: in | I44: in | K44: in | L44: in | M44: in | O44: in | P44: in | Q44: in | R44: in | S44: in | T44: in | U44: in | W44: in | X44: in | Y44: in
B45: 4 | C45: 4.5 | D45: =l_conv(C45,$C$44,$D$44) -> 0.1143 | E45: =D45*$C$23/(2*$C$25*$C$26*$C$27) -> 0.002514363354 | F45: =l_conv(E45,$E$44,$F$44) -> 0.09899068323 | G45: =C45-2*F45 -> 4.302018634 | I45: =B45 -> 4 | J45: STD | K45: 0.237 | L45: =C45 -> 4.5 | M45: =L45-2*K45 -> 4.026 | O45: 4 | P45: 4 | S45: =K45 -> 0.237 | T45: =pthick_nom(O45,"in") -> 0.237 | U45: =F45 -> 0.09899068323 | V45: =IF(T45>U45,"Yes","NO") -> Yes | W45: =dia_out_nom(O45,"in") -> 4.474 | X45: =Dia_in_nom(O45,"in") -> 4 | Y45: =X45+2*T45 -> 4.474
B46: 6 | C46: 6.625 | D46: =l_conv(C46,$C$44,$D$44) -> 0.168275 | E46: =D46*$C$23/(2*$C$25*$C$26*$C$27) -> 0.003701701605 | F46: =l_conv(E46,$E$44,$F$44) -> 0.1457362836 | G46: =C46-2*F46 -> 6.333527433 | I46: =B46 -> 6 | J46: STD | K46: 0.28 | L46: 6.625 | M46: 6.065 | O46: 6 | P46: 6 | S46: =K46 -> 0.28 | T46: =pthick_nom(O46,"in") -> 0.28 | U46: =F46 -> 0.1457362836 | V46: =IF(T46>U46,"Yes","NO") -> Yes | W46: =dia_out_nom(O46,"in") -> 6.56 | X46: =Dia_in_nom(O46,"in") -> 6 | Y46: 6.56
B47: 8 | C47: 8.625 | D47: 0.219075 | E47: =D47*$C$23/(2*$C$25*$C$26*$C$27) -> 0.004819196429 | F47: 0.1897321429 | G47: =C47-2*F47 -> 8.245535714 | I47: 8 | J47: STD | K47: 0.322 | L47: 8.625 | M47: 7.981 | O47: 8 | P47: 8 | S47: =K47 -> 0.322 | T47: =pthick_nom(O47,"in") -> 0.322 | U47: 0.1897321429 | V47: Yes | W47: =dia_out_nom(O47,"in") -> 8.644 | X47: =Dia_in_nom(O47,"in") -> 8 | Y47: 8.644
B48: 10 | C48: 10.75 | D48: 0.27305 | E48: 0.006006534679 | F48: 0.2364777433 | G48: 10.27704451 | I48: 10 | J48: STD | K48: 0.365 | L48: 10.75 | M48: 10.02 | O48: 10 | P48: 10 | S48: =K48 -> 0.365 | T48: =pthick_nom(O48,"in") -> 0.365 | U48: 0.2364777433 | V48: Yes | W48: =dia_out_nom(O48,"in") -> 10.73 | X48: =Dia_in_nom(O48,"in") -> 10 | Y48: 10.73
B49: 12 | C49: 12.75 | D49: 0.32385 | E49: 0.007124029503 | F49: 0.2804736025 | G49: 12.1890528 | I49: 12 | J49: STD | K49: 0.375 | L49: 12.75 | M49: 12 | O49: 12 | P49: 12 | S49: =K49 -> 0.375 | T49: =pthick_nom(O49,"in") -> 0.375 | U49: 0.2804736025 | V49: Yes | W49: =dia_out_nom(O49,"in") -> 12.75 | X49: =Dia_in_nom(O49,"in") -> 12 | Y49: 12.75
B50: 16 | C50: 16 | D50: 0.4064 | E50: 0.008939958592 | F50: 0.3519668737 | G50: 15.29606625 | I50: 16 | J50: STD | K50: 0.375 | L50: 16 | M50: 15.25 | O50: 16 | P50: 15.162 | Q50: =0.5*(O50-P50) -> 0.419 | R50: 0.419 | T50: =pthick_nom(O50,"in") -> 0.419 | U50: 0.3519668737 | V50: Yes | W50: =dia_out_nom(O50,"in") -> 16 | X50: =Dia_in_nom(O50,"in") -> 15.162 | Y50: 16
B51: 20 | C51: 20 | D51: 0.508 | E51: 0.01117494824 | F51: =l_conv(E51,$E$44,$F$44) -> 0.4399585921 | G51: 19.12008282 | I51: 20 | J51: 30 | K51: 0.5 | L51: 20 | M51: 19 | O51: 20 | P51: 18.952 | Q51: =0.5*(O51-P51) -> 0.524 | T51: =pthick_nom(O51,"in") -> 0.524 | U51: 0.4399585921 | V51: Yes | W51: =dia_out_nom(O51,"in") -> 20 | X51: =Dia_in_nom(O51,"in") -> 18.952 | Y51: 20
B52: 24 | C52: 24 | D52: 0.6096 | E52: 0.01340993789 | F52: 0.5279503106 | G52: 22.94409938 | I52: 24 | J52: 30 | K52: 0.562 | L52: 24 | M52: 22.876 | O52: 24 | P52: 22.742 | Q52: 0.629 | R52: 0.629 | T52: =pthick_nom(O52,"in") -> 0.629 | U52: 0.5279503106 | V52: Yes | W52: =dia_out_nom(O52,"in") -> 24 | X52: =Dia_in_nom(O52,"in") -> 22.742 | Y52: 24
B53: 30 | C53: 30 | D53: 0.762 | E53: 0.01676242236 | F53: 0.6599378882 | G53: 28.68012422 | I53: 30 | J53: none | O53: 30 | P53: 28.428 | Q53: 0.786 | R53: 0.786 | T53: =pthick_nom(O53,"in") -> 0.786 | U53: 0.6599378882 | V53: Yes | W53: =dia_out_nom(O53,"in") -> 30 | X53: =Dia_in_nom(O53,"in") -> 28.428 | Y53: 30
B54: 36 | C54: 36 | D54: 0.9144 | E54: 0.02011490683 | F54: 0.7919254658 | G54: 34.41614907 | I54: 36 | J54: none | O54: 36 | P54: 34.114 | Q54: 0.943 | R54: 0.943 | T54: =pthick_nom(O54,"in") -> 0.943 | U54: 0.7919254658 | V54: Yes | W54: =dia_out_nom(O54,"in") -> 36 | X54: =Dia_in_nom(O54,"in") -> 34.114 | Y54: 36
B55: 42 | C55: 42 | D55: 1.0668 | E55: 0.0234673913 | F55: 0.9239130435 | G55: 40.15217391 | I55: 42 | J55: none | O55: 42 | P55: 39.8 | Q55: 1.1 | R55: 1.1 | T55: =pthick_nom(O55,"in") -> 1.1 | U55: 0.9239130435 | V55: Yes | W55: =dia_out_nom(O55,"in") -> 42 | X55: =Dia_in_nom(O55,"in") -> 39.8 | Y55: 42
B56: 48 | C56: 48 | D56: 1.2192 | E56: 0.02681987578 | F56: 1.055900621 | G56: 45.88819876 | I56: 48 | J56: none | O56: 48 | P56: 45.5 | Q56: 1.25 | T56: =pthick_nom(O56,"in") -> 1.25 | U56: 1.055900621 | V56: Yes | W56: =dia_out_nom(O56,"in") -> 48 | X56: =Dia_in_nom(O56,"in") -> 45.5 | Y56: 48
I57: None of the standard (STD) pipe schedules has a thickness greater than the
I58: minimum pipe thickness at left
B59: Pipe outer diameters taken from: | I59: Pipe schedules and thicknesses taken from:
B60: https://www.engineersedge.com/pipe_schedules.htm | I60: https://www.engineersedge.com/pipe_schedules.htm
O61: The following process was used to select outer pipe diameters, pipe wall thicknesses, and inner pipe diameters for the FECM/NETL CO2 Transport Cost Model.
O62: - For nominal pipe sizes of 12 inches or less, it was assumed the inner diameter equals the pipe size (e.g., for a nominal pipe size of 8 inches, the inner pipe diameter is 8 inches). This is technically only true for the standard pipe schedule for these nominal pipe sizes. The minimum pipe wall thickness for these nominal pipe sizes was calculated using the equations from McCoy (2008). The pipe wall thickness for a standard schedule pipe was selected for all these nominal pipes since the standard pipe wall thickness exceeds this minimum pipe wall thickness for all the nominal pipe sizes. The outer pipe diameter was calculated from the pipe inner diameter and the pipe wall thickness. The tables from ICF International (2009) (see Table A above) do not have pipe wall thicknesses for nominal pipe sizes less than 12 inches.
O63: - For nominal pipe sizes greater than 12 inches, the outer pipe diameter equals the nominal pipe size (e.g., for a nominal pipe size of 16 inches, the outer pipe diameter is 16 inches). The minimum pipe wall thickness for these nominal pipe sizes that was presented in the tables from ICF International (2009) (see Table A above) was used as the pipe wall thickness. However, these pipe wall thicknesses do not appear to correspond to the pipe wall thickness of actual pipe schedules. These pipe wall thicknesses were all greater than the minimum pipe wall thickness calculated using the equations from McCoy (2008). The inner pipe diameter was calculated from the outer pipe diameter and the pipe wall thickness. Although the pipe wall thicknesses in Table A above do not appear to correspond to actual pipe schedules, they are used in the model. Without performing a detailed review of pipe schedules, it appears that for nominal pipe sizes of 30 inches or greater that there are no pipe schedules with pipe wall thicknesses greater than or equal to the pipe wall thicknesses in Table A above.
O64: - Note: The ICF International (2009) report does not have data for nominal pipe sizes of 20 inches and 48 inches. For the model, the pipe wall thicknesses for the 16 inch and 24 inch nominal pipe sizes were averaged, and this average value was used as the pipe wall thickness for the nominal pipe size of 20 inches. The pipe wall thickness for the 48 inch nominal pipe size was calculated so that the average of the pipe wall thicknesses for the 36 inch and 48 inch nominal pipe sizes equals the pipe wall thickness for the 42 inch nominal pipe size.

Sheet Cost Indices
A1: This sheet provides indices for adjusting costs and prices from a basis in one year to another year
A3: Series Id: PCU213112213112 ftp://ftp.bls.gov/pub/time.series/pc/pc.data.3.MiningSupport
A4: Industry: Support activities for oil and gas operations
A5: Product: Support activities for oil and gas operations
A6: Base Date: 8512
A7: U.S. Bureau of Labor Statistics Producer Price Index
A8: Year | B8: Jan | C8: Feb | D8: Mar | E8: Apr | F8: May | G8: Jun | H8: Jul | I8: Aug | J8: Sep | K8: Oct | L8: Nov | M8: Dec | N8: Annual
A9: 1997 | B9: 111.7 | C9: 112.2 | D9: 112.2 | E9: 111.9 | F9: 112.4 | G9: 112.5 | H9: 112.7 | I9: 112.8 | J9: 113.1 | K9: 113.4 | L9: 113.6 | M9: 113.7 | N9: 112.7
A10: 1998 | B10: 114 | C10: 113.9 | D10: 113.9 | E10: 114 | F10: 114.1 | G10: 113.9 | H10: 114 | I10: 113.9 | J10: 113.8 | K10: 113.1 | L10: 112.6 | M10: 112.5 | N10: 113.6
A11: 1999 | B11: 112 | C11: 111.4 | D11: 111.2 | E11: 111.1 | F11: 111.2 | G11: 112.6 | H11: 112.7 | I11: 112.7 | J11: 112.8 | K11: 113.7 | L11: 116.6 | M11: 116.7 | N11: 112.9
A12: 2000 | B12: 117.6 | C12: 118.1 | D12: 120.9 | E12: 121.4 | F12: 121.3 | G12: 122.3 | H12: 125.4 | I12: 123.8 | J12: 126.3 | K12: 126.8 | L12: 128 | M12: 127.2 | N12: 123.3
A13: 2001 | B13: 130.8 | C13: 136.2 | D13: 138.3 | E13: 140.8 | F13: 142 | G13: 144.1 | H13: 144.1 | I13: 147.3 | J13: 146.8 | K13: 147.3 | L13: 145.6 | M13: 146 | N13: 142.4
A14: 2002 | B14: 143.5 | C14: 140.4 | D14: 137.5 | E14: 138.8 | F14: 137.4 | G14: 137.3 | H14: 136.5 | I14: 136 | J14: 135.9 | K14: 135 | L14: 134.1 | M14: 135.8 | N14: 137.4
A15: 2003 | B15: 135.3 | C15: 134.9 | D15: 135.2 | E15: 133.5 | F15: 132.1 | G15: 134.1 | H15: 134.2 | I15: 136.8 | J15: 137.3 | K15: 136.1 | L15: 139.3 | M15: 138.5 | N15: 135.6
A16: 2004 | B16: 140.4 | C16: 139 | D16: 139 | E16: 139.1 | F16: 139.6 | G16: 139.6 | H16: 141.3 | I16: 142.7 | J16: 142.9 | K16: 143.7 | L16: 147.1 | M16: 147.2 | N16: 141.8
A17: 2005 | B17: 148 | C17: 157.2 | D17: 157.2 | E17: 154.5 | F17: 155.4 | G17: 160.3 | H17: 160.4 | I17: 162.3 | J17: 166.8 | K17: 169 | L17: 170.3 | M17: 173.8 | N17: 161.3
A18: 2006 | B18: 176.6 | C18: 179.2 | D18: 183.5 | E18: 183.9 | F18: 184.7 | G18: 187.7 | H18: 190.7 | I18: 191.3 | J18: 192 | K18: 193.2 | L18: 194 | M18: 193.9 | N18: 187.6
A19: 2007 | B19: 194.4 | C19: 194.2 | D19: 194.2 | E19: 194.8 | F19: 195.1 | G19: 194.9 | H19: 194.4 | I19: 194.3 | J19: 194.1 | K19: 193.7 | L19: 194 | M19: 194 | N19: 194.3
A20: 2008 | B20: 193.5 | C20: 195.9 | D20: 195.4 | E20: 195.5 | F20: 196 | G20: 196.3 | H20: 197.1 | I20: 197.6 | J20: 197.7 | K20: 199 | L20: 200 | M20: 198.4 | N20: 196.9
A21: 2009 | B21: 195.8 | C21: 194.3 | D21: 188.4 | E21: 184.4 | F21: 181.4 | G21: 177.7 | H21: 177.4 | I21: 176.5 | J21: 176 | K21: 175.8 | L21: 174.9 | M21: 175.1 | N21: 181.5
A22: 2010 | B22: 175.5 | C22: 175.5 | D22: 177 | E22: 177.8 | F22: 178.1 | G22: 179 | H22: 179.3 | I22: 177.9 | J22: 178.4 | K22: 181.4 | L22: 178 | M22: 181.8 | N22: 178.3
A23: 2011 | B23: 182.6 | C23: 186 | D23: 183.3 | E23: 187.7 | F23: 189.9 | G23: 190.9 | H23: 192.8 | I23: 191.2 | J23: 192.2 | K23: 195.3 | L23: 200.9 | M23: 200.9 | N23: =AVERAGE(B23:M23) -> 191.1416667
A25: Gross Domestic Product
A26: Chain-type Price Index
A27: 1998 | B27: 85.50725
A28: 1999 | B28: 86.76525
A29: 2000 | B29: 88.648
A30: 2001 | B30: 90.65375
A31: 2002 | B31: 92.113
A32: 2003 | B32: 94.0995
A33: 2004 | B33: 96.76875
A34: 2005 | B34: 100.00025
A35: 2006 | B35: 103.26275
A36: June 2007 | B36: 106.46
A37: 2008 | B37: 108.48075
A38: 2009 | B38: 109.706
A39: July 2011 | B39: 113.796
A41: CE Plant Cost Index Report
B43: 2000 | C43: 2005 | D43: June, 2007 | E43: March, 2011
A44: CE INDEX | B44: 394.1 | C44: 468.2 | D44: 532.7 | E44: 575.9
A45: Equipment | B45: 438 | C45: 543.7 | D45: 635.3 | E45: 698.7
A46: Heat Exchangers and Tanks | B46: 370.6 | C46: 513.9 | D46: 607.8 | E46: 657.5
A47: Process Machinery | B47: 439.4 | C47: 519.7 | D47: 604.7 | E47: 662.1
A48: Pipe, valves and fittings | B48: 545.9 | C48: 623.7 | D48: 740.8 | E48: 862.8
A49: Process Instruments | B49: 368.5 | C49: 381.8 | D49: 433.7 | E49: 438.7
A50: Pumps and Compressions | B50: 665.3 | C50: 752.5 | D50: 830.9 | E50: 898.5
A51: Electrical equipment | B51: 339.4 | C51: 372.1 | D51: 433.3 | E51: 499.4
A52: Structural supports | B52: 408.7 | C52: 584.8 | D52: 678.8 | E52: 738.6
A53: Construction Labor | B53: 299.2 | C53: 305.6 | D53: 315.2 | E53: 324.3
A54: Buildings | B54: 385.6 | C54: 445.1 | D54: 479.2 | E54: 514.2
A55: Engineering Supervision | B55: 340.6 | C55: 346.8 | D55: 356 | E55: 334.3
A58: Handy-Whitman Index - All Regions | L58: Updated 08/02/2012
B59: 1999 | C59: 1999 | D59: 2000 | E59: 2000 | F59: 2004 | G59: 2004 | H59: 2007 | I59: 2007 | J59: 2008 | K59: 2008 | L59: 2011
A60: CONSTRUCTION AND EQUIPMENT | B60: Jan. 1 | C60: Jul. 1 | D60: Jan. 1 | E60: Jul. 1 | F60: Jan. 1 | G60: Jul. 1 | H60: Jan. 1 | I60: Jul. 1 | J60: Jan. 1 | K60: Jul. 1 | L60: Jul.
A61: Gas Compressors | B61: 479 | C61: 479 | D61: 481 | E61: 484 | F61: 501 | G61: 502 | H61: 557 | I61: 574.0739723 | J61: 580.54 | K61: 603 | L61: 656.34
A62: Gas Transmission Line Pipe | B62: 266 | C62: 266 | D62: 270 | E62: 261 | F62: 257 | G62: 400 | H62: 525 | I62: 481.9704476 | J62: 502.01 | K62: 604 | L62: 525.11
A63: Steel Distribution Pipe | B63: 389 | C63: 389 | D63: 430 | E63: 427 | F63: 521 | G63: 576 | H63: 829 | I63: 838.9314495 | J63: 832.59 | K63: 1122 | L63: 1122.51

Sheet Pipe Cap
A1: This sheet has natural gas pipeline capital costs for different equations
A3: signif. figs. = | B3: 3 | R3: signif. figs. = | S3: =B3 -> 3 | AI3: signif. figs. = | AJ3: =B3 -> 3
A4: Region = | B4: =Main!$E$83 -> MW | R4: Region = | S4: =B4 -> MW | AI4: Region = | AJ4: =B4 -> MW
A5: ConYr = | B5: 2011 | R5: ConYr = | S5: =IF(B5=2011,2011,2008) -> 2011 | AI5: ConYr = | AJ5: =IF(B5=2011,2011,2004) -> 2011
A7: Natural Gas Pipeline Capital Costs per mile Using Parker's Equations (in 2000 or 2011 dollars [see ConYr]/mile) | R7: Natural Gas Pipeline Capital Costs per mile Using Rui et al.'s Equations (in 2008 or 2011 dollars [see ConYr]/mile) | AI7: Natural Gas Pipeline Capital Costs per mile Using McCoy and Rubin's Equations (in 2004 or 2011 dollars [see ConYr]/mile) | AY7: Do Not Delete This Table!!!!
A8: Category = | B8: Tot | R8: Category = | S8: Tot | AI8: Category = | AJ8: Tot | AY8: Year for pipeline capital cost
A9: Diameter (in) | B9: Length (mi) | R9: Diameter (in) | S9: Length (mi) | AI9: Diameter (in) | AJ9: Length (mi) | AY9: 2011
B10: 10 | C10: 25 | D10: 50 | E10: 62.1 | F10: 100 | G10: 200 | H10: 300 | I10: 400 | J10: 500 | K10: 750 | L10: 1000 | M10: 1500 | N10: 2000 | S10: 10 | T10: 25 | U10: 50 | V10: 62.1 | W10: 100 | X10: 200 | Y10: 300 | Z10: 400 | AA10: 500 | AB10: 750 | AC10: 1000 | AD10: 1500 | AE10: 2000 | AJ10: 10 | AK10: 25 | AL10: 50 | AM10: 62.1 | AN10: 100 | AO10: 200 | AP10: 300 | AQ10: 400 | AR10: 500 | AS10: 750 | AT10: 1000 | AU10: 1500 | AV10: 2000 | AY10: 2000
A11: 4 | B11: =sigfig(CpParker($A11,B$27,$B$25,$B$5),$B$3)/B$10 -> 609000 | C11: 572000 | D11: 558000 | E11: 555555.5556 | F11: 552000 | G11: 550000 | H11: 546666.6667 | I11: 547500 | J11: 546000 | K11: 546666.6667 | L11: 546000 | M11: 546000 | N11: 545000 | R11: 4 | S11: =sigfig(CpRui($R11,S$27,$S$4,$S$25,$S$5),$S$3)/S$10 -> 224000 | T11: 196000 | U11: 178000 | V11: 172302.7375 | W11: 163000 | X11: 149500 | Y11: 142333.3333 | Z11: 138000 | AA11: 134600 | AB11: 129066.6667 | AC11: 125000 | AD11: 120666.6667 | AE11: 117500 | AI11: 4 | AJ11: =sigfig(Cpmccoy($AI11,AJ$27,$AJ$4,$AJ$25,$AJ$5),$AJ$3)/AJ$10 -> 286000 | AK11: 247600 | AL11: 224000 | AM11: 215780.9984 | AN11: 202000 | AO11: 183500 | AP11: 174000 | AQ11: 167750 | AR11: 163200 | AS11: 154666.6667 | AT11: 150000 | AU11: 143333.3333 | AV11: 138500
A12: 6 | B12: 675000 | C12: 636000 | D12: 624000 | E12: 621578.0998 | F12: 618000 | G12: 615000 | H12: 613333.3333 | I12: 612500 | J12: 612000 | K12: 612000 | L12: 612000 | M12: 611333.3333 | N12: 610000 | R12: 6 | S12: 319000 | T12: 277200 | U12: 250000 | V12: 243156.1997 | W12: 227000 | X12: 207500 | Y12: 197000 | Z12: 190250 | AA12: 185200 | AB12: 176000 | AC12: 171000 | AD12: 163333.3333 | AE12: 159000 | AI12: 6 | AJ12: 409000 | AK12: 354000 | AL12: 318000 | AM12: 307568.438 | AN12: 287000 | AO12: 260000 | AP12: 245666.6667 | AQ12: 236500 | AR12: 230000 | AS12: 217333.3333 | AT12: 210000 | AU12: 200000 | AV12: 193000
A13: 8 | B13: 752000 | C13: 712000 | D13: 700000 | E13: 698872.7858 | F13: 694000 | G13: 690000 | H13: 690000 | I13: 690000 | J13: 690000 | K13: 689333.3333 | L13: 689000 | M13: 686666.6667 | N13: 690000 | R13: 8 | S13: 414000 | T13: 358000 | U13: 322000 | V13: 312399.3559 | W13: 291000 | X13: 264500 | Y13: 250666.6667 | Z13: 241500 | AA13: 234000 | AB13: 224000 | AC13: 216000 | AD13: 206000 | AE13: 199500 | AI13: 8 | AJ13: 532000 | AK13: 460000 | AL13: 412000 | AM13: 399355.8776 | AN13: 371000 | AO13: 335500 | AP13: 317000 | AQ13: 305000 | AR13: 296000 | AS13: 280000 | AT13: 269000 | AU13: 256000 | AV13: 247000
A14: 10 | B14: 840000 | C14: 800000 | D14: 788000 | E14: 785829.3076 | F14: 782000 | G14: 780000 | H14: 776666.6667 | I14: 777500 | J14: 776000 | K14: 776000 | L14: 776000 | M14: 773333.3333 | N14: 775000 | R14: 10 | S14: 509000 | T14: 440000 | U14: 394000 | V14: 381642.5121 | W14: 356000 | X14: 322000 | Y14: 304666.6667 | Z14: 292500 | AA14: 284000 | AB14: 269333.3333 | AC14: 260000 | AD14: 248000 | AE14: 239500 | AI14: 10 | AJ14: 655000 | AK14: 564000 | AL14: 506000 | AM14: 489533.0113 | AN14: 456000 | AO14: 411500 | AP14: 390000 | AQ14: 372500 | AR14: 362000 | AS14: 342666.6667 | AT14: 329000 | AU14: 312000 | AV14: 301000
A15: 12 | B15: 938000 | C15: 900000 | D15: 886000 | E15: 884057.971 | F15: 881000 | G15: 875000 | H15: 876666.6667 | I15: 875000 | J15: 876000 | K15: 874666.6667 | L15: 875000 | M15: 873333.3333 | N15: 875000 | R15: 12 | S15: 604000 | T15: 520000 | U15: 466000 | V15: 450885.6683 | W15: 420000 | X15: 380000 | Y15: 360000 | Z15: 345000 | AA15: 334000 | AB15: 317333.3333 | AC15: 305000 | AD15: 290000 | AE15: 280000 | AI15: 12 | AJ15: 778000 | AK15: 672000 | AL15: 602000 | AM15: 582930.7568 | AN15: 541000 | AO15: 488500 | AP15: 460000 | AQ15: 442500 | AR15: 428000 | AS15: 405333.3333 | AT15: 389000 | AU15: 369333.3333 | AV15: 355500
A16: 16 | B16: 1170000 | C16: 1128000 | D16: 1116000 | E16: 1114331.723 | F16: 1110000 | G16: 1105000 | H16: 1106666.667 | I16: 1105000 | J16: 1104000 | K16: 1104000 | L16: 1100000 | M16: 1106666.667 | N16: 1105000 | R16: 16 | S16: 798000 | T16: 684000 | U16: 614000 | V16: 592592.5926 | W16: 551000 | X16: 496500 | Y16: 466666.6667 | Z16: 450000 | AA16: 434000 | AB16: 410666.6667 | AC16: 396000 | AD16: 374666.6667 | AE16: 361000 | AI16: 16 | AJ16: 1030000 | AK16: 888000 | AL16: 794000 | AM16: 768115.942 | AN16: 715000 | AO16: 645000 | AP16: 606666.6667 | AQ16: 582500 | AR16: 564000 | AS16: 533333.3333 | AT16: 512000 | AU16: 484666.6667 | AV16: 466500
A17: 20 | B17: 1440000 | C17: 1404000 | D17: 1390000 | E17: 1386473.43 | F17: 1380000 | G17: 1380000 | H17: 1380000 | I17: 1377500 | J17: 1378000 | K17: 1373333.333 | L17: 1380000 | M17: 1380000 | N17: 1375000 | R17: 20 | S17: 994000 | T17: 852000 | U17: 762000 | V17: 737520.1288 | W17: 684000 | X17: 615000 | Y17: 580000 | Z17: 555000 | AA17: 538000 | AB17: 508000 | AC17: 487000 | AD17: 461333.3333 | AE17: 444000 | AI17: 20 | AJ17: 1280000 | AK17: 1104000 | AL17: 992000 | AM17: 959742.351 | AN17: 892000 | AO17: 805000 | AP17: 756666.6667 | AQ17: 727500 | AR17: 704000 | AS17: 664000 | AT17: 638000 | AU17: 604000 | AV17: 580000
A18: 24 | B18: 1760000 | C18: 1720000 | D18: 1706000 | E18: 1706924.316 | F18: 1700000 | G18: 1695000 | H18: 1693333.333 | I18: 1695000 | J18: 1694000 | K18: 1693333.333 | L18: 1690000 | M18: 1693333.333 | N18: 1695000 | R18: 24 | S18: 1190000 | T18: 1024000 | U18: 914000 | V18: 884057.971 | W18: 819000 | X18: 735000 | Y18: 693333.3333 | Z18: 662500 | AA18: 642000 | AB18: 605333.3333 | AC18: 581000 | AD18: 549333.3333 | AE18: 530000 | AI18: 24 | AJ18: 1540000 | AK18: 1332000 | AL18: 1194000 | AM18: 1154589.372 | AN18: 1070000 | AO18: 965000 | AP18: 910000 | AQ18: 875000 | AR18: 846000 | AS18: 800000 | AT18: 768000 | AU18: 726666.6667 | AV18: 700000
A19: 30 | B19: 2310000 | C19: 2272000 | D19: 2260000 | E19: 2254428.341 | F19: 2250000 | G19: 2250000 | H19: 2250000 | I19: 2250000 | J19: 2240000 | K19: 2253333.333 | L19: 2250000 | M19: 2246666.667 | N19: 2250000 | R19: 30 | S19: 1500000 | T19: 1288000 | U19: 1148000 | V19: 1107890.499 | W19: 1030000 | X19: 920000 | Y19: 866666.6667 | Z19: 830000 | AA19: 802000 | AB19: 756000 | AC19: 725000 | AD19: 686666.6667 | AE19: 655000 | AI19: 30 | AJ19: 1940000 | AK19: 1676000 | AL19: 1504000 | AM19: 1455716.586 | AN19: 1350000 | AO19: 1220000 | AP19: 1150000 | AQ19: 1102500 | AR19: 1068000 | AS19: 1009333.333 | AT19: 969000 | AU19: 913333.3333 | AV19: 880000
A20: 36 | B20: 2970000 | C20: 2928000 | D20: 2920000 | E20: 2914653.784 | F20: 2910000 | G20: 2905000 | H20: 2903333.333 | I20: 2900000 | J20: 2900000 | K20: 2906666.667 | L20: 2900000 | M20: 2900000 | N20: 2900000 | R20: 36 | S20: 1810000 | T20: 1556000 | U20: 1388000 | V20: 1339774.557 | W20: 1240000 | X20: 1115000 | Y20: 1046666.667 | Z20: 1000000 | AA20: 968000 | AB20: 910666.6667 | AC20: 873000 | AD20: 826666.6667 | AE20: 790000 | AI20: 36 | AJ20: 2350000 | AK20: 2032000 | AL20: 1826000 | AM20: 1771336.554 | AN20: 1640000 | AO20: 1485000 | AP20: 1400000 | AQ20: 1342500 | AR20: 1300000 | AS20: 1226666.667 | AT20: 1180000 | AU20: 1113333.333 | AV20: 1070000
A21: 42 | B21: 3720000 | C21: 3676000 | D21: 3660000 | E21: 3655394.525 | F21: 3660000 | G21: 3655000 | H21: 3666666.667 | I21: 3650000 | J21: 3660000 | K21: 3653333.333 | L21: 3650000 | M21: 3653333.333 | N21: 3650000 | R21: 42 | S21: 2130000 | T21: 1828000 | U21: 1632000 | V21: 1576489.533 | W21: 1460000 | X21: 1310000 | Y21: 1230000 | Z21: 1175000 | AA21: 1136000 | AB21: 1069333.333 | AC21: 1030000 | AD21: 966666.6667 | AE21: 925000 | AI21: 42 | AJ21: 2770000 | AK21: 2400000 | AL21: 2160000 | AM21: 2093397.746 | AN21: 1940000 | AO21: 1755000 | AP21: 1656666.667 | AQ21: 1587500 | AR21: 1538000 | AS21: 1453333.333 | AT21: 1400000 | AU21: 1320000 | AV21: 1270000
A22: 48 | B22: 4560000 | C22: 4520000 | D22: 4520000 | E22: 4508856.683 | F22: 4510000 | G22: 4505000 | H22: 4500000 | I22: 4500000 | J22: 4500000 | K22: 4506666.667 | L22: 4500000 | M22: 4500000 | N22: 4500000 | R22: 48 | S22: 2460000 | T22: 2112000 | U22: 1884000 | V22: 1819645.733 | W22: 1680000 | X22: 1510000 | Y22: 1416666.667 | Z22: 1355000 | AA22: 1310000 | AB22: 1232000 | AC22: 1180000 | AD22: 1113333.333 | AE22: 1065000 | AI22: 48 | AJ22: 3200000 | AK22: 2776000 | AL22: 2500000 | AM22: 2415458.937 | AN22: 2250000 | AO22: 2035000 | AP22: 1920000 | AQ22: 1842500 | AR22: 1786000 | AS22: 1693333.333 | AT22: 1620000 | AU22: 1533333.333 | AV22: 1475000
A24: Natural Gas Pipeline Capital Costs Using Parker's Equations (in thousands of 2000 dollars or 2011 dollars--see ConYr) | R24: Natural Gas Pipeline Capital Costs Using Rui et al.'s Equations (in thousands of 2008 dollars or 2011 dollars--see ConYr) | AI24: Natural Gas Pipeline Capital Costs Using McCoy and Rubin's Equations (in thousands of 2004 dollars or 2011 dollars--see ConYr)
A25: Category = | B25: Tot | R25: Category = | S25: Tot | AI25: Category = | AJ25: Tot
A26: Diameter (in) | B26: Length (mi) | R26: Diameter (in) | S26: Length (mi) | AI26: Diameter (in) | AJ26: Length (mi)
B27: 10 | C27: 25 | D27: 50 | E27: 62.1 | F27: 100 | G27: 200 | H27: 300 | I27: 400 | J27: 500 | K27: 750 | L27: 1000 | M27: 1500 | N27: 2000 | S27: 10 | T27: 25 | U27: 50 | V27: 62.1 | W27: 100 | X27: 200 | Y27: 300 | Z27: 400 | AA27: 500 | AB27: 750 | AC27: 1000 | AD27: 1500 | AE27: 2000 | AJ27: 10 | AK27: 25 | AL27: 50 | AM27: 62.1 | AN27: 100 | AO27: 200 | AP27: 300 | AQ27: 400 | AR27: 500 | AS27: 750 | AT27: 1000 | AU27: 1500 | AV27: 2000
A28: 4 | B28: =sigfig(CpParker($A28,B$27,$B$25,$B$5),$B$3)*0.001 -> 6090 | C28: 14300 | D28: 27900 | E28: 34500 | F28: 55200 | G28: 110000 | H28: 164000 | I28: 219000 | J28: 273000 | K28: 410000 | L28: 546000 | M28: 819000 | N28: 1090000 | R28: 4 | S28: =sigfig(CpRui($R28,S$27,$S$4,$S$25,$S$5),$S$3)*0.001 -> 2240 | T28: 4900 | U28: 8900 | V28: 10700 | W28: 16300 | X28: 29900 | Y28: 42700 | Z28: 55200 | AA28: 67300 | AB28: 96800 | AC28: 125000 | AD28: 181000 | AE28: 235000 | AI28: 4 | AJ28: =sigfig(Cpmccoy($AI28,AJ$27,$AJ$4,$AJ$25,$AJ$5),$AJ$3)*0.001 -> 2860 | AK28: 6190 | AL28: 11200 | AM28: 13400 | AN28: 20200 | AO28: 36700 | AP28: 52200 | AQ28: 67100 | AR28: 81600 | AS28: 116000 | AT28: 150000 | AU28: 215000 | AV28: 277000
A29: 6 | B29: 6750 | C29: 15900 | D29: 31200 | E29: 38600 | F29: 61800 | G29: 123000 | H29: 184000 | I29: 245000 | J29: 306000 | K29: 459000 | L29: 612000 | M29: 917000 | N29: 1220000 | R29: 6 | S29: 3190 | T29: 6930 | U29: 12500 | V29: 15100 | W29: 22700 | X29: 41500 | Y29: 59100 | Z29: 76100 | AA29: 92600 | AB29: 132000 | AC29: 171000 | AD29: 245000 | AE29: 318000 | AI29: 6 | AJ29: 4090 | AK29: 8850 | AL29: 15900 | AM29: 19100 | AN29: 28700 | AO29: 52000 | AP29: 73700 | AQ29: 94600 | AR29: 115000 | AS29: 163000 | AT29: 210000 | AU29: 300000 | AV29: 386000
A30: 8 | B30: 7520 | C30: 17800 | D30: 35000 | E30: 43400 | F30: 69400 | G30: 138000 | H30: 207000 | I30: 276000 | J30: 345000 | K30: 517000 | L30: 689000 | M30: 1030000 | N30: 1380000 | R30: 8 | S30: 4140 | T30: 8950 | U30: 16100 | V30: 19400 | W30: 29100 | X30: 52900 | Y30: 75200 | Z30: 96600 | AA30: 117000 | AB30: 168000 | AC30: 216000 | AD30: 309000 | AE30: 399000 | AI30: 8 | AJ30: 5320 | AK30: 11500 | AL30: 20600 | AM30: 24800 | AN30: 37100 | AO30: 67100 | AP30: 95100 | AQ30: 122000 | AR30: 148000 | AS30: 210000 | AT30: 269000 | AU30: 384000 | AV30: 494000
A31: 10 | B31: 8400 | C31: 20000 | D31: 39400 | E31: 48800 | F31: 78200 | G31: 156000 | H31: 233000 | I31: 311000 | J31: 388000 | K31: 582000 | L31: 776000 | M31: 1160000 | N31: 1550000 | R31: 10 | S31: 5090 | T31: 11000 | U31: 19700 | V31: 23700 | W31: 35600 | X31: 64400 | Y31: 91400 | Z31: 117000 | AA31: 142000 | AB31: 202000 | AC31: 260000 | AD31: 372000 | AE31: 479000 | AI31: 10 | AJ31: 6550 | AK31: 14100 | AL31: 25300 | AM31: 30400 | AN31: 45600 | AO31: 82300 | AP31: 117000 | AQ31: 149000 | AR31: 181000 | AS31: 257000 | AT31: 329000 | AU31: 468000 | AV31: 602000
A32: 12 | B32: 9380 | C32: 22500 | D32: 44300 | E32: 54900 | F32: 88100 | G32: 175000 | H32: 263000 | I32: 350000 | J32: 438000 | K32: 656000 | L32: 875000 | M32: 1310000 | N32: 1750000 | R32: 12 | S32: 6040 | T32: 13000 | U32: 23300 | V32: 28000 | W32: 42000 | X32: 76000 | Y32: 108000 | Z32: 138000 | AA32: 167000 | AB32: 238000 | AC32: 305000 | AD32: 435000 | AE32: 560000 | AI32: 12 | AJ32: 7780 | AK32: 16800 | AL32: 30100 | AM32: 36200 | AN32: 54100 | AO32: 97700 | AP32: 138000 | AQ32: 177000 | AR32: 214000 | AS32: 304000 | AT32: 389000 | AU32: 554000 | AV32: 711000
A33: 16 | B33: 11700 | C33: 28200 | D33: 55800 | E33: 69200 | F33: 111000 | G33: 221000 | H33: 332000 | I33: 442000 | J33: 552000 | K33: 828000 | L33: 1100000 | M33: 1660000 | N33: 2210000 | R33: 16 | S33: 7980 | T33: 17100 | U33: 30700 | V33: 36800 | W33: 55100 | X33: 99300 | Y33: 140000 | Z33: 180000 | AA33: 217000 | AB33: 308000 | AC33: 396000 | AD33: 562000 | AE33: 722000 | AI33: 16 | AJ33: 10300 | AK33: 22200 | AL33: 39700 | AM33: 47700 | AN33: 71500 | AO33: 129000 | AP33: 182000 | AQ33: 233000 | AR33: 282000 | AS33: 400000 | AT33: 512000 | AU33: 727000 | AV33: 933000
A34: 20 | B34: 14400 | C34: 35100 | D34: 69500 | E34: 86100 | F34: 138000 | G34: 276000 | H34: 414000 | I34: 551000 | J34: 689000 | K34: 1030000 | L34: 1380000 | M34: 2070000 | N34: 2750000 | R34: 20 | S34: 9940 | T34: 21300 | U34: 38100 | V34: 45800 | W34: 68400 | X34: 123000 | Y34: 174000 | Z34: 222000 | AA34: 269000 | AB34: 381000 | AC34: 487000 | AD34: 692000 | AE34: 888000 | AI34: 20 | AJ34: 12800 | AK34: 27600 | AL34: 49600 | AM34: 59600 | AN34: 89200 | AO34: 161000 | AP34: 227000 | AQ34: 291000 | AR34: 352000 | AS34: 498000 | AT34: 638000 | AU34: 906000 | AV34: 1160000
A35: 24 | B35: 17600 | C35: 43000 | D35: 85300 | E35: 106000 | F35: 170000 | G35: 339000 | H35: 508000 | I35: 678000 | J35: 847000 | K35: 1270000 | L35: 1690000 | M35: 2540000 | N35: 3390000 | R35: 24 | S35: 11900 | T35: 25600 | U35: 45700 | V35: 54900 | W35: 81900 | X35: 147000 | Y35: 208000 | Z35: 265000 | AA35: 321000 | AB35: 454000 | AC35: 581000 | AD35: 824000 | AE35: 1060000 | AI35: 24 | AJ35: 15400 | AK35: 33300 | AL35: 59700 | AM35: 71700 | AN35: 107000 | AO35: 193000 | AP35: 273000 | AQ35: 350000 | AR35: 423000 | AS35: 600000 | AT35: 768000 | AU35: 1090000 | AV35: 1400000
A36: 30 | B36: 23100 | C36: 56800 | D36: 113000 | E36: 140000 | F36: 225000 | G36: 450000 | H36: 675000 | I36: 900000 | J36: 1120000 | K36: 1690000 | L36: 2250000 | M36: 3370000 | N36: 4500000 | R36: 30 | S36: 15000 | T36: 32200 | U36: 57400 | V36: 68800 | W36: 103000 | X36: 184000 | Y36: 260000 | Z36: 332000 | AA36: 401000 | AB36: 567000 | AC36: 725000 | AD36: 1030000 | AE36: 1310000 | AI36: 30 | AJ36: 19400 | AK36: 41900 | AL36: 75200 | AM36: 90400 | AN36: 135000 | AO36: 244000 | AP36: 345000 | AQ36: 441000 | AR36: 534000 | AS36: 757000 | AT36: 969000 | AU36: 1370000 | AV36: 1760000
A37: 36 | B37: 29700 | C37: 73200 | D37: 146000 | E37: 181000 | F37: 291000 | G37: 581000 | H37: 871000 | I37: 1160000 | J37: 1450000 | K37: 2180000 | L37: 2900000 | M37: 4350000 | N37: 5800000 | R37: 36 | S37: 18100 | T37: 38900 | U37: 69400 | V37: 83200 | W37: 124000 | X37: 223000 | Y37: 314000 | Z37: 400000 | AA37: 484000 | AB37: 683000 | AC37: 873000 | AD37: 1240000 | AE37: 1580000 | AI37: 36 | AJ37: 23500 | AK37: 50800 | AL37: 91300 | AM37: 110000 | AN37: 164000 | AO37: 297000 | AP37: 420000 | AQ37: 537000 | AR37: 650000 | AS37: 920000 | AT37: 1180000 | AU37: 1670000 | AV37: 2140000
A38: 42 | B38: 37200 | C38: 91900 | D38: 183000 | E38: 227000 | F38: 366000 | G38: 731000 | H38: 1100000 | I38: 1460000 | J38: 1830000 | K38: 2740000 | L38: 3650000 | M38: 5480000 | N38: 7300000 | R38: 42 | S38: 21300 | T38: 45700 | U38: 81600 | V38: 97900 | W38: 146000 | X38: 262000 | Y38: 369000 | Z38: 470000 | AA38: 568000 | AB38: 802000 | AC38: 1030000 | AD38: 1450000 | AE38: 1850000 | AI38: 42 | AJ38: 27700 | AK38: 60000 | AL38: 108000 | AM38: 130000 | AN38: 194000 | AO38: 351000 | AP38: 497000 | AQ38: 635000 | AR38: 769000 | AS38: 1090000 | AT38: 1400000 | AU38: 1980000 | AV38: 2540000
A39: 48 | B39: 45600 | C39: 113000 | D39: 226000 | E39: 280000 | F39: 451000 | G39: 901000 | H39: 1350000 | I39: 1800000 | J39: 2250000 | K39: 3380000 | L39: 4500000 | M39: 6750000 | N39: 9000000 | R39: 48 | S39: 24600 | T39: 52800 | U39: 94200 | V39: 113000 | W39: 168000 | X39: 302000 | Y39: 425000 | Z39: 542000 | AA39: 655000 | AB39: 924000 | AC39: 1180000 | AD39: 1670000 | AE39: 2130000 | AI39: 48 | AJ39: 32000 | AK39: 69400 | AL39: 125000 | AM39: 150000 | AN39: 225000 | AO39: 407000 | AP39: 576000 | AQ39: 737000 | AR39: 893000 | AS39: 1270000 | AT39: 1620000 | AU39: 2300000 | AV39: 2950000
A41: Natural Gas Pipeline Capital Costs Using Parker's Equations (in thousands of 2000 dollars or 2011 dollars--see ConYr) | R41: Natural Gas Pipeline Capital Costs Using Rui et al.'s Equations (in thousands of 2008 dollars or 2011 dollars--see ConYr) | AI41: Natural Gas Pipeline Capital Costs Using McCoy and Rubin's Equations (in thousands of 2004 dollars or 2011 dollars--see ConYr)
A42: Category = | B42: Mat | R42: Category = | S42: Mat | AI42: Category = | AJ42: Mat
A43: Diameter (in) | B43: Length (mi) | R43: Diameter (in) | S43: Length (mi) | AI43: Diameter (in) | AJ43: Length (mi)
B44: 10 | C44: 25 | D44: 50 | E44: 62.1 | F44: 100 | G44: 200 | H44: 300 | I44: 400 | J44: 500 | K44: 750 | L44: 1000 | M44: 1500 | N44: 2000 | S44: 10 | T44: 25 | U44: 50 | V44: 62.1 | W44: 100 | X44: 200 | Y44: 300 | Z44: 400 | AA44: 500 | AB44: 750 | AC44: 1000 | AD44: 1500 | AE44: 2000 | AJ44: 10 | AK44: 25 | AL44: 50 | AM44: 62.1 | AN44: 100 | AO44: 200 | AP44: 300 | AQ44: 400 | AR44: 500 | AS44: 750 | AT44: 1000 | AU44: 1500 | AV44: 2000
A45: 4 | B45: =sigfig(CpParker($A45,B$44,$B$42,$B$5),$B$3)*0.001 -> 774 | C45: 1830 | D45: 3590 | E45: 4440 | F45: 7110 | G45: 14100 | H45: 21200 | I45: 28200 | J45: 35300 | K45: 52900 | L45: 70500 | M45: 106000 | N45: 141000 | R45: 4 | S45: =sigfig(CpRui($R45,S$44,$S$4,$S$42,$S$5),$S$3)*0.001 -> 215 | T45: 479 | U45: 877 | V45: 1060 | W45: 1610 | X45: 2940 | Y45: 4190 | Z45: 5390 | AA45: 6540 | AB45: 9320 | AC45: 12000 | AD45: 17100 | AE45: 22000 | AI45: 4 | AJ45: =sigfig(Cpmccoy($AI45,AJ$44,$AJ$4,$AJ$42,$AJ$5),$AJ$3)*0.001 -> 188 | AK45: 430 | AL45: 802 | AM45: 975 | AN45: 1500 | AO45: 2800 | AP45: 4030 | AQ45: 5220 | AR45: 6390 | AS45: 9200 | AT45: 11900 | AU45: 17200 | AV45: 22300
A46: 6 | B46: 935 | C46: 2230 | D46: 4390 | E46: 5440 | F46: 8720 | G46: 17400 | H46: 26000 | I46: 34700 | J46: 43300 | K46: 64900 | L46: 86500 | M46: 130000 | N46: 173000 | R46: 6 | S46: 390 | T46: 868 | U46: 1590 | V46: 1920 | W46: 2910 | X46: 5330 | Y46: 7600 | Z46: 9770 | AA46: 11900 | AB46: 16900 | AC46: 21700 | AD46: 31000 | AE46: 39800 | AI46: 6 | AJ46: 359 | AK46: 819 | AL46: 1530 | AM46: 1860 | AN46: 2850 | AO46: 5330 | AP46: 7680 | AQ46: 9950 | AR46: 12200 | AS46: 17500 | AT46: 22700 | AU46: 32700 | AV46: 42400
A47: 8 | B47: 1150 | C47: 2770 | D47: 5460 | E47: 6770 | F47: 10900 | G47: 21600 | H47: 32400 | I47: 43200 | J47: 54000 | K47: 80900 | L47: 108000 | M47: 162000 | N47: 216000 | R47: 8 | S47: 595 | T47: 1320 | U47: 2430 | V47: 2930 | W47: 4440 | X47: 8140 | Y47: 11600 | Z47: 14900 | AA47: 18100 | AB47: 25800 | AC47: 33200 | AD47: 47200 | AE47: 60700 | AI47: 8 | AJ47: 567 | AK47: 1290 | AL47: 2420 | AM47: 2940 | AN47: 4510 | AO47: 8420 | AP47: 12100 | AQ47: 15700 | AR47: 19200 | AS47: 27700 | AT47: 35900 | AU47: 51700 | AV47: 67100
A48: 10 | B48: 1420 | C48: 3430 | D48: 6800 | E48: 8420 | F48: 13500 | G48: 27000 | H48: 40400 | I48: 53900 | J48: 67300 | K48: 101000 | L48: 135000 | M48: 202000 | N48: 269000 | R48: 10 | S48: 826 | T48: 1840 | U48: 3370 | V48: 4070 | W48: 6160 | X48: 11300 | Y48: 16100 | Z48: 20700 | AA48: 25100 | AB48: 35800 | AC48: 46000 | AD48: 65600 | AE48: 84300 | AI48: 10 | AJ48: 808 | AK48: 1840 | AL48: 3440 | AM48: 4190 | AN48: 6430 | AO48: 12000 | AP48: 17300 | AQ48: 22400 | AR48: 27400 | AS48: 39500 | AT48: 51200 | AU48: 73800 | AV48: 95600
A49: 12 | B49: 1740 | C49: 4230 | D49: 8400 | E49: 10400 | F49: 16700 | G49: 33400 | H49: 50000 | I49: 66700 | J49: 83300 | K49: 125000 | L49: 167000 | M49: 250000 | N49: 333000 | R49: 12 | S49: 1080 | T49: 2400 | U49: 4400 | V49: 5310 | W49: 8060 | X49: 14800 | Y49: 21000 | Z49: 27000 | AA49: 32800 | AB49: 46800 | AC49: 60100 | AD49: 85700 | AE49: 110000 | AI49: 12 | AJ49: 1080 | AK49: 2460 | AL49: 4600 | AM49: 5590 | AN49: 8590 | AO49: 16000 | AP49: 23100 | AQ49: 30000 | AR49: 36600 | AS49: 52800 | AT49: 68400 | AU49: 98600 | AV49: 128000
A50: 16 | B50: 2540 | C50: 6230 | D50: 12400 | E50: 15400 | F50: 24700 | G50: 49400 | H50: 74000 | I50: 98700 | J50: 123000 | K50: 185000 | L50: 247000 | M50: 370000 | N50: 493000 | R50: 16 | S50: 1650 | T50: 3660 | U50: 6710 | V50: 8110 | W50: 12300 | X50: 22500 | Y50: 32100 | Z50: 41200 | AA50: 50100 | AB50: 71400 | AC50: 91700 | AD50: 131000 | AE50: 168000 | AI50: 16 | AJ50: 1710 | AK50: 3890 | AL50: 7270 | AM50: 8840 | AN50: 13600 | AO50: 25400 | AP50: 36500 | AQ50: 47300 | AR50: 57900 | AS50: 83400 | AT50: 108000 | AU50: 156000 | AV50: 202000
A51: 20 | B51: 3550 | C51: 8770 | D51: 17500 | E51: 21700 | F51: 34800 | G51: 69600 | H51: 104000 | I51: 139000 | J51: 174000 | K51: 261000 | L51: 348000 | M51: 522000 | N51: 696000 | R51: 20 | S51: 2280 | T51: 5080 | U51: 9310 | V51: 11300 | W51: 17100 | X51: 31200 | Y51: 44500 | Z51: 57200 | AA51: 69500 | AB51: 99000 | AC51: 127000 | AD51: 181000 | AE51: 233000 | AI51: 20 | AJ51: 2430 | AK51: 5550 | AL51: 10400 | AM51: 12600 | AN51: 19400 | AO51: 36200 | AP51: 52100 | AQ51: 67500 | AR51: 82500 | AS51: 119000 | AT51: 154000 | AU51: 222000 | AV51: 288000
A52: 24 | B52: 4770 | C52: 11800 | D52: 23600 | E52: 29300 | F52: 47100 | G52: 94100 | H52: 141000 | I52: 188000 | J52: 235000 | K52: 353000 | L52: 470000 | M52: 706000 | N52: 941000 | R52: 24 | S52: 2990 | T52: 6640 | U52: 12200 | V52: 14700 | W52: 22300 | X52: 40800 | Y52: 58100 | Z52: 74800 | AA52: 90800 | AB52: 129000 | AC52: 166000 | AD52: 237000 | AE52: 305000 | AI52: 24 | AJ52: 3250 | AK52: 7420 | AL52: 13900 | AM52: 16800 | AN52: 25900 | AO52: 48300 | AP52: 69600 | AQ52: 90200 | AR52: 110000 | AS52: 159000 | AT52: 206000 | AU52: 297000 | AV52: 385000
A53: 30 | B53: 7010 | C53: 17400 | D53: 34800 | E53: 43200 | F53: 69500 | G53: 139000 | H53: 208000 | I53: 278000 | J53: 347000 | K53: 521000 | L53: 694000 | M53: 1040000 | N53: 1390000 | R53: 30 | S53: 4140 | T53: 9220 | U53: 16900 | V53: 20400 | W53: 30900 | X53: 56600 | Y53: 80700 | Z53: 104000 | AA53: 126000 | AB53: 180000 | AC53: 231000 | AD53: 329000 | AE53: 423000 | AI53: 30 | AJ53: 4630 | AK53: 10600 | AL53: 19800 | AM53: 24000 | AN53: 36900 | AO53: 68900 | AP53: 99300 | AQ53: 129000 | AR53: 157000 | AS53: 227000 | AT53: 294000 | AU53: 423000 | AV53: 548000
A54: 36 | B54: 9730 | C54: 24200 | D54: 48300 | E54: 60000 | F54: 96600 | G54: 193000 | H54: 290000 | I54: 386000 | J54: 483000 | K54: 724000 | L54: 966000 | M54: 1450000 | N54: 1930000 | R54: 36 | S54: 5410 | T54: 12000 | U54: 22100 | V54: 26700 | W54: 40400 | X54: 74000 | Y54: 105000 | Z54: 136000 | AA54: 165000 | AB54: 235000 | AC54: 302000 | AD54: 430000 | AE54: 552000 | AI54: 36 | AJ54: 6190 | AK54: 14100 | AL54: 26400 | AM54: 32100 | AN54: 49300 | AO54: 92100 | AP54: 133000 | AQ54: 172000 | AR54: 210000 | AS54: 303000 | AT54: 392000 | AU54: 566000 | AV54: 733000
A55: 42 | B55: 12900 | C55: 32200 | D55: 64300 | E55: 79900 | F55: 129000 | G55: 257000 | H55: 386000 | I55: 514000 | J55: 643000 | K55: 964000 | L55: 1290000 | M55: 1930000 | N55: 2570000 | R55: 42 | S55: 6790 | T55: 15100 | U55: 27700 | V55: 33400 | W55: 50700 | X55: 92800 | Y55: 132000 | Z55: 170000 | AA55: 207000 | AB55: 294000 | AC55: 378000 | AD55: 539000 | AE55: 693000 | AI55: 42 | AJ55: 7910 | AK55: 18100 | AL55: 33700 | AM55: 41000 | AN55: 63000 | AO55: 118000 | AP55: 169000 | AQ55: 220000 | AR55: 269000 | AS55: 387000 | AT55: 501000 | AU55: 723000 | AV55: 936000
A56: 48 | B56: 16600 | C56: 41400 | D56: 82700 | E56: 103000 | F56: 165000 | G56: 331000 | H56: 496000 | I56: 661000 | J56: 826000 | K56: 1240000 | L56: 1650000 | M56: 2480000 | N56: 3300000 | R56: 48 | S56: 8260 | T56: 18400 | U56: 33700 | V56: 40700 | W56: 61700 | X56: 113000 | Y56: 161000 | Z56: 207000 | AA56: 251000 | AB56: 358000 | AC56: 460000 | AD56: 656000 | AE56: 843000 | AI56: 48 | AJ56: 9780 | AK56: 22300 | AL56: 41700 | AM56: 50700 | AN56: 77900 | AO56: 145000 | AP56: 210000 | AQ56: 272000 | AR56: 332000 | AS56: 479000 | AT56: 620000 | AU56: 894000 | AV56: 1160000
A58: Natural Gas Pipeline Capital Costs Using Parker's Equations (in thousands of 2000 dollars or 2011 dollars--see ConYr) | R58: Natural Gas Pipeline Capital Costs Using Rui et al.'s Equations (in thousands of 2008 dollars or 2011 dollars--see ConYr) | AI58: Natural Gas Pipeline Capital Costs Using McCoy and Rubin's Equations (in thousands of 2004 dollars or 2011 dollars--see ConYr)
A59: Category = | B59: Lab | R59: Category = | S59: Lab | AI59: Category = | AJ59: Lab
A60: Diameter (in) | B60: Length (mi) | R60: Diameter (in) | S60: Length (mi) | AI60: Diameter (in) | AJ60: Length (mi)
B61: 10 | C61: 25 | D61: 50 | E61: 62.1 | F61: 100 | G61: 200 | H61: 300 | I61: 400 | J61: 500 | K61: 750 | L61: 1000 | M61: 1500 | N61: 2000 | S61: 10 | T61: 25 | U61: 50 | V61: 62.1 | W61: 100 | X61: 200 | Y61: 300 | Z61: 400 | AA61: 500 | AB61: 750 | AC61: 1000 | AD61: 1500 | AE61: 2000 | AJ61: 10 | AK61: 25 | AL61: 50 | AM61: 62.1 | AN61: 100 | AO61: 200 | AP61: 300 | AQ61: 400 | AR61: 500 | AS61: 750 | AT61: 1000 | AU61: 1500 | AV61: 2000
A62: 4 | B62: =sigfig(CpParker($A62,B$61,$B$59,$B$5),$B$3)*0.001 -> 4070 | C62: 9610 | D62: 18900 | E62: 23300 | F62: 37300 | G62: 74300 | H62: 111000 | I62: 148000 | J62: 185000 | K62: 278000 | L62: 370000 | M62: 555000 | N62: 740000 | R62: 4 | S62: =sigfig(CpRui($R62,S$61,$S$4,$S$59,$S$5),$S$3)*0.001 -> 951 | T62: 1990 | U62: 3490 | V62: 4160 | W62: 6110 | X62: 10700 | Y62: 14800 | Z62: 18700 | AA62: 22400 | AB62: 31100 | AC62: 39300 | AD62: 54500 | AE62: 68700 | AI62: 4 | AJ62: =sigfig(Cpmccoy($AI62,AJ$61,$AJ$4,$AJ$59,$AJ$5),$AJ$3)*0.001 -> 1450 | AK62: 3070 | AL62: 5420 | AM62: 6470 | AN62: 9560 | AO62: 16900 | AP62: 23500 | AQ62: 29800 | AR62: 35800 | AS62: 49900 | AT62: 63200 | AU62: 88100 | AV62: 112000
A63: 6 | B63: 4290 | C63: 10200 | D63: 20000 | E63: 24700 | F63: 39600 | G63: 78700 | H63: 118000 | I63: 157000 | J63: 196000 | K63: 294000 | L63: 392000 | M63: 588000 | N63: 784000 | R63: 6 | S63: 1380 | T63: 2890 | U63: 5060 | V63: 6030 | W63: 8860 | X63: 15500 | Y63: 21500 | Z63: 27200 | AA63: 32500 | AB63: 45200 | AC63: 57000 | AD63: 79100 | AE63: 99700 | AI63: 6 | AJ63: 2120 | AK63: 4490 | AL63: 7930 | AM63: 9470 | AN63: 14000 | AO63: 24700 | AP63: 34500 | AQ63: 43600 | AR63: 52400 | AS63: 73000 | AT63: 92500 | AU63: 129000 | AV63: 163000
A64: 8 | B64: 4570 | C64: 10900 | D64: 21300 | E64: 26400 | F64: 42300 | G64: 84300 | H64: 126000 | I64: 168000 | J64: 210000 | K64: 315000 | L64: 420000 | M64: 630000 | N64: 839000 | R64: 8 | S64: 1800 | T64: 3770 | U64: 6590 | V64: 7860 | W64: 11500 | X64: 20200 | Y64: 28000 | Z64: 35400 | AA64: 42400 | AB64: 58800 | AC64: 74200 | AD64: 103000 | AE64: 130000 | AI64: 8 | AJ64: 2780 | AK64: 5890 | AL64: 10400 | AM64: 12400 | AN64: 18300 | AO64: 32400 | AP64: 45200 | AQ64: 57200 | AR64: 68600 | AS64: 95700 | AT64: 121000 | AU64: 169000 | AV64: 214000
A65: 10 | B65: 4900 | C65: 11700 | D65: 23000 | E65: 28500 | F65: 45600 | G65: 90900 | H65: 136000 | I65: 181000 | J65: 227000 | K65: 340000 | L65: 453000 | M65: 679000 | N65: 906000 | R65: 10 | S65: 2200 | T65: 4620 | U65: 8090 | V65: 9640 | W65: 14200 | X65: 24800 | Y65: 34400 | Z65: 43400 | AA65: 52000 | AB65: 72200 | AC65: 91100 | AD65: 126000 | AE65: 159000 | AI65: 10 | AJ65: 3420 | AK65: 7260 | AL65: 12800 | AM65: 15300 | AN65: 22600 | AO65: 39900 | AP65: 55700 | AQ65: 70500 | AR65: 84700 | AS65: 118000 | AT65: 149000 | AU65: 208000 | AV65: 264000
A66: 12 | B66: 5290 | C66: 12700 | D66: 24900 | E66: 30900 | F66: 49500 | G66: 98700 | H66: 148000 | I66: 197000 | J66: 246000 | K66: 369000 | L66: 492000 | M66: 737000 | N66: 983000 | R66: 12 | S66: 2610 | T66: 5460 | U66: 9570 | V66: 11400 | W66: 16700 | X66: 29300 | Y66: 40700 | Z66: 51300 | AA66: 61500 | AB66: 85300 | AC66: 108000 | AD66: 149000 | AE66: 188000 | AI66: 12 | AJ66: 4060 | AK66: 8620 | AL66: 15200 | AM66: 18200 | AN66: 26900 | AO66: 47400 | AP66: 66100 | AQ66: 83700 | AR66: 100000 | AS66: 140000 | AT66: 177000 | AU66: 247000 | AV66: 313000
A67: 16 | B67: 6230 | C67: 15000 | D67: 29600 | E67: 36700 | F67: 58900 | G67: 117000 | H67: 176000 | I67: 235000 | J67: 293000 | K67: 439000 | L67: 586000 | M67: 878000 | N67: 1170000 | R67: 16 | S67: 3390 | T67: 7120 | U67: 12500 | V67: 14800 | W67: 21800 | X67: 38200 | Y67: 53000 | Z67: 66900 | AA67: 80100 | AB67: 111000 | AC67: 140000 | AD67: 195000 | AE67: 245000 | AI67: 16 | AJ67: 5330 | AK67: 11300 | AL67: 19900 | AM67: 23800 | AN67: 35200 | AO67: 62100 | AP67: 86600 | AQ67: 110000 | AR67: 132000 | AS67: 184000 | AT67: 233000 | AU67: 324000 | AV67: 410000
A68: 20 | B68: 7390 | C68: 17900 | D68: 35400 | E68: 43900 | F68: 70500 | G68: 141000 | H68: 211000 | I68: 281000 | J68: 351000 | K68: 526000 | L68: 702000 | M68: 1050000 | N68: 1400000 | R68: 20 | S68: 4170 | T68: 8730 | U68: 15300 | V68: 18200 | W68: 26800 | X68: 46900 | Y68: 65000 | Z68: 82100 | AA68: 98300 | AB68: 136000 | AC68: 172000 | AD68: 239000 | AE68: 301000 | AI68: 20 | AJ68: 6570 | AK68: 13900 | AL68: 24600 | AM68: 29400 | AN68: 43400 | AO68: 76600 | AP68: 107000 | AQ68: 135000 | AR68: 162000 | AS68: 227000 | AT68: 287000 | AU68: 400000 | AV68: 506000
A69: 24 | B69: 8770 | C69: 21400 | D69: 42300 | E69: 52500 | F69: 84300 | G69: 168000 | H69: 252000 | I69: 336000 | J69: 420000 | K69: 630000 | L69: 840000 | M69: 1260000 | N69: 1680000 | R69: 24 | S69: 4920 | T69: 10300 | U69: 18100 | V69: 21500 | W69: 31600 | X69: 55400 | Y69: 76900 | Z69: 97000 | AA69: 116000 | AB69: 161000 | AC69: 203000 | AD69: 282000 | AE69: 356000 | AI69: 24 | AJ69: 7800 | AK69: 16500 | AL69: 29200 | AM69: 34900 | AN69: 51500 | AO69: 90900 | AP69: 127000 | AQ69: 161000 | AR69: 193000 | AS69: 269000 | AT69: 340000 | AU69: 475000 | AV69: 601000
A70: 30 | B70: 11300 | C70: 27600 | D70: 54800 | E70: 67900 | F70: 109000 | G70: 218000 | H70: 327000 | I70: 436000 | J70: 544000 | K70: 816000 | L70: 1090000 | M70: 1630000 | N70: 2180000 | R70: 30 | S70: 6040 | T70: 12700 | U70: 22200 | V70: 26400 | W70: 38800 | X70: 68000 | Y70: 94400 | Z70: 119000 | AA70: 143000 | AB70: 198000 | AC70: 250000 | AD70: 346000 | AE70: 437000 | AI70: 30 | AJ70: 9620 | AK70: 20400 | AL70: 36000 | AM70: 43000 | AN70: 63500 | AO70: 112000 | AP70: 156000 | AQ70: 198000 | AR70: 238000 | AS70: 332000 | AT70: 420000 | AU70: 585000 | AV70: 741000
A71: 36 | B71: 14200 | C71: 35000 | D71: 69700 | E71: 86500 | F71: 139000 | G71: 278000 | H71: 416000 | I71: 555000 | J71: 694000 | K71: 1040000 | L71: 1390000 | M71: 2080000 | N71: 2770000 | R71: 36 | S71: 7140 | T71: 15000 | U71: 26200 | V71: 31200 | W71: 45900 | X71: 80400 | Y71: 112000 | Z71: 141000 | AA71: 169000 | AB71: 234000 | AC71: 295000 | AD71: 410000 | AE71: 517000 | AI71: 36 | AJ71: 11400 | AK71: 24200 | AL71: 42700 | AM71: 51000 | AN71: 75400 | AO71: 133000 | AP71: 186000 | AQ71: 235000 | AR71: 282000 | AS71: 394000 | AT71: 498000 | AU71: 695000 | AV71: 880000
A72: 42 | B72: 17700 | C72: 43700 | D72: 87100 | E72: 108000 | F72: 174000 | G72: 347000 | H72: 521000 | I72: 694000 | J72: 868000 | K72: 1300000 | L72: 1730000 | M72: 2600000 | N72: 3470000 | R72: 42 | S72: 8230 | T72: 17300 | U72: 30200 | V72: 36000 | W72: 52900 | X72: 92600 | Y72: 129000 | Z72: 162000 | AA72: 194000 | AB72: 269000 | AC72: 340000 | AD72: 472000 | AE72: 595000 | AI72: 42 | AJ72: 13200 | AK72: 28000 | AL72: 49400 | AM72: 59000 | AN72: 87200 | AO72: 154000 | AP72: 215000 | AQ72: 272000 | AR72: 326000 | AS72: 455000 | AT72: 576000 | AU72: 803000 | AV72: 1020000
A73: 48 | B73: 21700 | C73: 53700 | D73: 107000 | E73: 133000 | F73: 214000 | G73: 427000 | H73: 640000 | I73: 853000 | J73: 1070000 | K73: 1600000 | L73: 2130000 | M73: 3200000 | N73: 4260000 | R73: 48 | S73: 9300 | T73: 19500 | U73: 34200 | V73: 40700 | W73: 59800 | X73: 105000 | Y73: 145000 | Z73: 183000 | AA73: 220000 | AB73: 305000 | AC73: 384000 | AD73: 533000 | AE73: 673000 | AI73: 48 | AJ73: 15000 | AK73: 31700 | AL73: 56000 | AM73: 66900 | AN73: 98800 | AO73: 174000 | AP73: 243000 | AQ73: 308000 | AR73: 370000 | AS73: 516000 | AT73: 653000 | AU73: 911000 | AV73: 1150000
A75: Natural Gas Pipeline Capital Costs Using Parker's Equations (in thousands of 2000 dollars or 2011 dollars--see ConYr) | R75: Natural Gas Pipeline Capital Costs Using Rui et al.'s Equations (in thousands of 2008 dollars or 2011 dollars--see ConYr) | AI75: Natural Gas Pipeline Capital Costs Using McCoy and Rubin's Equations (in thousands of 2004 dollars or 2011 dollars--see ConYr)
A76: Category = | B76: ROW | R76: Category = | S76: ROW | AI76: Category = | AJ76: ROW
A77: Diameter (in) | B77: Length (mi) | R77: Diameter (in) | S77: Length (mi) | AI77: Diameter (in) | AJ77: Length (mi)
B78: 10 | C78: 25 | D78: 50 | E78: 62.1 | F78: 100 | G78: 200 | H78: 300 | I78: 400 | J78: 500 | K78: 750 | L78: 1000 | M78: 1500 | N78: 2000 | S78: 10 | T78: 25 | U78: 50 | V78: 62.1 | W78: 100 | X78: 200 | Y78: 300 | Z78: 400 | AA78: 500 | AB78: 750 | AC78: 1000 | AD78: 1500 | AE78: 2000 | AJ78: 10 | AK78: 25 | AL78: 50 | AM78: 62.1 | AN78: 100 | AO78: 200 | AP78: 300 | AQ78: 400 | AR78: 500 | AS78: 750 | AT78: 1000 | AU78: 1500 | AV78: 2000
A79: 4 | B79: =sigfig(CpParker($A79,B$78,$B$76,$B$5),$B$3)*0.001 -> 463 | C79: 1080 | D79: 2110 | E79: 2610 | F79: 4170 | G79: 8290 | H79: 12400 | I79: 16500 | J79: 20600 | K79: 30900 | L79: 41200 | M79: 61800 | N79: 82400 | R79: 4 | S79: =sigfig(CpRui($R79,S$78,$S$4,$S$76,$S$5),$S$3)*0.001 -> 476 | T79: 1220 | U79: 2480 | V79: 3100 | W79: 5060 | X79: 10300 | Y79: 15600 | Z79: 21000 | AA79: 26400 | AB79: 40100 | AC79: 53900 | AD79: 81700 | AE79: 110000 | AI79: 4 | AJ79: =sigfig(Cpmccoy($AI79,AJ$78,$AJ$4,$AJ$76,$AJ$5),$AJ$3)*0.001 -> 338 | AK79: 884 | AL79: 1830 | AM79: 2290 | AN79: 3780 | AO79: 7830 | AP79: 12000 | AQ79: 16200 | AR79: 20500 | AS79: 31300 | AT79: 42300 | AU79: 64800 | AV79: 87600
A80: 6 | B80: 478 | C80: 1120 | D80: 2180 | E80: 2700 | F80: 4320 | G80: 8580 | H80: 12800 | I80: 17100 | J80: 21400 | K80: 32000 | L80: 42700 | M80: 64000 | N80: 85400 | R80: 6 | S80: 556 | T80: 1420 | U80: 2900 | V80: 3620 | W80: 5910 | X80: 12000 | Y80: 18300 | Z80: 24500 | AA80: 30900 | AB80: 46800 | AC80: 62900 | AD80: 95400 | AE80: 128000 | AI80: 6 | AJ80: 398 | AK80: 1040 | AL80: 2150 | AM80: 2700 | AN80: 4450 | AO80: 9220 | AP80: 14100 | AQ80: 19100 | AR80: 24100 | AS80: 36900 | AT80: 49900 | AU80: 76300 | AV80: 103000
A81: 8 | B81: 493 | C81: 1150 | D81: 2260 | E81: 2790 | F81: 4470 | G81: 8880 | H81: 13300 | I81: 17700 | J81: 22100 | K81: 33200 | L81: 44200 | M81: 66300 | N81: 88300 | R81: 8 | S81: 620 | T81: 1590 | U81: 3240 | V81: 4050 | W81: 6600 | X81: 13400 | Y81: 20400 | Z81: 27400 | AA81: 34500 | AB81: 52300 | AC81: 70200 | AD81: 106000 | AE81: 143000 | AI81: 8 | AJ81: 447 | AK81: 1170 | AL81: 2420 | AM81: 3030 | AN81: 5000 | AO81: 10300 | AP81: 15800 | AQ81: 21400 | AR81: 27100 | AS81: 41400 | AT81: 56000 | AU81: 85700 | AV81: 116000
A82: 10 | B82: 508 | C82: 1190 | D82: 2330 | E82: 2880 | F82: 4610 | G82: 9180 | H82: 13700 | I82: 18300 | J82: 22900 | K82: 34300 | L82: 45700 | M82: 68500 | N82: 91300 | R82: 10 | S82: 675 | T82: 1730 | U82: 3530 | V82: 4400 | W82: 7190 | X82: 14600 | Y82: 22200 | Z82: 29800 | AA82: 37500 | AB82: 56900 | AC82: 76500 | AD82: 116000 | AE82: 156000 | AI82: 10 | AJ82: 489 | AK82: 1280 | AL82: 2640 | AM82: 3320 | AN82: 5470 | AO82: 11300 | AP82: 17300 | AQ82: 23400 | AR82: 29600 | AS82: 45300 | AT82: 61300 | AU82: 93700 | AV82: 127000
A83: 12 | B83: 522 | C83: 1230 | D83: 2410 | E83: 2980 | F83: 4760 | G83: 9470 | H83: 14200 | I83: 18900 | J83: 23600 | K83: 35400 | L83: 47200 | M83: 70700 | N83: 94300 | R83: 12 | S83: 724 | T83: 1860 | U83: 3780 | V83: 4720 | W83: 7700 | X83: 15700 | Y83: 23800 | Z83: 32000 | AA83: 40200 | AB83: 61000 | AC83: 82000 | AD83: 124000 | AE83: 167000 | AI83: 12 | AJ83: 526 | AK83: 1380 | AL83: 2850 | AM83: 3570 | AN83: 5890 | AO83: 12200 | AP83: 18600 | AQ83: 25200 | AR83: 31900 | AS83: 48800 | AT83: 65900 | AU83: 101000 | AV83: 136000
A84: 16 | B84: 552 | C84: 1300 | D84: 2550 | E84: 3160 | F84: 5060 | G84: 10100 | H84: 15100 | I84: 20100 | J84: 25100 | K84: 37600 | L84: 50100 | M84: 75100 | N84: 100000 | R84: 16 | S84: 808 | T84: 2070 | U84: 4220 | V84: 5270 | W84: 8600 | X84: 17500 | Y84: 26600 | Z84: 35700 | AA84: 44900 | AB84: 68100 | AC84: 91500 | AD84: 139000 | AE84: 186000 | AI84: 16 | AJ84: 591 | AK84: 1540 | AL84: 3200 | AM84: 4010 | AN84: 6610 | AO84: 13700 | AP84: 20900 | AQ84: 28300 | AR84: 35800 | AS84: 54700 | AT84: 74000 | AU84: 113000 | AV84: 153000
A85: 20 | B85: 582 | C85: 1380 | D85: 2700 | E85: 3340 | F85: 5350 | G85: 10700 | H85: 16000 | I85: 21300 | J85: 26600 | K85: 39800 | L85: 53100 | M85: 79600 | N85: 106000 | R85: 20 | S85: 880 | T85: 2250 | U85: 4590 | V85: 5740 | W85: 9360 | X85: 19100 | Y85: 28900 | Z85: 38900 | AA85: 48900 | AB85: 74200 | AC85: 99600 | AD85: 151000 | AE85: 203000 | AI85: 20 | AJ85: 646 | AK85: 1690 | AL85: 3500 | AM85: 4390 | AN85: 7240 | AO85: 15000 | AP85: 22900 | AQ85: 31000 | AR85: 39100 | AS85: 59900 | AT85: 81000 | AU85: 124000 | AV85: 168000
A86: 24 | B86: 611 | C86: 1450 | D86: 2850 | E86: 3530 | F86: 5650 | G86: 11200 | H86: 16800 | I86: 22400 | J86: 28000 | K86: 42000 | L86: 56000 | M86: 84000 | N86: 112000 | R86: 24 | S86: 943 | T86: 2420 | U86: 4930 | V86: 6150 | W86: 10000 | X86: 20500 | Y86: 31000 | Z86: 41700 | AA86: 52400 | AB86: 79500 | AC86: 107000 | AD86: 162000 | AE86: 218000 | AI86: 24 | AJ86: 696 | AK86: 1820 | AL86: 3760 | AM86: 4720 | AN86: 7790 | AO86: 16100 | AP86: 24700 | AQ86: 33300 | AR86: 42100 | AS86: 64500 | AT86: 87200 | AU86: 133000 | AV86: 180000
A87: 30 | B87: 656 | C87: 1560 | D87: 3070 | E87: 3800 | F87: 6090 | G87: 12100 | H87: 18200 | I87: 24200 | J87: 30300 | K87: 45400 | L87: 60500 | M87: 90700 | N87: 121000 | R87: 30 | S87: 1030 | T87: 2630 | U87: 5360 | V87: 6700 | W87: 10900 | X87: 22300 | Y87: 33800 | Z87: 45400 | AA87: 57100 | AB87: 86600 | AC87: 116000 | AD87: 176000 | AE87: 237000 | AI87: 30 | AJ87: 761 | AK87: 1990 | AL87: 4120 | AM87: 5170 | AN87: 8520 | AO87: 17600 | AP87: 27000 | AQ87: 36500 | AR87: 46100 | AS87: 70500 | AT87: 95400 | AU87: 146000 | AV87: 197000
A88: 36 | B88: 700 | C88: 1670 | D88: 3290 | E88: 4080 | F88: 6540 | G88: 13000 | H88: 19500 | I88: 26000 | J88: 32500 | K88: 48700 | L88: 64900 | M88: 97400 | N88: 130000 | R88: 36 | S88: 1100 | T88: 2820 | U88: 5750 | V88: 7190 | W88: 11700 | X88: 23900 | Y88: 36200 | Z88: 48700 | AA88: 61200 | AB88: 92800 | AC88: 125000 | AD88: 189000 | AE88: 254000 | AI88: 36 | AJ88: 819 | AK88: 2140 | AL88: 4430 | AM88: 5560 | AN88: 9170 | AO88: 19000 | AP88: 29000 | AQ88: 39300 | AR88: 49600 | AS88: 75900 | AT88: 103000 | AU88: 157000 | AV88: 212000
A89: 42 | B89: 744 | C89: 1780 | D89: 3520 | E89: 4360 | F89: 6980 | G89: 13900 | H89: 20800 | I89: 27800 | J89: 34700 | K89: 52000 | L89: 69400 | M89: 104000 | N89: 139000 | R89: 42 | S89: 1170 | T89: 2990 | U89: 6100 | V89: 7620 | W89: 12400 | X89: 25300 | Y89: 38400 | Z89: 51600 | AA89: 64900 | AB89: 98400 | AC89: 132000 | AD89: 201000 | AE89: 270000 | AI89: 42 | AJ89: 872 | AK89: 2280 | AL89: 4720 | AM89: 5920 | AN89: 9760 | AO89: 20200 | AP89: 30900 | AQ89: 41800 | AR89: 52800 | AS89: 80800 | AT89: 109000 | AU89: 167000 | AV89: 226000
